Workbook

Sheet Vurdering af miljøgevinst
A4: VALG AF PARAMETRE
A5: Rute 1 | B5: Tiltag | E5: Rute 1 | F5: Sammenligningsgrundlag
A6: Brændstoftype | B6: Biodiesel | E6: Brændstoftype | F6: Diesel
A7: Euro-norm | B7: Euro 6 | E7: Euro-norm | F7: Euro 3
A8: Buslængde | B8: 12 meter | E8: Buslængde | F8: 12 meter
A9: Brændstofforbrug i km/liter eller ved gas i km/NM3 | B9: 3.181412969 | E9: Brændstofforbrug i km/liter eller ved gas i km/NM3 | F9: 2.61815794
A10: Økochaufførkursus | B10: Ja | E10: Økochaufførkursus | F10: Nej
A11: Ekstra partikelfilter | B11: Ja | E11: Ekstra partikelfilter | F11: Nej
A12: Brændstofbesparelse pr. km | B12: 0 | E12: Brændstofbesparelse pr. km | F12: 0
A13: Ved biodiesel eller ethanol vælg blandingsforhold | B13: 0.35 | E13: Ved biodiesel eller ethanol vælg blandingsforhold | F13: 0
A16: RESULTAT FOR SAMLEDE RUTER
A17: Estimerede emissioner (tiltag) | B17: I gram | C17: I kroner | D17: Estimerede emissioner (sammenligningsgrundlag) | E17: I gram | F17: I kroner
A18: Kuldioxid (CO2) | B18: =Emissioner_rute1_1_kul -> 57322435.6 | C18: =Pris_rute1_1_kul -> 7451.916628 | D18: Kuldioxid (CO2) | E18: =Emissioner_rute1_2_kul -> 120405264.8 | F18: =Pris_rute1_2_kul -> 15652.68442
A19: Svovldioxid (SO2) | B19: =Emissioner_rute1_1_svovl -> 425.5916744 | C19: =Pris_rute1_1_svovl -> 88.84226203 | D19: Svovldioxid (SO2) | E19: =Emissioner_rute1_2_svovl -> 813.5490865 | F19: =Pris_rute1_2_svovl -> 169.8283718
A20: Kvælstofilter (NOX) | B20: =Emissioner_rute1_1_kvæl -> 26580.84638 | C20: =Pris_rute1_1_kvæl -> 1275.880626 | D20: Kvælstofilter (NOX) | E20: =Emissioner_rute1_2_kvæl -> 474570.3004 | F20: =Pris_rute1_2_kvæl -> 22779.37442
A21: Kultile (CO) | B21: =Emissioner_rute1_1_kulilt -> 99678.17394 | C21: =Pris_rute1_1_kulilt -> 1.64468987 | D21: Kulilte (CO) | E21: =Emissioner_rute1_2_kulilt -> 199319.5262 | F21: =Pris_rute1_2_kulilt -> 3.288772182
A22: Kulbrinte (HC) | B22: =Emissioner_rute1_1_kulbrint -> 8638.775074 | C22: =Pris_rute1_1_kulbrint -> 23.75663145 | D22: Kulbrinte (HC) | E22: =Emissioner_rute1_2_kulbrint -> 62643.27966 | F22: =Pris_rute1_2_kulbrint -> 172.2690191
A23: Partikler (PM) | B23: =Emissioner_rute1_1_part -> 49.83908697 | C23: =Pris_rute1_1_part -> 61.25223788 | D23: Partikler (PM) | E23: =Emissioner_rute1_2_part -> 9491.406009 | F23: =Pris_rute1_2_part -> 11664.93798
A24: Samlede miljøomkostninger for tiltag | C24: =SUM(Sumpris_kul_tiltag:C23) -> 8903.293075 | D24: Samlede miljøomkostninger for sammenligningsgrundlag | F24: =SUM(Sumpris_kul_sammenligning:Sumpris_part_sammenligning) -> 50442.38299
A27: Estimerede emissionbesparelser | B27: I gram | C27: I procent | D27: Estimerede emissionsbesparelser (kroner) | E27: I kroner
A28: =D18 -> Kuldioxid (CO2) | B28: =(Sum_kul_sammenligning-Sum_kul_tiltag) -> 63082829.2 | C28: =IF(Sum_kul_sammenligning=0,"Kan ikke udregnes",(Sum_kul_sammenligning-Sum_kul_tiltag)/Sum_kul_sammenligning) -> 0.5239208544 | D28: Kuldioxid (CO2) | E28: =Sumpris_kul_sammenligning-Sumpris_kul_tiltag -> 8200.767796
A29: Svovldioxid (SO2) | B29: =(Sum_svovl_sammenligning-Sum_svovl_tiltag) -> 387.9574121 | C29: =IF(Sum_svovl_sammenligning=0,"Kan ikke udregnes",(Sum_svovl_sammenligning-Sum_svovl_tiltag)/Sum_svovl_sammenligning) -> 0.4768703186 | D29: Svovldioxid (SO2) | E29: =Sumpris_svovl_sammenligning-Sumpris_svovl_tiltag -> 80.98610977
A30: Kvælstofilter (NOX) | B30: =(Sum_kvæl_sammenligning-Sum_kvæl_tiltag) -> 447989.4541 | C30: =IF(Sum_kvæl_sammenligning=0,"Kan ikke udregnes",(Sum_kvæl_sammenligning-Sum_kvæl_tiltag)/Sum_kvæl_sammenligning) -> 0.9439896547 | D30: Kvælstofilter (NOx) | E30: =Sumpris_kvæl_sammenligning-Sumpris_kvæl_tiltag -> 21503.49379
A31: Kulilte (CO) | B31: =(Sum_kulilt_sammenligning-Sum_kulilt_tiltag) -> 99641.35225 | C31: =IF(Sum_kulilt_sammenligning=0,"Kan ikke udregnes",(Sum_kulilt_sammenligning-Sum_kulilt_tiltag)/Sum_kulilt_sammenligning) -> 0.4999076315 | D31: Kulilte (CO) | E31: =Sumpris_kulilt_sammenligning-Sumpris_kulilt_tiltag -> 1.644082312
A32: Kulbrinte (HC) | B32: =(Sum_kulbrint_sammenligning-Sum_kulbrint_tiltag) -> 54004.50458 | C32: =IF(Sum_kulbrint_sammenligning=0,"Kan ikke udregnes",(Sum_kulbrint_sammenligning-Sum_kulbrint_tiltag)/Sum_kulbrint_sammenligning) -> 0.8620957408 | D32: Kulbrinte (HC) | E32: =Sumpris_kulbrint_sammenligning-Sumpris_kulbrint_tiltag -> 148.5123876
A33: Partikler (PM) | B33: =(Sum_part_sammenligning-Sum_part_tiltag) -> 9441.566922 | C33: =IF(Sum_part_sammenligning=0,"Kan ikke udregnes",(Sum_part_sammenligning-Sum_part_tiltag)/Sum_part_sammenligning) -> 0.9947490301 | D33: Partikler (PM) | E33: =Sumpris_part_sammenligning-Sumpris_part_tiltag -> 11603.68575
D34: Total årlig miljøbesparelse | E34: =SUM(Sumpris_besparelse_kul:Sumpris_besparelse_part) -> 41539.08992
D35: Miljøindeks for tiltag | E35: =IF(Samlede_miljøomkostninger_sammenligning=0,"Kan ikke udregnes",Samlede_miljøomkostninger_tiltag*100/Samlede_miljøomkostninger_sammenligning) -> 17.65042123
A66: RESULTAT FOR ENKELTE RUTER
A67: Rute 1
A68: Årligt brændstofforbrug for tiltag | B68: =IF(Brændstof="El","Ikke oplyst",IF(Okochau="Ja",AntalKM/Forbrug*(1-Bbesparelse)*(1-OkoVærdi),AntalKM/Forbrug*(1-Bbesparelse))) -> 33569.98952 | C68: =IF(Brændstof="Diesel","Liter",IF(Brændstof="Biodiesel","Liter",IF(Brændstof="Naturgas","NM(3)",IF(Brændstof="Biogas","NM(3)",IF(Brændstof="Ethanol","Liter",IF(Brændstof="El","",IF(Brændstof="Brint","NM(3)","Fejl"))))))) -> Liter
A69: Årligt brændstofforbrug for sammenligningsgrundlag | B69: =IF(Brændstof2="El","Ikke oplyst",IF(Okochau2="Ja",AntalKM/Forbrug2*(1-Bbesparelse2)*(1-OkoVærdi),AntalKM/Forbrug2*(1-Bbesparelse2))) -> 45833.75135 | C69: =IF(Brændstof2="Diesel","Liter",IF(Brændstof2="Biodiesel","Liter",IF(Brændstof2="Naturgas","NM(3)",IF(Brændstof2="Biogas","NM(3)",IF(Brændstof2="Ethanol","Liter",IF(Brændstof2="El","",IF(Brændstof2="Brint","NM(3)","Fejl"))))))) -> Liter
A70: Årlig brændstofbesparelse ved gennemførelse af tiltag | B70: =IF(OR(Brændstof="El",Brændstof2="El"),"Ikke oplyst",IF(Rute1_enhed1=Rute1_enhed2,Rute1_brændstofforbrug_sammenligning-Rute1_brændstofforbrug_tiltag,"Enheder ikke sammenlignelige")) -> 12263.76184 | C70: =IF(Rute1_enhed1=Rute1_enhed2,Rute1_enhed2,"") -> Liter
A71: Årligt effektivt energiforbrug for tiltag | B71: =IF(Brændstof="Diesel",Rute1_brændstofforbrug_tiltag*Brændstoftyper!B14,IF(Brændstof="Biodiesel",Rute1_brændstofforbrug_tiltag*Diverse!B4,IF(Brændstof="Naturgas",Rute1_brændstofforbrug_tiltag*Brændstoftyper!D14,IF(Brændstof="Biogas",Rute1_brændstofforbrug_tiltag*Brændstoftyper!E14,IF(Brændstof="Ethanol",Rute1_brændstofforbrug_tiltag*Diverse!C4,"Ikke oplyst"))))) -> 1139179.131 | C71: MJ
A72: Årligt effektivt energiforbrug for sammenligningsgrundlag | B72: =IF(Brændstof2="Diesel",Rute1_brændstofforbrug_sammenligning*Brændstoftyper!B14,IF(Brændstof2="Biodiesel",Rute1_brændstofforbrug_sammenligning*Diverse!D4,IF(Brændstof2="Naturgas",Rute1_brændstofforbrug_sammenligning*Brændstoftyper!D14,IF(Brændstof2="Biogas",Rute1_brændstofforbrug_sammenligning*Brændstoftyper!E14,IF(Brændstof2="Ethanol",Rute1_brændstofforbrug_sammenligning*Diverse!E4,"Ikke oplyst"))))) -> 1627098.173 | C72: MJ
A73: Årlig effektiv energibesparelse | B73: =IF(AND(ISNUMBER(Rute1_energiforbrug_tiltag),ISNUMBER(Rute1_energiforbrug_sammenligning)),Rute1_energiforbrug_sammenligning-Rute1_energiforbrug_tiltag,"Ikke oplyst") -> 487919.0423 | C73: =IF(ISNUMBER(Rute1_energibesparelse),"MJ","") -> MJ
A76: Estimerede emissioner (tiltag) | B76: I gram | C76: I kroner | D76: Estimerede emissioner (sammenligningsgrundlag) | E76: I gram | F76: I kroner
A77: Kuldioxid (CO2) | B77: =Rute1_brændstofforbrug_tiltag*Diverse!$H$4 -> 57322435.6 | C77: =(Emissioner_rute1_1_kul*Emissionspriser!$B$21*AndelBy+Emissioner_rute1_1_kul*Emissionspriser!$B$20*(1-AndelBy))/1000 -> 7451.916628 | D77: Kuldioxid (CO2) | E77: =Rute1_brændstofforbrug_sammenligning*Diesel_Euro3_kul -> 120405264.8 | F77: =(Emissioner_rute1_2_kul*Emissionspriser!$B$21*AndelBy+Emissioner_rute1_2_kul*Emissionspriser!$B$20*(1-AndelBy))/1000 -> 15652.68442
A78: Svovldioxid (SO2) | B78: =Rute1_brændstofforbrug_tiltag*Diverse!$H$5 -> 425.5916744 | C78: =(Emissioner_rute1_1_svovl*Emissionspriser!$G$21*AndelBy+Emissioner_rute1_1_svovl*Emissionspriser!$G$20*(1-AndelBy))/1000 -> 88.84226203 | D78: Svovldioxid (SO2) | E78: =Rute1_brændstofforbrug_sammenligning*Diesel_Euro3_svovl -> 813.5490865 | F78: =(Emissioner_rute1_2_svovl*Emissionspriser!$G$21*AndelBy+Emissioner_rute1_2_svovl*Emissionspriser!$G$20*(1-AndelBy))/1000 -> 169.8283718
A79: Kvælstofilter (NOx) | B79: =Rute1_brændstofforbrug_tiltag*Diverse!$H$6 -> 26580.84638 | C79: =(Emissioner_rute1_1_kvæl*Emissionspriser!$D$21*AndelBy+Emissioner_rute1_1_kvæl*Emissionspriser!$D$20*(1-AndelBy))/1000 -> 1275.880626 | D79: Kvælstofilter (NOx) | E79: =Rute1_brændstofforbrug_sammenligning*Diesel_Euro3_kvæl -> 474570.3004 | F79: =(Emissioner_rute1_2_kvæl*Emissionspriser!$D$21*AndelBy+Emissioner_rute1_2_kvæl*Emissionspriser!$D$20*(1-AndelBy))/1000 -> 22779.37442
A80: Kulilte (CO) | B80: =Rute1_brændstofforbrug_tiltag*Diverse!$H$7 -> 99678.17394 | C80: =(Emissioner_rute1_1_kulilt*Emissionspriser!$E$21*AndelBy+Emissioner_rute1_1_kulilt*Emissionspriser!$EB$20*(1-AndelBy))/1000 -> 1.64468987 | D80: Kulilte (CO) | E80: =Rute1_brændstofforbrug_sammenligning*Diesel_Euro3_kulilt -> 199319.5262 | F80: =(Emissioner_rute1_2_kulilt*Emissionspriser!$E$21*AndelBy+Emissioner_rute1_2_kulilt*Emissionspriser!$EB$20*(1-AndelBy))/1000 -> 3.288772182
A81: Kulbrinte (HC) | B81: =Rute1_brændstofforbrug_tiltag*Diverse!$H$8 -> 8638.775074 | C81: =(Emissioner_rute1_1_kulbrint*Emissionspriser!$F$21*AndelBy+Emissioner_rute1_1_kulbrint*Emissionspriser!$F$20*(1-AndelBy))/1000 -> 23.75663145 | D81: Kulbrinte (HC) | E81: =Rute1_brændstofforbrug_sammenligning*Diesel_Euro3_kulbrint -> 62643.27966 | F81: =(Emissioner_rute1_2_kulbrint*Emissionspriser!$F$21*AndelBy+Emissioner_rute1_2_kulbrint*Emissionspriser!$F$20*(1-AndelBy))/1000 -> 172.2690191
A82: Partikler (PM) | B82: =(Rute1_brændstofforbrug_tiltag*Diverse!$H$9)*PFværdi -> 49.83908697 | C82: =(Emissioner_rute1_1_part*Emissionspriser!$C$21*AndelBy+Emissioner_rute1_1_part*Emissionspriser!$C$20*(1-AndelBy))/1000 -> 61.25223788 | D82: Partikler (PM) | E82: =Rute1_brændstofforbrug_sammenligning*Diesel_Euro3_part -> 9491.406009 | F82: =(Emissioner_rute1_2_part*Emissionspriser!$C$21*AndelBy+Emissioner_rute1_2_part*Emissionspriser!$C$20*(1-AndelBy))/1000 -> 11664.93798
A83: Samlede årlige miljøomkostninger for tiltag | C83: =SUM(Pris_rute1_1_kul:Pris_rute1_1_part) -> 8903.293075 | D83: Samlede årlige miljøomkostninger for sammenligningsgrundlag | F83: =SUM(Pris_rute1_2_kul:Pris_rute1_2_part) -> 50442.38299
A84: Estimerede emissionsbesparelser for rute 1 | B84: I gram | C84: I procent | D84: Estimerede emissionsbesparelser for rute 1 | E84: I kroner
A85: Kuldioxid (CO2) | B85: =Emissioner_rute1_2_kul-Emissioner_rute1_1_kul -> 63082829.2 | C85: =IF(Emissioner_rute1_2_kul=0,"Kan ikke udregnes",(Emissioner_rute1_2_kul-Emissioner_rute1_1_kul)/Emissioner_rute1_2_kul) -> 0.5239208544 | D85: Kuldioxid (CO2) | E85: =Pris_rute1_2_kul-Pris_rute1_1_kul -> 8200.767796
A86: Svovldioxid (SO2) | B86: =Emissioner_rute1_2_svovl-Emissioner_rute1_1_svovl -> 387.9574121 | C86: =IF(Emissioner_rute1_2_svovl=0,"Kan ikke udregnes",(Emissioner_rute1_2_svovl-Emissioner_rute1_1_svovl)/Emissioner_rute1_2_svovl) -> 0.4768703186 | D86: Svovldioxid (SO2) | E86: =Pris_rute1_2_svovl-Pris_rute1_1_svovl -> 80.98610977
A87: Kvælstofilter (NOx) | B87: =Emissioner_rute1_2_kvæl-Emissioner_rute1_1_kvæl -> 447989.4541 | C87: =IF(Emissioner_rute1_2_kvæl=0,"Kan ikke udregnes",(Emissioner_rute1_2_kvæl-Emissioner_rute1_1_kvæl)/Emissioner_rute1_2_kvæl) -> 0.9439896547 | D87: Kvælstofilter (NOx) | E87: =Pris_rute1_2_kvæl-Pris_rute1_1_kvæl -> 21503.49379
A88: Kulilte (CO) | B88: =Emissioner_rute1_2_kulilt-Emissioner_rute1_1_kulilt -> 99641.35225 | C88: =IF(Emissioner_rute1_2_kulilt=0,"Kan ikke udregnes",(Emissioner_rute1_2_kulilt-Emissioner_rute1_1_kulilt)/Emissioner_rute1_2_kulilt) -> 0.4999076315 | D88: Kulilte (CO) | E88: =Pris_rute1_2_kulilt-Pris_rute1_1_kulilt -> 1.644082312
A89: Kulbrinte (HC) | B89: =Emissioner_rute1_2_kulbrint-Emissioner_rute1_1_kulbrint -> 54004.50458 | C89: =IF(Emissioner_rute1_2_kulbrint=0,"Kan ikke udregnes",(Emissioner_rute1_2_kulbrint-Emissioner_rute1_1_kulbrint)/Emissioner_rute1_2_kulbrint) -> 0.8620957408 | D89: Kulbrinte (HC) | E89: =Pris_rute1_2_kulbrint-Pris_rute1_1_kulbrint -> 148.5123876
A90: Partikler (PM) | B90: =Emissioner_rute1_2_part-Emissioner_rute1_1_part -> 9441.566922 | C90: =IF(Emissioner_rute1_2_part=0,"Kan ikke udregnes",(Emissioner_rute1_2_part-Emissioner_rute1_1_part)/Emissioner_rute1_2_part) -> 0.9947490301 | D90: Partikler (PM) | E90: =Pris_rute1_2_part-Pris_rute1_1_part -> 11603.68575
D91: Samlede årlige miljøbesparelse ved gennemførelse af tiltag på rute 1 | E91: =SUM(Besparelse_rute1_kul:Besparelse_rute1_part) -> 41539.08992
B4392: =IF(Brændstof_rute13_1="El","Ikke oplyst",IF(Okochau_rute13_1="Ja",AntalKM_rute13/Forbrug_rute13_1*(1-Bbesparelse_rute13_1)*(1-OkoVærdi),AntalKM_rute13/Forbrug_rute13_1*(1-Bbesparelse_rute13_1))) -> 

Sheet Ruteoplysninger
A1: Ruteoplysninger
A2: Rute 1
A3: Antal rutekilometer årligt | B3: 120000
A4: Andel bykørsel | B4: 0.75
A5: Gennemsnitshastighed | B5: 34 km/t

Sheet Brændstoftyper
A1: Euro-normer | B1: Euro 6 | C1: EEV | D1: Euro 5 | E1: Euro 4 | F1: Euro 3 | G1: Euro 2
A2: Kvælstofilter (NOx) (g/kWh) | B2: 0.4 | C2: 2 | D2: 2 | E2: 3.5 | F2: 5 | G2: 7 | J2: Emissioner i alternative drivmidler | K2: Diesel | L2: Biodiesel (100% RME) | M2: Naturgas (CNG) | N2: Biogas (BNG) | O2: Ethanol (E100) | P2: El | Q2: Brint
A3: Kulilte (CO) (g/kWh) | B3: 1.5 | C3: 1.5 | D3: 1.5 | E3: 1.5 | F3: 2.1 | G3: 4 | J3: Kuldioxid (CO2) (g/MJ) | K3: 74 | L3: 0 | M3: 57 | N3: 0 | O3: 0 | P3: 0 | Q3: 0
A4: Kulbrinte (HC) (g/kWh) | B4: 0.13 | C4: 0.25 | D4: 0.46 | E4: 0.46 | F4: 0.66 | G4: 1.1 | J4: Svovldioxid (SO2) (g/MJ) | K4: 0.0005 | L4: 0.0005 | M4: 0 | N4: 0 | O4: 0.00039 | P4: 0 | Q4: 0
A5: Partikler (PM) (g/kWh) | B5: 0.01 | C5: 0.02 | D5: 0.02 | E5: 0.02 | F5: 0.1 | G5: 0.15 | J5: Kvælstofilter (NOx) (g/MJ) | K5: 0.6829 | L5: 0.6829 | M5: 0.01617 | N5: 0.0162 | O5: 0.01709 | P5: 0 | Q5: 0
J6: Kulilte (CO) (g/MJ) | K6: IA | L6: 0 | M6: 0 | N6: 0 | O6: 0 | P6: 0 | Q6: 0
A7: Euro-normer | B7: Euro 6 | C7: EEV | D7: Euro 5 | E7: Euro 4 | F7: Euro 3 | G7: Euro 2 | J7: Kulbrinte (HC) (g/MJ) | K7: IA | L7: 0 | M7: 0 | N7: 0 | O7: 0 | P7: 0 | Q7: 0
A8: Kvælstofilter (NOx) (g/MJ) | B8: =B2/$B$81 -> 0.1111111111 | C8: 0.5555555556 | D8: 0.5555555556 | E8: 0.9722222222 | F8: 1.388888889 | G8: 1.944444444 | J8: Partikler (PM) (g/MJ) | K8: IA | L8: 0.00941 | M8: 0 | N8: 0 | O8: 0 | P8: 0 | Q8: 0
A9: Kulilte (CO) (g/MJ) | B9: 0.4166666667 | C9: 0.4166666667 | D9: 0.4166666667 | E9: 0.4166666667 | F9: 0.5833333333 | G9: 1.111111111
A10: Kulbrinte (HC) (g/MJ) | B10: 0.03611111111 | C10: 0.06944444444 | D10: 0.1277777778 | E10: 0.1277777778 | F10: 0.1833333333 | G10: 0.3055555556
A11: Partikler (PM) (g/MJ) | B11: 0.002777777778 | C11: 0.005555555556 | D11: 0.005555555556 | E11: 0.005555555556 | F11: 0.02777777778 | G11: 0.04166666667
B13: Diesel | C13: Biodiesel (100% RME) | D13: Naturgas (CNG) | E13: Biogas (BNG) | F13: Ethanol (E100) | G13: El | H13: Brint
A14: Brændselsværdier i motor (MJ/l el. MJ/Nm3) | B14: 35.5 | C14: =35.5*(1-0.126) -> 31.027 | D14: 39.6 | E14: 39.6 | F14: 21.4
A15: kWh i brændstof | B15: =B14*$B80 -> 9.85835 | C15: =C14*$B80 -> 8.6161979 | D15: =D14*$B80 -> 10.99692 | E15: =E14*$B80 -> 10.99692 | F15: =F14*$B80 -> 5.94278
A16: Motorens virkningsgrad | B16: 0.21 | C16: 0.21 | D16: 0.16 | E16: 0.16 | F16: 0.16 | G16: 0.79
A17: Energiudnyttelse (MJ/l) | B17: =B16*B14 -> 7.455 | C17: =C16*C14 -> 6.51567 | D17: =D16*D14 -> 6.336 | E17: =E16*E14 -> 6.336 | F17: =F16*F14 -> 3.424
A18: Udnyttet kWh i brændstof (kWh/l el. kWh/Nm3) | B18: =B17*$B80 -> 2.0702535 | C18: =C17*$B80 -> 1.809401559 | D18: =D17*$B80 -> 1.7595072 | E18: =E17*$B80 -> 1.7595072 | F18: =F17*$B80 -> 0.9508448
A21: Effektive emissioner i g/l el. g/Nm3
A22: Euro 6 | B22: Diesel | C22: Biodiesel (100% RME) | D22: Naturgas (CNG) | E22: Biogas (BNG) | F22: Ethanol (E100) | G22: El | H22: Brint
A23: Kuldioxid (CO2) (g/l) | B23: =B$14*K3 -> 2627 | C23: =C$14*L3 -> 0 | D23: =D$14*M3 -> 2257.2 | E23: =E$14*N3 -> 0 | F23: =F$14*O3 -> 0 | G23: =G$17*P3 -> 0 | H23: 0
A24: Svovldioxid (SO2) (g/l) | B24: =B$14*K4 -> 0.01775 | C24: =C17*L4 -> 0.003257835 | D24: =D$14*M4 -> 0 | E24: 0 | F24: 0.008346 | G24: 0 | H24: 0
A25: Kvælstofilter (NOx) (g/l) | B25: =$B$8*B$17 -> 0.8283333333 | C25: =$B8*C$17 -> 0.7239633333 | D25: 0.640332 | E25: 0.64152 | F25: 0.365726 | G25: 0 | H25: 0
A26: Kulilte (CO) (g/l) | B26: =B9*B$17 -> 3.10625 | C26: =$B9*C$17 -> 2.7148625 | D26: 0 | E26: 0 | F26: 0 | G26: 0 | H26: 0
A27: Kulbrinte (HC) (g/l) | B27: =B10*B$17 -> 0.2692083333 | C27: =$B10*C$17 -> 0.2352880833 | D27: 0 | E27: 0 | F27: 0 | G27: 0 | H27: 0
A28: Partikler (PM) (g/l) | B28: =B11*B$17 -> 0.02070833333 | C28: =$B11*C$17 -> 0.01809908333 | D28: 0 | E28: 0 | F28: 0 | G28: 0 | H28: 0
A30: Effektive emissioner i g/l el. g/Nm3
A31: EEV | B31: Diesel | C31: Biodiesel (100% RME) | D31: Naturgas (CNG) | E31: Biogas (BNG) | F31: Ethanol (E100) | G31: El | H31: Brint
A32: Kuldioxid (CO2) (g/l) | B32: =B23 -> 2627 | C32: 0 | D32: 2257.2 | E32: 0 | F32: 0 | G32: 0 | H32: 0
A33: Svovldioxid (SO2) (g/l) | B33: 0.01775 | C33: 0.003257835 | D33: 0 | E33: 0 | F33: 0.008346 | G33: 0 | H33: 0
A34: Kvælstofilter (NOx) (g/l) | B34: =$C$8*B$17 -> 4.141666667 | C34: =$C8*C$17 -> 3.619816667 | D34: =D25 -> 0.640332 | E34: 0.64152 | F34: 0.365726 | G34: 0 | H34: 0
A35: Kulilte (CO) (g/l) | B35: =C9*$B$17 -> 3.10625 | C35: =$C9*C$17 -> 2.7148625 | D35: 0 | E35: 0 | F35: 0 | G35: 0 | H35: 0
A36: Kulbrinte (HC) (g/l) | B36: =C10*$B$17 -> 0.5177083333 | C36: =$C10*C$17 -> 0.4524770833 | D36: 0 | E36: 0 | F36: 0 | G36: 0 | H36: 0
A37: Partikler (PM) (g/l) | B37: =C11*$B$17 -> 0.04141666667 | C37: =$C11*C$17 -> 0.03619816667 | D37: 0 | E37: 0 | F37: 0 | G37: 0 | H37: 0
A39: Effektive emissioner i g/l el. g/Nm3
A40: Euro 5 | B40: Diesel | C40: Biodiesel (100% RME) | D40: Naturgas (CNG) | E40: Biogas (BNG) | F40: Ethanol (E100) | G40: El | H40: Brint
A41: Kuldioxid (CO2) (g/l) | B41: =B32 -> 2627 | C41: 0 | D41: 2257.2 | E41: 0 | F41: 0 | G41: 0 | H41: 0
A42: Svovldioxid (SO2) (g/l) | B42: =B33 -> 0.01775 | C42: =C33 -> 0.003257835 | D42: =D33 -> 0 | E42: 0 | F42: 0.008346 | G42: 0 | H42: 0
A43: Kvælstofilter (NOx) (g/l) | B43: =$D8*B$17 -> 4.141666667 | C43: =$D8*C$17 -> 3.619816667 | D43: 0.640332 | E43: 0.64152 | F43: 0.365726 | G43: 0 | H43: 0
A44: Kulilte (CO) (g/l) | B44: =D9*$B$17 -> 3.10625 | C44: =$D9*C$17 -> 2.7148625 | D44: 0 | E44: 0 | F44: 0 | G44: 0 | H44: 0
A45: Kulbrinte (HC) (g/l) | B45: =D10*$B$17 -> 0.9525833333 | C45: =$D10*C$17 -> 0.8325578333 | D45: 0 | E45: 0 | F45: 0 | G45: 0 | H45: 0
A46: Partikler (PM) (g/l) | B46: =D11*$B$17 -> 0.04141666667 | C46: =$D11*C$17 -> 0.03619816667 | D46: 0 | E46: 0 | F46: 0 | G46: 0 | H46: 0
A48: Effektive emissioner i g/l el. g/Nm3
A49: Euro 4 | B49: Diesel | C49: Biodiesel (100% RME) | D49: Naturgas (CNG) | E49: Biogas (BNG) | F49: Ethanol (E100) | G49: El | H49: Brint
A50: Kuldioxid (CO2) (g/l) | B50: =B41 -> 2627 | C50: 0 | D50: 2257.2 | E50: 0 | F50: 0 | G50: 0 | H50: 0
A51: Svovldioxid (SO2) (g/l) | B51: =B42 -> 0.01775 | C51: =C42 -> 0.003257835 | D51: =D42 -> 0 | E51: 0 | F51: 0.008346 | G51: 0 | H51: 0
A52: Kvælstofilter (NOx) (g/l) | B52: =$E8*B$17 -> 7.247916667 | C52: =$E8*C$17 -> 6.334679167 | D52: 0.640332 | E52: 0.64152 | F52: 0.365726 | G52: 0 | H52: 0
A53: Kulilte (CO) (g/l) | B53: =E9*$B$17 -> 3.10625 | C53: =$E9*C$17 -> 2.7148625 | D53: 0 | E53: 0 | F53: 0 | G53: 0 | H53: 0
A54: Kulbrinte (HC) (g/l) | B54: =E10*$B$17 -> 0.9525833333 | C54: =$E10*C$17 -> 0.8325578333 | D54: 0 | E54: 0 | F54: 0 | G54: 0 | H54: 0
A55: Partikler (PM) (g/l) | B55: =E11*$B$17 -> 0.04141666667 | C55: =$E11*C$17 -> 0.03619816667 | D55: 0 | E55: 0 | F55: 0 | G55: 0 | H55: 0
A57: Effektive emissioner i g/l el. g/Nm3
A58: Euro 3 | B58: Diesel | C58: Biodiesel (100% RME) | D58: Naturgas (CNG) | E58: Biogas (BNG) | F58: Ethanol (E100) | G58: El | H58: Brint
A59: Kuldioxid (CO2) (g/l) | B59: =B50 -> 2627 | C59: 0 | D59: 2257.2 | E59: 0 | F59: 0 | G59: 0 | H59: 0
A60: Svovldioxid (SO2) (g/l) | B60: =B51 -> 0.01775 | C60: =C51 -> 0.003257835 | D60: =D51 -> 0 | E60: 0 | F60: 0.008346 | G60: 0 | H60: 0
A61: Kvælstofilter (NOx) (g/l) | B61: =$F8*B$17 -> 10.35416667 | C61: =$F8*C$17 -> 9.049541667 | D61: 0.640332 | E61: 0.64152 | F61: 0.365726 | G61: 0 | H61: 0
A62: Kulilte (CO) (g/l) | B62: =F9*$B$17 -> 4.34875 | C62: =$F9*C$17 -> 3.8008075 | D62: 0 | E62: 0 | F62: 0 | G62: 0 | H62: 0
A63: Kulbrinte (HC) (g/l) | B63: =F10*$B$17 -> 1.36675 | C63: =$F10*C$17 -> 1.1945395 | D63: 0 | E63: 0 | F63: 0 | G63: 0 | H63: 0
A64: Partikler (PM) (g/l) | B64: =F11*$B$17 -> 0.2070833333 | C64: =$F11*C$17 -> 0.1809908333 | D64: 0 | E64: 0 | F64: 0 | G64: 0 | H64: 0
A66: Effektive emissioner i g/l el. g/Nm3
A67: Euro 2 | B67: Diesel | C67: Biodiesel (100% RME) | D67: Naturgas (CNG) | E67: Biogas (BNG) | F67: Ethanol (E100) | G67: El | H67: Brint
A68: Kuldioxid (CO2) (g/l) | B68: =B59 -> 2627 | C68: 0 | D68: 2257.2 | E68: 0 | F68: 0 | G68: 0 | H68: 0
A69: Svovldioxid (SO2) (g/l) | B69: =B60 -> 0.01775 | C69: =C60 -> 0.003257835 | D69: =D60 -> 0 | E69: 0 | F69: 0.008346 | G69: 0 | H69: 0
A70: Kvælstofilter (NOx) (g/l) | B70: =$G8*B$17 -> 14.49583333 | C70: =$G8*C$17 -> 12.66935833 | D70: 0.640332 | E70: 0.64152 | F70: 0.365726 | G70: 0 | H70: 0
A71: Kulilte (CO) (g/l) | B71: =$G9*B$17 -> 8.283333333 | C71: 7.239633333 | D71: 0 | E71: 0 | F71: 0 | G71: 0 | H71: 0
A72: Kulbrinte (HC) (g/l) | B72: 2.277916667 | C72: 1.990899167 | D72: 0 | E72: 0 | F72: 0 | G72: 0 | H72: 0
A73: Partikler (PM) (g/l) | B73: 0.310625 | C73: 0.27148625 | D73: 0 | E73: 0 | F73: 0 | G73: 0 | H73: 0
A78: ='Andre tiltag'!A2 -> Partikelfilter | B78: ='Andre tiltag'!C2 -> 0.925
A79: ='Andre tiltag'!A3 -> Økochauffør | B79: ='Andre tiltag'!C3 -> 0.11
A80: ='Andre tiltag'!A4 -> MJ til KWH | B80: ='Andre tiltag'!C4 -> 0.2777
A81: kWh til MJ | B81: ='Andre tiltag'!C5 -> 3.6

Sheet Emissionspriser
B1: Kuldioxid (CO2) | C1: Svovldioxid (SO2) | D1: Kvælstofilter (NOx) | E1: Kulilte (CO) | F1: Kulbrinte (HC) | G1: Partikler (PM2,5)
A2: Emisssionspriser Land
A3: Lavt estimat | B3: 0.08 | C3: 10 | D3: 0 | E3: 0 | F3: 0 | G3: 31
A4: Middel estimat | B4: 0.13 | C4: 187 | D4: 48 | E4: 0.008 | F4: 2 | G4: 218
A5: Højt estimat | B5: 0.25 | C5: 1128 | D5: 336 | E5: 0.993 | F5: 13 | G5: 1475
A6: Emissionspriser By
A7: Lavt estimat | B7: 0.08 | C7: 51 | D7: 4 | E7: 0.004 | F7: 1 | G7: 224
A8: Middel estimat | B8: 0.13 | C8: 216 | D8: 48 | E8: 0.022 | F8: 3 | G8: 1566
A9: Højt estimat | B9: 0.25 | C9: 1027 | D9: 366 | E9: 2.775 | F9: 15 | G9: 10577
A10: Vægtning af enkelte udledninger | B10: 1 | C10: 1 | D10: 1 | E10: 1 | F10: 1 | G10: 1
A12: Generelle estimationsforudsætninger | B12: Middel estimat
A16: Note: Priser for udledninger af partikler og gas er opgjort i kr./kg. Priser for støj er opgjort i kr./SBT
B19: Kuldioxid (CO2) | C19: Partikler (PM2,5) | D19: Kvælstofilter (NOx) | E19: Kulilte (CO) | F19: Kulbrinte (HC) | G19: Svovldioxid (SO2)
A20: Emisssionspriser Land givet estimat | B20: =IF(ValgEstimat="Lavt estimat",B3,IF(ValgEstimat="Middel estimat",B4,IF(ValgEstimat="Højt estimat",B5,"fejl"))) -> 0.13 | C20: =IF(ValgEstimat="Lavt estimat",G3,IF(ValgEstimat="Middel estimat",G4,IF(ValgEstimat="Højt estimat",G5,"fejl"))) -> 218 | D20: =IF(ValgEstimat="Lavt estimat",D3,IF(ValgEstimat="Middel estimat",D4,IF(ValgEstimat="Højt estimat",D5,"fejl"))) -> 48 | E20: =IF(ValgEstimat="Lavt estimat",E3,IF(ValgEstimat="Middel estimat",E4,IF(ValgEstimat="Højt estimat",E5,"fejl"))) -> 0.008 | F20: =IF(ValgEstimat="Lavt estimat",F3,IF(ValgEstimat="Middel estimat",F4,IF(ValgEstimat="Højt estimat",F5,"fejl"))) -> 2 | G20: =IF(ValgEstimat="Lavt estimat",C3,IF(ValgEstimat="Middel estimat",C4,IF(ValgEstimat="Højt estimat",C5,"fejl"))) -> 187
A21: Emissionspriser By givet estimat | B21: =IF(ValgEstimat="Lavt estimat",B7,IF(ValgEstimat="Middel estimat",B8,IF(ValgEstimat="Højt estimat",B9,"fejl"))) -> 0.13 | C21: =IF(ValgEstimat="Lavt estimat",G7,IF(ValgEstimat="Middel estimat",G8,IF(ValgEstimat="Højt estimat",G9,"fejl"))) -> 1566 | D21: =IF(ValgEstimat="Lavt estimat",D7,IF(ValgEstimat="Middel estimat",D8,IF(ValgEstimat="Højt estimat",D9,"fejl"))) -> 48 | E21: =IF(ValgEstimat="Lavt estimat",E7,IF(ValgEstimat="Middel estimat",E8,IF(ValgEstimat="Højt estimat",E9,"fejl"))) -> 0.022 | F21: =IF(ValgEstimat="Lavt estimat",F7,IF(ValgEstimat="Middel estimat",F8,IF(ValgEstimat="Højt estimat",F9,"fejl"))) -> 3 | G21: =IF(ValgEstimat="Lavt estimat",C7,IF(ValgEstimat="Middel estimat",C8,IF(ValgEstimat="Højt estimat",C9,"fejl"))) -> 216

Sheet Andre tiltag
B1: Effekt | F1: PF-værdi
A2: Partikelfilter | B2: Det antages at partikelfiltre tilbageholder: | C2: 0.925 | D2: af partikelemissionen | F2: =1-Partikelfiltereffekt -> 0.075
A3: Økochauffør | B3: Det antages at økochaufførkurser mindsker brændstoffobruget med: | C3: 0.11
A4: MJ til KWH | B4: Omregningsfaktor | C4: 0.2777
A5: kWh til MJ | B5: Omregningsfaktor | C5: 3.6

Sheet Brændstofforbrug (hidden)
N3: Reelt brændstofforbrug rute 1 | P3: Tiltag | R3: Sammenligning | T3: Reelt brændstofforbrug rute 2 | V3: Tiltag | X3: Sammenligning | Z3: Reelt brændstofforbrug rute 3 | AB3: Tiltag | AD3: Sammenligning | AF3: Reelt brændstofforbrug rute 4 | AH3: Tiltag | AJ3: Sammenligning | AL3: Reelt brændstofforbrug rute 5 | AN3: Tiltag | AP3: Sammenligning | AR3: Reelt brændstofforbrug rute 6 | AT3: Tiltag | AV3: Sammenligning | AX3: Reelt brændstofforbrug rute 7 | AZ3: Tiltag | BB3: Sammenligning | BD3: Reelt brændstofforbrug rute 8 | BF3: Tiltag | BH3: Sammenligning | BJ3: Reelt brændstofforbrug rute 9 | BL3: Tiltag | BN3: Sammenligning | BP3: Reelt brændstofforbrug rute 10 | BR3: Tiltag | BT3: Sammenligning | BV3: Reelt brændstofforbrug rute 11 | BX3: Tiltag | BZ3: Sammenligning | CB3: Reelt brændstofforbrug rute 12 | CD3: Tiltag | CF3: Sammenligning | CH3: Reelt brændstofforbrug rute 13 | CJ3: Tiltag | CL3: Sammenligning | CN3: Reelt brændstofforbrug rute 14 | CP3: Tiltag | CR3: Sammenligning | CT3: Reelt brændstofforbrug rute 15 | CV3: Tiltag | CX3: Sammenligning | CZ3: Reelt brændstofforbrug rute 16 | DB3: Tiltag | DD3: Sammenligning | DF3: Reelt brændstofforbrug rute 17 | DH3: Tiltag | DJ3: Sammenligning | DL3: Reelt brændstofforbrug rute 18 | DN3: Tiltag | DP3: Sammenligning | DR3: Reelt brændstofforbrug rute 19 | DT3: Tiltag | DV3: Sammenligning | DX3: Reelt brændstofforbrug rute 20 | DZ3: Tiltag | EB3: Sammenligning | ED3: Reelt brændstofforbrug rute 21 | EF3: Tiltag | EH3: Sammenligning | EJ3: Reelt brændstofforbrug rute 22 | EL3: Tiltag | EN3: Sammenligning | EP3: Reelt brændstofforbrug rute 23 | ER3: Tiltag | ET3: Sammenligning | EV3: Reelt brændstofforbrug rute 24 | EX3: Tiltag | EZ3: Sammenligning | FB3: Reelt brændstofforbrug rute 25 | FD3: Tiltag | FF3: Sammenligning
A4: Busstørrelse | B4: Hastighed km/t | C4: Euro 6 | D4: EEV | E4: Euro 5 | F4: Euro 4 | G4: Euro 3 | H4: Euro 2 | I4: Biodiesel | J4: Ethanol | K4: Gas | N4: Busstørrelse | O4: Hastighed i km/t | P4: Biodiesel | Q4: Ethanol | R4: Biodiesel | S4: Ethanol | T4: Busstørrelse | U4: Hastighed i km/t | V4: Biodiesel | W4: Ethanol | X4: Biodiesel | Y4: Ethanol | Z4: Busstørrelse | AA4: Hastighed i km/t | AB4: Biodiesel | AC4: Ethanol | AD4: Biodiesel | AE4: Ethanol | AF4: Busstørrelse | AG4: Hastighed i km/t | AH4: Biodiesel | AI4: Ethanol | AJ4: Biodiesel | AK4: Ethanol | AL4: Busstørrelse | AM4: Hastighed i km/t | AN4: Biodiesel | AO4: Ethanol | AP4: Biodiesel | AQ4: Ethanol | AR4: Busstørrelse | AS4: Hastighed i km/t | AT4: Biodiesel | AU4: Ethanol | AV4: Biodiesel | AW4: Ethanol | AX4: Busstørrelse | AY4: Hastighed i km/t | AZ4: Biodiesel | BA4: Ethanol | BB4: Biodiesel | BC4: Ethanol | BD4: Busstørrelse | BE4: Hastighed i km/t | BF4: Biodiesel | BG4: Ethanol | BH4: Biodiesel | BI4: Ethanol | BJ4: Busstørrelse | BK4: Hastighed i km/t | BL4: Biodiesel | BM4: Ethanol | BN4: Biodiesel | BO4: Ethanol | BP4: Busstørrelse | BQ4: Hastighed i km/t | BR4: Biodiesel | BS4: Ethanol | BT4: Biodiesel | BU4: Ethanol | BV4: Busstørrelse | BW4: Hastighed i km/t | BX4: Biodiesel | BY4: Ethanol | BZ4: Biodiesel | CA4: Ethanol | CB4: Busstørrelse | CC4: Hastighed i km/t | CD4: Biodiesel | CE4: Ethanol | CF4: Biodiesel | CG4: Ethanol | CH4: Busstørrelse | CI4: Hastighed i km/t | CJ4: Biodiesel | CK4: Ethanol | CL4: Biodiesel | CM4: Ethanol | CN4: Busstørrelse | CO4: Hastighed i km/t | CP4: Biodiesel | CQ4: Ethanol | CR4: Biodiesel | CS4: Ethanol | CT4: Busstørrelse | CU4: Hastighed i km/t | CV4: Biodiesel | CW4: Ethanol | CX4: Biodiesel | CY4: Ethanol | CZ4: Busstørrelse | DA4: Hastighed i km/t | DB4: Biodiesel | DC4: Ethanol | DD4: Biodiesel | DE4: Ethanol | DF4: Busstørrelse | DG4: Hastighed i km/t | DH4: Biodiesel | DI4: Ethanol | DJ4: Biodiesel | DK4: Ethanol | DL4: Busstørrelse | DM4: Hastighed i km/t | DN4: Biodiesel | DO4: Ethanol | DP4: Biodiesel | DQ4: Ethanol | DR4: Busstørrelse | DS4: Hastighed i km/t | DT4: Biodiesel | DU4: Ethanol | DV4: Biodiesel | DW4: Ethanol | DX4: Busstørrelse | DY4: Hastighed i km/t | DZ4: Biodiesel | EA4: Ethanol | EB4: Biodiesel | EC4: Ethanol | ED4: Busstørrelse | EE4: Hastighed i km/t | EF4: Biodiesel | EG4: Ethanol | EH4: Biodiesel | EI4: Ethanol | EJ4: Busstørrelse | EK4: Hastighed i km/t | EL4: Biodiesel | EM4: Ethanol | EN4: Biodiesel | EO4: Ethanol | EP4: Busstørrelse | EQ4: Hastighed i km/t | ER4: Biodiesel | ES4: Ethanol | ET4: Biodiesel | EU4: Ethanol | EV4: Busstørrelse | EW4: Hastighed i km/t | EX4: Biodiesel | EY4: Ethanol | EZ4: Biodiesel | FA4: Ethanol | FB4: Busstørrelse | FC4: Hastighed i km/t | FD4: Biodiesel | FE4: Ethanol | FF4: Biodiesel | FG4: Ethanol
A5: 10 meter | B5: 10 | C5: 2.843776899 | D5: 2.760948446 | E5: 2.930377507 | F5: 2.653405553 | G5: 2.379531525 | H5: 2.535969942 | I5: 2.729970206 | J5: 1.767752825 | K5: 2.906971554 | N5: 10 meter | O5: 10 | P5: =IF('Vurdering af miljøgevinst'!$A$5="Rute 1",Euro6_10_10*(1-'Vurdering af miljøgevinst'!$B$13)+Biodiesel_10_10*'Vurdering af miljøgevinst'!$B$13,"IR") -> 2.803944557 | Q5: =IF('Vurdering af miljøgevinst'!$A$5="Rute 1",Euro6_10_10*(1-'Vurdering af miljøgevinst'!$B$13)+Ethanol_10_10*'Vurdering af miljøgevinst'!$B$13,"IR") -> 2.467168473 | R5: =IF('Vurdering af miljøgevinst'!$A$5="Rute 1",Euro6_10_10*(1-'Vurdering af miljøgevinst'!$F$13)+Biodiesel_10_10*'Vurdering af miljøgevinst'!$F$13,"IR") -> 2.843776899 | S5: =IF('Vurdering af miljøgevinst'!$A$5="Rute 1",Euro6_10_10*(1-'Vurdering af miljøgevinst'!$F$13)+Ethanol_10_10*'Vurdering af miljøgevinst'!$F$13,"IR") -> 2.843776899 | T5: 10 meter | U5: 10 | Z5: 10 meter | AA5: 10 | AF5: 10 meter | AG5: 10 | AL5: 10 meter | AM5: 10 | AR5: 10 meter | AS5: 10 | AX5: 10 meter | AY5: 10 | BD5: 10 meter | BE5: 10 | BJ5: 10 meter | BK5: 10 | BP5: 10 meter | BQ5: 10 | BV5: 10 meter | BW5: 10 | CB5: 10 meter | CC5: 10 | CH5: 10 meter | CI5: 10 | CN5: 10 meter | CO5: 10 | CT5: 10 meter | CU5: 10 | CZ5: 10 meter | DA5: 10 | DF5: 10 meter | DG5: 10 | DL5: 10 meter | DM5: 10 | DR5: 10 meter | DS5: 10 | DX5: 10 meter | DY5: 10 | ED5: 10 meter | EE5: 10 | EJ5: 10 meter | EK5: 10 | EP5: 10 meter | EQ5: 10 | EV5: 10 meter | EW5: 10 | FB5: 10 meter | FC5: 10
B6: 11 | C6: 2.883762484 | D6: 2.799769402 | E6: 2.958407719 | F6: 2.683997379 | G6: 2.40886437 | H6: 2.559631395 | I6: 2.768056006 | J6: 1.792608724 | K6: 2.947845702 | O6: 11 | P6: =IF('Vurdering af miljøgevinst'!$A$5="Rute 1",Euro6_10_11*(1-'Vurdering af miljøgevinst'!$B$13)+Biodiesel_10_11*'Vurdering af miljøgevinst'!$B$13,"IR") -> 2.843265217 | Q6: =IF('Vurdering af miljøgevinst'!$A$5="Rute 1",Euro6_10_11*(1-'Vurdering af miljøgevinst'!$B$13)+Ethanol_10_11*'Vurdering af miljøgevinst'!$B$13,"IR") -> 2.501858668 | R6: =IF('Vurdering af miljøgevinst'!$A$5="Rute 1",Euro6_10_11*(1-'Vurdering af miljøgevinst'!$F$13)+Biodiesel_10_11*'Vurdering af miljøgevinst'!$F$13,"IR") -> 2.883762484 | S6: =IF('Vurdering af miljøgevinst'!$A$5="Rute 1",Euro6_10_11*(1-'Vurdering af miljøgevinst'!$F$13)+Ethanol_10_11*'Vurdering af miljøgevinst'!$F$13,"IR") -> 2.883762484 | U6: 11 | AA6: 11 | AG6: 11 | AM6: 11 | AS6: 11 | AY6: 11 | BE6: 11 | BK6: 11 | BQ6: 11 | BW6: 11 | CC6: 11 | CI6: 11 | CO6: 11 | CU6: 11 | DA6: 11 | DG6: 11 | DM6: 11 | DS6: 11 | DY6: 11 | EE6: 11 | EK6: 11 | EQ6: 11 | EW6: 11 | FC6: 11
B7: 12 | C7: 2.92374807 | D7: 2.838590359 | E7: 2.986437932 | F7: 2.714589205 | G7: 2.438197215 | H7: 2.583292847 | I7: 2.806133919 | J7: 1.817464623 | K7: 2.988719851 | O7: 12 | P7: =IF('Vurdering af miljøgevinst'!$A$5="Rute 1",Euro6_10_12*(1-'Vurdering af miljøgevinst'!$B$13)+Biodiesel_10_12*'Vurdering af miljøgevinst'!$B$13,"IR") -> 2.882583117 | Q7: =IF('Vurdering af miljøgevinst'!$A$5="Rute 1",Euro6_10_12*(1-'Vurdering af miljøgevinst'!$B$13)+Ethanol_10_12*'Vurdering af miljøgevinst'!$B$13,"IR") -> 2.536548863 | R7: =IF('Vurdering af miljøgevinst'!$A$5="Rute 1",Euro6_10_12*(1-'Vurdering af miljøgevinst'!$F$13)+Biodiesel_10_12*'Vurdering af miljøgevinst'!$F$13,"IR") -> 2.92374807 | S7: =IF('Vurdering af miljøgevinst'!$A$5="Rute 1",Euro6_10_12*(1-'Vurdering af miljøgevinst'!$F$13)+Ethanol_10_12*'Vurdering af miljøgevinst'!$F$13,"IR") -> 2.92374807 | U7: 12 | AA7: 12 | AG7: 12 | AM7: 12 | AS7: 12 | AY7: 12 | BE7: 12 | BK7: 12 | BQ7: 12 | BW7: 12 | CC7: 12 | CI7: 12 | CO7: 12 | CU7: 12 | DA7: 12 | DG7: 12 | DM7: 12 | DS7: 12 | DY7: 12 | EE7: 12 | EK7: 12 | EQ7: 12 | EW7: 12 | FC7: 12
B8: 13 | C8: 2.963733655 | D8: 2.877411316 | E8: 3.014468144 | F8: 2.745181031 | G8: 2.46753006 | H8: 2.6069543 | I8: 2.844203962 | J8: 1.842320522 | K8: 3.029593999 | O8: 13 | P8: =IF('Vurdering af miljøgevinst'!$A$5="Rute 1",Euro6_10_13*(1-'Vurdering af miljøgevinst'!$B$13)+Biodiesel_10_13*'Vurdering af miljøgevinst'!$B$13,"IR") -> 2.921898262 | Q8: =IF('Vurdering af miljøgevinst'!$A$5="Rute 1",Euro6_10_13*(1-'Vurdering af miljøgevinst'!$B$13)+Ethanol_10_13*'Vurdering af miljøgevinst'!$B$13,"IR") -> 2.571239059 | R8: =IF('Vurdering af miljøgevinst'!$A$5="Rute 1",Euro6_10_13*(1-'Vurdering af miljøgevinst'!$F$13)+Biodiesel_10_13*'Vurdering af miljøgevinst'!$F$13,"IR") -> 2.963733655 | S8: =IF('Vurdering af miljøgevinst'!$A$5="Rute 1",Euro6_10_13*(1-'Vurdering af miljøgevinst'!$F$13)+Ethanol_10_13*'Vurdering af miljøgevinst'!$F$13,"IR") -> 2.963733655 | U8: 13 | AA8: 13 | AG8: 13 | AM8: 13 | AS8: 13 | AY8: 13 | BE8: 13 | BK8: 13 | BQ8: 13 | BW8: 13 | CC8: 13 | CI8: 13 | CO8: 13 | CU8: 13 | DA8: 13 | DG8: 13 | DM8: 13 | DS8: 13 | DY8: 13 | EE8: 13 | EK8: 13 | EQ8: 13 | EW8: 13 | FC8: 13
B9: 14 | C9: 3.003719241 | D9: 2.916232272 | E9: 3.042498356 | F9: 2.775772857 | G9: 2.496862904 | H9: 2.630615752 | I9: 2.882266151 | J9: 1.867176421 | K9: 3.070468148 | O9: 14 | P9: =IF('Vurdering af miljøgevinst'!$A$5="Rute 1",Euro6_10_14*(1-'Vurdering af miljøgevinst'!$B$13)+Biodiesel_10_14*'Vurdering af miljøgevinst'!$B$13,"IR") -> 2.961210659 | Q9: =IF('Vurdering af miljøgevinst'!$A$5="Rute 1",Euro6_10_14*(1-'Vurdering af miljøgevinst'!$B$13)+Ethanol_10_14*'Vurdering af miljøgevinst'!$B$13,"IR") -> 2.605929254 | R9: =IF('Vurdering af miljøgevinst'!$A$5="Rute 1",Euro6_10_14*(1-'Vurdering af miljøgevinst'!$F$13)+Biodiesel_10_14*'Vurdering af miljøgevinst'!$F$13,"IR") -> 3.003719241 | S9: =IF('Vurdering af miljøgevinst'!$A$5="Rute 1",Euro6_10_14*(1-'Vurdering af miljøgevinst'!$F$13)+Ethanol_10_14*'Vurdering af miljøgevinst'!$F$13,"IR") -> 3.003719241 | U9: 14 | AA9: 14 | AG9: 14 | AM9: 14 | AS9: 14 | AY9: 14 | BE9: 14 | BK9: 14 | BQ9: 14 | BW9: 14 | CC9: 14 | CI9: 14 | CO9: 14 | CU9: 14 | DA9: 14 | DG9: 14 | DM9: 14 | DS9: 14 | DY9: 14 | EE9: 14 | EK9: 14 | EQ9: 14 | EW9: 14 | FC9: 14
B10: 15 | C10: 3.043704826 | D10: 2.955053229 | E10: 3.070528568 | F10: 2.806364683 | G10: 2.526195749 | H10: 2.654277205 | I10: 2.920320503 | J10: 1.892032321 | K10: 3.111342296 | O10: 15 | P10: =IF('Vurdering af miljøgevinst'!$A$5="Rute 1",Euro6_10_15*(1-'Vurdering af miljøgevinst'!$B$13)+Biodiesel_10_15*'Vurdering af miljøgevinst'!$B$13,"IR") -> 3.000520313 | Q10: =IF('Vurdering af miljøgevinst'!$A$5="Rute 1",Euro6_10_15*(1-'Vurdering af miljøgevinst'!$B$13)+Ethanol_10_15*'Vurdering af miljøgevinst'!$B$13,"IR") -> 2.640619449 | R10: =IF('Vurdering af miljøgevinst'!$A$5="Rute 1",Euro6_10_15*(1-'Vurdering af miljøgevinst'!$F$13)+Biodiesel_10_15*'Vurdering af miljøgevinst'!$F$13,"IR") -> 3.043704826 | S10: =IF('Vurdering af miljøgevinst'!$A$5="Rute 1",Euro6_10_15*(1-'Vurdering af miljøgevinst'!$F$13)+Ethanol_10_15*'Vurdering af miljøgevinst'!$F$13,"IR") -> 3.043704826 | U10: 15 | AA10: 15 | AG10: 15 | AM10: 15 | AS10: 15 | AY10: 15 | BE10: 15 | BK10: 15 | BQ10: 15 | BW10: 15 | CC10: 15 | CI10: 15 | CO10: 15 | CU10: 15 | DA10: 15 | DG10: 15 | DM10: 15 | DS10: 15 | DY10: 15 | EE10: 15 | EK10: 15 | EQ10: 15 | EW10: 15 | FC10: 15
B11: 16 | C11: 3.083690411 | D11: 2.993874186 | E11: 3.09855878 | F11: 2.836956509 | G11: 2.555528594 | H11: 2.677938657 | I11: 2.958367034 | J11: 1.91688822 | K11: 3.152216445 | O11: 16 | P11: =IF('Vurdering af miljøgevinst'!$A$5="Rute 1",Euro6_10_16*(1-'Vurdering af miljøgevinst'!$B$13)+Biodiesel_10_16*'Vurdering af miljøgevinst'!$B$13,"IR") -> 3.039827229 | Q11: =IF('Vurdering af miljøgevinst'!$A$5="Rute 1",Euro6_10_16*(1-'Vurdering af miljøgevinst'!$B$13)+Ethanol_10_16*'Vurdering af miljøgevinst'!$B$13,"IR") -> 2.675309644 | R11: =IF('Vurdering af miljøgevinst'!$A$5="Rute 1",Euro6_10_16*(1-'Vurdering af miljøgevinst'!$F$13)+Biodiesel_10_16*'Vurdering af miljøgevinst'!$F$13,"IR") -> 3.083690411 | S11: =IF('Vurdering af miljøgevinst'!$A$5="Rute 1",Euro6_10_16*(1-'Vurdering af miljøgevinst'!$F$13)+Ethanol_10_16*'Vurdering af miljøgevinst'!$F$13,"IR") -> 3.083690411 | U11: 16 | AA11: 16 | AG11: 16 | AM11: 16 | AS11: 16 | AY11: 16 | BE11: 16 | BK11: 16 | BQ11: 16 | BW11: 16 | CC11: 16 | CI11: 16 | CO11: 16 | CU11: 16 | DA11: 16 | DG11: 16 | DM11: 16 | DS11: 16 | DY11: 16 | EE11: 16 | EK11: 16 | EQ11: 16 | EW11: 16 | FC11: 16
B12: 17 | C12: 3.123675997 | D12: 3.032695143 | E12: 3.126588993 | F12: 2.867548336 | G12: 2.584861439 | H12: 2.701600109 | I12: 2.996405761 | J12: 1.941744119 | K12: 3.193090593 | O12: 17 | P12: =IF('Vurdering af miljøgevinst'!$A$5="Rute 1",Euro6_10_17*(1-'Vurdering af miljøgevinst'!$B$13)+Biodiesel_10_17*'Vurdering af miljøgevinst'!$B$13,"IR") -> 3.079131414 | Q12: =IF('Vurdering af miljøgevinst'!$A$5="Rute 1",Euro6_10_17*(1-'Vurdering af miljøgevinst'!$B$13)+Ethanol_10_17*'Vurdering af miljøgevinst'!$B$13,"IR") -> 2.709999839 | R12: =IF('Vurdering af miljøgevinst'!$A$5="Rute 1",Euro6_10_17*(1-'Vurdering af miljøgevinst'!$F$13)+Biodiesel_10_17*'Vurdering af miljøgevinst'!$F$13,"IR") -> 3.123675997 | S12: =IF('Vurdering af miljøgevinst'!$A$5="Rute 1",Euro6_10_17*(1-'Vurdering af miljøgevinst'!$F$13)+Ethanol_10_17*'Vurdering af miljøgevinst'!$F$13,"IR") -> 3.123675997 | U12: 17 | AA12: 17 | AG12: 17 | AM12: 17 | AS12: 17 | AY12: 17 | BE12: 17 | BK12: 17 | BQ12: 17 | BW12: 17 | CC12: 17 | CI12: 17 | CO12: 17 | CU12: 17 | DA12: 17 | DG12: 17 | DM12: 17 | DS12: 17 | DY12: 17 | EE12: 17 | EK12: 17 | EQ12: 17 | EW12: 17 | FC12: 17
B13: 18 | C13: 3.163661582 | D13: 3.071516099 | E13: 3.154619205 | F13: 2.898140162 | G13: 2.614194284 | H13: 2.725261562 | I13: 3.034436698 | J13: 1.966600018 | K13: 3.233964742 | O13: 18 | P13: =IF('Vurdering af miljøgevinst'!$A$5="Rute 1",Euro6_10_18*(1-'Vurdering af miljøgevinst'!$B$13)+Biodiesel_10_18*'Vurdering af miljøgevinst'!$B$13,"IR") -> 3.118432873 | Q13: =IF('Vurdering af miljøgevinst'!$A$5="Rute 1",Euro6_10_18*(1-'Vurdering af miljøgevinst'!$B$13)+Ethanol_10_18*'Vurdering af miljøgevinst'!$B$13,"IR") -> 2.744690035 | R13: =IF('Vurdering af miljøgevinst'!$A$5="Rute 1",Euro6_10_18*(1-'Vurdering af miljøgevinst'!$F$13)+Biodiesel_10_18*'Vurdering af miljøgevinst'!$F$13,"IR") -> 3.163661582 | S13: =IF('Vurdering af miljøgevinst'!$A$5="Rute 1",Euro6_10_18*(1-'Vurdering af miljøgevinst'!$F$13)+Ethanol_10_18*'Vurdering af miljøgevinst'!$F$13,"IR") -> 3.163661582 | U13: 18 | AA13: 18 | AG13: 18 | AM13: 18 | AS13: 18 | AY13: 18 | BE13: 18 | BK13: 18 | BQ13: 18 | BW13: 18 | CC13: 18 | CI13: 18 | CO13: 18 | CU13: 18 | DA13: 18 | DG13: 18 | DM13: 18 | DS13: 18 | DY13: 18 | EE13: 18 | EK13: 18 | EQ13: 18 | EW13: 18 | FC13: 18
B14: 19 | C14: 3.203647168 | D14: 3.110337056 | E14: 3.182649417 | F14: 2.928731988 | G14: 2.643527129 | H14: 2.748923014 | I14: 3.072459864 | J14: 1.991455917 | K14: 3.27483889 | O14: 19 | P14: =IF('Vurdering af miljøgevinst'!$A$5="Rute 1",Euro6_10_19*(1-'Vurdering af miljøgevinst'!$B$13)+Biodiesel_10_19*'Vurdering af miljøgevinst'!$B$13,"IR") -> 3.157731611 | Q14: =IF('Vurdering af miljøgevinst'!$A$5="Rute 1",Euro6_10_19*(1-'Vurdering af miljøgevinst'!$B$13)+Ethanol_10_19*'Vurdering af miljøgevinst'!$B$13,"IR") -> 2.77938023 | R14: =IF('Vurdering af miljøgevinst'!$A$5="Rute 1",Euro6_10_19*(1-'Vurdering af miljøgevinst'!$F$13)+Biodiesel_10_19*'Vurdering af miljøgevinst'!$F$13,"IR") -> 3.203647168 | S14: =IF('Vurdering af miljøgevinst'!$A$5="Rute 1",Euro6_10_19*(1-'Vurdering af miljøgevinst'!$F$13)+Ethanol_10_19*'Vurdering af miljøgevinst'!$F$13,"IR") -> 3.203647168 | U14: 19 | AA14: 19 | AG14: 19 | AM14: 19 | AS14: 19 | AY14: 19 | BE14: 19 | BK14: 19 | BQ14: 19 | BW14: 19 | CC14: 19 | CI14: 19 | CO14: 19 | CU14: 19 | DA14: 19 | DG14: 19 | DM14: 19 | DS14: 19 | DY14: 19 | EE14: 19 | EK14: 19 | EQ14: 19 | EW14: 19 | FC14: 19
B15: 20 | C15: 3.243632753 | D15: 3.149158013 | E15: 3.210679629 | F15: 2.959323814 | G15: 2.672859974 | H15: 2.772584467 | I15: 3.110475272 | J15: 2.016311816 | K15: 3.315713039 | O15: 20 | P15: =IF('Vurdering af miljøgevinst'!$A$5="Rute 1",Euro6_10_20*(1-'Vurdering af miljøgevinst'!$B$13)+Biodiesel_10_20*'Vurdering af miljøgevinst'!$B$13,"IR") -> 3.197027635 | Q15: =IF('Vurdering af miljøgevinst'!$A$5="Rute 1",Euro6_10_20*(1-'Vurdering af miljøgevinst'!$B$13)+Ethanol_10_20*'Vurdering af miljøgevinst'!$B$13,"IR") -> 2.814070425 | R15: =IF('Vurdering af miljøgevinst'!$A$5="Rute 1",Euro6_10_20*(1-'Vurdering af miljøgevinst'!$F$13)+Biodiesel_10_20*'Vurdering af miljøgevinst'!$F$13,"IR") -> 3.243632753 | S15: =IF('Vurdering af miljøgevinst'!$A$5="Rute 1",Euro6_10_20*(1-'Vurdering af miljøgevinst'!$F$13)+Ethanol_10_20*'Vurdering af miljøgevinst'!$F$13,"IR") -> 3.243632753 | U15: 20 | AA15: 20 | AG15: 20 | AM15: 20 | AS15: 20 | AY15: 20 | BE15: 20 | BK15: 20 | BQ15: 20 | BW15: 20 | CC15: 20 | CI15: 20 | CO15: 20 | CU15: 20 | DA15: 20 | DG15: 20 | DM15: 20 | DS15: 20 | DY15: 20 | EE15: 20 | EK15: 20 | EQ15: 20 | EW15: 20 | FC15: 20
B16: 21 | C16: 3.283618338 | D16: 3.187978969 | E16: 3.238709841 | F16: 2.98991564 | G16: 2.702192819 | H16: 2.796245919 | I16: 3.148482941 | J16: 2.041167715 | K16: 3.356587187 | O16: 21 | P16: =IF('Vurdering af miljøgevinst'!$A$5="Rute 1",Euro6_10_21*(1-'Vurdering af miljøgevinst'!$B$13)+Biodiesel_10_21*'Vurdering af miljøgevinst'!$B$13,"IR") -> 3.236320949 | Q16: =IF('Vurdering af miljøgevinst'!$A$5="Rute 1",Euro6_10_21*(1-'Vurdering af miljøgevinst'!$B$13)+Ethanol_10_21*'Vurdering af miljøgevinst'!$B$13,"IR") -> 2.84876062 | R16: =IF('Vurdering af miljøgevinst'!$A$5="Rute 1",Euro6_10_21*(1-'Vurdering af miljøgevinst'!$F$13)+Biodiesel_10_21*'Vurdering af miljøgevinst'!$F$13,"IR") -> 3.283618338 | S16: =IF('Vurdering af miljøgevinst'!$A$5="Rute 1",Euro6_10_21*(1-'Vurdering af miljøgevinst'!$F$13)+Ethanol_10_21*'Vurdering af miljøgevinst'!$F$13,"IR") -> 3.283618338 | U16: 21 | AA16: 21 | AG16: 21 | AM16: 21 | AS16: 21 | AY16: 21 | BE16: 21 | BK16: 21 | BQ16: 21 | BW16: 21 | CC16: 21 | CI16: 21 | CO16: 21 | CU16: 21 | DA16: 21 | DG16: 21 | DM16: 21 | DS16: 21 | DY16: 21 | EE16: 21 | EK16: 21 | EQ16: 21 | EW16: 21 | FC16: 21
B17: 22 | C17: 3.323603924 | D17: 3.226799926 | E17: 3.266740053 | F17: 3.020507466 | G17: 2.731525664 | H17: 2.819907372 | I17: 3.186482885 | J17: 2.066023614 | K17: 3.397461336 | O17: 22 | P17: =IF('Vurdering af miljøgevinst'!$A$5="Rute 1",Euro6_10_22*(1-'Vurdering af miljøgevinst'!$B$13)+Biodiesel_10_22*'Vurdering af miljøgevinst'!$B$13,"IR") -> 3.27561156 | Q17: =IF('Vurdering af miljøgevinst'!$A$5="Rute 1",Euro6_10_22*(1-'Vurdering af miljøgevinst'!$B$13)+Ethanol_10_22*'Vurdering af miljøgevinst'!$B$13,"IR") -> 2.883450815 | R17: =IF('Vurdering af miljøgevinst'!$A$5="Rute 1",Euro6_10_22*(1-'Vurdering af miljøgevinst'!$F$13)+Biodiesel_10_22*'Vurdering af miljøgevinst'!$F$13,"IR") -> 3.323603924 | S17: =IF('Vurdering af miljøgevinst'!$A$5="Rute 1",Euro6_10_22*(1-'Vurdering af miljøgevinst'!$F$13)+Ethanol_10_22*'Vurdering af miljøgevinst'!$F$13,"IR") -> 3.323603924 | U17: 22 | AA17: 22 | AG17: 22 | AM17: 22 | AS17: 22 | AY17: 22 | BE17: 22 | BK17: 22 | BQ17: 22 | BW17: 22 | CC17: 22 | CI17: 22 | CO17: 22 | CU17: 22 | DA17: 22 | DG17: 22 | DM17: 22 | DS17: 22 | DY17: 22 | EE17: 22 | EK17: 22 | EQ17: 22 | EW17: 22 | FC17: 22
B18: 23 | C18: 3.363589509 | D18: 3.265620883 | E18: 3.294770266 | F18: 3.051099292 | G18: 2.760858509 | H18: 2.843568824 | I18: 3.224475121 | J18: 2.090879513 | K18: 3.438335484 | O18: 23 | P18: =IF('Vurdering af miljøgevinst'!$A$5="Rute 1",Euro6_10_23*(1-'Vurdering af miljøgevinst'!$B$13)+Biodiesel_10_23*'Vurdering af miljøgevinst'!$B$13,"IR") -> 3.314899473 | Q18: =IF('Vurdering af miljøgevinst'!$A$5="Rute 1",Euro6_10_23*(1-'Vurdering af miljøgevinst'!$B$13)+Ethanol_10_23*'Vurdering af miljøgevinst'!$B$13,"IR") -> 2.918141011 | R18: =IF('Vurdering af miljøgevinst'!$A$5="Rute 1",Euro6_10_23*(1-'Vurdering af miljøgevinst'!$F$13)+Biodiesel_10_23*'Vurdering af miljøgevinst'!$F$13,"IR") -> 3.363589509 | S18: =IF('Vurdering af miljøgevinst'!$A$5="Rute 1",Euro6_10_23*(1-'Vurdering af miljøgevinst'!$F$13)+Ethanol_10_23*'Vurdering af miljøgevinst'!$F$13,"IR") -> 3.363589509 | U18: 23 | AA18: 23 | AG18: 23 | AM18: 23 | AS18: 23 | AY18: 23 | BE18: 23 | BK18: 23 | BQ18: 23 | BW18: 23 | CC18: 23 | CI18: 23 | CO18: 23 | CU18: 23 | DA18: 23 | DG18: 23 | DM18: 23 | DS18: 23 | DY18: 23 | EE18: 23 | EK18: 23 | EQ18: 23 | EW18: 23 | FC18: 23
B19: 24 | C19: 3.403575095 | D19: 3.30444184 | E19: 3.322800478 | F19: 3.081691118 | G19: 2.790191354 | H19: 2.867230277 | I19: 3.262459664 | J19: 2.115735412 | K19: 3.479209633 | O19: 24 | P19: =IF('Vurdering af miljøgevinst'!$A$5="Rute 1",Euro6_10_24*(1-'Vurdering af miljøgevinst'!$B$13)+Biodiesel_10_24*'Vurdering af miljøgevinst'!$B$13,"IR") -> 3.354184694 | Q19: =IF('Vurdering af miljøgevinst'!$A$5="Rute 1",Euro6_10_24*(1-'Vurdering af miljøgevinst'!$B$13)+Ethanol_10_24*'Vurdering af miljøgevinst'!$B$13,"IR") -> 2.952831206 | R19: =IF('Vurdering af miljøgevinst'!$A$5="Rute 1",Euro6_10_24*(1-'Vurdering af miljøgevinst'!$F$13)+Biodiesel_10_24*'Vurdering af miljøgevinst'!$F$13,"IR") -> 3.403575095 | S19: =IF('Vurdering af miljøgevinst'!$A$5="Rute 1",Euro6_10_24*(1-'Vurdering af miljøgevinst'!$F$13)+Ethanol_10_24*'Vurdering af miljøgevinst'!$F$13,"IR") -> 3.403575095 | U19: 24 | AA19: 24 | AG19: 24 | AM19: 24 | AS19: 24 | AY19: 24 | BE19: 24 | BK19: 24 | BQ19: 24 | BW19: 24 | CC19: 24 | CI19: 24 | CO19: 24 | CU19: 24 | DA19: 24 | DG19: 24 | DM19: 24 | DS19: 24 | DY19: 24 | EE19: 24 | EK19: 24 | EQ19: 24 | EW19: 24 | FC19: 24
B20: 25 | C20: 3.44356068 | D20: 3.343262796 | E20: 3.35083069 | F20: 3.112282944 | G20: 2.819524199 | H20: 2.890891729 | I20: 3.300436531 | J20: 2.140591311 | K20: 3.520083781 | O20: 25 | P20: =IF('Vurdering af miljøgevinst'!$A$5="Rute 1",Euro6_10_25*(1-'Vurdering af miljøgevinst'!$B$13)+Biodiesel_10_25*'Vurdering af miljøgevinst'!$B$13,"IR") -> 3.393467228 | Q20: =IF('Vurdering af miljøgevinst'!$A$5="Rute 1",Euro6_10_25*(1-'Vurdering af miljøgevinst'!$B$13)+Ethanol_10_25*'Vurdering af miljøgevinst'!$B$13,"IR") -> 2.987521401 | R20: =IF('Vurdering af miljøgevinst'!$A$5="Rute 1",Euro6_10_25*(1-'Vurdering af miljøgevinst'!$F$13)+Biodiesel_10_25*'Vurdering af miljøgevinst'!$F$13,"IR") -> 3.44356068 | S20: =IF('Vurdering af miljøgevinst'!$A$5="Rute 1",Euro6_10_25*(1-'Vurdering af miljøgevinst'!$F$13)+Ethanol_10_25*'Vurdering af miljøgevinst'!$F$13,"IR") -> 3.44356068 | U20: 25 | AA20: 25 | AG20: 25 | AM20: 25 | AS20: 25 | AY20: 25 | BE20: 25 | BK20: 25 | BQ20: 25 | BW20: 25 | CC20: 25 | CI20: 25 | CO20: 25 | CU20: 25 | DA20: 25 | DG20: 25 | DM20: 25 | DS20: 25 | DY20: 25 | EE20: 25 | EK20: 25 | EQ20: 25 | EW20: 25 | FC20: 25
B21: 26 | C21: 3.483546266 | D21: 3.382083753 | E21: 3.378860902 | F21: 3.14287477 | G21: 2.848857044 | H21: 2.914553182 | I21: 3.338405737 | J21: 2.16544721 | K21: 3.56095793 | O21: 26 | P21: =IF('Vurdering af miljøgevinst'!$A$5="Rute 1",Euro6_10_26*(1-'Vurdering af miljøgevinst'!$B$13)+Biodiesel_10_26*'Vurdering af miljøgevinst'!$B$13,"IR") -> 3.432747081 | Q21: =IF('Vurdering af miljøgevinst'!$A$5="Rute 1",Euro6_10_26*(1-'Vurdering af miljøgevinst'!$B$13)+Ethanol_10_26*'Vurdering af miljøgevinst'!$B$13,"IR") -> 3.022211596 | R21: =IF('Vurdering af miljøgevinst'!$A$5="Rute 1",Euro6_10_26*(1-'Vurdering af miljøgevinst'!$F$13)+Biodiesel_10_26*'Vurdering af miljøgevinst'!$F$13,"IR") -> 3.483546266 | S21: =IF('Vurdering af miljøgevinst'!$A$5="Rute 1",Euro6_10_26*(1-'Vurdering af miljøgevinst'!$F$13)+Ethanol_10_26*'Vurdering af miljøgevinst'!$F$13,"IR") -> 3.483546266 | U21: 26 | AA21: 26 | AG21: 26 | AM21: 26 | AS21: 26 | AY21: 26 | BE21: 26 | BK21: 26 | BQ21: 26 | BW21: 26 | CC21: 26 | CI21: 26 | CO21: 26 | CU21: 26 | DA21: 26 | DG21: 26 | DM21: 26 | DS21: 26 | DY21: 26 | EE21: 26 | EK21: 26 | EQ21: 26 | EW21: 26 | FC21: 26
B22: 27 | C22: 3.523531851 | D22: 3.42090471 | E22: 3.406891114 | F22: 3.173466596 | G22: 2.878189889 | H22: 2.938214634 | I22: 3.376367298 | J22: 2.190303109 | K22: 3.601832078 | O22: 27 | P22: =IF('Vurdering af miljøgevinst'!$A$5="Rute 1",Euro6_10_27*(1-'Vurdering af miljøgevinst'!$B$13)+Biodiesel_10_27*'Vurdering af miljøgevinst'!$B$13,"IR") -> 3.472024257 | Q22: =IF('Vurdering af miljøgevinst'!$A$5="Rute 1",Euro6_10_27*(1-'Vurdering af miljøgevinst'!$B$13)+Ethanol_10_27*'Vurdering af miljøgevinst'!$B$13,"IR") -> 3.056901791 | R22: =IF('Vurdering af miljøgevinst'!$A$5="Rute 1",Euro6_10_27*(1-'Vurdering af miljøgevinst'!$F$13)+Biodiesel_10_27*'Vurdering af miljøgevinst'!$F$13,"IR") -> 3.523531851 | S22: =IF('Vurdering af miljøgevinst'!$A$5="Rute 1",Euro6_10_27*(1-'Vurdering af miljøgevinst'!$F$13)+Ethanol_10_27*'Vurdering af miljøgevinst'!$F$13,"IR") -> 3.523531851 | U22: 27 | AA22: 27 | AG22: 27 | AM22: 27 | AS22: 27 | AY22: 27 | BE22: 27 | BK22: 27 | BQ22: 27 | BW22: 27 | CC22: 27 | CI22: 27 | CO22: 27 | CU22: 27 | DA22: 27 | DG22: 27 | DM22: 27 | DS22: 27 | DY22: 27 | EE22: 27 | EK22: 27 | EQ22: 27 | EW22: 27 | FC22: 27
B23: 28 | C23: 3.563517436 | D23: 3.459725666 | E23: 3.434921327 | F23: 3.204058422 | G23: 2.907522734 | H23: 2.961876087 | I23: 3.41432123 | J23: 2.215159009 | K23: 3.642706227 | O23: 28 | P23: =IF('Vurdering af miljøgevinst'!$A$5="Rute 1",Euro6_10_28*(1-'Vurdering af miljøgevinst'!$B$13)+Biodiesel_10_28*'Vurdering af miljøgevinst'!$B$13,"IR") -> 3.511298764 | Q23: =IF('Vurdering af miljøgevinst'!$A$5="Rute 1",Euro6_10_28*(1-'Vurdering af miljøgevinst'!$B$13)+Ethanol_10_28*'Vurdering af miljøgevinst'!$B$13,"IR") -> 3.091591987 | R23: =IF('Vurdering af miljøgevinst'!$A$5="Rute 1",Euro6_10_28*(1-'Vurdering af miljøgevinst'!$F$13)+Biodiesel_10_28*'Vurdering af miljøgevinst'!$F$13,"IR") -> 3.563517436 | S23: =IF('Vurdering af miljøgevinst'!$A$5="Rute 1",Euro6_10_28*(1-'Vurdering af miljøgevinst'!$F$13)+Ethanol_10_28*'Vurdering af miljøgevinst'!$F$13,"IR") -> 3.563517436 | U23: 28 | AA23: 28 | AG23: 28 | AM23: 28 | AS23: 28 | AY23: 28 | BE23: 28 | BK23: 28 | BQ23: 28 | BW23: 28 | CC23: 28 | CI23: 28 | CO23: 28 | CU23: 28 | DA23: 28 | DG23: 28 | DM23: 28 | DS23: 28 | DY23: 28 | EE23: 28 | EK23: 28 | EQ23: 28 | EW23: 28 | FC23: 28
B24: 29 | C24: 3.603503022 | D24: 3.498546623 | E24: 3.462951539 | F24: 3.234650248 | G24: 2.936855579 | H24: 2.985537539 | I24: 3.452267548 | J24: 2.240014908 | K24: 3.683580376 | O24: 29 | P24: =IF('Vurdering af miljøgevinst'!$A$5="Rute 1",Euro6_10_29*(1-'Vurdering af miljøgevinst'!$B$13)+Biodiesel_10_29*'Vurdering af miljøgevinst'!$B$13,"IR") -> 3.550570606 | Q24: =IF('Vurdering af miljøgevinst'!$A$5="Rute 1",Euro6_10_29*(1-'Vurdering af miljøgevinst'!$B$13)+Ethanol_10_29*'Vurdering af miljøgevinst'!$B$13,"IR") -> 3.126282182 | R24: =IF('Vurdering af miljøgevinst'!$A$5="Rute 1",Euro6_10_29*(1-'Vurdering af miljøgevinst'!$F$13)+Biodiesel_10_29*'Vurdering af miljøgevinst'!$F$13,"IR") -> 3.603503022 | S24: =IF('Vurdering af miljøgevinst'!$A$5="Rute 1",Euro6_10_29*(1-'Vurdering af miljøgevinst'!$F$13)+Ethanol_10_29*'Vurdering af miljøgevinst'!$F$13,"IR") -> 3.603503022 | U24: 29 | AA24: 29 | AG24: 29 | AM24: 29 | AS24: 29 | AY24: 29 | BE24: 29 | BK24: 29 | BQ24: 29 | BW24: 29 | CC24: 29 | CI24: 29 | CO24: 29 | CU24: 29 | DA24: 29 | DG24: 29 | DM24: 29 | DS24: 29 | DY24: 29 | EE24: 29 | EK24: 29 | EQ24: 29 | EW24: 29 | FC24: 29
B25: 30 | C25: 3.643488607 | D25: 3.53736758 | E25: 3.490981751 | F25: 3.265242075 | G25: 2.966188424 | H25: 3.009198992 | I25: 3.490206268 | J25: 2.264870807 | K25: 3.724454524 | O25: 30 | P25: =IF('Vurdering af miljøgevinst'!$A$5="Rute 1",Euro6_10_30*(1-'Vurdering af miljøgevinst'!$B$13)+Biodiesel_10_30*'Vurdering af miljøgevinst'!$B$13,"IR") -> 3.589839789 | Q25: =IF('Vurdering af miljøgevinst'!$A$5="Rute 1",Euro6_10_30*(1-'Vurdering af miljøgevinst'!$B$13)+Ethanol_10_30*'Vurdering af miljøgevinst'!$B$13,"IR") -> 3.160972377 | R25: =IF('Vurdering af miljøgevinst'!$A$5="Rute 1",Euro6_10_30*(1-'Vurdering af miljøgevinst'!$F$13)+Biodiesel_10_30*'Vurdering af miljøgevinst'!$F$13,"IR") -> 3.643488607 | S25: =IF('Vurdering af miljøgevinst'!$A$5="Rute 1",Euro6_10_30*(1-'Vurdering af miljøgevinst'!$F$13)+Ethanol_10_30*'Vurdering af miljøgevinst'!$F$13,"IR") -> 3.643488607 | U25: 30 | AA25: 30 | AG25: 30 | AM25: 30 | AS25: 30 | AY25: 30 | BE25: 30 | BK25: 30 | BQ25: 30 | BW25: 30 | CC25: 30 | CI25: 30 | CO25: 30 | CU25: 30 | DA25: 30 | DG25: 30 | DM25: 30 | DS25: 30 | DY25: 30 | EE25: 30 | EK25: 30 | EQ25: 30 | EW25: 30 | FC25: 30
B26: 31 | C26: 3.683474193 | D26: 3.576188537 | E26: 3.519011963 | F26: 3.295833901 | G26: 2.995521269 | H26: 3.032860444 | I26: 3.528137406 | J26: 2.289726706 | K26: 3.765328673 | O26: 31 | P26: =IF('Vurdering af miljøgevinst'!$A$5="Rute 1",Euro6_10_31*(1-'Vurdering af miljøgevinst'!$B$13)+Biodiesel_10_31*'Vurdering af miljøgevinst'!$B$13,"IR") -> 3.629106317 | Q26: =IF('Vurdering af miljøgevinst'!$A$5="Rute 1",Euro6_10_31*(1-'Vurdering af miljøgevinst'!$B$13)+Ethanol_10_31*'Vurdering af miljøgevinst'!$B$13,"IR") -> 3.195662572 | R26: =IF('Vurdering af miljøgevinst'!$A$5="Rute 1",Euro6_10_31*(1-'Vurdering af miljøgevinst'!$F$13)+Biodiesel_10_31*'Vurdering af miljøgevinst'!$F$13,"IR") -> 3.683474193 | S26: =IF('Vurdering af miljøgevinst'!$A$5="Rute 1",Euro6_10_31*(1-'Vurdering af miljøgevinst'!$F$13)+Ethanol_10_31*'Vurdering af miljøgevinst'!$F$13,"IR") -> 3.683474193 | U26: 31 | AA26: 31 | AG26: 31 | AM26: 31 | AS26: 31 | AY26: 31 | BE26: 31 | BK26: 31 | BQ26: 31 | BW26: 31 | CC26: 31 | CI26: 31 | CO26: 31 | CU26: 31 | DA26: 31 | DG26: 31 | DM26: 31 | DS26: 31 | DY26: 31 | EE26: 31 | EK26: 31 | EQ26: 31 | EW26: 31 | FC26: 31
B27: 32 | C27: 3.723459778 | D27: 3.615009493 | E27: 3.547042175 | F27: 3.326425727 | G27: 3.024854114 | H27: 3.056521897 | I27: 3.566060977 | J27: 2.314582605 | K27: 3.806202821 | O27: 32 | P27: =IF('Vurdering af miljøgevinst'!$A$5="Rute 1",Euro6_10_32*(1-'Vurdering af miljøgevinst'!$B$13)+Biodiesel_10_32*'Vurdering af miljøgevinst'!$B$13,"IR") -> 3.668370198 | Q27: =IF('Vurdering af miljøgevinst'!$A$5="Rute 1",Euro6_10_32*(1-'Vurdering af miljøgevinst'!$B$13)+Ethanol_10_32*'Vurdering af miljøgevinst'!$B$13,"IR") -> 3.230352767 | R27: =IF('Vurdering af miljøgevinst'!$A$5="Rute 1",Euro6_10_32*(1-'Vurdering af miljøgevinst'!$F$13)+Biodiesel_10_32*'Vurdering af miljøgevinst'!$F$13,"IR") -> 3.723459778 | S27: =IF('Vurdering af miljøgevinst'!$A$5="Rute 1",Euro6_10_32*(1-'Vurdering af miljøgevinst'!$F$13)+Ethanol_10_32*'Vurdering af miljøgevinst'!$F$13,"IR") -> 3.723459778 | U27: 32 | AA27: 32 | AG27: 32 | AM27: 32 | AS27: 32 | AY27: 32 | BE27: 32 | BK27: 32 | BQ27: 32 | BW27: 32 | CC27: 32 | CI27: 32 | CO27: 32 | CU27: 32 | DA27: 32 | DG27: 32 | DM27: 32 | DS27: 32 | DY27: 32 | EE27: 32 | EK27: 32 | EQ27: 32 | EW27: 32 | FC27: 32
B28: 33 | C28: 3.763445363 | D28: 3.65383045 | E28: 3.575072388 | F28: 3.357017553 | G28: 3.054186959 | H28: 3.080183349 | I28: 3.603976997 | J28: 2.339438504 | K28: 3.84707697 | O28: 33 | P28: =IF('Vurdering af miljøgevinst'!$A$5="Rute 1",Euro6_10_33*(1-'Vurdering af miljøgevinst'!$B$13)+Biodiesel_10_33*'Vurdering af miljøgevinst'!$B$13,"IR") -> 3.707631435 | Q28: =IF('Vurdering af miljøgevinst'!$A$5="Rute 1",Euro6_10_33*(1-'Vurdering af miljøgevinst'!$B$13)+Ethanol_10_33*'Vurdering af miljøgevinst'!$B$13,"IR") -> 3.265042963 | R28: =IF('Vurdering af miljøgevinst'!$A$5="Rute 1",Euro6_10_33*(1-'Vurdering af miljøgevinst'!$F$13)+Biodiesel_10_33*'Vurdering af miljøgevinst'!$F$13,"IR") -> 3.763445363 | S28: =IF('Vurdering af miljøgevinst'!$A$5="Rute 1",Euro6_10_33*(1-'Vurdering af miljøgevinst'!$F$13)+Ethanol_10_33*'Vurdering af miljøgevinst'!$F$13,"IR") -> 3.763445363 | U28: 33 | AA28: 33 | AG28: 33 | AM28: 33 | AS28: 33 | AY28: 33 | BE28: 33 | BK28: 33 | BQ28: 33 | BW28: 33 | CC28: 33 | CI28: 33 | CO28: 33 | CU28: 33 | DA28: 33 | DG28: 33 | DM28: 33 | DS28: 33 | DY28: 33 | EE28: 33 | EK28: 33 | EQ28: 33 | EW28: 33 | FC28: 33
B29: 34 | C29: 3.803430949 | D29: 3.692651407 | E29: 3.6031026 | F29: 3.387609379 | G29: 3.083519804 | H29: 3.103844802 | I29: 3.641885482 | J29: 2.364294403 | K29: 3.887951118 | O29: 34 | P29: =IF('Vurdering af miljøgevinst'!$A$5="Rute 1",Euro6_10_34*(1-'Vurdering af miljøgevinst'!$B$13)+Biodiesel_10_34*'Vurdering af miljøgevinst'!$B$13,"IR") -> 3.746890035 | Q29: =IF('Vurdering af miljøgevinst'!$A$5="Rute 1",Euro6_10_34*(1-'Vurdering af miljøgevinst'!$B$13)+Ethanol_10_34*'Vurdering af miljøgevinst'!$B$13,"IR") -> 3.299733158 | R29: =IF('Vurdering af miljøgevinst'!$A$5="Rute 1",Euro6_10_34*(1-'Vurdering af miljøgevinst'!$F$13)+Biodiesel_10_34*'Vurdering af miljøgevinst'!$F$13,"IR") -> 3.803430949 | S29: =IF('Vurdering af miljøgevinst'!$A$5="Rute 1",Euro6_10_34*(1-'Vurdering af miljøgevinst'!$F$13)+Ethanol_10_34*'Vurdering af miljøgevinst'!$F$13,"IR") -> 3.803430949 | U29: 34 | AA29: 34 | AG29: 34 | AM29: 34 | AS29: 34 | AY29: 34 | BE29: 34 | BK29: 34 | BQ29: 34 | BW29: 34 | CC29: 34 | CI29: 34 | CO29: 34 | CU29: 34 | DA29: 34 | DG29: 34 | DM29: 34 | DS29: 34 | DY29: 34 | EE29: 34 | EK29: 34 | EQ29: 34 | EW29: 34 | FC29: 34
B30: 35 | C30: 3.843416534 | D30: 3.731472363 | E30: 3.631132812 | F30: 3.418201205 | G30: 3.112852649 | H30: 3.127506254 | I30: 3.679786446 | J30: 2.389150302 | K30: 3.928825267 | O30: 35 | P30: =IF('Vurdering af miljøgevinst'!$A$5="Rute 1",Euro6_10_35*(1-'Vurdering af miljøgevinst'!$B$13)+Biodiesel_10_35*'Vurdering af miljøgevinst'!$B$13,"IR") -> 3.786146003 | Q30: =IF('Vurdering af miljøgevinst'!$A$5="Rute 1",Euro6_10_35*(1-'Vurdering af miljøgevinst'!$B$13)+Ethanol_10_35*'Vurdering af miljøgevinst'!$B$13,"IR") -> 3.334423353 | R30: =IF('Vurdering af miljøgevinst'!$A$5="Rute 1",Euro6_10_35*(1-'Vurdering af miljøgevinst'!$F$13)+Biodiesel_10_35*'Vurdering af miljøgevinst'!$F$13,"IR") -> 3.843416534 | S30: =IF('Vurdering af miljøgevinst'!$A$5="Rute 1",Euro6_10_35*(1-'Vurdering af miljøgevinst'!$F$13)+Ethanol_10_35*'Vurdering af miljøgevinst'!$F$13,"IR") -> 3.843416534 | U30: 35 | AA30: 35 | AG30: 35 | AM30: 35 | AS30: 35 | AY30: 35 | BE30: 35 | BK30: 35 | BQ30: 35 | BW30: 35 | CC30: 35 | CI30: 35 | CO30: 35 | CU30: 35 | DA30: 35 | DG30: 35 | DM30: 35 | DS30: 35 | DY30: 35 | EE30: 35 | EK30: 35 | EQ30: 35 | EW30: 35 | FC30: 35
B31: 36 | C31: 3.88340212 | D31: 3.77029332 | E31: 3.659163024 | F31: 3.448793031 | G31: 3.142185494 | H31: 3.151167707 | I31: 3.717679905 | J31: 2.414006201 | K31: 3.969699415 | O31: 36 | P31: =IF('Vurdering af miljøgevinst'!$A$5="Rute 1",Euro6_10_36*(1-'Vurdering af miljøgevinst'!$B$13)+Biodiesel_10_36*'Vurdering af miljøgevinst'!$B$13,"IR") -> 3.825399344 | Q31: =IF('Vurdering af miljøgevinst'!$A$5="Rute 1",Euro6_10_36*(1-'Vurdering af miljøgevinst'!$B$13)+Ethanol_10_36*'Vurdering af miljøgevinst'!$B$13,"IR") -> 3.369113548 | R31: =IF('Vurdering af miljøgevinst'!$A$5="Rute 1",Euro6_10_36*(1-'Vurdering af miljøgevinst'!$F$13)+Biodiesel_10_36*'Vurdering af miljøgevinst'!$F$13,"IR") -> 3.88340212 | S31: =IF('Vurdering af miljøgevinst'!$A$5="Rute 1",Euro6_10_36*(1-'Vurdering af miljøgevinst'!$F$13)+Ethanol_10_36*'Vurdering af miljøgevinst'!$F$13,"IR") -> 3.88340212 | U31: 36 | AA31: 36 | AG31: 36 | AM31: 36 | AS31: 36 | AY31: 36 | BE31: 36 | BK31: 36 | BQ31: 36 | BW31: 36 | CC31: 36 | CI31: 36 | CO31: 36 | CU31: 36 | DA31: 36 | DG31: 36 | DM31: 36 | DS31: 36 | DY31: 36 | EE31: 36 | EK31: 36 | EQ31: 36 | EW31: 36 | FC31: 36
B32: 37 | C32: 3.923387705 | D32: 3.809114277 | E32: 3.687193236 | F32: 3.479384857 | G32: 3.171518339 | H32: 3.174829159 | I32: 3.755565874 | J32: 2.4388621 | K32: 4.010573564 | O32: 37 | P32: =IF('Vurdering af miljøgevinst'!$A$5="Rute 1",Euro6_10_37*(1-'Vurdering af miljøgevinst'!$B$13)+Biodiesel_10_37*'Vurdering af miljøgevinst'!$B$13,"IR") -> 3.864650064 | Q32: =IF('Vurdering af miljøgevinst'!$A$5="Rute 1",Euro6_10_37*(1-'Vurdering af miljøgevinst'!$B$13)+Ethanol_10_37*'Vurdering af miljøgevinst'!$B$13,"IR") -> 3.403803743 | R32: =IF('Vurdering af miljøgevinst'!$A$5="Rute 1",Euro6_10_37*(1-'Vurdering af miljøgevinst'!$F$13)+Biodiesel_10_37*'Vurdering af miljøgevinst'!$F$13,"IR") -> 3.923387705 | S32: =IF('Vurdering af miljøgevinst'!$A$5="Rute 1",Euro6_10_37*(1-'Vurdering af miljøgevinst'!$F$13)+Ethanol_10_37*'Vurdering af miljøgevinst'!$F$13,"IR") -> 3.923387705 | U32: 37 | AA32: 37 | AG32: 37 | AM32: 37 | AS32: 37 | AY32: 37 | BE32: 37 | BK32: 37 | BQ32: 37 | BW32: 37 | CC32: 37 | CI32: 37 | CO32: 37 | CU32: 37 | DA32: 37 | DG32: 37 | DM32: 37 | DS32: 37 | DY32: 37 | EE32: 37 | EK32: 37 | EQ32: 37 | EW32: 37 | FC32: 37
B33: 38 | C33: 3.96337329 | D33: 3.847935233 | E33: 3.715223449 | F33: 3.509976683 | G33: 3.200851184 | H33: 3.198490612 | I33: 3.79344437 | J33: 2.463717999 | K33: 4.051447712 | O33: 38 | P33: =IF('Vurdering af miljøgevinst'!$A$5="Rute 1",Euro6_10_38*(1-'Vurdering af miljøgevinst'!$B$13)+Biodiesel_10_38*'Vurdering af miljøgevinst'!$B$13,"IR") -> 3.903898168 | Q33: =IF('Vurdering af miljøgevinst'!$A$5="Rute 1",Euro6_10_38*(1-'Vurdering af miljøgevinst'!$B$13)+Ethanol_10_38*'Vurdering af miljøgevinst'!$B$13,"IR") -> 3.438493939 | R33: =IF('Vurdering af miljøgevinst'!$A$5="Rute 1",Euro6_10_38*(1-'Vurdering af miljøgevinst'!$F$13)+Biodiesel_10_38*'Vurdering af miljøgevinst'!$F$13,"IR") -> 3.96337329 | S33: =IF('Vurdering af miljøgevinst'!$A$5="Rute 1",Euro6_10_38*(1-'Vurdering af miljøgevinst'!$F$13)+Ethanol_10_38*'Vurdering af miljøgevinst'!$F$13,"IR") -> 3.96337329 | U33: 38 | AA33: 38 | AG33: 38 | AM33: 38 | AS33: 38 | AY33: 38 | BE33: 38 | BK33: 38 | BQ33: 38 | BW33: 38 | CC33: 38 | CI33: 38 | CO33: 38 | CU33: 38 | DA33: 38 | DG33: 38 | DM33: 38 | DS33: 38 | DY33: 38 | EE33: 38 | EK33: 38 | EQ33: 38 | EW33: 38 | FC33: 38
B34: 39 | C34: 4.003358876 | D34: 3.88675619 | E34: 3.743253661 | F34: 3.540568509 | G34: 3.230184029 | H34: 3.222152064 | I34: 3.831315406 | J34: 2.488573898 | K34: 4.092321861 | O34: 39 | P34: =IF('Vurdering af miljøgevinst'!$A$5="Rute 1",Euro6_10_39*(1-'Vurdering af miljøgevinst'!$B$13)+Biodiesel_10_39*'Vurdering af miljøgevinst'!$B$13,"IR") -> 3.943143662 | Q34: =IF('Vurdering af miljøgevinst'!$A$5="Rute 1",Euro6_10_39*(1-'Vurdering af miljøgevinst'!$B$13)+Ethanol_10_39*'Vurdering af miljøgevinst'!$B$13,"IR") -> 3.473184134 | R34: =IF('Vurdering af miljøgevinst'!$A$5="Rute 1",Euro6_10_39*(1-'Vurdering af miljøgevinst'!$F$13)+Biodiesel_10_39*'Vurdering af miljøgevinst'!$F$13,"IR") -> 4.003358876 | S34: =IF('Vurdering af miljøgevinst'!$A$5="Rute 1",Euro6_10_39*(1-'Vurdering af miljøgevinst'!$F$13)+Ethanol_10_39*'Vurdering af miljøgevinst'!$F$13,"IR") -> 4.003358876 | U34: 39 | AA34: 39 | AG34: 39 | AM34: 39 | AS34: 39 | AY34: 39 | BE34: 39 | BK34: 39 | BQ34: 39 | BW34: 39 | CC34: 39 | CI34: 39 | CO34: 39 | CU34: 39 | DA34: 39 | DG34: 39 | DM34: 39 | DS34: 39 | DY34: 39 | EE34: 39 | EK34: 39 | EQ34: 39 | EW34: 39 | FC34: 39
B35: 40 | C35: 4.043344461 | D35: 3.925577147 | E35: 3.771283873 | F35: 3.571160335 | G35: 3.259516874 | H35: 3.245813517 | I35: 3.869178999 | J35: 2.513429797 | K35: 4.133196009 | O35: 40 | P35: =IF('Vurdering af miljøgevinst'!$A$5="Rute 1",Euro6_10_40*(1-'Vurdering af miljøgevinst'!$B$13)+Biodiesel_10_40*'Vurdering af miljøgevinst'!$B$13,"IR") -> 3.982386549 | Q35: =IF('Vurdering af miljøgevinst'!$A$5="Rute 1",Euro6_10_40*(1-'Vurdering af miljøgevinst'!$B$13)+Ethanol_10_40*'Vurdering af miljøgevinst'!$B$13,"IR") -> 3.507874329 | R35: =IF('Vurdering af miljøgevinst'!$A$5="Rute 1",Euro6_10_40*(1-'Vurdering af miljøgevinst'!$F$13)+Biodiesel_10_40*'Vurdering af miljøgevinst'!$F$13,"IR") -> 4.043344461 | S35: =IF('Vurdering af miljøgevinst'!$A$5="Rute 1",Euro6_10_40*(1-'Vurdering af miljøgevinst'!$F$13)+Ethanol_10_40*'Vurdering af miljøgevinst'!$F$13,"IR") -> 4.043344461 | U35: 40 | AA35: 40 | AG35: 40 | AM35: 40 | AS35: 40 | AY35: 40 | BE35: 40 | BK35: 40 | BQ35: 40 | BW35: 40 | CC35: 40 | CI35: 40 | CO35: 40 | CU35: 40 | DA35: 40 | DG35: 40 | DM35: 40 | DS35: 40 | DY35: 40 | EE35: 40 | EK35: 40 | EQ35: 40 | EW35: 40 | FC35: 40
B36: 41 | C36: 4.083330047 | D36: 3.964398104 | E36: 3.799314085 | F36: 3.601752161 | G36: 3.288849719 | H36: 3.269474969 | I36: 3.907035163 | J36: 2.538285696 | K36: 4.174070158 | O36: 41 | P36: =IF('Vurdering af miljøgevinst'!$A$5="Rute 1",Euro6_10_41*(1-'Vurdering af miljøgevinst'!$B$13)+Biodiesel_10_41*'Vurdering af miljøgevinst'!$B$13,"IR") -> 4.021626837 | Q36: =IF('Vurdering af miljøgevinst'!$A$5="Rute 1",Euro6_10_41*(1-'Vurdering af miljøgevinst'!$B$13)+Ethanol_10_41*'Vurdering af miljøgevinst'!$B$13,"IR") -> 3.542564524 | R36: =IF('Vurdering af miljøgevinst'!$A$5="Rute 1",Euro6_10_41*(1-'Vurdering af miljøgevinst'!$F$13)+Biodiesel_10_41*'Vurdering af miljøgevinst'!$F$13,"IR") -> 4.083330047 | S36: =IF('Vurdering af miljøgevinst'!$A$5="Rute 1",Euro6_10_41*(1-'Vurdering af miljøgevinst'!$F$13)+Ethanol_10_41*'Vurdering af miljøgevinst'!$F$13,"IR") -> 4.083330047 | U36: 41 | AA36: 41 | AG36: 41 | AM36: 41 | AS36: 41 | AY36: 41 | BE36: 41 | BK36: 41 | BQ36: 41 | BW36: 41 | CC36: 41 | CI36: 41 | CO36: 41 | CU36: 41 | DA36: 41 | DG36: 41 | DM36: 41 | DS36: 41 | DY36: 41 | EE36: 41 | EK36: 41 | EQ36: 41 | EW36: 41 | FC36: 41
B37: 42 | C37: 4.123315632 | D37: 4.00321906 | E37: 3.827344297 | F37: 3.632343988 | G37: 3.318182564 | H37: 3.293136422 | I37: 3.944883914 | J37: 2.563141596 | K37: 4.214944306 | O37: 42 | P37: =IF('Vurdering af miljøgevinst'!$A$5="Rute 1",Euro6_10_42*(1-'Vurdering af miljøgevinst'!$B$13)+Biodiesel_10_42*'Vurdering af miljøgevinst'!$B$13,"IR") -> 4.060864531 | Q37: =IF('Vurdering af miljøgevinst'!$A$5="Rute 1",Euro6_10_42*(1-'Vurdering af miljøgevinst'!$B$13)+Ethanol_10_42*'Vurdering af miljøgevinst'!$B$13,"IR") -> 3.577254719 | R37: =IF('Vurdering af miljøgevinst'!$A$5="Rute 1",Euro6_10_42*(1-'Vurdering af miljøgevinst'!$F$13)+Biodiesel_10_42*'Vurdering af miljøgevinst'!$F$13,"IR") -> 4.123315632 | S37: =IF('Vurdering af miljøgevinst'!$A$5="Rute 1",Euro6_10_42*(1-'Vurdering af miljøgevinst'!$F$13)+Ethanol_10_42*'Vurdering af miljøgevinst'!$F$13,"IR") -> 4.123315632 | U37: 42 | AA37: 42 | AG37: 42 | AM37: 42 | AS37: 42 | AY37: 42 | BE37: 42 | BK37: 42 | BQ37: 42 | BW37: 42 | CC37: 42 | CI37: 42 | CO37: 42 | CU37: 42 | DA37: 42 | DG37: 42 | DM37: 42 | DS37: 42 | DY37: 42 | EE37: 42 | EK37: 42 | EQ37: 42 | EW37: 42 | FC37: 42
B38: 43 | C38: 4.163301218 | D38: 4.042040017 | E38: 3.85537451 | F38: 3.662935814 | G38: 3.347515409 | H38: 3.316797874 | I38: 3.982725266 | J38: 2.587997495 | K38: 4.255818455 | O38: 43 | P38: =IF('Vurdering af miljøgevinst'!$A$5="Rute 1",Euro6_10_43*(1-'Vurdering af miljøgevinst'!$B$13)+Biodiesel_10_43*'Vurdering af miljøgevinst'!$B$13,"IR") -> 4.100099635 | Q38: =IF('Vurdering af miljøgevinst'!$A$5="Rute 1",Euro6_10_43*(1-'Vurdering af miljøgevinst'!$B$13)+Ethanol_10_43*'Vurdering af miljøgevinst'!$B$13,"IR") -> 3.611944915 | R38: =IF('Vurdering af miljøgevinst'!$A$5="Rute 1",Euro6_10_43*(1-'Vurdering af miljøgevinst'!$F$13)+Biodiesel_10_43*'Vurdering af miljøgevinst'!$F$13,"IR") -> 4.163301218 | S38: =IF('Vurdering af miljøgevinst'!$A$5="Rute 1",Euro6_10_43*(1-'Vurdering af miljøgevinst'!$F$13)+Ethanol_10_43*'Vurdering af miljøgevinst'!$F$13,"IR") -> 4.163301218 | U38: 43 | AA38: 43 | AG38: 43 | AM38: 43 | AS38: 43 | AY38: 43 | BE38: 43 | BK38: 43 | BQ38: 43 | BW38: 43 | CC38: 43 | CI38: 43 | CO38: 43 | CU38: 43 | DA38: 43 | DG38: 43 | DM38: 43 | DS38: 43 | DY38: 43 | EE38: 43 | EK38: 43 | EQ38: 43 | EW38: 43 | FC38: 43
B39: 44 | C39: 4.203286803 | D39: 4.080860974 | E39: 3.883404722 | F39: 3.69352764 | G39: 3.376848254 | H39: 3.340459327 | I39: 4.020559236 | J39: 2.612853394 | K39: 4.296692603 | O39: 44 | P39: =IF('Vurdering af miljøgevinst'!$A$5="Rute 1",Euro6_10_44*(1-'Vurdering af miljøgevinst'!$B$13)+Biodiesel_10_44*'Vurdering af miljøgevinst'!$B$13,"IR") -> 4.139332154 | Q39: =IF('Vurdering af miljøgevinst'!$A$5="Rute 1",Euro6_10_44*(1-'Vurdering af miljøgevinst'!$B$13)+Ethanol_10_44*'Vurdering af miljøgevinst'!$B$13,"IR") -> 3.64663511 | R39: =IF('Vurdering af miljøgevinst'!$A$5="Rute 1",Euro6_10_44*(1-'Vurdering af miljøgevinst'!$F$13)+Biodiesel_10_44*'Vurdering af miljøgevinst'!$F$13,"IR") -> 4.203286803 | S39: =IF('Vurdering af miljøgevinst'!$A$5="Rute 1",Euro6_10_44*(1-'Vurdering af miljøgevinst'!$F$13)+Ethanol_10_44*'Vurdering af miljøgevinst'!$F$13,"IR") -> 4.203286803 | U39: 44 | AA39: 44 | AG39: 44 | AM39: 44 | AS39: 44 | AY39: 44 | BE39: 44 | BK39: 44 | BQ39: 44 | BW39: 44 | CC39: 44 | CI39: 44 | CO39: 44 | CU39: 44 | DA39: 44 | DG39: 44 | DM39: 44 | DS39: 44 | DY39: 44 | EE39: 44 | EK39: 44 | EQ39: 44 | EW39: 44 | FC39: 44
B40: 45 | C40: 4.243272388 | D40: 4.11968193 | E40: 3.911434934 | F40: 3.724119466 | G40: 3.406181099 | H40: 3.364120779 | I40: 4.058385837 | J40: 2.637709293 | K40: 4.337566752 | O40: 45 | P40: =IF('Vurdering af miljøgevinst'!$A$5="Rute 1",Euro6_10_45*(1-'Vurdering af miljøgevinst'!$B$13)+Biodiesel_10_45*'Vurdering af miljøgevinst'!$B$13,"IR") -> 4.178562095 | Q40: =IF('Vurdering af miljøgevinst'!$A$5="Rute 1",Euro6_10_45*(1-'Vurdering af miljøgevinst'!$B$13)+Ethanol_10_45*'Vurdering af miljøgevinst'!$B$13,"IR") -> 3.681325305 | R40: =IF('Vurdering af miljøgevinst'!$A$5="Rute 1",Euro6_10_45*(1-'Vurdering af miljøgevinst'!$F$13)+Biodiesel_10_45*'Vurdering af miljøgevinst'!$F$13,"IR") -> 4.243272388 | S40: =IF('Vurdering af miljøgevinst'!$A$5="Rute 1",Euro6_10_45*(1-'Vurdering af miljøgevinst'!$F$13)+Ethanol_10_45*'Vurdering af miljøgevinst'!$F$13,"IR") -> 4.243272388 | U40: 45 | AA40: 45 | AG40: 45 | AM40: 45 | AS40: 45 | AY40: 45 | BE40: 45 | BK40: 45 | BQ40: 45 | BW40: 45 | CC40: 45 | CI40: 45 | CO40: 45 | CU40: 45 | DA40: 45 | DG40: 45 | DM40: 45 | DS40: 45 | DY40: 45 | EE40: 45 | EK40: 45 | EQ40: 45 | EW40: 45 | FC40: 45
B41: 46 | C41: 4.283257974 | D41: 4.158502887 | E41: 3.939465146 | F41: 3.754711292 | G41: 3.435513944 | H41: 3.387782232 | I41: 4.096205085 | J41: 2.662565192 | K41: 4.378440901 | O41: 46 | P41: =IF('Vurdering af miljøgevinst'!$A$5="Rute 1",Euro6_10_46*(1-'Vurdering af miljøgevinst'!$B$13)+Biodiesel_10_46*'Vurdering af miljøgevinst'!$B$13,"IR") -> 4.217789463 | Q41: =IF('Vurdering af miljøgevinst'!$A$5="Rute 1",Euro6_10_46*(1-'Vurdering af miljøgevinst'!$B$13)+Ethanol_10_46*'Vurdering af miljøgevinst'!$B$13,"IR") -> 3.7160155 | R41: =IF('Vurdering af miljøgevinst'!$A$5="Rute 1",Euro6_10_46*(1-'Vurdering af miljøgevinst'!$F$13)+Biodiesel_10_46*'Vurdering af miljøgevinst'!$F$13,"IR") -> 4.283257974 | S41: =IF('Vurdering af miljøgevinst'!$A$5="Rute 1",Euro6_10_46*(1-'Vurdering af miljøgevinst'!$F$13)+Ethanol_10_46*'Vurdering af miljøgevinst'!$F$13,"IR") -> 4.283257974 | U41: 46 | AA41: 46 | AG41: 46 | AM41: 46 | AS41: 46 | AY41: 46 | BE41: 46 | BK41: 46 | BQ41: 46 | BW41: 46 | CC41: 46 | CI41: 46 | CO41: 46 | CU41: 46 | DA41: 46 | DG41: 46 | DM41: 46 | DS41: 46 | DY41: 46 | EE41: 46 | EK41: 46 | EQ41: 46 | EW41: 46 | FC41: 46
B42: 47 | C42: 4.323243559 | D42: 4.197323844 | E42: 3.967495358 | F42: 3.785303118 | G42: 3.464846789 | H42: 3.411443684 | I42: 4.134016994 | J42: 2.687421091 | K42: 4.419315049 | O42: 47 | P42: =IF('Vurdering af miljøgevinst'!$A$5="Rute 1",Euro6_10_47*(1-'Vurdering af miljøgevinst'!$B$13)+Biodiesel_10_47*'Vurdering af miljøgevinst'!$B$13,"IR") -> 4.257014261 | Q42: =IF('Vurdering af miljøgevinst'!$A$5="Rute 1",Euro6_10_47*(1-'Vurdering af miljøgevinst'!$B$13)+Ethanol_10_47*'Vurdering af miljøgevinst'!$B$13,"IR") -> 3.750705695 | R42: =IF('Vurdering af miljøgevinst'!$A$5="Rute 1",Euro6_10_47*(1-'Vurdering af miljøgevinst'!$F$13)+Biodiesel_10_47*'Vurdering af miljøgevinst'!$F$13,"IR") -> 4.323243559 | S42: =IF('Vurdering af miljøgevinst'!$A$5="Rute 1",Euro6_10_47*(1-'Vurdering af miljøgevinst'!$F$13)+Ethanol_10_47*'Vurdering af miljøgevinst'!$F$13,"IR") -> 4.323243559 | U42: 47 | AA42: 47 | AG42: 47 | AM42: 47 | AS42: 47 | AY42: 47 | BE42: 47 | BK42: 47 | BQ42: 47 | BW42: 47 | CC42: 47 | CI42: 47 | CO42: 47 | CU42: 47 | DA42: 47 | DG42: 47 | DM42: 47 | DS42: 47 | DY42: 47 | EE42: 47 | EK42: 47 | EQ42: 47 | EW42: 47 | FC42: 47
B43: 48 | C43: 4.363229145 | D43: 4.236144801 | E43: 3.99552557 | F43: 3.815894944 | G43: 3.494179634 | H43: 3.435105137 | I43: 4.171821581 | J43: 2.71227699 | K43: 4.460189198 | O43: 48 | P43: =IF('Vurdering af miljøgevinst'!$A$5="Rute 1",Euro6_10_48*(1-'Vurdering af miljøgevinst'!$B$13)+Biodiesel_10_48*'Vurdering af miljøgevinst'!$B$13,"IR") -> 4.296236497 | Q43: =IF('Vurdering af miljøgevinst'!$A$5="Rute 1",Euro6_10_48*(1-'Vurdering af miljøgevinst'!$B$13)+Ethanol_10_48*'Vurdering af miljøgevinst'!$B$13,"IR") -> 3.785395891 | R43: =IF('Vurdering af miljøgevinst'!$A$5="Rute 1",Euro6_10_48*(1-'Vurdering af miljøgevinst'!$F$13)+Biodiesel_10_48*'Vurdering af miljøgevinst'!$F$13,"IR") -> 4.363229145 | S43: =IF('Vurdering af miljøgevinst'!$A$5="Rute 1",Euro6_10_48*(1-'Vurdering af miljøgevinst'!$F$13)+Ethanol_10_48*'Vurdering af miljøgevinst'!$F$13,"IR") -> 4.363229145 | U43: 48 | AA43: 48 | AG43: 48 | AM43: 48 | AS43: 48 | AY43: 48 | BE43: 48 | BK43: 48 | BQ43: 48 | BW43: 48 | CC43: 48 | CI43: 48 | CO43: 48 | CU43: 48 | DA43: 48 | DG43: 48 | DM43: 48 | DS43: 48 | DY43: 48 | EE43: 48 | EK43: 48 | EQ43: 48 | EW43: 48 | FC43: 48
B44: 49 | C44: 4.40321473 | D44: 4.274965757 | E44: 4.023555783 | F44: 3.84648677 | G44: 3.523512479 | H44: 3.458766589 | I44: 4.209618858 | J44: 2.737132889 | K44: 4.501063346 | O44: 49 | P44: =IF('Vurdering af miljøgevinst'!$A$5="Rute 1",Euro6_10_49*(1-'Vurdering af miljøgevinst'!$B$13)+Biodiesel_10_49*'Vurdering af miljøgevinst'!$B$13,"IR") -> 4.335456175 | Q44: =IF('Vurdering af miljøgevinst'!$A$5="Rute 1",Euro6_10_49*(1-'Vurdering af miljøgevinst'!$B$13)+Ethanol_10_49*'Vurdering af miljøgevinst'!$B$13,"IR") -> 3.820086086 | R44: =IF('Vurdering af miljøgevinst'!$A$5="Rute 1",Euro6_10_49*(1-'Vurdering af miljøgevinst'!$F$13)+Biodiesel_10_49*'Vurdering af miljøgevinst'!$F$13,"IR") -> 4.40321473 | S44: =IF('Vurdering af miljøgevinst'!$A$5="Rute 1",Euro6_10_49*(1-'Vurdering af miljøgevinst'!$F$13)+Ethanol_10_49*'Vurdering af miljøgevinst'!$F$13,"IR") -> 4.40321473 | U44: 49 | AA44: 49 | AG44: 49 | AM44: 49 | AS44: 49 | AY44: 49 | BE44: 49 | BK44: 49 | BQ44: 49 | BW44: 49 | CC44: 49 | CI44: 49 | CO44: 49 | CU44: 49 | DA44: 49 | DG44: 49 | DM44: 49 | DS44: 49 | DY44: 49 | EE44: 49 | EK44: 49 | EQ44: 49 | EW44: 49 | FC44: 49
B45: 50 | C45: 4.443200315 | D45: 4.313786714 | E45: 4.051585995 | F45: 3.877078596 | G45: 3.552845324 | H45: 3.482428042 | I45: 4.247408842 | J45: 2.761988788 | K45: 4.541937495 | O45: 50 | P45: =IF('Vurdering af miljøgevinst'!$A$5="Rute 1",Euro6_10_50*(1-'Vurdering af miljøgevinst'!$B$13)+Biodiesel_10_50*'Vurdering af miljøgevinst'!$B$13,"IR") -> 4.3746733 | Q45: =IF('Vurdering af miljøgevinst'!$A$5="Rute 1",Euro6_10_50*(1-'Vurdering af miljøgevinst'!$B$13)+Ethanol_10_50*'Vurdering af miljøgevinst'!$B$13,"IR") -> 3.854776281 | R45: =IF('Vurdering af miljøgevinst'!$A$5="Rute 1",Euro6_10_50*(1-'Vurdering af miljøgevinst'!$F$13)+Biodiesel_10_50*'Vurdering af miljøgevinst'!$F$13,"IR") -> 4.443200315 | S45: =IF('Vurdering af miljøgevinst'!$A$5="Rute 1",Euro6_10_50*(1-'Vurdering af miljøgevinst'!$F$13)+Ethanol_10_50*'Vurdering af miljøgevinst'!$F$13,"IR") -> 4.443200315 | U45: 50 | AA45: 50 | AG45: 50 | AM45: 50 | AS45: 50 | AY45: 50 | BE45: 50 | BK45: 50 | BQ45: 50 | BW45: 50 | CC45: 50 | CI45: 50 | CO45: 50 | CU45: 50 | DA45: 50 | DG45: 50 | DM45: 50 | DS45: 50 | DY45: 50 | EE45: 50 | EK45: 50 | EQ45: 50 | EW45: 50 | FC45: 50
B46: 51 | C46: 4.483185901 | D46: 4.352607671 | E46: 4.079616207 | F46: 3.907670422 | G46: 3.582178169 | H46: 3.506089494 | I46: 4.285191548 | J46: 2.786844687 | K46: 4.582811643 | O46: 51 | P46: =IF('Vurdering af miljøgevinst'!$A$5="Rute 1",Euro6_10_51*(1-'Vurdering af miljøgevinst'!$B$13)+Biodiesel_10_51*'Vurdering af miljøgevinst'!$B$13,"IR") -> 4.413887877 | Q46: =IF('Vurdering af miljøgevinst'!$A$5="Rute 1",Euro6_10_51*(1-'Vurdering af miljøgevinst'!$B$13)+Ethanol_10_51*'Vurdering af miljøgevinst'!$B$13,"IR") -> 3.889466476 | R46: =IF('Vurdering af miljøgevinst'!$A$5="Rute 1",Euro6_10_51*(1-'Vurdering af miljøgevinst'!$F$13)+Biodiesel_10_51*'Vurdering af miljøgevinst'!$F$13,"IR") -> 4.483185901 | S46: =IF('Vurdering af miljøgevinst'!$A$5="Rute 1",Euro6_10_51*(1-'Vurdering af miljøgevinst'!$F$13)+Ethanol_10_51*'Vurdering af miljøgevinst'!$F$13,"IR") -> 4.483185901 | U46: 51 | AA46: 51 | AG46: 51 | AM46: 51 | AS46: 51 | AY46: 51 | BE46: 51 | BK46: 51 | BQ46: 51 | BW46: 51 | CC46: 51 | CI46: 51 | CO46: 51 | CU46: 51 | DA46: 51 | DG46: 51 | DM46: 51 | DS46: 51 | DY46: 51 | EE46: 51 | EK46: 51 | EQ46: 51 | EW46: 51 | FC46: 51
B47: 52 | C47: 4.523171486 | D47: 4.391428627 | E47: 4.107646419 | F47: 3.938262248 | G47: 3.611511014 | H47: 3.529750947 | I47: 4.322966989 | J47: 2.811700586 | K47: 4.623685792 | O47: 52 | P47: =IF('Vurdering af miljøgevinst'!$A$5="Rute 1",Euro6_10_52*(1-'Vurdering af miljøgevinst'!$B$13)+Biodiesel_10_52*'Vurdering af miljøgevinst'!$B$13,"IR") -> 4.453099912 | Q47: =IF('Vurdering af miljøgevinst'!$A$5="Rute 1",Euro6_10_52*(1-'Vurdering af miljøgevinst'!$B$13)+Ethanol_10_52*'Vurdering af miljøgevinst'!$B$13,"IR") -> 3.924156671 | R47: =IF('Vurdering af miljøgevinst'!$A$5="Rute 1",Euro6_10_52*(1-'Vurdering af miljøgevinst'!$F$13)+Biodiesel_10_52*'Vurdering af miljøgevinst'!$F$13,"IR") -> 4.523171486 | S47: =IF('Vurdering af miljøgevinst'!$A$5="Rute 1",Euro6_10_52*(1-'Vurdering af miljøgevinst'!$F$13)+Ethanol_10_52*'Vurdering af miljøgevinst'!$F$13,"IR") -> 4.523171486 | U47: 52 | AA47: 52 | AG47: 52 | AM47: 52 | AS47: 52 | AY47: 52 | BE47: 52 | BK47: 52 | BQ47: 52 | BW47: 52 | CC47: 52 | CI47: 52 | CO47: 52 | CU47: 52 | DA47: 52 | DG47: 52 | DM47: 52 | DS47: 52 | DY47: 52 | EE47: 52 | EK47: 52 | EQ47: 52 | EW47: 52 | FC47: 52
B48: 53 | C48: 4.563157072 | D48: 4.430249584 | E48: 4.135676631 | F48: 3.968854074 | G48: 3.640843859 | H48: 3.553412399 | I48: 4.36073518 | J48: 2.836556485 | K48: 4.66455994 | O48: 53 | P48: =IF('Vurdering af miljøgevinst'!$A$5="Rute 1",Euro6_10_53*(1-'Vurdering af miljøgevinst'!$B$13)+Biodiesel_10_53*'Vurdering af miljøgevinst'!$B$13,"IR") -> 4.49230941 | Q48: =IF('Vurdering af miljøgevinst'!$A$5="Rute 1",Euro6_10_53*(1-'Vurdering af miljøgevinst'!$B$13)+Ethanol_10_53*'Vurdering af miljøgevinst'!$B$13,"IR") -> 3.958846866 | R48: =IF('Vurdering af miljøgevinst'!$A$5="Rute 1",Euro6_10_53*(1-'Vurdering af miljøgevinst'!$F$13)+Biodiesel_10_53*'Vurdering af miljøgevinst'!$F$13,"IR") -> 4.563157072 | S48: =IF('Vurdering af miljøgevinst'!$A$5="Rute 1",Euro6_10_53*(1-'Vurdering af miljøgevinst'!$F$13)+Ethanol_10_53*'Vurdering af miljøgevinst'!$F$13,"IR") -> 4.563157072 | U48: 53 | AA48: 53 | AG48: 53 | AM48: 53 | AS48: 53 | AY48: 53 | BE48: 53 | BK48: 53 | BQ48: 53 | BW48: 53 | CC48: 53 | CI48: 53 | CO48: 53 | CU48: 53 | DA48: 53 | DG48: 53 | DM48: 53 | DS48: 53 | DY48: 53 | EE48: 53 | EK48: 53 | EQ48: 53 | EW48: 53 | FC48: 53
B49: 54 | C49: 4.603142657 | D49: 4.469070541 | E49: 4.163706844 | F49: 3.9994459 | G49: 3.670176704 | H49: 3.577073852 | I49: 4.398496137 | J49: 2.861412384 | K49: 4.705434089 | O49: 54 | P49: =IF('Vurdering af miljøgevinst'!$A$5="Rute 1",Euro6_10_54*(1-'Vurdering af miljøgevinst'!$B$13)+Biodiesel_10_54*'Vurdering af miljøgevinst'!$B$13,"IR") -> 4.531516375 | Q49: =IF('Vurdering af miljøgevinst'!$A$5="Rute 1",Euro6_10_54*(1-'Vurdering af miljøgevinst'!$B$13)+Ethanol_10_54*'Vurdering af miljøgevinst'!$B$13,"IR") -> 3.993537062 | R49: =IF('Vurdering af miljøgevinst'!$A$5="Rute 1",Euro6_10_54*(1-'Vurdering af miljøgevinst'!$F$13)+Biodiesel_10_54*'Vurdering af miljøgevinst'!$F$13,"IR") -> 4.603142657 | S49: =IF('Vurdering af miljøgevinst'!$A$5="Rute 1",Euro6_10_54*(1-'Vurdering af miljøgevinst'!$F$13)+Ethanol_10_54*'Vurdering af miljøgevinst'!$F$13,"IR") -> 4.603142657 | U49: 54 | AA49: 54 | AG49: 54 | AM49: 54 | AS49: 54 | AY49: 54 | BE49: 54 | BK49: 54 | BQ49: 54 | BW49: 54 | CC49: 54 | CI49: 54 | CO49: 54 | CU49: 54 | DA49: 54 | DG49: 54 | DM49: 54 | DS49: 54 | DY49: 54 | EE49: 54 | EK49: 54 | EQ49: 54 | EW49: 54 | FC49: 54
B50: 55 | C50: 4.643128243 | D50: 4.507891498 | E50: 4.191737056 | F50: 4.030037727 | G50: 3.699509549 | H50: 3.600735304 | I50: 4.436249874 | J50: 2.886268283 | K50: 4.746308237 | O50: 55 | P50: =IF('Vurdering af miljøgevinst'!$A$5="Rute 1",Euro6_10_55*(1-'Vurdering af miljøgevinst'!$B$13)+Biodiesel_10_55*'Vurdering af miljøgevinst'!$B$13,"IR") -> 4.570720813 | Q50: =IF('Vurdering af miljøgevinst'!$A$5="Rute 1",Euro6_10_55*(1-'Vurdering af miljøgevinst'!$B$13)+Ethanol_10_55*'Vurdering af miljøgevinst'!$B$13,"IR") -> 4.028227257 | R50: =IF('Vurdering af miljøgevinst'!$A$5="Rute 1",Euro6_10_55*(1-'Vurdering af miljøgevinst'!$F$13)+Biodiesel_10_55*'Vurdering af miljøgevinst'!$F$13,"IR") -> 4.643128243 | S50: =IF('Vurdering af miljøgevinst'!$A$5="Rute 1",Euro6_10_55*(1-'Vurdering af miljøgevinst'!$F$13)+Ethanol_10_55*'Vurdering af miljøgevinst'!$F$13,"IR") -> 4.643128243 | U50: 55 | AA50: 55 | AG50: 55 | AM50: 55 | AS50: 55 | AY50: 55 | BE50: 55 | BK50: 55 | BQ50: 55 | BW50: 55 | CC50: 55 | CI50: 55 | CO50: 55 | CU50: 55 | DA50: 55 | DG50: 55 | DM50: 55 | DS50: 55 | DY50: 55 | EE50: 55 | EK50: 55 | EQ50: 55 | EW50: 55 | FC50: 55
B51: 56 | C51: 4.683113828 | D51: 4.546712454 | E51: 4.219767268 | F51: 4.060629553 | G51: 3.728842394 | H51: 3.624396757 | I51: 4.473996405 | J51: 2.911124183 | K51: 4.787182386 | O51: 56 | P51: =IF('Vurdering af miljøgevinst'!$A$5="Rute 1",Euro6_10_56*(1-'Vurdering af miljøgevinst'!$B$13)+Biodiesel_10_56*'Vurdering af miljøgevinst'!$B$13,"IR") -> 4.60992273 | Q51: =IF('Vurdering af miljøgevinst'!$A$5="Rute 1",Euro6_10_56*(1-'Vurdering af miljøgevinst'!$B$13)+Ethanol_10_56*'Vurdering af miljøgevinst'!$B$13,"IR") -> 4.062917452 | R51: =IF('Vurdering af miljøgevinst'!$A$5="Rute 1",Euro6_10_56*(1-'Vurdering af miljøgevinst'!$F$13)+Biodiesel_10_56*'Vurdering af miljøgevinst'!$F$13,"IR") -> 4.683113828 | S51: =IF('Vurdering af miljøgevinst'!$A$5="Rute 1",Euro6_10_56*(1-'Vurdering af miljøgevinst'!$F$13)+Ethanol_10_56*'Vurdering af miljøgevinst'!$F$13,"IR") -> 4.683113828 | U51: 56 | AA51: 56 | AG51: 56 | AM51: 56 | AS51: 56 | AY51: 56 | BE51: 56 | BK51: 56 | BQ51: 56 | BW51: 56 | CC51: 56 | CI51: 56 | CO51: 56 | CU51: 56 | DA51: 56 | DG51: 56 | DM51: 56 | DS51: 56 | DY51: 56 | EE51: 56 | EK51: 56 | EQ51: 56 | EW51: 56 | FC51: 56
B52: 57 | C52: 4.723099413 | D52: 4.585533411 | E52: 4.24779748 | F52: 4.091221379 | G52: 3.758175239 | H52: 3.648058209 | I52: 4.511735745 | J52: 2.935980082 | K52: 4.828056534 | O52: 57 | P52: =IF('Vurdering af miljøgevinst'!$A$5="Rute 1",Euro6_10_57*(1-'Vurdering af miljøgevinst'!$B$13)+Biodiesel_10_57*'Vurdering af miljøgevinst'!$B$13,"IR") -> 4.649122129 | Q52: =IF('Vurdering af miljøgevinst'!$A$5="Rute 1",Euro6_10_57*(1-'Vurdering af miljøgevinst'!$B$13)+Ethanol_10_57*'Vurdering af miljøgevinst'!$B$13,"IR") -> 4.097607647 | R52: =IF('Vurdering af miljøgevinst'!$A$5="Rute 1",Euro6_10_57*(1-'Vurdering af miljøgevinst'!$F$13)+Biodiesel_10_57*'Vurdering af miljøgevinst'!$F$13,"IR") -> 4.723099413 | S52: =IF('Vurdering af miljøgevinst'!$A$5="Rute 1",Euro6_10_57*(1-'Vurdering af miljøgevinst'!$F$13)+Ethanol_10_57*'Vurdering af miljøgevinst'!$F$13,"IR") -> 4.723099413 | U52: 57 | AA52: 57 | AG52: 57 | AM52: 57 | AS52: 57 | AY52: 57 | BE52: 57 | BK52: 57 | BQ52: 57 | BW52: 57 | CC52: 57 | CI52: 57 | CO52: 57 | CU52: 57 | DA52: 57 | DG52: 57 | DM52: 57 | DS52: 57 | DY52: 57 | EE52: 57 | EK52: 57 | EQ52: 57 | EW52: 57 | FC52: 57
B53: 58 | C53: 4.763084999 | D53: 4.624354368 | E53: 4.275827692 | F53: 4.121813205 | G53: 3.787508084 | H53: 3.671719662 | I53: 4.549467908 | J53: 2.960835981 | K53: 4.868930683 | O53: 58 | P53: =IF('Vurdering af miljøgevinst'!$A$5="Rute 1",Euro6_10_58*(1-'Vurdering af miljøgevinst'!$B$13)+Biodiesel_10_58*'Vurdering af miljøgevinst'!$B$13,"IR") -> 4.688319017 | Q53: =IF('Vurdering af miljøgevinst'!$A$5="Rute 1",Euro6_10_58*(1-'Vurdering af miljøgevinst'!$B$13)+Ethanol_10_58*'Vurdering af miljøgevinst'!$B$13,"IR") -> 4.132297842 | R53: =IF('Vurdering af miljøgevinst'!$A$5="Rute 1",Euro6_10_58*(1-'Vurdering af miljøgevinst'!$F$13)+Biodiesel_10_58*'Vurdering af miljøgevinst'!$F$13,"IR") -> 4.763084999 | S53: =IF('Vurdering af miljøgevinst'!$A$5="Rute 1",Euro6_10_58*(1-'Vurdering af miljøgevinst'!$F$13)+Ethanol_10_58*'Vurdering af miljøgevinst'!$F$13,"IR") -> 4.763084999 | U53: 58 | AA53: 58 | AG53: 58 | AM53: 58 | AS53: 58 | AY53: 58 | BE53: 58 | BK53: 58 | BQ53: 58 | BW53: 58 | CC53: 58 | CI53: 58 | CO53: 58 | CU53: 58 | DA53: 58 | DG53: 58 | DM53: 58 | DS53: 58 | DY53: 58 | EE53: 58 | EK53: 58 | EQ53: 58 | EW53: 58 | FC53: 58
B54: 59 | C54: 4.803070584 | D54: 4.663175324 | E54: 4.303857905 | F54: 4.152405031 | G54: 3.816840929 | H54: 3.695381114 | I54: 4.58719291 | J54: 2.98569188 | K54: 4.909804831 | O54: 59 | P54: =IF('Vurdering af miljøgevinst'!$A$5="Rute 1",Euro6_10_59*(1-'Vurdering af miljøgevinst'!$B$13)+Biodiesel_10_59*'Vurdering af miljøgevinst'!$B$13,"IR") -> 4.727513398 | Q54: =IF('Vurdering af miljøgevinst'!$A$5="Rute 1",Euro6_10_59*(1-'Vurdering af miljøgevinst'!$B$13)+Ethanol_10_59*'Vurdering af miljøgevinst'!$B$13,"IR") -> 4.166988038 | R54: =IF('Vurdering af miljøgevinst'!$A$5="Rute 1",Euro6_10_59*(1-'Vurdering af miljøgevinst'!$F$13)+Biodiesel_10_59*'Vurdering af miljøgevinst'!$F$13,"IR") -> 4.803070584 | S54: =IF('Vurdering af miljøgevinst'!$A$5="Rute 1",Euro6_10_59*(1-'Vurdering af miljøgevinst'!$F$13)+Ethanol_10_59*'Vurdering af miljøgevinst'!$F$13,"IR") -> 4.803070584 | U54: 59 | AA54: 59 | AG54: 59 | AM54: 59 | AS54: 59 | AY54: 59 | BE54: 59 | BK54: 59 | BQ54: 59 | BW54: 59 | CC54: 59 | CI54: 59 | CO54: 59 | CU54: 59 | DA54: 59 | DG54: 59 | DM54: 59 | DS54: 59 | DY54: 59 | EE54: 59 | EK54: 59 | EQ54: 59 | EW54: 59 | FC54: 59
B55: 60 | C55: 4.84305617 | D55: 4.701996281 | E55: 4.331888117 | F55: 4.182996857 | G55: 3.846173774 | H55: 3.719042567 | I55: 4.624910764 | J55: 3.010547779 | K55: 4.95067898 | O55: 60 | P55: =IF('Vurdering af miljøgevinst'!$A$5="Rute 1",Euro6_10_60*(1-'Vurdering af miljøgevinst'!$B$13)+Biodiesel_10_60*'Vurdering af miljøgevinst'!$B$13,"IR") -> 4.766705278 | Q55: =IF('Vurdering af miljøgevinst'!$A$5="Rute 1",Euro6_10_60*(1-'Vurdering af miljøgevinst'!$B$13)+Ethanol_10_60*'Vurdering af miljøgevinst'!$B$13,"IR") -> 4.201678233 | R55: =IF('Vurdering af miljøgevinst'!$A$5="Rute 1",Euro6_10_60*(1-'Vurdering af miljøgevinst'!$F$13)+Biodiesel_10_60*'Vurdering af miljøgevinst'!$F$13,"IR") -> 4.84305617 | S55: =IF('Vurdering af miljøgevinst'!$A$5="Rute 1",Euro6_10_60*(1-'Vurdering af miljøgevinst'!$F$13)+Ethanol_10_60*'Vurdering af miljøgevinst'!$F$13,"IR") -> 4.84305617 | U55: 60 | AA55: 60 | AG55: 60 | AM55: 60 | AS55: 60 | AY55: 60 | BE55: 60 | BK55: 60 | BQ55: 60 | BW55: 60 | CC55: 60 | CI55: 60 | CO55: 60 | CU55: 60 | DA55: 60 | DG55: 60 | DM55: 60 | DS55: 60 | DY55: 60 | EE55: 60 | EK55: 60 | EQ55: 60 | EW55: 60 | FC55: 60
A61: Busstørrelse | B61: Hastighed (km/t) | C61: Euro 6 | D61: EEV | E61: Euro 5 | F61: Euro 4 | G61: Euro 3 | H61: Euro 2 | I61: Biodiesel | J61: Ethanol | K61: Gas | N61: Busstørrelse | O61: Hastighed i km/t | P61: Biodiesel | Q61: Ethanol | R61: Biodiesel | S61: Ethanol | T61: Busstørrelse | U61: Hastighed i km/t | V61: Biodiesel | W61: Ethanol | X61: Biodiesel | Y61: Ethanol | Z61: Busstørrelse | AA61: Hastighed i km/t | AB61: Biodiesel | AC61: Ethanol | AD61: Biodiesel | AE61: Ethanol | AF61: Busstørrelse | AG61: Hastighed i km/t | AH61: Biodiesel | AI61: Ethanol | AJ61: Biodiesel | AK61: Ethanol | AL61: Busstørrelse | AM61: Hastighed i km/t | AN61: Biodiesel | AO61: Ethanol | AP61: Biodiesel | AQ61: Ethanol | AR61: Busstørrelse | AS61: Hastighed i km/t | AT61: Biodiesel | AU61: Ethanol | AV61: Biodiesel | AW61: Ethanol | AX61: Busstørrelse | AY61: Hastighed i km/t | AZ61: Biodiesel | BA61: Ethanol | BB61: Biodiesel | BC61: Ethanol | BD61: Busstørrelse | BE61: Hastighed i km/t | BF61: Biodiesel | BG61: Ethanol | BH61: Biodiesel | BI61: Ethanol | BJ61: Busstørrelse | BK61: Hastighed i km/t | BL61: Biodiesel | BM61: Ethanol | BN61: Biodiesel | BO61: Ethanol | BP61: Busstørrelse | BQ61: Hastighed i km/t | BR61: Biodiesel | BS61: Ethanol | BT61: Biodiesel | BU61: Ethanol | BV61: Busstørrelse | BW61: Hastighed i km/t | BX61: Biodiesel | BY61: Ethanol | BZ61: Biodiesel | CA61: Ethanol | CB61: Busstørrelse | CC61: Hastighed i km/t | CD61: Biodiesel | CE61: Ethanol | CF61: Biodiesel | CG61: Ethanol | CH61: Busstørrelse | CI61: Hastighed i km/t | CJ61: Biodiesel | CK61: Ethanol | CL61: Biodiesel | CM61: Ethanol | CN61: Busstørrelse | CO61: Hastighed i km/t | CP61: Biodiesel | CQ61: Ethanol | CR61: Biodiesel | CS61: Ethanol | CT61: Busstørrelse | CU61: Hastighed i km/t | CV61: Biodiesel | CW61: Ethanol | CX61: Biodiesel | CY61: Ethanol | CZ61: Busstørrelse | DA61: Hastighed i km/t | DB61: Biodiesel | DC61: Ethanol | DD61: Biodiesel | DE61: Ethanol | DF61: Busstørrelse | DG61: Hastighed i km/t | DH61: Biodiesel | DI61: Ethanol | DJ61: Biodiesel | DK61: Ethanol | DL61: Busstørrelse | DM61: Hastighed i km/t | DN61: Biodiesel | DO61: Ethanol | DP61: Biodiesel | DQ61: Ethanol | DR61: Busstørrelse | DS61: Hastighed i km/t | DT61: Biodiesel | DU61: Ethanol | DV61: Biodiesel | DW61: Ethanol | DX61: Busstørrelse | DY61: Hastighed i km/t | DZ61: Biodiesel | EA61: Ethanol | EB61: Biodiesel | EC61: Ethanol | ED61: Busstørrelse | EE61: Hastighed i km/t | EF61: Biodiesel | EG61: Ethanol | EH61: Biodiesel | EI61: Ethanol | EJ61: Busstørrelse | EK61: Hastighed i km/t | EL61: Biodiesel | EM61: Ethanol | EN61: Biodiesel | EO61: Ethanol | EP61: Busstørrelse | EQ61: Hastighed i km/t | ER61: Biodiesel | ES61: Ethanol | ET61: Biodiesel | EU61: Ethanol | EV61: Busstørrelse | EW61: Hastighed i km/t | EX61: Biodiesel | EY61: Ethanol | EZ61: Biodiesel | FA61: Ethanol | FB61: Busstørrelse | FC61: Hastighed i km/t | FD61: Biodiesel | FE61: Ethanol | FF61: Biodiesel | FG61: Ethanol
A62: 12 meter | B62: 10 | C62: 2.414596804 | D62: 2.344268742 | E62: 2.488127732 | F62: 2.25295612 | G62: 2.020414899 | H62: 2.15324378 | I62: 2.317965709 | J62: 1.500965257 | K62: 2.468254182 | N62: 12 meter | O62: 10 | P62: =IF('Vurdering af miljøgevinst'!$A$5="Rute 1",Euro6_12_10*(1-'Vurdering af miljøgevinst'!$B$13)+Biodiesel_12_10*'Vurdering af miljøgevinst'!$B$13,"IR") -> 2.380775921 | Q62: =IF('Vurdering af miljøgevinst'!$A$5="Rute 1",Euro6_12_10*(1-'Vurdering af miljøgevinst'!$B$13)+Ethanol_12_10*'Vurdering af miljøgevinst'!$B$13,"IR") -> 2.094825763 | R62: =IF('Vurdering af miljøgevinst'!$A$5="Rute 1",Euro6_12_10*(1-'Vurdering af miljøgevinst'!$F$13)+Biodiesel_12_10*'Vurdering af miljøgevinst'!$F$13,"IR") -> 2.414596804 | S62: =IF('Vurdering af miljøgevinst'!$A$5="Rute 1",Euro6_12_10*(1-'Vurdering af miljøgevinst'!$F$13)+Ethanol_12_10*'Vurdering af miljøgevinst'!$F$13,"IR") -> 2.414596804 | T62: 12 meter | U62: 10 | Z62: 12 meter | AA62: 10 | AF62: 12 meter | AG62: 10 | AL62: 12 meter | AM62: 10 | AR62: 12 meter | AS62: 10 | AX62: 12 meter | AY62: 10 | BD62: 12 meter | BE62: 10 | BJ62: 12 meter | BK62: 10 | BP62: 12 meter | BQ62: 10 | BV62: 12 meter | BW62: 10 | CB62: 12 meter | CC62: 10 | CH62: 12 meter | CI62: 10 | CN62: 12 meter | CO62: 10 | CT62: 12 meter | CU62: 10 | CZ62: 12 meter | DA62: 10 | DF62: 12 meter | DG62: 10 | DL62: 12 meter | DM62: 10 | DR62: 12 meter | DS62: 10 | DX62: 12 meter | DY62: 10 | ED62: 12 meter | EE62: 10 | EJ62: 12 meter | EK62: 10 | EP62: 12 meter | EQ62: 10 | EV62: 12 meter | EW62: 10 | FB62: 12 meter | FC62: 10
B63: =B62+1 -> 11 | C63: 2.448547804 | D63: 2.377230877 | E63: 2.511927651 | F63: 2.278931057 | G63: 2.045320859 | H63: 2.173334268 | I63: 2.350303636 | J63: 1.522069927 | K63: 2.502959643 | O63: 11 | P63: =IF('Vurdering af miljøgevinst'!$A$5="Rute 1",Euro6_12_11*(1-'Vurdering af miljøgevinst'!$B$13)+Biodiesel_12_11*'Vurdering af miljøgevinst'!$B$13,"IR") -> 2.414162345 | Q63: =IF('Vurdering af miljøgevinst'!$A$5="Rute 1",Euro6_12_11*(1-'Vurdering af miljøgevinst'!$B$13)+Ethanol_12_11*'Vurdering af miljøgevinst'!$B$13,"IR") -> 2.124280547 | R63: =IF('Vurdering af miljøgevinst'!$A$5="Rute 1",Euro6_12_11*(1-'Vurdering af miljøgevinst'!$F$13)+Biodiesel_12_11*'Vurdering af miljøgevinst'!$F$13,"IR") -> 2.448547804 | S63: =IF('Vurdering af miljøgevinst'!$A$5="Rute 1",Euro6_12_11*(1-'Vurdering af miljøgevinst'!$F$13)+Ethanol_12_11*'Vurdering af miljøgevinst'!$F$13,"IR") -> 2.448547804 | U63: 11 | AA63: 11 | AG63: 11 | AM63: 11 | AS63: 11 | AY63: 11 | BE63: 11 | BK63: 11 | BQ63: 11 | BW63: 11 | CC63: 11 | CI63: 11 | CO63: 11 | CU63: 11 | DA63: 11 | DG63: 11 | DM63: 11 | DS63: 11 | DY63: 11 | EE63: 11 | EK63: 11 | EQ63: 11 | EW63: 11 | FC63: 11
B64: =B63+1 -> 12 | C64: 2.482498803 | D64: 2.410193012 | E64: 2.53572757 | F64: 2.304905994 | G64: 2.070226819 | H64: 2.193424757 | I64: 2.382634867 | J64: 1.543174598 | K64: 2.537665104 | O64: 12 | P64: =IF('Vurdering af miljøgevinst'!$A$5="Rute 1",Euro6_12_12*(1-'Vurdering af miljøgevinst'!$B$13)+Biodiesel_12_12*'Vurdering af miljøgevinst'!$B$13,"IR") -> 2.447546425 | Q64: =IF('Vurdering af miljøgevinst'!$A$5="Rute 1",Euro6_12_12*(1-'Vurdering af miljøgevinst'!$B$13)+Ethanol_12_12*'Vurdering af miljøgevinst'!$B$13,"IR") -> 2.153735331 | R64: =IF('Vurdering af miljøgevinst'!$A$5="Rute 1",Euro6_12_12*(1-'Vurdering af miljøgevinst'!$F$13)+Biodiesel_12_12*'Vurdering af miljøgevinst'!$F$13,"IR") -> 2.482498803 | S64: =IF('Vurdering af miljøgevinst'!$A$5="Rute 1",Euro6_12_12*(1-'Vurdering af miljøgevinst'!$F$13)+Ethanol_12_12*'Vurdering af miljøgevinst'!$F$13,"IR") -> 2.482498803 | U64: 12 | AA64: 12 | AG64: 12 | AM64: 12 | AS64: 12 | AY64: 12 | BE64: 12 | BK64: 12 | BQ64: 12 | BW64: 12 | CC64: 12 | CI64: 12 | CO64: 12 | CU64: 12 | DA64: 12 | DG64: 12 | DM64: 12 | DS64: 12 | DY64: 12 | EE64: 12 | EK64: 12 | EQ64: 12 | EW64: 12 | FC64: 12
B65: 13 | C65: 2.516449802 | D65: 2.443155147 | E65: 2.55952749 | F65: 2.330880931 | G65: 2.095132779 | H65: 2.213515246 | I65: 2.414959415 | J65: 1.564279268 | K65: 2.572370565 | O65: 13 | P65: =IF('Vurdering af miljøgevinst'!$A$5="Rute 1",Euro6_12_13*(1-'Vurdering af miljøgevinst'!$B$13)+Biodiesel_12_13*'Vurdering af miljøgevinst'!$B$13,"IR") -> 2.480928166 | Q65: =IF('Vurdering af miljøgevinst'!$A$5="Rute 1",Euro6_12_13*(1-'Vurdering af miljøgevinst'!$B$13)+Ethanol_12_13*'Vurdering af miljøgevinst'!$B$13,"IR") -> 2.183190115 | R65: =IF('Vurdering af miljøgevinst'!$A$5="Rute 1",Euro6_12_13*(1-'Vurdering af miljøgevinst'!$F$13)+Biodiesel_12_13*'Vurdering af miljøgevinst'!$F$13,"IR") -> 2.516449802 | S65: =IF('Vurdering af miljøgevinst'!$A$5="Rute 1",Euro6_12_13*(1-'Vurdering af miljøgevinst'!$F$13)+Ethanol_12_13*'Vurdering af miljøgevinst'!$F$13,"IR") -> 2.516449802 | U65: 13 | AA65: 13 | AG65: 13 | AM65: 13 | AS65: 13 | AY65: 13 | BE65: 13 | BK65: 13 | BQ65: 13 | BW65: 13 | CC65: 13 | CI65: 13 | CO65: 13 | CU65: 13 | DA65: 13 | DG65: 13 | DM65: 13 | DS65: 13 | DY65: 13 | EE65: 13 | EK65: 13 | EQ65: 13 | EW65: 13 | FC65: 13
B66: 14 | C66: 2.550400801 | D66: 2.476117282 | E66: 2.583327409 | F66: 2.356855868 | G66: 2.120038739 | H66: 2.233605734 | I66: 2.447277295 | J66: 1.585383939 | K66: 2.607076026 | O66: 14 | P66: =IF('Vurdering af miljøgevinst'!$A$5="Rute 1",Euro6_12_14*(1-'Vurdering af miljøgevinst'!$B$13)+Biodiesel_12_14*'Vurdering af miljøgevinst'!$B$13,"IR") -> 2.514307574 | Q66: =IF('Vurdering af miljøgevinst'!$A$5="Rute 1",Euro6_12_14*(1-'Vurdering af miljøgevinst'!$B$13)+Ethanol_12_14*'Vurdering af miljøgevinst'!$B$13,"IR") -> 2.212644899 | R66: =IF('Vurdering af miljøgevinst'!$A$5="Rute 1",Euro6_12_14*(1-'Vurdering af miljøgevinst'!$F$13)+Biodiesel_12_14*'Vurdering af miljøgevinst'!$F$13,"IR") -> 2.550400801 | S66: =IF('Vurdering af miljøgevinst'!$A$5="Rute 1",Euro6_12_14*(1-'Vurdering af miljøgevinst'!$F$13)+Ethanol_12_14*'Vurdering af miljøgevinst'!$F$13,"IR") -> 2.550400801 | U66: 14 | AA66: 14 | AG66: 14 | AM66: 14 | AS66: 14 | AY66: 14 | BE66: 14 | BK66: 14 | BQ66: 14 | BW66: 14 | CC66: 14 | CI66: 14 | CO66: 14 | CU66: 14 | DA66: 14 | DG66: 14 | DM66: 14 | DS66: 14 | DY66: 14 | EE66: 14 | EK66: 14 | EQ66: 14 | EW66: 14 | FC66: 14
B67: 15 | C67: 2.5843518 | D67: 2.509079417 | E67: 2.607127328 | F67: 2.382830805 | G67: 2.144944699 | H67: 2.253696223 | I67: 2.479588521 | J67: 1.606488609 | K67: 2.641781487 | O67: 15 | P67: =IF('Vurdering af miljøgevinst'!$A$5="Rute 1",Euro6_12_15*(1-'Vurdering af miljøgevinst'!$B$13)+Biodiesel_12_15*'Vurdering af miljøgevinst'!$B$13,"IR") -> 2.547684652 | Q67: =IF('Vurdering af miljøgevinst'!$A$5="Rute 1",Euro6_12_15*(1-'Vurdering af miljøgevinst'!$B$13)+Ethanol_12_15*'Vurdering af miljøgevinst'!$B$13,"IR") -> 2.242099683 | R67: =IF('Vurdering af miljøgevinst'!$A$5="Rute 1",Euro6_12_15*(1-'Vurdering af miljøgevinst'!$F$13)+Biodiesel_12_15*'Vurdering af miljøgevinst'!$F$13,"IR") -> 2.5843518 | S67: =IF('Vurdering af miljøgevinst'!$A$5="Rute 1",Euro6_12_15*(1-'Vurdering af miljøgevinst'!$F$13)+Ethanol_12_15*'Vurdering af miljøgevinst'!$F$13,"IR") -> 2.5843518 | U67: 15 | AA67: 15 | AG67: 15 | AM67: 15 | AS67: 15 | AY67: 15 | BE67: 15 | BK67: 15 | BQ67: 15 | BW67: 15 | CC67: 15 | CI67: 15 | CO67: 15 | CU67: 15 | DA67: 15 | DG67: 15 | DM67: 15 | DS67: 15 | DY67: 15 | EE67: 15 | EK67: 15 | EQ67: 15 | EW67: 15 | FC67: 15
B68: 16 | C68: 2.618302799 | D68: 2.542041552 | E68: 2.630927248 | F68: 2.408805742 | G68: 2.169850659 | H68: 2.273786712 | I68: 2.511893106 | J68: 1.62759328 | K68: 2.676486949 | O68: 16 | P68: =IF('Vurdering af miljøgevinst'!$A$5="Rute 1",Euro6_12_16*(1-'Vurdering af miljøgevinst'!$B$13)+Biodiesel_12_16*'Vurdering af miljøgevinst'!$B$13,"IR") -> 2.581059406 | Q68: =IF('Vurdering af miljøgevinst'!$A$5="Rute 1",Euro6_12_16*(1-'Vurdering af miljøgevinst'!$B$13)+Ethanol_12_16*'Vurdering af miljøgevinst'!$B$13,"IR") -> 2.271554467 | R68: =IF('Vurdering af miljøgevinst'!$A$5="Rute 1",Euro6_12_16*(1-'Vurdering af miljøgevinst'!$F$13)+Biodiesel_12_16*'Vurdering af miljøgevinst'!$F$13,"IR") -> 2.618302799 | S68: =IF('Vurdering af miljøgevinst'!$A$5="Rute 1",Euro6_12_16*(1-'Vurdering af miljøgevinst'!$F$13)+Ethanol_12_16*'Vurdering af miljøgevinst'!$F$13,"IR") -> 2.618302799 | U68: 16 | AA68: 16 | AG68: 16 | AM68: 16 | AS68: 16 | AY68: 16 | BE68: 16 | BK68: 16 | BQ68: 16 | BW68: 16 | CC68: 16 | CI68: 16 | CO68: 16 | CU68: 16 | DA68: 16 | DG68: 16 | DM68: 16 | DS68: 16 | DY68: 16 | EE68: 16 | EK68: 16 | EQ68: 16 | EW68: 16 | FC68: 16
B69: 17 | C69: 2.652253798 | D69: 2.575003687 | E69: 2.654727167 | F69: 2.434780679 | G69: 2.194756619 | H69: 2.2938772 | I69: 2.544191064 | J69: 1.64869795 | K69: 2.71119241 | O69: 17 | P69: =IF('Vurdering af miljøgevinst'!$A$5="Rute 1",Euro6_12_17*(1-'Vurdering af miljøgevinst'!$B$13)+Biodiesel_12_17*'Vurdering af miljøgevinst'!$B$13,"IR") -> 2.614431841 | Q69: =IF('Vurdering af miljøgevinst'!$A$5="Rute 1",Euro6_12_17*(1-'Vurdering af miljøgevinst'!$B$13)+Ethanol_12_17*'Vurdering af miljøgevinst'!$B$13,"IR") -> 2.301009251 | R69: =IF('Vurdering af miljøgevinst'!$A$5="Rute 1",Euro6_12_17*(1-'Vurdering af miljøgevinst'!$F$13)+Biodiesel_12_17*'Vurdering af miljøgevinst'!$F$13,"IR") -> 2.652253798 | S69: =IF('Vurdering af miljøgevinst'!$A$5="Rute 1",Euro6_12_17*(1-'Vurdering af miljøgevinst'!$F$13)+Ethanol_12_17*'Vurdering af miljøgevinst'!$F$13,"IR") -> 2.652253798 | U69: 17 | AA69: 17 | AG69: 17 | AM69: 17 | AS69: 17 | AY69: 17 | BE69: 17 | BK69: 17 | BQ69: 17 | BW69: 17 | CC69: 17 | CI69: 17 | CO69: 17 | CU69: 17 | DA69: 17 | DG69: 17 | DM69: 17 | DS69: 17 | DY69: 17 | EE69: 17 | EK69: 17 | EQ69: 17 | EW69: 17 | FC69: 17
B70: 18 | C70: 2.686204797 | D70: 2.607965822 | E70: 2.678527086 | F70: 2.460755615 | G70: 2.219662579 | H70: 2.313967689 | I70: 2.576482409 | J70: 1.669802621 | K70: 2.745897871 | O70: 18 | P70: =IF('Vurdering af miljøgevinst'!$A$5="Rute 1",Euro6_12_18*(1-'Vurdering af miljøgevinst'!$B$13)+Biodiesel_12_18*'Vurdering af miljøgevinst'!$B$13,"IR") -> 2.647801961 | Q70: =IF('Vurdering af miljøgevinst'!$A$5="Rute 1",Euro6_12_18*(1-'Vurdering af miljøgevinst'!$B$13)+Ethanol_12_18*'Vurdering af miljøgevinst'!$B$13,"IR") -> 2.330464035 | R70: =IF('Vurdering af miljøgevinst'!$A$5="Rute 1",Euro6_12_18*(1-'Vurdering af miljøgevinst'!$F$13)+Biodiesel_12_18*'Vurdering af miljøgevinst'!$F$13,"IR") -> 2.686204797 | S70: =IF('Vurdering af miljøgevinst'!$A$5="Rute 1",Euro6_12_18*(1-'Vurdering af miljøgevinst'!$F$13)+Ethanol_12_18*'Vurdering af miljøgevinst'!$F$13,"IR") -> 2.686204797 | U70: 18 | AA70: 18 | AG70: 18 | AM70: 18 | AS70: 18 | AY70: 18 | BE70: 18 | BK70: 18 | BQ70: 18 | BW70: 18 | CC70: 18 | CI70: 18 | CO70: 18 | CU70: 18 | DA70: 18 | DG70: 18 | DM70: 18 | DS70: 18 | DY70: 18 | EE70: 18 | EK70: 18 | EQ70: 18 | EW70: 18 | FC70: 18
B71: 19 | C71: 2.720155796 | D71: 2.640927957 | E71: 2.702327006 | F71: 2.486730552 | G71: 2.244568539 | H71: 2.334058178 | I71: 2.608767154 | J71: 1.690907291 | K71: 2.780603332 | O71: 19 | P71: =IF('Vurdering af miljøgevinst'!$A$5="Rute 1",Euro6_12_19*(1-'Vurdering af miljøgevinst'!$B$13)+Biodiesel_12_19*'Vurdering af miljøgevinst'!$B$13,"IR") -> 2.681169771 | Q71: =IF('Vurdering af miljøgevinst'!$A$5="Rute 1",Euro6_12_19*(1-'Vurdering af miljøgevinst'!$B$13)+Ethanol_12_19*'Vurdering af miljøgevinst'!$B$13,"IR") -> 2.359918819 | R71: =IF('Vurdering af miljøgevinst'!$A$5="Rute 1",Euro6_12_19*(1-'Vurdering af miljøgevinst'!$F$13)+Biodiesel_12_19*'Vurdering af miljøgevinst'!$F$13,"IR") -> 2.720155796 | S71: =IF('Vurdering af miljøgevinst'!$A$5="Rute 1",Euro6_12_19*(1-'Vurdering af miljøgevinst'!$F$13)+Ethanol_12_19*'Vurdering af miljøgevinst'!$F$13,"IR") -> 2.720155796 | U71: 19 | AA71: 19 | AG71: 19 | AM71: 19 | AS71: 19 | AY71: 19 | BE71: 19 | BK71: 19 | BQ71: 19 | BW71: 19 | CC71: 19 | CI71: 19 | CO71: 19 | CU71: 19 | DA71: 19 | DG71: 19 | DM71: 19 | DS71: 19 | DY71: 19 | EE71: 19 | EK71: 19 | EQ71: 19 | EW71: 19 | FC71: 19
B72: 20 | C72: 2.754106795 | D72: 2.673890092 | E72: 2.726126925 | F72: 2.512705489 | G72: 2.269474499 | H72: 2.354148666 | I72: 2.641045314 | J72: 1.712011962 | K72: 2.815308793 | O72: 20 | P72: =IF('Vurdering af miljøgevinst'!$A$5="Rute 1",Euro6_12_20*(1-'Vurdering af miljøgevinst'!$B$13)+Biodiesel_12_20*'Vurdering af miljøgevinst'!$B$13,"IR") -> 2.714535277 | Q72: =IF('Vurdering af miljøgevinst'!$A$5="Rute 1",Euro6_12_20*(1-'Vurdering af miljøgevinst'!$B$13)+Ethanol_12_20*'Vurdering af miljøgevinst'!$B$13,"IR") -> 2.389373603 | R72: =IF('Vurdering af miljøgevinst'!$A$5="Rute 1",Euro6_12_20*(1-'Vurdering af miljøgevinst'!$F$13)+Biodiesel_12_20*'Vurdering af miljøgevinst'!$F$13,"IR") -> 2.754106795 | S72: =IF('Vurdering af miljøgevinst'!$A$5="Rute 1",Euro6_12_20*(1-'Vurdering af miljøgevinst'!$F$13)+Ethanol_12_20*'Vurdering af miljøgevinst'!$F$13,"IR") -> 2.754106795 | U72: 20 | AA72: 20 | AG72: 20 | AM72: 20 | AS72: 20 | AY72: 20 | BE72: 20 | BK72: 20 | BQ72: 20 | BW72: 20 | CC72: 20 | CI72: 20 | CO72: 20 | CU72: 20 | DA72: 20 | DG72: 20 | DM72: 20 | DS72: 20 | DY72: 20 | EE72: 20 | EK72: 20 | EQ72: 20 | EW72: 20 | FC72: 20
B73: 21 | C73: 2.788057794 | D73: 2.706852227 | E73: 2.749926844 | F73: 2.538680426 | G73: 2.294380459 | H73: 2.374239155 | I73: 2.673316902 | J73: 1.733116632 | K73: 2.850014254 | O73: 21 | P73: =IF('Vurdering af miljøgevinst'!$A$5="Rute 1",Euro6_12_21*(1-'Vurdering af miljøgevinst'!$B$13)+Biodiesel_12_21*'Vurdering af miljøgevinst'!$B$13,"IR") -> 2.747898482 | Q73: =IF('Vurdering af miljøgevinst'!$A$5="Rute 1",Euro6_12_21*(1-'Vurdering af miljøgevinst'!$B$13)+Ethanol_12_21*'Vurdering af miljøgevinst'!$B$13,"IR") -> 2.418828387 | R73: =IF('Vurdering af miljøgevinst'!$A$5="Rute 1",Euro6_12_21*(1-'Vurdering af miljøgevinst'!$F$13)+Biodiesel_12_21*'Vurdering af miljøgevinst'!$F$13,"IR") -> 2.788057794 | S73: =IF('Vurdering af miljøgevinst'!$A$5="Rute 1",Euro6_12_21*(1-'Vurdering af miljøgevinst'!$F$13)+Ethanol_12_21*'Vurdering af miljøgevinst'!$F$13,"IR") -> 2.788057794 | U73: 21 | AA73: 21 | AG73: 21 | AM73: 21 | AS73: 21 | AY73: 21 | BE73: 21 | BK73: 21 | BQ73: 21 | BW73: 21 | CC73: 21 | CI73: 21 | CO73: 21 | CU73: 21 | DA73: 21 | DG73: 21 | DM73: 21 | DS73: 21 | DY73: 21 | EE73: 21 | EK73: 21 | EQ73: 21 | EW73: 21 | FC73: 21
B74: 22 | C74: 2.822008793 | D74: 2.739814362 | E74: 2.773726764 | F74: 2.564655363 | G74: 2.319286419 | H74: 2.394329644 | I74: 2.70558193 | J74: 1.754221303 | K74: 2.884719715 | O74: 22 | P74: =IF('Vurdering af miljøgevinst'!$A$5="Rute 1",Euro6_12_22*(1-'Vurdering af miljøgevinst'!$B$13)+Biodiesel_12_22*'Vurdering af miljøgevinst'!$B$13,"IR") -> 2.781259391 | Q74: =IF('Vurdering af miljøgevinst'!$A$5="Rute 1",Euro6_12_22*(1-'Vurdering af miljøgevinst'!$B$13)+Ethanol_12_22*'Vurdering af miljøgevinst'!$B$13,"IR") -> 2.448283171 | R74: =IF('Vurdering af miljøgevinst'!$A$5="Rute 1",Euro6_12_22*(1-'Vurdering af miljøgevinst'!$F$13)+Biodiesel_12_22*'Vurdering af miljøgevinst'!$F$13,"IR") -> 2.822008793 | S74: =IF('Vurdering af miljøgevinst'!$A$5="Rute 1",Euro6_12_22*(1-'Vurdering af miljøgevinst'!$F$13)+Ethanol_12_22*'Vurdering af miljøgevinst'!$F$13,"IR") -> 2.822008793 | U74: 22 | AA74: 22 | AG74: 22 | AM74: 22 | AS74: 22 | AY74: 22 | BE74: 22 | BK74: 22 | BQ74: 22 | BW74: 22 | CC74: 22 | CI74: 22 | CO74: 22 | CU74: 22 | DA74: 22 | DG74: 22 | DM74: 22 | DS74: 22 | DY74: 22 | EE74: 22 | EK74: 22 | EQ74: 22 | EW74: 22 | FC74: 22
B75: 23 | C75: 2.855959792 | D75: 2.772776497 | E75: 2.797526683 | F75: 2.5906303 | G75: 2.344192379 | H75: 2.414420132 | I75: 2.737840414 | J75: 1.775325973 | K75: 2.919425176 | O75: 23 | P75: =IF('Vurdering af miljøgevinst'!$A$5="Rute 1",Euro6_12_23*(1-'Vurdering af miljøgevinst'!$B$13)+Biodiesel_12_23*'Vurdering af miljøgevinst'!$B$13,"IR") -> 2.81461801 | Q75: =IF('Vurdering af miljøgevinst'!$A$5="Rute 1",Euro6_12_23*(1-'Vurdering af miljøgevinst'!$B$13)+Ethanol_12_23*'Vurdering af miljøgevinst'!$B$13,"IR") -> 2.477737955 | R75: =IF('Vurdering af miljøgevinst'!$A$5="Rute 1",Euro6_12_23*(1-'Vurdering af miljøgevinst'!$F$13)+Biodiesel_12_23*'Vurdering af miljøgevinst'!$F$13,"IR") -> 2.855959792 | S75: =IF('Vurdering af miljøgevinst'!$A$5="Rute 1",Euro6_12_23*(1-'Vurdering af miljøgevinst'!$F$13)+Ethanol_12_23*'Vurdering af miljøgevinst'!$F$13,"IR") -> 2.855959792 | U75: 23 | AA75: 23 | AG75: 23 | AM75: 23 | AS75: 23 | AY75: 23 | BE75: 23 | BK75: 23 | BQ75: 23 | BW75: 23 | CC75: 23 | CI75: 23 | CO75: 23 | CU75: 23 | DA75: 23 | DG75: 23 | DM75: 23 | DS75: 23 | DY75: 23 | EE75: 23 | EK75: 23 | EQ75: 23 | EW75: 23 | FC75: 23
B76: 24 | C76: 2.889910791 | D76: 2.805738632 | E76: 2.821326602 | F76: 2.616605237 | G76: 2.369098339 | H76: 2.434510621 | I76: 2.770092367 | J76: 1.796430644 | K76: 2.954130637 | O76: 24 | P76: =IF('Vurdering af miljøgevinst'!$A$5="Rute 1",Euro6_12_24*(1-'Vurdering af miljøgevinst'!$B$13)+Biodiesel_12_24*'Vurdering af miljøgevinst'!$B$13,"IR") -> 2.847974343 | Q76: =IF('Vurdering af miljøgevinst'!$A$5="Rute 1",Euro6_12_24*(1-'Vurdering af miljøgevinst'!$B$13)+Ethanol_12_24*'Vurdering af miljøgevinst'!$B$13,"IR") -> 2.50719274 | R76: =IF('Vurdering af miljøgevinst'!$A$5="Rute 1",Euro6_12_24*(1-'Vurdering af miljøgevinst'!$F$13)+Biodiesel_12_24*'Vurdering af miljøgevinst'!$F$13,"IR") -> 2.889910791 | S76: =IF('Vurdering af miljøgevinst'!$A$5="Rute 1",Euro6_12_24*(1-'Vurdering af miljøgevinst'!$F$13)+Ethanol_12_24*'Vurdering af miljøgevinst'!$F$13,"IR") -> 2.889910791 | U76: 24 | AA76: 24 | AG76: 24 | AM76: 24 | AS76: 24 | AY76: 24 | BE76: 24 | BK76: 24 | BQ76: 24 | BW76: 24 | CC76: 24 | CI76: 24 | CO76: 24 | CU76: 24 | DA76: 24 | DG76: 24 | DM76: 24 | DS76: 24 | DY76: 24 | EE76: 24 | EK76: 24 | EQ76: 24 | EW76: 24 | FC76: 24
B77: 25 | C77: 2.92386179 | D77: 2.838700767 | E77: 2.845126522 | F77: 2.642580174 | G77: 2.394004299 | H77: 2.45460111 | I77: 2.802337801 | J77: 1.817535314 | K77: 2.988836098 | O77: 25 | P77: =IF('Vurdering af miljøgevinst'!$A$5="Rute 1",Euro6_12_25*(1-'Vurdering af miljøgevinst'!$B$13)+Biodiesel_12_25*'Vurdering af miljøgevinst'!$B$13,"IR") -> 2.881328394 | Q77: =IF('Vurdering af miljøgevinst'!$A$5="Rute 1",Euro6_12_25*(1-'Vurdering af miljøgevinst'!$B$13)+Ethanol_12_25*'Vurdering af miljøgevinst'!$B$13,"IR") -> 2.536647524 | R77: =IF('Vurdering af miljøgevinst'!$A$5="Rute 1",Euro6_12_25*(1-'Vurdering af miljøgevinst'!$F$13)+Biodiesel_12_25*'Vurdering af miljøgevinst'!$F$13,"IR") -> 2.92386179 | S77: =IF('Vurdering af miljøgevinst'!$A$5="Rute 1",Euro6_12_25*(1-'Vurdering af miljøgevinst'!$F$13)+Ethanol_12_25*'Vurdering af miljøgevinst'!$F$13,"IR") -> 2.92386179 | U77: 25 | AA77: 25 | AG77: 25 | AM77: 25 | AS77: 25 | AY77: 25 | BE77: 25 | BK77: 25 | BQ77: 25 | BW77: 25 | CC77: 25 | CI77: 25 | CO77: 25 | CU77: 25 | DA77: 25 | DG77: 25 | DM77: 25 | DS77: 25 | DY77: 25 | EE77: 25 | EK77: 25 | EQ77: 25 | EW77: 25 | FC77: 25
B78: 26 | C78: 2.957812789 | D78: 2.871662902 | E78: 2.868926441 | F78: 2.668555111 | G78: 2.418910259 | H78: 2.474691598 | I78: 2.834576731 | J78: 1.838639985 | K78: 3.023541559 | O78: 26 | P78: =IF('Vurdering af miljøgevinst'!$A$5="Rute 1",Euro6_12_26*(1-'Vurdering af miljøgevinst'!$B$13)+Biodiesel_12_26*'Vurdering af miljøgevinst'!$B$13,"IR") -> 2.914680169 | Q78: =IF('Vurdering af miljøgevinst'!$A$5="Rute 1",Euro6_12_26*(1-'Vurdering af miljøgevinst'!$B$13)+Ethanol_12_26*'Vurdering af miljøgevinst'!$B$13,"IR") -> 2.566102308 | R78: =IF('Vurdering af miljøgevinst'!$A$5="Rute 1",Euro6_12_26*(1-'Vurdering af miljøgevinst'!$F$13)+Biodiesel_12_26*'Vurdering af miljøgevinst'!$F$13,"IR") -> 2.957812789 | S78: =IF('Vurdering af miljøgevinst'!$A$5="Rute 1",Euro6_12_26*(1-'Vurdering af miljøgevinst'!$F$13)+Ethanol_12_26*'Vurdering af miljøgevinst'!$F$13,"IR") -> 2.957812789 | U78: 26 | AA78: 26 | AG78: 26 | AM78: 26 | AS78: 26 | AY78: 26 | BE78: 26 | BK78: 26 | BQ78: 26 | BW78: 26 | CC78: 26 | CI78: 26 | CO78: 26 | CU78: 26 | DA78: 26 | DG78: 26 | DM78: 26 | DS78: 26 | DY78: 26 | EE78: 26 | EK78: 26 | EQ78: 26 | EW78: 26 | FC78: 26
B79: 27 | C79: 2.991763788 | D79: 2.904625037 | E79: 2.89272636 | F79: 2.694530048 | G79: 2.443816219 | H79: 2.494782087 | I79: 2.866809169 | J79: 1.859744655 | K79: 3.05824702 | O79: 27 | P79: =IF('Vurdering af miljøgevinst'!$A$5="Rute 1",Euro6_12_27*(1-'Vurdering af miljøgevinst'!$B$13)+Biodiesel_12_27*'Vurdering af miljøgevinst'!$B$13,"IR") -> 2.948029671 | Q79: =IF('Vurdering af miljøgevinst'!$A$5="Rute 1",Euro6_12_27*(1-'Vurdering af miljøgevinst'!$B$13)+Ethanol_12_27*'Vurdering af miljøgevinst'!$B$13,"IR") -> 2.595557092 | R79: =IF('Vurdering af miljøgevinst'!$A$5="Rute 1",Euro6_12_27*(1-'Vurdering af miljøgevinst'!$F$13)+Biodiesel_12_27*'Vurdering af miljøgevinst'!$F$13,"IR") -> 2.991763788 | S79: =IF('Vurdering af miljøgevinst'!$A$5="Rute 1",Euro6_12_27*(1-'Vurdering af miljøgevinst'!$F$13)+Ethanol_12_27*'Vurdering af miljøgevinst'!$F$13,"IR") -> 2.991763788 | U79: 27 | AA79: 27 | AG79: 27 | AM79: 27 | AS79: 27 | AY79: 27 | BE79: 27 | BK79: 27 | BQ79: 27 | BW79: 27 | CC79: 27 | CI79: 27 | CO79: 27 | CU79: 27 | DA79: 27 | DG79: 27 | DM79: 27 | DS79: 27 | DY79: 27 | EE79: 27 | EK79: 27 | EQ79: 27 | EW79: 27 | FC79: 27
B80: 28 | C80: 3.025714787 | D80: 2.937587172 | E80: 2.91652628 | F80: 2.720504984 | G80: 2.468722179 | H80: 2.514872576 | I80: 2.89903513 | J80: 1.880849326 | K80: 3.092952481 | O80: 28 | P80: =IF('Vurdering af miljøgevinst'!$A$5="Rute 1",Euro6_12_28*(1-'Vurdering af miljøgevinst'!$B$13)+Biodiesel_12_28*'Vurdering af miljøgevinst'!$B$13,"IR") -> 2.981376907 | Q80: =IF('Vurdering af miljøgevinst'!$A$5="Rute 1",Euro6_12_28*(1-'Vurdering af miljøgevinst'!$B$13)+Ethanol_12_28*'Vurdering af miljøgevinst'!$B$13,"IR") -> 2.625011876 | R80: =IF('Vurdering af miljøgevinst'!$A$5="Rute 1",Euro6_12_28*(1-'Vurdering af miljøgevinst'!$F$13)+Biodiesel_12_28*'Vurdering af miljøgevinst'!$F$13,"IR") -> 3.025714787 | S80: =IF('Vurdering af miljøgevinst'!$A$5="Rute 1",Euro6_12_28*(1-'Vurdering af miljøgevinst'!$F$13)+Ethanol_12_28*'Vurdering af miljøgevinst'!$F$13,"IR") -> 3.025714787 | U80: 28 | AA80: 28 | AG80: 28 | AM80: 28 | AS80: 28 | AY80: 28 | BE80: 28 | BK80: 28 | BQ80: 28 | BW80: 28 | CC80: 28 | CI80: 28 | CO80: 28 | CU80: 28 | DA80: 28 | DG80: 28 | DM80: 28 | DS80: 28 | DY80: 28 | EE80: 28 | EK80: 28 | EQ80: 28 | EW80: 28 | FC80: 28
B81: 29 | C81: 3.059665786 | D81: 2.970549307 | E81: 2.940326199 | F81: 2.746479921 | G81: 2.493628139 | H81: 2.534963064 | I81: 2.931254626 | J81: 1.901953996 | K81: 3.127657942 | O81: 29 | P81: =IF('Vurdering af miljøgevinst'!$A$5="Rute 1",Euro6_12_29*(1-'Vurdering af miljøgevinst'!$B$13)+Biodiesel_12_29*'Vurdering af miljøgevinst'!$B$13,"IR") -> 3.01472188 | Q81: =IF('Vurdering af miljøgevinst'!$A$5="Rute 1",Euro6_12_29*(1-'Vurdering af miljøgevinst'!$B$13)+Ethanol_12_29*'Vurdering af miljøgevinst'!$B$13,"IR") -> 2.65446666 | R81: =IF('Vurdering af miljøgevinst'!$A$5="Rute 1",Euro6_12_29*(1-'Vurdering af miljøgevinst'!$F$13)+Biodiesel_12_29*'Vurdering af miljøgevinst'!$F$13,"IR") -> 3.059665786 | S81: =IF('Vurdering af miljøgevinst'!$A$5="Rute 1",Euro6_12_29*(1-'Vurdering af miljøgevinst'!$F$13)+Ethanol_12_29*'Vurdering af miljøgevinst'!$F$13,"IR") -> 3.059665786 | U81: 29 | AA81: 29 | AG81: 29 | AM81: 29 | AS81: 29 | AY81: 29 | BE81: 29 | BK81: 29 | BQ81: 29 | BW81: 29 | CC81: 29 | CI81: 29 | CO81: 29 | CU81: 29 | DA81: 29 | DG81: 29 | DM81: 29 | DS81: 29 | DY81: 29 | EE81: 29 | EK81: 29 | EQ81: 29 | EW81: 29 | FC81: 29
B82: 30 | C82: 3.093616785 | D82: 3.003511442 | E82: 2.964126118 | F82: 2.772454858 | G82: 2.518534099 | H82: 2.555053553 | I82: 2.963467671 | J82: 1.923058667 | K82: 3.162363403 | O82: 30 | P82: =IF('Vurdering af miljøgevinst'!$A$5="Rute 1",Euro6_12_30*(1-'Vurdering af miljøgevinst'!$B$13)+Biodiesel_12_30*'Vurdering af miljøgevinst'!$B$13,"IR") -> 3.048064595 | Q82: =IF('Vurdering af miljøgevinst'!$A$5="Rute 1",Euro6_12_30*(1-'Vurdering af miljøgevinst'!$B$13)+Ethanol_12_30*'Vurdering af miljøgevinst'!$B$13,"IR") -> 2.683921444 | R82: =IF('Vurdering af miljøgevinst'!$A$5="Rute 1",Euro6_12_30*(1-'Vurdering af miljøgevinst'!$F$13)+Biodiesel_12_30*'Vurdering af miljøgevinst'!$F$13,"IR") -> 3.093616785 | S82: =IF('Vurdering af miljøgevinst'!$A$5="Rute 1",Euro6_12_30*(1-'Vurdering af miljøgevinst'!$F$13)+Ethanol_12_30*'Vurdering af miljøgevinst'!$F$13,"IR") -> 3.093616785 | U82: 30 | AA82: 30 | AG82: 30 | AM82: 30 | AS82: 30 | AY82: 30 | BE82: 30 | BK82: 30 | BQ82: 30 | BW82: 30 | CC82: 30 | CI82: 30 | CO82: 30 | CU82: 30 | DA82: 30 | DG82: 30 | DM82: 30 | DS82: 30 | DY82: 30 | EE82: 30 | EK82: 30 | EQ82: 30 | EW82: 30 | FC82: 30
B83: 31 | C83: 3.127567784 | D83: 3.036473577 | E83: 2.987926038 | F83: 2.798429795 | G83: 2.543440059 | H83: 2.575144042 | I83: 2.995674277 | J83: 1.944163337 | K83: 3.197068864 | O83: 31 | P83: =IF('Vurdering af miljøgevinst'!$A$5="Rute 1",Euro6_12_31*(1-'Vurdering af miljøgevinst'!$B$13)+Biodiesel_12_31*'Vurdering af miljøgevinst'!$B$13,"IR") -> 3.081405057 | Q83: =IF('Vurdering af miljøgevinst'!$A$5="Rute 1",Euro6_12_31*(1-'Vurdering af miljøgevinst'!$B$13)+Ethanol_12_31*'Vurdering af miljøgevinst'!$B$13,"IR") -> 2.713376228 | R83: =IF('Vurdering af miljøgevinst'!$A$5="Rute 1",Euro6_12_31*(1-'Vurdering af miljøgevinst'!$F$13)+Biodiesel_12_31*'Vurdering af miljøgevinst'!$F$13,"IR") -> 3.127567784 | S83: =IF('Vurdering af miljøgevinst'!$A$5="Rute 1",Euro6_12_31*(1-'Vurdering af miljøgevinst'!$F$13)+Ethanol_12_31*'Vurdering af miljøgevinst'!$F$13,"IR") -> 3.127567784 | U83: 31 | AA83: 31 | AG83: 31 | AM83: 31 | AS83: 31 | AY83: 31 | BE83: 31 | BK83: 31 | BQ83: 31 | BW83: 31 | CC83: 31 | CI83: 31 | CO83: 31 | CU83: 31 | DA83: 31 | DG83: 31 | DM83: 31 | DS83: 31 | DY83: 31 | EE83: 31 | EK83: 31 | EQ83: 31 | EW83: 31 | FC83: 31
B84: 32 | C84: 3.161518783 | D84: 3.069435712 | E84: 3.011725957 | F84: 2.824404732 | G84: 2.56834602 | H84: 2.59523453 | I84: 3.027874459 | J84: 1.965268008 | K84: 3.231774325 | O84: 32 | P84: =IF('Vurdering af miljøgevinst'!$A$5="Rute 1",Euro6_12_32*(1-'Vurdering af miljøgevinst'!$B$13)+Biodiesel_12_32*'Vurdering af miljøgevinst'!$B$13,"IR") -> 3.11474327 | Q84: =IF('Vurdering af miljøgevinst'!$A$5="Rute 1",Euro6_12_32*(1-'Vurdering af miljøgevinst'!$B$13)+Ethanol_12_32*'Vurdering af miljøgevinst'!$B$13,"IR") -> 2.742831012 | R84: =IF('Vurdering af miljøgevinst'!$A$5="Rute 1",Euro6_12_32*(1-'Vurdering af miljøgevinst'!$F$13)+Biodiesel_12_32*'Vurdering af miljøgevinst'!$F$13,"IR") -> 3.161518783 | S84: =IF('Vurdering af miljøgevinst'!$A$5="Rute 1",Euro6_12_32*(1-'Vurdering af miljøgevinst'!$F$13)+Ethanol_12_32*'Vurdering af miljøgevinst'!$F$13,"IR") -> 3.161518783 | U84: 32 | AA84: 32 | AG84: 32 | AM84: 32 | AS84: 32 | AY84: 32 | BE84: 32 | BK84: 32 | BQ84: 32 | BW84: 32 | CC84: 32 | CI84: 32 | CO84: 32 | CU84: 32 | DA84: 32 | DG84: 32 | DM84: 32 | DS84: 32 | DY84: 32 | EE84: 32 | EK84: 32 | EQ84: 32 | EW84: 32 | FC84: 32
B85: 33 | C85: 3.195469782 | D85: 3.102397847 | E85: 3.035525876 | F85: 2.850379669 | G85: 2.59325198 | H85: 2.615325019 | I85: 3.06006823 | J85: 1.986372679 | K85: 3.266479787 | O85: 33 | P85: =IF('Vurdering af miljøgevinst'!$A$5="Rute 1",Euro6_12_33*(1-'Vurdering af miljøgevinst'!$B$13)+Biodiesel_12_33*'Vurdering af miljøgevinst'!$B$13,"IR") -> 3.148079239 | Q85: =IF('Vurdering af miljøgevinst'!$A$5="Rute 1",Euro6_12_33*(1-'Vurdering af miljøgevinst'!$B$13)+Ethanol_12_33*'Vurdering af miljøgevinst'!$B$13,"IR") -> 2.772285796 | R85: =IF('Vurdering af miljøgevinst'!$A$5="Rute 1",Euro6_12_33*(1-'Vurdering af miljøgevinst'!$F$13)+Biodiesel_12_33*'Vurdering af miljøgevinst'!$F$13,"IR") -> 3.195469782 | S85: =IF('Vurdering af miljøgevinst'!$A$5="Rute 1",Euro6_12_33*(1-'Vurdering af miljøgevinst'!$F$13)+Ethanol_12_33*'Vurdering af miljøgevinst'!$F$13,"IR") -> 3.195469782 | U85: 33 | AA85: 33 | AG85: 33 | AM85: 33 | AS85: 33 | AY85: 33 | BE85: 33 | BK85: 33 | BQ85: 33 | BW85: 33 | CC85: 33 | CI85: 33 | CO85: 33 | CU85: 33 | DA85: 33 | DG85: 33 | DM85: 33 | DS85: 33 | DY85: 33 | EE85: 33 | EK85: 33 | EQ85: 33 | EW85: 33 | FC85: 33
B86: 34 | C86: 3.229420781 | D86: 3.135359982 | E86: 3.059325796 | F86: 2.876354606 | G86: 2.61815794 | H86: 2.635415508 | I86: 3.092255602 | J86: 2.007477349 | K86: 3.301185248 | O86: 34 | P86: =IF('Vurdering af miljøgevinst'!$A$5="Rute 1",Euro6_12_34*(1-'Vurdering af miljøgevinst'!$B$13)+Biodiesel_12_34*'Vurdering af miljøgevinst'!$B$13,"IR") -> 3.181412969 | Q86: =IF('Vurdering af miljøgevinst'!$A$5="Rute 1",Euro6_12_34*(1-'Vurdering af miljøgevinst'!$B$13)+Ethanol_12_34*'Vurdering af miljøgevinst'!$B$13,"IR") -> 2.80174058 | R86: =IF('Vurdering af miljøgevinst'!$A$5="Rute 1",Euro6_12_34*(1-'Vurdering af miljøgevinst'!$F$13)+Biodiesel_12_34*'Vurdering af miljøgevinst'!$F$13,"IR") -> 3.229420781 | S86: =IF('Vurdering af miljøgevinst'!$A$5="Rute 1",Euro6_12_34*(1-'Vurdering af miljøgevinst'!$F$13)+Ethanol_12_34*'Vurdering af miljøgevinst'!$F$13,"IR") -> 3.229420781 | U86: 34 | AA86: 34 | AG86: 34 | AM86: 34 | AS86: 34 | AY86: 34 | BE86: 34 | BK86: 34 | BQ86: 34 | BW86: 34 | CC86: 34 | CI86: 34 | CO86: 34 | CU86: 34 | DA86: 34 | DG86: 34 | DM86: 34 | DS86: 34 | DY86: 34 | EE86: 34 | EK86: 34 | EQ86: 34 | EW86: 34 | FC86: 34
B87: 35 | C87: 3.263371781 | D87: 3.168322117 | E87: 3.083125715 | F87: 2.902329543 | G87: 2.6430639 | H87: 2.655505996 | I87: 3.124436589 | J87: 2.02858202 | K87: 3.335890709 | O87: 35 | P87: =IF('Vurdering af miljøgevinst'!$A$5="Rute 1",Euro6_12_35*(1-'Vurdering af miljøgevinst'!$B$13)+Biodiesel_12_35*'Vurdering af miljøgevinst'!$B$13,"IR") -> 3.214744463 | Q87: =IF('Vurdering af miljøgevinst'!$A$5="Rute 1",Euro6_12_35*(1-'Vurdering af miljøgevinst'!$B$13)+Ethanol_12_35*'Vurdering af miljøgevinst'!$B$13,"IR") -> 2.831195364 | R87: =IF('Vurdering af miljøgevinst'!$A$5="Rute 1",Euro6_12_35*(1-'Vurdering af miljøgevinst'!$F$13)+Biodiesel_12_35*'Vurdering af miljøgevinst'!$F$13,"IR") -> 3.263371781 | S87: =IF('Vurdering af miljøgevinst'!$A$5="Rute 1",Euro6_12_35*(1-'Vurdering af miljøgevinst'!$F$13)+Ethanol_12_35*'Vurdering af miljøgevinst'!$F$13,"IR") -> 3.263371781 | U87: 35 | AA87: 35 | AG87: 35 | AM87: 35 | AS87: 35 | AY87: 35 | BE87: 35 | BK87: 35 | BQ87: 35 | BW87: 35 | CC87: 35 | CI87: 35 | CO87: 35 | CU87: 35 | DA87: 35 | DG87: 35 | DM87: 35 | DS87: 35 | DY87: 35 | EE87: 35 | EK87: 35 | EQ87: 35 | EW87: 35 | FC87: 35
B88: 36 | C88: 3.29732278 | D88: 3.201284252 | E88: 3.106925634 | F88: 2.92830448 | G88: 2.66796986 | H88: 2.675596485 | I88: 3.156611203 | J88: 2.04968669 | K88: 3.37059617 | O88: 36 | P88: =IF('Vurdering af miljøgevinst'!$A$5="Rute 1",Euro6_12_36*(1-'Vurdering af miljøgevinst'!$B$13)+Biodiesel_12_36*'Vurdering af miljøgevinst'!$B$13,"IR") -> 3.248073728 | Q88: =IF('Vurdering af miljøgevinst'!$A$5="Rute 1",Euro6_12_36*(1-'Vurdering af miljøgevinst'!$B$13)+Ethanol_12_36*'Vurdering af miljøgevinst'!$B$13,"IR") -> 2.860650148 | R88: =IF('Vurdering af miljøgevinst'!$A$5="Rute 1",Euro6_12_36*(1-'Vurdering af miljøgevinst'!$F$13)+Biodiesel_12_36*'Vurdering af miljøgevinst'!$F$13,"IR") -> 3.29732278 | S88: =IF('Vurdering af miljøgevinst'!$A$5="Rute 1",Euro6_12_36*(1-'Vurdering af miljøgevinst'!$F$13)+Ethanol_12_36*'Vurdering af miljøgevinst'!$F$13,"IR") -> 3.29732278 | U88: 36 | AA88: 36 | AG88: 36 | AM88: 36 | AS88: 36 | AY88: 36 | BE88: 36 | BK88: 36 | BQ88: 36 | BW88: 36 | CC88: 36 | CI88: 36 | CO88: 36 | CU88: 36 | DA88: 36 | DG88: 36 | DM88: 36 | DS88: 36 | DY88: 36 | EE88: 36 | EK88: 36 | EQ88: 36 | EW88: 36 | FC88: 36
B89: 37 | C89: 3.331273779 | D89: 3.234246387 | E89: 3.130725554 | F89: 2.954279417 | G89: 2.69287582 | H89: 2.695686974 | I89: 3.188779458 | J89: 2.070791361 | K89: 3.405301631 | O89: 37 | P89: =IF('Vurdering af miljøgevinst'!$A$5="Rute 1",Euro6_12_37*(1-'Vurdering af miljøgevinst'!$B$13)+Biodiesel_12_37*'Vurdering af miljøgevinst'!$B$13,"IR") -> 3.281400766 | Q89: =IF('Vurdering af miljøgevinst'!$A$5="Rute 1",Euro6_12_37*(1-'Vurdering af miljøgevinst'!$B$13)+Ethanol_12_37*'Vurdering af miljøgevinst'!$B$13,"IR") -> 2.890104932 | R89: =IF('Vurdering af miljøgevinst'!$A$5="Rute 1",Euro6_12_37*(1-'Vurdering af miljøgevinst'!$F$13)+Biodiesel_12_37*'Vurdering af miljøgevinst'!$F$13,"IR") -> 3.331273779 | S89: =IF('Vurdering af miljøgevinst'!$A$5="Rute 1",Euro6_12_37*(1-'Vurdering af miljøgevinst'!$F$13)+Ethanol_12_37*'Vurdering af miljøgevinst'!$F$13,"IR") -> 3.331273779 | U89: 37 | AA89: 37 | AG89: 37 | AM89: 37 | AS89: 37 | AY89: 37 | BE89: 37 | BK89: 37 | BQ89: 37 | BW89: 37 | CC89: 37 | CI89: 37 | CO89: 37 | CU89: 37 | DA89: 37 | DG89: 37 | DM89: 37 | DS89: 37 | DY89: 37 | EE89: 37 | EK89: 37 | EQ89: 37 | EW89: 37 | FC89: 37
B90: 38 | C90: 3.365224778 | D90: 3.267208522 | E90: 3.154525473 | F90: 2.980254353 | G90: 2.71778178 | H90: 2.715777462 | I90: 3.220941367 | J90: 2.091896031 | K90: 3.440007092 | O90: 38 | P90: =IF('Vurdering af miljøgevinst'!$A$5="Rute 1",Euro6_12_38*(1-'Vurdering af miljøgevinst'!$B$13)+Biodiesel_12_38*'Vurdering af miljøgevinst'!$B$13,"IR") -> 3.314725584 | Q90: =IF('Vurdering af miljøgevinst'!$A$5="Rute 1",Euro6_12_38*(1-'Vurdering af miljøgevinst'!$B$13)+Ethanol_12_38*'Vurdering af miljøgevinst'!$B$13,"IR") -> 2.919559716 | R90: =IF('Vurdering af miljøgevinst'!$A$5="Rute 1",Euro6_12_38*(1-'Vurdering af miljøgevinst'!$F$13)+Biodiesel_12_38*'Vurdering af miljøgevinst'!$F$13,"IR") -> 3.365224778 | S90: =IF('Vurdering af miljøgevinst'!$A$5="Rute 1",Euro6_12_38*(1-'Vurdering af miljøgevinst'!$F$13)+Ethanol_12_38*'Vurdering af miljøgevinst'!$F$13,"IR") -> 3.365224778 | U90: 38 | AA90: 38 | AG90: 38 | AM90: 38 | AS90: 38 | AY90: 38 | BE90: 38 | BK90: 38 | BQ90: 38 | BW90: 38 | CC90: 38 | CI90: 38 | CO90: 38 | CU90: 38 | DA90: 38 | DG90: 38 | DM90: 38 | DS90: 38 | DY90: 38 | EE90: 38 | EK90: 38 | EQ90: 38 | EW90: 38 | FC90: 38
B91: 39 | C91: 3.399175777 | D91: 3.300170657 | E91: 3.178325392 | F91: 3.00622929 | G91: 2.74268774 | H91: 2.735867951 | I91: 3.253096943 | J91: 2.113000702 | K91: 3.474712553 | O91: 39 | P91: =IF('Vurdering af miljøgevinst'!$A$5="Rute 1",Euro6_12_39*(1-'Vurdering af miljøgevinst'!$B$13)+Biodiesel_12_39*'Vurdering af miljøgevinst'!$B$13,"IR") -> 3.348048185 | Q91: =IF('Vurdering af miljøgevinst'!$A$5="Rute 1",Euro6_12_39*(1-'Vurdering af miljøgevinst'!$B$13)+Ethanol_12_39*'Vurdering af miljøgevinst'!$B$13,"IR") -> 2.9490145 | R91: =IF('Vurdering af miljøgevinst'!$A$5="Rute 1",Euro6_12_39*(1-'Vurdering af miljøgevinst'!$F$13)+Biodiesel_12_39*'Vurdering af miljøgevinst'!$F$13,"IR") -> 3.399175777 | S91: =IF('Vurdering af miljøgevinst'!$A$5="Rute 1",Euro6_12_39*(1-'Vurdering af miljøgevinst'!$F$13)+Ethanol_12_39*'Vurdering af miljøgevinst'!$F$13,"IR") -> 3.399175777 | U91: 39 | AA91: 39 | AG91: 39 | AM91: 39 | AS91: 39 | AY91: 39 | BE91: 39 | BK91: 39 | BQ91: 39 | BW91: 39 | CC91: 39 | CI91: 39 | CO91: 39 | CU91: 39 | DA91: 39 | DG91: 39 | DM91: 39 | DS91: 39 | DY91: 39 | EE91: 39 | EK91: 39 | EQ91: 39 | EW91: 39 | FC91: 39
B92: 40 | C92: 3.433126776 | D92: 3.333132792 | E92: 3.202125312 | F92: 3.032204227 | G92: 2.7675937 | H92: 2.75595844 | I92: 3.285246199 | J92: 2.134105372 | K92: 3.509418014 | O92: 40 | P92: =IF('Vurdering af miljøgevinst'!$A$5="Rute 1",Euro6_12_40*(1-'Vurdering af miljøgevinst'!$B$13)+Biodiesel_12_40*'Vurdering af miljøgevinst'!$B$13,"IR") -> 3.381368574 | Q92: =IF('Vurdering af miljøgevinst'!$A$5="Rute 1",Euro6_12_40*(1-'Vurdering af miljøgevinst'!$B$13)+Ethanol_12_40*'Vurdering af miljøgevinst'!$B$13,"IR") -> 2.978469284 | R92: =IF('Vurdering af miljøgevinst'!$A$5="Rute 1",Euro6_12_40*(1-'Vurdering af miljøgevinst'!$F$13)+Biodiesel_12_40*'Vurdering af miljøgevinst'!$F$13,"IR") -> 3.433126776 | S92: =IF('Vurdering af miljøgevinst'!$A$5="Rute 1",Euro6_12_40*(1-'Vurdering af miljøgevinst'!$F$13)+Ethanol_12_40*'Vurdering af miljøgevinst'!$F$13,"IR") -> 3.433126776 | U92: 40 | AA92: 40 | AG92: 40 | AM92: 40 | AS92: 40 | AY92: 40 | BE92: 40 | BK92: 40 | BQ92: 40 | BW92: 40 | CC92: 40 | CI92: 40 | CO92: 40 | CU92: 40 | DA92: 40 | DG92: 40 | DM92: 40 | DS92: 40 | DY92: 40 | EE92: 40 | EK92: 40 | EQ92: 40 | EW92: 40 | FC92: 40
B93: 41 | C93: 3.467077775 | D93: 3.366094927 | E93: 3.225925231 | F93: 3.058179164 | G93: 2.79249966 | H93: 2.776048928 | I93: 3.317389147 | J93: 2.155210043 | K93: 3.544123475 | O93: 41 | P93: =IF('Vurdering af miljøgevinst'!$A$5="Rute 1",Euro6_12_41*(1-'Vurdering af miljøgevinst'!$B$13)+Biodiesel_12_41*'Vurdering af miljøgevinst'!$B$13,"IR") -> 3.414686755 | Q93: =IF('Vurdering af miljøgevinst'!$A$5="Rute 1",Euro6_12_41*(1-'Vurdering af miljøgevinst'!$B$13)+Ethanol_12_41*'Vurdering af miljøgevinst'!$B$13,"IR") -> 3.007924069 | R93: =IF('Vurdering af miljøgevinst'!$A$5="Rute 1",Euro6_12_41*(1-'Vurdering af miljøgevinst'!$F$13)+Biodiesel_12_41*'Vurdering af miljøgevinst'!$F$13,"IR") -> 3.467077775 | S93: =IF('Vurdering af miljøgevinst'!$A$5="Rute 1",Euro6_12_41*(1-'Vurdering af miljøgevinst'!$F$13)+Ethanol_12_41*'Vurdering af miljøgevinst'!$F$13,"IR") -> 3.467077775 | U93: 41 | AA93: 41 | AG93: 41 | AM93: 41 | AS93: 41 | AY93: 41 | BE93: 41 | BK93: 41 | BQ93: 41 | BW93: 41 | CC93: 41 | CI93: 41 | CO93: 41 | CU93: 41 | DA93: 41 | DG93: 41 | DM93: 41 | DS93: 41 | DY93: 41 | EE93: 41 | EK93: 41 | EQ93: 41 | EW93: 41 | FC93: 41
B94: 42 | C94: 3.501028774 | D94: 3.399057062 | E94: 3.24972515 | F94: 3.084154101 | G94: 2.81740562 | H94: 2.796139417 | I94: 3.3495258 | J94: 2.176314713 | K94: 3.578828936 | O94: 42 | P94: =IF('Vurdering af miljøgevinst'!$A$5="Rute 1",Euro6_12_42*(1-'Vurdering af miljøgevinst'!$B$13)+Biodiesel_12_42*'Vurdering af miljøgevinst'!$B$13,"IR") -> 3.448002733 | Q94: =IF('Vurdering af miljøgevinst'!$A$5="Rute 1",Euro6_12_42*(1-'Vurdering af miljøgevinst'!$B$13)+Ethanol_12_42*'Vurdering af miljøgevinst'!$B$13,"IR") -> 3.037378853 | R94: =IF('Vurdering af miljøgevinst'!$A$5="Rute 1",Euro6_12_42*(1-'Vurdering af miljøgevinst'!$F$13)+Biodiesel_12_42*'Vurdering af miljøgevinst'!$F$13,"IR") -> 3.501028774 | S94: =IF('Vurdering af miljøgevinst'!$A$5="Rute 1",Euro6_12_42*(1-'Vurdering af miljøgevinst'!$F$13)+Ethanol_12_42*'Vurdering af miljøgevinst'!$F$13,"IR") -> 3.501028774 | U94: 42 | AA94: 42 | AG94: 42 | AM94: 42 | AS94: 42 | AY94: 42 | BE94: 42 | BK94: 42 | BQ94: 42 | BW94: 42 | CC94: 42 | CI94: 42 | CO94: 42 | CU94: 42 | DA94: 42 | DG94: 42 | DM94: 42 | DS94: 42 | DY94: 42 | EE94: 42 | EK94: 42 | EQ94: 42 | EW94: 42 | FC94: 42
B95: 43 | C95: 3.534979773 | D95: 3.432019197 | E95: 3.27352507 | F95: 3.110129038 | G95: 2.84231158 | H95: 2.816229906 | I95: 3.381656172 | J95: 2.197419384 | K95: 3.613534397 | O95: 43 | P95: =IF('Vurdering af miljøgevinst'!$A$5="Rute 1",Euro6_12_43*(1-'Vurdering af miljøgevinst'!$B$13)+Biodiesel_12_43*'Vurdering af miljøgevinst'!$B$13,"IR") -> 3.481316512 | Q95: =IF('Vurdering af miljøgevinst'!$A$5="Rute 1",Euro6_12_43*(1-'Vurdering af miljøgevinst'!$B$13)+Ethanol_12_43*'Vurdering af miljøgevinst'!$B$13,"IR") -> 3.066833637 | R95: =IF('Vurdering af miljøgevinst'!$A$5="Rute 1",Euro6_12_43*(1-'Vurdering af miljøgevinst'!$F$13)+Biodiesel_12_43*'Vurdering af miljøgevinst'!$F$13,"IR") -> 3.534979773 | S95: =IF('Vurdering af miljøgevinst'!$A$5="Rute 1",Euro6_12_43*(1-'Vurdering af miljøgevinst'!$F$13)+Ethanol_12_43*'Vurdering af miljøgevinst'!$F$13,"IR") -> 3.534979773 | U95: 43 | AA95: 43 | AG95: 43 | AM95: 43 | AS95: 43 | AY95: 43 | BE95: 43 | BK95: 43 | BQ95: 43 | BW95: 43 | CC95: 43 | CI95: 43 | CO95: 43 | CU95: 43 | DA95: 43 | DG95: 43 | DM95: 43 | DS95: 43 | DY95: 43 | EE95: 43 | EK95: 43 | EQ95: 43 | EW95: 43 | FC95: 43
B96: 44 | C96: 3.568930772 | D96: 3.464981332 | E96: 3.297324989 | F96: 3.136103975 | G96: 2.86721754 | H96: 2.836320394 | I96: 3.413780275 | J96: 2.218524054 | K96: 3.648239858 | O96: 44 | P96: =IF('Vurdering af miljøgevinst'!$A$5="Rute 1",Euro6_12_44*(1-'Vurdering af miljøgevinst'!$B$13)+Biodiesel_12_44*'Vurdering af miljøgevinst'!$B$13,"IR") -> 3.514628098 | Q96: =IF('Vurdering af miljøgevinst'!$A$5="Rute 1",Euro6_12_44*(1-'Vurdering af miljøgevinst'!$B$13)+Ethanol_12_44*'Vurdering af miljøgevinst'!$B$13,"IR") -> 3.096288421 | R96: =IF('Vurdering af miljøgevinst'!$A$5="Rute 1",Euro6_12_44*(1-'Vurdering af miljøgevinst'!$F$13)+Biodiesel_12_44*'Vurdering af miljøgevinst'!$F$13,"IR") -> 3.568930772 | S96: =IF('Vurdering af miljøgevinst'!$A$5="Rute 1",Euro6_12_44*(1-'Vurdering af miljøgevinst'!$F$13)+Ethanol_12_44*'Vurdering af miljøgevinst'!$F$13,"IR") -> 3.568930772 | U96: 44 | AA96: 44 | AG96: 44 | AM96: 44 | AS96: 44 | AY96: 44 | BE96: 44 | BK96: 44 | BQ96: 44 | BW96: 44 | CC96: 44 | CI96: 44 | CO96: 44 | CU96: 44 | DA96: 44 | DG96: 44 | DM96: 44 | DS96: 44 | DY96: 44 | EE96: 44 | EK96: 44 | EQ96: 44 | EW96: 44 | FC96: 44
B97: 45 | C97: 3.602881771 | D97: 3.497943467 | E97: 3.321124908 | F97: 3.162078912 | G97: 2.8921235 | H97: 2.856410883 | I97: 3.445898121 | J97: 2.239628725 | K97: 3.682945319 | O97: 45 | P97: =IF('Vurdering af miljøgevinst'!$A$5="Rute 1",Euro6_12_45*(1-'Vurdering af miljøgevinst'!$B$13)+Biodiesel_12_45*'Vurdering af miljøgevinst'!$B$13,"IR") -> 3.547937493 | Q97: =IF('Vurdering af miljøgevinst'!$A$5="Rute 1",Euro6_12_45*(1-'Vurdering af miljøgevinst'!$B$13)+Ethanol_12_45*'Vurdering af miljøgevinst'!$B$13,"IR") -> 3.125743205 | R97: =IF('Vurdering af miljøgevinst'!$A$5="Rute 1",Euro6_12_45*(1-'Vurdering af miljøgevinst'!$F$13)+Biodiesel_12_45*'Vurdering af miljøgevinst'!$F$13,"IR") -> 3.602881771 | S97: =IF('Vurdering af miljøgevinst'!$A$5="Rute 1",Euro6_12_45*(1-'Vurdering af miljøgevinst'!$F$13)+Ethanol_12_45*'Vurdering af miljøgevinst'!$F$13,"IR") -> 3.602881771 | U97: 45 | AA97: 45 | AG97: 45 | AM97: 45 | AS97: 45 | AY97: 45 | BE97: 45 | BK97: 45 | BQ97: 45 | BW97: 45 | CC97: 45 | CI97: 45 | CO97: 45 | CU97: 45 | DA97: 45 | DG97: 45 | DM97: 45 | DS97: 45 | DY97: 45 | EE97: 45 | EK97: 45 | EQ97: 45 | EW97: 45 | FC97: 45
B98: 46 | C98: 3.63683277 | D98: 3.530905602 | E98: 3.344924828 | F98: 3.188053849 | G98: 2.91702946 | H98: 2.876501372 | I98: 3.478009724 | J98: 2.260733395 | K98: 3.71765078 | O98: 46 | P98: =IF('Vurdering af miljøgevinst'!$A$5="Rute 1",Euro6_12_46*(1-'Vurdering af miljøgevinst'!$B$13)+Biodiesel_12_46*'Vurdering af miljøgevinst'!$B$13,"IR") -> 3.581244704 | Q98: =IF('Vurdering af miljøgevinst'!$A$5="Rute 1",Euro6_12_46*(1-'Vurdering af miljøgevinst'!$B$13)+Ethanol_12_46*'Vurdering af miljøgevinst'!$B$13,"IR") -> 3.155197989 | R98: =IF('Vurdering af miljøgevinst'!$A$5="Rute 1",Euro6_12_46*(1-'Vurdering af miljøgevinst'!$F$13)+Biodiesel_12_46*'Vurdering af miljøgevinst'!$F$13,"IR") -> 3.63683277 | S98: =IF('Vurdering af miljøgevinst'!$A$5="Rute 1",Euro6_12_46*(1-'Vurdering af miljøgevinst'!$F$13)+Ethanol_12_46*'Vurdering af miljøgevinst'!$F$13,"IR") -> 3.63683277 | U98: 46 | AA98: 46 | AG98: 46 | AM98: 46 | AS98: 46 | AY98: 46 | BE98: 46 | BK98: 46 | BQ98: 46 | BW98: 46 | CC98: 46 | CI98: 46 | CO98: 46 | CU98: 46 | DA98: 46 | DG98: 46 | DM98: 46 | DS98: 46 | DY98: 46 | EE98: 46 | EK98: 46 | EQ98: 46 | EW98: 46 | FC98: 46
B99: 47 | C99: 3.670783769 | D99: 3.563867737 | E99: 3.368724747 | F99: 3.214028785 | G99: 2.94193542 | H99: 2.896591861 | I99: 3.510115097 | J99: 2.281838066 | K99: 3.752356241 | O99: 47 | P99: =IF('Vurdering af miljøgevinst'!$A$5="Rute 1",Euro6_12_47*(1-'Vurdering af miljøgevinst'!$B$13)+Biodiesel_12_47*'Vurdering af miljøgevinst'!$B$13,"IR") -> 3.614549734 | Q99: =IF('Vurdering af miljøgevinst'!$A$5="Rute 1",Euro6_12_47*(1-'Vurdering af miljøgevinst'!$B$13)+Ethanol_12_47*'Vurdering af miljøgevinst'!$B$13,"IR") -> 3.184652773 | R99: =IF('Vurdering af miljøgevinst'!$A$5="Rute 1",Euro6_12_47*(1-'Vurdering af miljøgevinst'!$F$13)+Biodiesel_12_47*'Vurdering af miljøgevinst'!$F$13,"IR") -> 3.670783769 | S99: =IF('Vurdering af miljøgevinst'!$A$5="Rute 1",Euro6_12_47*(1-'Vurdering af miljøgevinst'!$F$13)+Ethanol_12_47*'Vurdering af miljøgevinst'!$F$13,"IR") -> 3.670783769 | U99: 47 | AA99: 47 | AG99: 47 | AM99: 47 | AS99: 47 | AY99: 47 | BE99: 47 | BK99: 47 | BQ99: 47 | BW99: 47 | CC99: 47 | CI99: 47 | CO99: 47 | CU99: 47 | DA99: 47 | DG99: 47 | DM99: 47 | DS99: 47 | DY99: 47 | EE99: 47 | EK99: 47 | EQ99: 47 | EW99: 47 | FC99: 47
B100: 48 | C100: 3.704734768 | D100: 3.596829872 | E100: 3.392524666 | F100: 3.240003722 | G100: 2.96684138 | H100: 2.916682349 | I100: 3.542214251 | J100: 2.302942736 | K100: 3.787061702 | O100: 48 | P100: =IF('Vurdering af miljøgevinst'!$A$5="Rute 1",Euro6_12_48*(1-'Vurdering af miljøgevinst'!$B$13)+Biodiesel_12_48*'Vurdering af miljøgevinst'!$B$13,"IR") -> 3.647852587 | Q100: =IF('Vurdering af miljøgevinst'!$A$5="Rute 1",Euro6_12_48*(1-'Vurdering af miljøgevinst'!$B$13)+Ethanol_12_48*'Vurdering af miljøgevinst'!$B$13,"IR") -> 3.214107557 | R100: =IF('Vurdering af miljøgevinst'!$A$5="Rute 1",Euro6_12_48*(1-'Vurdering af miljøgevinst'!$F$13)+Biodiesel_12_48*'Vurdering af miljøgevinst'!$F$13,"IR") -> 3.704734768 | S100: =IF('Vurdering af miljøgevinst'!$A$5="Rute 1",Euro6_12_48*(1-'Vurdering af miljøgevinst'!$F$13)+Ethanol_12_48*'Vurdering af miljøgevinst'!$F$13,"IR") -> 3.704734768 | U100: 48 | AA100: 48 | AG100: 48 | AM100: 48 | AS100: 48 | AY100: 48 | BE100: 48 | BK100: 48 | BQ100: 48 | BW100: 48 | CC100: 48 | CI100: 48 | CO100: 48 | CU100: 48 | DA100: 48 | DG100: 48 | DM100: 48 | DS100: 48 | DY100: 48 | EE100: 48 | EK100: 48 | EQ100: 48 | EW100: 48 | FC100: 48
B101: 49 | C101: 3.738685767 | D101: 3.629792007 | E101: 3.416324586 | F101: 3.265978659 | G101: 2.99174734 | H101: 2.936772838 | I101: 3.574307199 | J101: 2.324047407 | K101: 3.821767163 | O101: 49 | P101: =IF('Vurdering af miljøgevinst'!$A$5="Rute 1",Euro6_12_49*(1-'Vurdering af miljøgevinst'!$B$13)+Biodiesel_12_49*'Vurdering af miljøgevinst'!$B$13,"IR") -> 3.681153268 | Q101: =IF('Vurdering af miljøgevinst'!$A$5="Rute 1",Euro6_12_49*(1-'Vurdering af miljøgevinst'!$B$13)+Ethanol_12_49*'Vurdering af miljøgevinst'!$B$13,"IR") -> 3.243562341 | R101: =IF('Vurdering af miljøgevinst'!$A$5="Rute 1",Euro6_12_49*(1-'Vurdering af miljøgevinst'!$F$13)+Biodiesel_12_49*'Vurdering af miljøgevinst'!$F$13,"IR") -> 3.738685767 | S101: =IF('Vurdering af miljøgevinst'!$A$5="Rute 1",Euro6_12_49*(1-'Vurdering af miljøgevinst'!$F$13)+Ethanol_12_49*'Vurdering af miljøgevinst'!$F$13,"IR") -> 3.738685767 | U101: 49 | AA101: 49 | AG101: 49 | AM101: 49 | AS101: 49 | AY101: 49 | BE101: 49 | BK101: 49 | BQ101: 49 | BW101: 49 | CC101: 49 | CI101: 49 | CO101: 49 | CU101: 49 | DA101: 49 | DG101: 49 | DM101: 49 | DS101: 49 | DY101: 49 | EE101: 49 | EK101: 49 | EQ101: 49 | EW101: 49 | FC101: 49
B102: 50 | C102: 3.772636766 | D102: 3.662754142 | E102: 3.440124505 | F102: 3.291953596 | G102: 3.0166533 | H102: 2.956863327 | I102: 3.606393955 | J102: 2.345152077 | K102: 3.856472624 | O102: 50 | P102: =IF('Vurdering af miljøgevinst'!$A$5="Rute 1",Euro6_12_50*(1-'Vurdering af miljøgevinst'!$B$13)+Biodiesel_12_50*'Vurdering af miljøgevinst'!$B$13,"IR") -> 3.714451782 | Q102: =IF('Vurdering af miljøgevinst'!$A$5="Rute 1",Euro6_12_50*(1-'Vurdering af miljøgevinst'!$B$13)+Ethanol_12_50*'Vurdering af miljøgevinst'!$B$13,"IR") -> 3.273017125 | R102: =IF('Vurdering af miljøgevinst'!$A$5="Rute 1",Euro6_12_50*(1-'Vurdering af miljøgevinst'!$F$13)+Biodiesel_12_50*'Vurdering af miljøgevinst'!$F$13,"IR") -> 3.772636766 | S102: =IF('Vurdering af miljøgevinst'!$A$5="Rute 1",Euro6_12_50*(1-'Vurdering af miljøgevinst'!$F$13)+Ethanol_12_50*'Vurdering af miljøgevinst'!$F$13,"IR") -> 3.772636766 | U102: 50 | AA102: 50 | AG102: 50 | AM102: 50 | AS102: 50 | AY102: 50 | BE102: 50 | BK102: 50 | BQ102: 50 | BW102: 50 | CC102: 50 | CI102: 50 | CO102: 50 | CU102: 50 | DA102: 50 | DG102: 50 | DM102: 50 | DS102: 50 | DY102: 50 | EE102: 50 | EK102: 50 | EQ102: 50 | EW102: 50 | FC102: 50
B103: 51 | C103: 3.806587765 | D103: 3.695716277 | E103: 3.463924424 | F103: 3.317928533 | G103: 3.04155926 | H103: 2.976953815 | I103: 3.638474531 | J103: 2.366256748 | K103: 3.891178086 | O103: 51 | P103: =IF('Vurdering af miljøgevinst'!$A$5="Rute 1",Euro6_12_51*(1-'Vurdering af miljøgevinst'!$B$13)+Biodiesel_12_51*'Vurdering af miljøgevinst'!$B$13,"IR") -> 3.747748133 | Q103: =IF('Vurdering af miljøgevinst'!$A$5="Rute 1",Euro6_12_51*(1-'Vurdering af miljøgevinst'!$B$13)+Ethanol_12_51*'Vurdering af miljøgevinst'!$B$13,"IR") -> 3.302471909 | R103: =IF('Vurdering af miljøgevinst'!$A$5="Rute 1",Euro6_12_51*(1-'Vurdering af miljøgevinst'!$F$13)+Biodiesel_12_51*'Vurdering af miljøgevinst'!$F$13,"IR") -> 3.806587765 | S103: =IF('Vurdering af miljøgevinst'!$A$5="Rute 1",Euro6_12_51*(1-'Vurdering af miljøgevinst'!$F$13)+Ethanol_12_51*'Vurdering af miljøgevinst'!$F$13,"IR") -> 3.806587765 | U103: 51 | AA103: 51 | AG103: 51 | AM103: 51 | AS103: 51 | AY103: 51 | BE103: 51 | BK103: 51 | BQ103: 51 | BW103: 51 | CC103: 51 | CI103: 51 | CO103: 51 | CU103: 51 | DA103: 51 | DG103: 51 | DM103: 51 | DS103: 51 | DY103: 51 | EE103: 51 | EK103: 51 | EQ103: 51 | EW103: 51 | FC103: 51
B104: 52 | C104: 3.840538764 | D104: 3.728678412 | E104: 3.487724344 | F104: 3.34390347 | G104: 3.06646522 | H104: 2.997044304 | I104: 3.670548938 | J104: 2.387361418 | K104: 3.925883547 | O104: 52 | P104: =IF('Vurdering af miljøgevinst'!$A$5="Rute 1",Euro6_12_52*(1-'Vurdering af miljøgevinst'!$B$13)+Biodiesel_12_52*'Vurdering af miljøgevinst'!$B$13,"IR") -> 3.781042325 | Q104: =IF('Vurdering af miljøgevinst'!$A$5="Rute 1",Euro6_12_52*(1-'Vurdering af miljøgevinst'!$B$13)+Ethanol_12_52*'Vurdering af miljøgevinst'!$B$13,"IR") -> 3.331926693 | R104: =IF('Vurdering af miljøgevinst'!$A$5="Rute 1",Euro6_12_52*(1-'Vurdering af miljøgevinst'!$F$13)+Biodiesel_12_52*'Vurdering af miljøgevinst'!$F$13,"IR") -> 3.840538764 | S104: =IF('Vurdering af miljøgevinst'!$A$5="Rute 1",Euro6_12_52*(1-'Vurdering af miljøgevinst'!$F$13)+Ethanol_12_52*'Vurdering af miljøgevinst'!$F$13,"IR") -> 3.840538764 | U104: 52 | AA104: 52 | AG104: 52 | AM104: 52 | AS104: 52 | AY104: 52 | BE104: 52 | BK104: 52 | BQ104: 52 | BW104: 52 | CC104: 52 | CI104: 52 | CO104: 52 | CU104: 52 | DA104: 52 | DG104: 52 | DM104: 52 | DS104: 52 | DY104: 52 | EE104: 52 | EK104: 52 | EQ104: 52 | EW104: 52 | FC104: 52
B105: 53 | C105: 3.874489763 | D105: 3.761640547 | E105: 3.511524263 | F105: 3.369878407 | G105: 3.09137118 | H105: 3.017134793 | I105: 3.70261719 | J105: 2.408466089 | K105: 3.960589008 | O105: 53 | P105: =IF('Vurdering af miljøgevinst'!$A$5="Rute 1",Euro6_12_53*(1-'Vurdering af miljøgevinst'!$B$13)+Biodiesel_12_53*'Vurdering af miljøgevinst'!$B$13,"IR") -> 3.814334363 | Q105: =IF('Vurdering af miljøgevinst'!$A$5="Rute 1",Euro6_12_53*(1-'Vurdering af miljøgevinst'!$B$13)+Ethanol_12_53*'Vurdering af miljøgevinst'!$B$13,"IR") -> 3.361381477 | R105: =IF('Vurdering af miljøgevinst'!$A$5="Rute 1",Euro6_12_53*(1-'Vurdering af miljøgevinst'!$F$13)+Biodiesel_12_53*'Vurdering af miljøgevinst'!$F$13,"IR") -> 3.874489763 | S105: =IF('Vurdering af miljøgevinst'!$A$5="Rute 1",Euro6_12_53*(1-'Vurdering af miljøgevinst'!$F$13)+Ethanol_12_53*'Vurdering af miljøgevinst'!$F$13,"IR") -> 3.874489763 | U105: 53 | AA105: 53 | AG105: 53 | AM105: 53 | AS105: 53 | AY105: 53 | BE105: 53 | BK105: 53 | BQ105: 53 | BW105: 53 | CC105: 53 | CI105: 53 | CO105: 53 | CU105: 53 | DA105: 53 | DG105: 53 | DM105: 53 | DS105: 53 | DY105: 53 | EE105: 53 | EK105: 53 | EQ105: 53 | EW105: 53 | FC105: 53
B106: 54 | C106: 3.908440762 | D106: 3.794602682 | E106: 3.535324182 | F106: 3.395853344 | G106: 3.11627714 | H106: 3.037225281 | I106: 3.7346793 | J106: 2.429570759 | K106: 3.995294469 | O106: 54 | P106: =IF('Vurdering af miljøgevinst'!$A$5="Rute 1",Euro6_12_54*(1-'Vurdering af miljøgevinst'!$B$13)+Biodiesel_12_54*'Vurdering af miljøgevinst'!$B$13,"IR") -> 3.84762425 | Q106: =IF('Vurdering af miljøgevinst'!$A$5="Rute 1",Euro6_12_54*(1-'Vurdering af miljøgevinst'!$B$13)+Ethanol_12_54*'Vurdering af miljøgevinst'!$B$13,"IR") -> 3.390836261 | R106: =IF('Vurdering af miljøgevinst'!$A$5="Rute 1",Euro6_12_54*(1-'Vurdering af miljøgevinst'!$F$13)+Biodiesel_12_54*'Vurdering af miljøgevinst'!$F$13,"IR") -> 3.908440762 | S106: =IF('Vurdering af miljøgevinst'!$A$5="Rute 1",Euro6_12_54*(1-'Vurdering af miljøgevinst'!$F$13)+Ethanol_12_54*'Vurdering af miljøgevinst'!$F$13,"IR") -> 3.908440762 | U106: 54 | AA106: 54 | AG106: 54 | AM106: 54 | AS106: 54 | AY106: 54 | BE106: 54 | BK106: 54 | BQ106: 54 | BW106: 54 | CC106: 54 | CI106: 54 | CO106: 54 | CU106: 54 | DA106: 54 | DG106: 54 | DM106: 54 | DS106: 54 | DY106: 54 | EE106: 54 | EK106: 54 | EQ106: 54 | EW106: 54 | FC106: 54
B107: 55 | C107: 3.942391761 | D107: 3.827564817 | E107: 3.559124102 | F107: 3.421828281 | G107: 3.1411831 | H107: 3.05731577 | I107: 3.766735278 | J107: 2.45067543 | K107: 4.02999993 | O107: 55 | P107: =IF('Vurdering af miljøgevinst'!$A$5="Rute 1",Euro6_12_55*(1-'Vurdering af miljøgevinst'!$B$13)+Biodiesel_12_55*'Vurdering af miljøgevinst'!$B$13,"IR") -> 3.880911992 | Q107: =IF('Vurdering af miljøgevinst'!$A$5="Rute 1",Euro6_12_55*(1-'Vurdering af miljøgevinst'!$B$13)+Ethanol_12_55*'Vurdering af miljøgevinst'!$B$13,"IR") -> 3.420291045 | R107: =IF('Vurdering af miljøgevinst'!$A$5="Rute 1",Euro6_12_55*(1-'Vurdering af miljøgevinst'!$F$13)+Biodiesel_12_55*'Vurdering af miljøgevinst'!$F$13,"IR") -> 3.942391761 | S107: =IF('Vurdering af miljøgevinst'!$A$5="Rute 1",Euro6_12_55*(1-'Vurdering af miljøgevinst'!$F$13)+Ethanol_12_55*'Vurdering af miljøgevinst'!$F$13,"IR") -> 3.942391761 | U107: 55 | AA107: 55 | AG107: 55 | AM107: 55 | AS107: 55 | AY107: 55 | BE107: 55 | BK107: 55 | BQ107: 55 | BW107: 55 | CC107: 55 | CI107: 55 | CO107: 55 | CU107: 55 | DA107: 55 | DG107: 55 | DM107: 55 | DS107: 55 | DY107: 55 | EE107: 55 | EK107: 55 | EQ107: 55 | EW107: 55 | FC107: 55
B108: 56 | C108: 3.97634276 | D108: 3.860526952 | E108: 3.582924021 | F108: 3.447803218 | G108: 3.16608906 | H108: 3.077406259 | I108: 3.798785139 | J108: 2.4717801 | K108: 4.064705391 | O108: 56 | P108: =IF('Vurdering af miljøgevinst'!$A$5="Rute 1",Euro6_12_56*(1-'Vurdering af miljøgevinst'!$B$13)+Biodiesel_12_56*'Vurdering af miljøgevinst'!$B$13,"IR") -> 3.914197593 | Q108: =IF('Vurdering af miljøgevinst'!$A$5="Rute 1",Euro6_12_56*(1-'Vurdering af miljøgevinst'!$B$13)+Ethanol_12_56*'Vurdering af miljøgevinst'!$B$13,"IR") -> 3.449745829 | R108: =IF('Vurdering af miljøgevinst'!$A$5="Rute 1",Euro6_12_56*(1-'Vurdering af miljøgevinst'!$F$13)+Biodiesel_12_56*'Vurdering af miljøgevinst'!$F$13,"IR") -> 3.97634276 | S108: =IF('Vurdering af miljøgevinst'!$A$5="Rute 1",Euro6_12_56*(1-'Vurdering af miljøgevinst'!$F$13)+Ethanol_12_56*'Vurdering af miljøgevinst'!$F$13,"IR") -> 3.97634276 | U108: 56 | AA108: 56 | AG108: 56 | AM108: 56 | AS108: 56 | AY108: 56 | BE108: 56 | BK108: 56 | BQ108: 56 | BW108: 56 | CC108: 56 | CI108: 56 | CO108: 56 | CU108: 56 | DA108: 56 | DG108: 56 | DM108: 56 | DS108: 56 | DY108: 56 | EE108: 56 | EK108: 56 | EQ108: 56 | EW108: 56 | FC108: 56
B109: 57 | C109: 4.010293759 | D109: 3.893489087 | E109: 3.60672394 | F109: 3.473778154 | G109: 3.19099502 | H109: 3.097496747 | I109: 3.830828894 | J109: 2.492884771 | K109: 4.099410852 | O109: 57 | P109: =IF('Vurdering af miljøgevinst'!$A$5="Rute 1",Euro6_12_57*(1-'Vurdering af miljøgevinst'!$B$13)+Biodiesel_12_57*'Vurdering af miljøgevinst'!$B$13,"IR") -> 3.947481057 | Q109: =IF('Vurdering af miljøgevinst'!$A$5="Rute 1",Euro6_12_57*(1-'Vurdering af miljøgevinst'!$B$13)+Ethanol_12_57*'Vurdering af miljøgevinst'!$B$13,"IR") -> 3.479200613 | R109: =IF('Vurdering af miljøgevinst'!$A$5="Rute 1",Euro6_12_57*(1-'Vurdering af miljøgevinst'!$F$13)+Biodiesel_12_57*'Vurdering af miljøgevinst'!$F$13,"IR") -> 4.010293759 | S109: =IF('Vurdering af miljøgevinst'!$A$5="Rute 1",Euro6_12_57*(1-'Vurdering af miljøgevinst'!$F$13)+Ethanol_12_57*'Vurdering af miljøgevinst'!$F$13,"IR") -> 4.010293759 | U109: 57 | AA109: 57 | AG109: 57 | AM109: 57 | AS109: 57 | AY109: 57 | BE109: 57 | BK109: 57 | BQ109: 57 | BW109: 57 | CC109: 57 | CI109: 57 | CO109: 57 | CU109: 57 | DA109: 57 | DG109: 57 | DM109: 57 | DS109: 57 | DY109: 57 | EE109: 57 | EK109: 57 | EQ109: 57 | EW109: 57 | FC109: 57
B110: 58 | C110: 4.044244758 | D110: 3.926451222 | E110: 3.630523859 | F110: 3.499753091 | G110: 3.21590098 | H110: 3.117587236 | I110: 3.862866555 | J110: 2.513989441 | K110: 4.134116313 | O110: 58 | P110: =IF('Vurdering af miljøgevinst'!$A$5="Rute 1",Euro6_12_58*(1-'Vurdering af miljøgevinst'!$B$13)+Biodiesel_12_58*'Vurdering af miljøgevinst'!$B$13,"IR") -> 3.980762387 | Q110: =IF('Vurdering af miljøgevinst'!$A$5="Rute 1",Euro6_12_58*(1-'Vurdering af miljøgevinst'!$B$13)+Ethanol_12_58*'Vurdering af miljøgevinst'!$B$13,"IR") -> 3.508655397 | R110: =IF('Vurdering af miljøgevinst'!$A$5="Rute 1",Euro6_12_58*(1-'Vurdering af miljøgevinst'!$F$13)+Biodiesel_12_58*'Vurdering af miljøgevinst'!$F$13,"IR") -> 4.044244758 | S110: =IF('Vurdering af miljøgevinst'!$A$5="Rute 1",Euro6_12_58*(1-'Vurdering af miljøgevinst'!$F$13)+Ethanol_12_58*'Vurdering af miljøgevinst'!$F$13,"IR") -> 4.044244758 | U110: 58 | AA110: 58 | AG110: 58 | AM110: 58 | AS110: 58 | AY110: 58 | BE110: 58 | BK110: 58 | BQ110: 58 | BW110: 58 | CC110: 58 | CI110: 58 | CO110: 58 | CU110: 58 | DA110: 58 | DG110: 58 | DM110: 58 | DS110: 58 | DY110: 58 | EE110: 58 | EK110: 58 | EQ110: 58 | EW110: 58 | FC110: 58
B111: 59 | C111: 4.078195757 | D111: 3.959413357 | E111: 3.654323779 | F111: 3.525728028 | G111: 3.24080694 | H111: 3.137677725 | I111: 3.894898136 | J111: 2.535094112 | K111: 4.168821774 | O111: 59 | P111: =IF('Vurdering af miljøgevinst'!$A$5="Rute 1",Euro6_12_59*(1-'Vurdering af miljøgevinst'!$B$13)+Biodiesel_12_59*'Vurdering af miljøgevinst'!$B$13,"IR") -> 4.01404159 | Q111: =IF('Vurdering af miljøgevinst'!$A$5="Rute 1",Euro6_12_59*(1-'Vurdering af miljøgevinst'!$B$13)+Ethanol_12_59*'Vurdering af miljøgevinst'!$B$13,"IR") -> 3.538110182 | R111: =IF('Vurdering af miljøgevinst'!$A$5="Rute 1",Euro6_12_59*(1-'Vurdering af miljøgevinst'!$F$13)+Biodiesel_12_59*'Vurdering af miljøgevinst'!$F$13,"IR") -> 4.078195757 | S111: =IF('Vurdering af miljøgevinst'!$A$5="Rute 1",Euro6_12_59*(1-'Vurdering af miljøgevinst'!$F$13)+Ethanol_12_59*'Vurdering af miljøgevinst'!$F$13,"IR") -> 4.078195757 | U111: 59 | AA111: 59 | AG111: 59 | AM111: 59 | AS111: 59 | AY111: 59 | BE111: 59 | BK111: 59 | BQ111: 59 | BW111: 59 | CC111: 59 | CI111: 59 | CO111: 59 | CU111: 59 | DA111: 59 | DG111: 59 | DM111: 59 | DS111: 59 | DY111: 59 | EE111: 59 | EK111: 59 | EQ111: 59 | EW111: 59 | FC111: 59
B112: 60 | C112: 4.112146757 | D112: 3.992375492 | E112: 3.678123698 | F112: 3.551702965 | G112: 3.2657129 | H112: 3.157768213 | I112: 3.926923647 | J112: 2.556198782 | K112: 4.203527235 | O112: 60 | P112: =IF('Vurdering af miljøgevinst'!$A$5="Rute 1",Euro6_12_60*(1-'Vurdering af miljøgevinst'!$B$13)+Biodiesel_12_60*'Vurdering af miljøgevinst'!$B$13,"IR") -> 4.047318668 | Q112: =IF('Vurdering af miljøgevinst'!$A$5="Rute 1",Euro6_12_60*(1-'Vurdering af miljøgevinst'!$B$13)+Ethanol_12_60*'Vurdering af miljøgevinst'!$B$13,"IR") -> 3.567564966 | R112: =IF('Vurdering af miljøgevinst'!$A$5="Rute 1",Euro6_12_60*(1-'Vurdering af miljøgevinst'!$F$13)+Biodiesel_12_60*'Vurdering af miljøgevinst'!$F$13,"IR") -> 4.112146757 | S112: =IF('Vurdering af miljøgevinst'!$A$5="Rute 1",Euro6_12_60*(1-'Vurdering af miljøgevinst'!$F$13)+Ethanol_12_60*'Vurdering af miljøgevinst'!$F$13,"IR") -> 4.112146757 | U112: 60 | AA112: 60 | AG112: 60 | AM112: 60 | AS112: 60 | AY112: 60 | BE112: 60 | BK112: 60 | BQ112: 60 | BW112: 60 | CC112: 60 | CI112: 60 | CO112: 60 | CU112: 60 | DA112: 60 | DG112: 60 | DM112: 60 | DS112: 60 | DY112: 60 | EE112: 60 | EK112: 60 | EQ112: 60 | EW112: 60 | FC112: 60
A117: Busstørrelse | B117: Hastighed (km/t) | C117: Euro 6 | D117: EEV | E117: Euro 5 | F117: Euro 4 | G117: Euro 3 | H117: Euro 2 | I117: Biodiesel | J117: Ethanol | K117: Gas | N117: Busstørrelse | O117: Hastighed i km/t | P117: Biodiesel | Q117: Ethanol | R117: Biodiesel | S117: Ethanol | T117: Busstørrelse | U117: Hastighed i km/t | V117: Biodiesel | W117: Ethanol | X117: Biodiesel | Y117: Ethanol | Z117: Busstørrelse | AA117: Hastighed i km/t | AB117: Biodiesel | AC117: Ethanol | AD117: Biodiesel | AE117: Ethanol | AF117: Busstørrelse | AG117: Hastighed i km/t | AH117: Biodiesel | AI117: Ethanol | AJ117: Biodiesel | AK117: Ethanol | AL117: Busstørrelse | AM117: Hastighed i km/t | AN117: Biodiesel | AO117: Ethanol | AP117: Biodiesel | AQ117: Ethanol | AR117: Busstørrelse | AS117: Hastighed i km/t | AT117: Biodiesel | AU117: Ethanol | AV117: Biodiesel | AW117: Ethanol | AX117: Busstørrelse | AY117: Hastighed i km/t | AZ117: Biodiesel | BA117: Ethanol | BB117: Biodiesel | BC117: Ethanol | BD117: Busstørrelse | BE117: Hastighed i km/t | BF117: Biodiesel | BG117: Ethanol | BH117: Biodiesel | BI117: Ethanol | BJ117: Busstørrelse | BK117: Hastighed i km/t | BL117: Biodiesel | BM117: Ethanol | BN117: Biodiesel | BO117: Ethanol | BP117: Busstørrelse | BQ117: Hastighed i km/t | BR117: Biodiesel | BS117: Ethanol | BT117: Biodiesel | BU117: Ethanol | BV117: Busstørrelse | BW117: Hastighed i km/t | BX117: Biodiesel | BY117: Ethanol | BZ117: Biodiesel | CA117: Ethanol | CB117: Busstørrelse | CC117: Hastighed i km/t | CD117: Biodiesel | CE117: Ethanol | CF117: Biodiesel | CG117: Ethanol | CH117: Busstørrelse | CI117: Hastighed i km/t | CJ117: Biodiesel | CK117: Ethanol | CL117: Biodiesel | CM117: Ethanol | CN117: Busstørrelse | CO117: Hastighed i km/t | CP117: Biodiesel | CQ117: Ethanol | CR117: Biodiesel | CS117: Ethanol | CT117: Busstørrelse | CU117: Hastighed i km/t | CV117: Biodiesel | CW117: Ethanol | CX117: Biodiesel | CY117: Ethanol | CZ117: Busstørrelse | DA117: Hastighed i km/t | DB117: Biodiesel | DC117: Ethanol | DD117: Biodiesel | DE117: Ethanol | DF117: Busstørrelse | DG117: Hastighed i km/t | DH117: Biodiesel | DI117: Ethanol | DJ117: Biodiesel | DK117: Ethanol | DL117: Busstørrelse | DM117: Hastighed i km/t | DN117: Biodiesel | DO117: Ethanol | DP117: Biodiesel | DQ117: Ethanol | DR117: Busstørrelse | DS117: Hastighed i km/t | DT117: Biodiesel | DU117: Ethanol | DV117: Biodiesel | DW117: Ethanol | DX117: Busstørrelse | DY117: Hastighed i km/t | DZ117: Biodiesel | EA117: Ethanol | EB117: Biodiesel | EC117: Ethanol | ED117: Busstørrelse | EE117: Hastighed i km/t | EF117: Biodiesel | EG117: Ethanol | EH117: Biodiesel | EI117: Ethanol | EJ117: Busstørrelse | EK117: Hastighed i km/t | EL117: Biodiesel | EM117: Ethanol | EN117: Biodiesel | EO117: Ethanol | EP117: Busstørrelse | EQ117: Hastighed i km/t | ER117: Biodiesel | ES117: Ethanol | ET117: Biodiesel | EU117: Ethanol | EV117: Busstørrelse | EW117: Hastighed i km/t | EX117: Biodiesel | EY117: Ethanol | EZ117: Biodiesel | FA117: Ethanol | FB117: Busstørrelse | FC117: Hastighed i km/t | FD117: Biodiesel | FE117: Ethanol | FF117: Biodiesel | FG117: Ethanol
A118: 13,7 meter | B118: 10 | C118: 1.992525283 | D118: 1.934490566 | E118: 2.053203004 | F118: 1.85913939 | G118: 1.667246374 | H118: 1.776856767 | I118: 1.912785303 | J118: 1.23859653 | K118: 2.036803351 | N118: 13,7 meter | O118: 10 | P118: =IF('Vurdering af miljøgevinst'!$A$5="Rute 1",Euro6_13.7_10*(1-'Vurdering af miljøgevinst'!$B$13)+Biodiesel_13.7_10*'Vurdering af miljøgevinst'!$B$13,"IR") -> 1.96461629 | Q118: =IF('Vurdering af miljøgevinst'!$A$5="Rute 1",Euro6_13.7_10*(1-'Vurdering af miljøgevinst'!$B$13)+Ethanol_13.7_10*'Vurdering af miljøgevinst'!$B$13,"IR") -> 1.728650219 | R118: =IF('Vurdering af miljøgevinst'!$A$5="Rute 1",Euro6_13.7_10*(1-'Vurdering af miljøgevinst'!$F$13)+Biodiesel_13.7_10*'Vurdering af miljøgevinst'!$F$13,"IR") -> 1.992525283 | S118: =IF('Vurdering af miljøgevinst'!$A$5="Rute 1",Euro6_13.7_10*(1-'Vurdering af miljøgevinst'!$F$13)+Ethanol_13.7_10*'Vurdering af miljøgevinst'!$F$13,"IR") -> 1.992525283 | T118: 13,7 meter | U118: 10 | Z118: 13,7 meter | AA118: 10 | AF118: 13,7 meter | AG118: 10 | AL118: 13,7 meter | AM118: 10 | AR118: 13,7 meter | AS118: 10 | AX118: 13,7 meter | AY118: 10 | BD118: 13,7 meter | BE118: 10 | BJ118: 13,7 meter | BK118: 10 | BP118: 13,7 meter | BQ118: 10 | BV118: 13,7 meter | BW118: 10 | CB118: 13,7 meter | CC118: 10 | CH118: 13,7 meter | CI118: 10 | CN118: 13,7 meter | CO118: 10 | CT118: 13,7 meter | CU118: 10 | CZ118: 13,7 meter | DA118: 10 | DF118: 13,7 meter | DG118: 10 | DL118: 13,7 meter | DM118: 10 | DR118: 13,7 meter | DS118: 10 | DX118: 13,7 meter | DY118: 10 | ED118: 13,7 meter | EE118: 10 | EJ118: 13,7 meter | EK118: 10 | EP118: 13,7 meter | EQ118: 10 | EV118: 13,7 meter | EW118: 10 | FB118: 13,7 meter | FC118: 10
B119: =B118+1 -> 11 | C119: 2.020541647 | D119: 1.96169092 | E119: 2.072842698 | F119: 1.880573908 | G119: 1.687798773 | H119: 1.793435438 | I119: 1.939470561 | J119: 1.256012104 | K119: 2.065442298 | O119: 11 | P119: =IF('Vurdering af miljøgevinst'!$A$5="Rute 1",Euro6_13.7_11*(1-'Vurdering af miljøgevinst'!$B$13)+Biodiesel_13.7_11*'Vurdering af miljøgevinst'!$B$13,"IR") -> 1.992166767 | Q119: =IF('Vurdering af miljøgevinst'!$A$5="Rute 1",Euro6_13.7_11*(1-'Vurdering af miljøgevinst'!$B$13)+Ethanol_13.7_11*'Vurdering af miljøgevinst'!$B$13,"IR") -> 1.752956307 | R119: =IF('Vurdering af miljøgevinst'!$A$5="Rute 1",Euro6_13.7_11*(1-'Vurdering af miljøgevinst'!$F$13)+Biodiesel_13.7_11*'Vurdering af miljøgevinst'!$F$13,"IR") -> 2.020541647 | S119: =IF('Vurdering af miljøgevinst'!$A$5="Rute 1",Euro6_13.7_11*(1-'Vurdering af miljøgevinst'!$F$13)+Ethanol_13.7_11*'Vurdering af miljøgevinst'!$F$13,"IR") -> 2.020541647 | U119: 11 | AA119: 11 | AG119: 11 | AM119: 11 | AS119: 11 | AY119: 11 | BE119: 11 | BK119: 11 | BQ119: 11 | BW119: 11 | CC119: 11 | CI119: 11 | CO119: 11 | CU119: 11 | DA119: 11 | DG119: 11 | DM119: 11 | DS119: 11 | DY119: 11 | EE119: 11 | EK119: 11 | EQ119: 11 | EW119: 11 | FC119: 11
B120: =B119+1 -> 12 | C120: 2.048558012 | D120: 1.988891274 | E120: 2.092482391 | F120: 1.902008426 | G120: 1.708351171 | H120: 1.810014109 | I120: 1.966150292 | J120: 1.273427678 | K120: 2.094081244 | O120: 12 | P120: =IF('Vurdering af miljøgevinst'!$A$5="Rute 1",Euro6_13.7_12*(1-'Vurdering af miljøgevinst'!$B$13)+Biodiesel_13.7_12*'Vurdering af miljøgevinst'!$B$13,"IR") -> 2.01971531 | Q120: =IF('Vurdering af miljøgevinst'!$A$5="Rute 1",Euro6_13.7_12*(1-'Vurdering af miljøgevinst'!$B$13)+Ethanol_13.7_12*'Vurdering af miljøgevinst'!$B$13,"IR") -> 1.777262395 | R120: =IF('Vurdering af miljøgevinst'!$A$5="Rute 1",Euro6_13.7_12*(1-'Vurdering af miljøgevinst'!$F$13)+Biodiesel_13.7_12*'Vurdering af miljøgevinst'!$F$13,"IR") -> 2.048558012 | S120: =IF('Vurdering af miljøgevinst'!$A$5="Rute 1",Euro6_13.7_12*(1-'Vurdering af miljøgevinst'!$F$13)+Ethanol_13.7_12*'Vurdering af miljøgevinst'!$F$13,"IR") -> 2.048558012 | U120: 12 | AA120: 12 | AG120: 12 | AM120: 12 | AS120: 12 | AY120: 12 | BE120: 12 | BK120: 12 | BQ120: 12 | BW120: 12 | CC120: 12 | CI120: 12 | CO120: 12 | CU120: 12 | DA120: 12 | DG120: 12 | DM120: 12 | DS120: 12 | DY120: 12 | EE120: 12 | EK120: 12 | EQ120: 12 | EW120: 12 | FC120: 12
B121: 13 | C121: 2.076574376 | D121: 2.016091627 | E121: 2.112122084 | F121: 1.923442944 | G121: 1.728903569 | H121: 1.826592781 | I121: 1.992824509 | J121: 1.290843252 | K121: 2.122720191 | O121: 13 | P121: =IF('Vurdering af miljøgevinst'!$A$5="Rute 1",Euro6_13.7_13*(1-'Vurdering af miljøgevinst'!$B$13)+Biodiesel_13.7_13*'Vurdering af miljøgevinst'!$B$13,"IR") -> 2.047261923 | Q121: =IF('Vurdering af miljøgevinst'!$A$5="Rute 1",Euro6_13.7_13*(1-'Vurdering af miljøgevinst'!$B$13)+Ethanol_13.7_13*'Vurdering af miljøgevinst'!$B$13,"IR") -> 1.801568483 | R121: =IF('Vurdering af miljøgevinst'!$A$5="Rute 1",Euro6_13.7_13*(1-'Vurdering af miljøgevinst'!$F$13)+Biodiesel_13.7_13*'Vurdering af miljøgevinst'!$F$13,"IR") -> 2.076574376 | S121: =IF('Vurdering af miljøgevinst'!$A$5="Rute 1",Euro6_13.7_13*(1-'Vurdering af miljøgevinst'!$F$13)+Ethanol_13.7_13*'Vurdering af miljøgevinst'!$F$13,"IR") -> 2.076574376 | U121: 13 | AA121: 13 | AG121: 13 | AM121: 13 | AS121: 13 | AY121: 13 | BE121: 13 | BK121: 13 | BQ121: 13 | BW121: 13 | CC121: 13 | CI121: 13 | CO121: 13 | CU121: 13 | DA121: 13 | DG121: 13 | DM121: 13 | DS121: 13 | DY121: 13 | EE121: 13 | EK121: 13 | EQ121: 13 | EW121: 13 | FC121: 13
B122: 14 | C122: 2.104590741 | D122: 2.043291981 | E122: 2.131761778 | F122: 1.944877462 | G122: 1.749455967 | H122: 1.843171452 | I122: 2.019493224 | J122: 1.308258826 | K122: 2.151359137 | O122: 14 | P122: =IF('Vurdering af miljøgevinst'!$A$5="Rute 1",Euro6_13.7_14*(1-'Vurdering af miljøgevinst'!$B$13)+Biodiesel_13.7_14*'Vurdering af miljøgevinst'!$B$13,"IR") -> 2.07480661 | Q122: =IF('Vurdering af miljøgevinst'!$A$5="Rute 1",Euro6_13.7_14*(1-'Vurdering af miljøgevinst'!$B$13)+Ethanol_13.7_14*'Vurdering af miljøgevinst'!$B$13,"IR") -> 1.825874571 | R122: =IF('Vurdering af miljøgevinst'!$A$5="Rute 1",Euro6_13.7_14*(1-'Vurdering af miljøgevinst'!$F$13)+Biodiesel_13.7_14*'Vurdering af miljøgevinst'!$F$13,"IR") -> 2.104590741 | S122: =IF('Vurdering af miljøgevinst'!$A$5="Rute 1",Euro6_13.7_14*(1-'Vurdering af miljøgevinst'!$F$13)+Ethanol_13.7_14*'Vurdering af miljøgevinst'!$F$13,"IR") -> 2.104590741 | U122: 14 | AA122: 14 | AG122: 14 | AM122: 14 | AS122: 14 | AY122: 14 | BE122: 14 | BK122: 14 | BQ122: 14 | BW122: 14 | CC122: 14 | CI122: 14 | CO122: 14 | CU122: 14 | DA122: 14 | DG122: 14 | DM122: 14 | DS122: 14 | DY122: 14 | EE122: 14 | EK122: 14 | EQ122: 14 | EW122: 14 | FC122: 14
B123: 15 | C123: 2.132607105 | D123: 2.070492335 | E123: 2.151401471 | F123: 1.96631198 | G123: 1.770008366 | H123: 1.859750123 | I123: 2.046156448 | J123: 1.3256744 | K123: 2.179998083 | O123: 15 | P123: =IF('Vurdering af miljøgevinst'!$A$5="Rute 1",Euro6_13.7_15*(1-'Vurdering af miljøgevinst'!$B$13)+Biodiesel_13.7_15*'Vurdering af miljøgevinst'!$B$13,"IR") -> 2.102349375 | Q123: =IF('Vurdering af miljøgevinst'!$A$5="Rute 1",Euro6_13.7_15*(1-'Vurdering af miljøgevinst'!$B$13)+Ethanol_13.7_15*'Vurdering af miljøgevinst'!$B$13,"IR") -> 1.850180658 | R123: =IF('Vurdering af miljøgevinst'!$A$5="Rute 1",Euro6_13.7_15*(1-'Vurdering af miljøgevinst'!$F$13)+Biodiesel_13.7_15*'Vurdering af miljøgevinst'!$F$13,"IR") -> 2.132607105 | S123: =IF('Vurdering af miljøgevinst'!$A$5="Rute 1",Euro6_13.7_15*(1-'Vurdering af miljøgevinst'!$F$13)+Ethanol_13.7_15*'Vurdering af miljøgevinst'!$F$13,"IR") -> 2.132607105 | U123: 15 | AA123: 15 | AG123: 15 | AM123: 15 | AS123: 15 | AY123: 15 | BE123: 15 | BK123: 15 | BQ123: 15 | BW123: 15 | CC123: 15 | CI123: 15 | CO123: 15 | CU123: 15 | DA123: 15 | DG123: 15 | DM123: 15 | DS123: 15 | DY123: 15 | EE123: 15 | EK123: 15 | EQ123: 15 | EW123: 15 | FC123: 15
B124: 16 | C124: 2.16062347 | D124: 2.097692689 | E124: 2.171041165 | F124: 1.987746498 | G124: 1.790560764 | H124: 1.876328795 | I124: 2.072814191 | J124: 1.343089974 | K124: 2.20863703 | O124: 16 | P124: =IF('Vurdering af miljøgevinst'!$A$5="Rute 1",Euro6_13.7_16*(1-'Vurdering af miljøgevinst'!$B$13)+Biodiesel_13.7_16*'Vurdering af miljøgevinst'!$B$13,"IR") -> 2.129890222 | Q124: =IF('Vurdering af miljøgevinst'!$A$5="Rute 1",Euro6_13.7_16*(1-'Vurdering af miljøgevinst'!$B$13)+Ethanol_13.7_16*'Vurdering af miljøgevinst'!$B$13,"IR") -> 1.874486746 | R124: =IF('Vurdering af miljøgevinst'!$A$5="Rute 1",Euro6_13.7_16*(1-'Vurdering af miljøgevinst'!$F$13)+Biodiesel_13.7_16*'Vurdering af miljøgevinst'!$F$13,"IR") -> 2.16062347 | S124: =IF('Vurdering af miljøgevinst'!$A$5="Rute 1",Euro6_13.7_16*(1-'Vurdering af miljøgevinst'!$F$13)+Ethanol_13.7_16*'Vurdering af miljøgevinst'!$F$13,"IR") -> 2.16062347 | U124: 16 | AA124: 16 | AG124: 16 | AM124: 16 | AS124: 16 | AY124: 16 | BE124: 16 | BK124: 16 | BQ124: 16 | BW124: 16 | CC124: 16 | CI124: 16 | CO124: 16 | CU124: 16 | DA124: 16 | DG124: 16 | DM124: 16 | DS124: 16 | DY124: 16 | EE124: 16 | EK124: 16 | EQ124: 16 | EW124: 16 | FC124: 16
B125: 17 | C125: 2.188639834 | D125: 2.124893043 | E125: 2.190680858 | F125: 2.009181016 | G125: 1.811113162 | H125: 1.892907466 | I125: 2.099466466 | J125: 1.360505549 | K125: 2.237275976 | O125: 17 | P125: =IF('Vurdering af miljøgevinst'!$A$5="Rute 1",Euro6_13.7_17*(1-'Vurdering af miljøgevinst'!$B$13)+Biodiesel_13.7_17*'Vurdering af miljøgevinst'!$B$13,"IR") -> 2.157429155 | Q125: =IF('Vurdering af miljøgevinst'!$A$5="Rute 1",Euro6_13.7_17*(1-'Vurdering af miljøgevinst'!$B$13)+Ethanol_13.7_17*'Vurdering af miljøgevinst'!$B$13,"IR") -> 1.898792834 | R125: =IF('Vurdering af miljøgevinst'!$A$5="Rute 1",Euro6_13.7_17*(1-'Vurdering af miljøgevinst'!$F$13)+Biodiesel_13.7_17*'Vurdering af miljøgevinst'!$F$13,"IR") -> 2.188639834 | S125: =IF('Vurdering af miljøgevinst'!$A$5="Rute 1",Euro6_13.7_17*(1-'Vurdering af miljøgevinst'!$F$13)+Ethanol_13.7_17*'Vurdering af miljøgevinst'!$F$13,"IR") -> 2.188639834 | U125: 17 | AA125: 17 | AG125: 17 | AM125: 17 | AS125: 17 | AY125: 17 | BE125: 17 | BK125: 17 | BQ125: 17 | BW125: 17 | CC125: 17 | CI125: 17 | CO125: 17 | CU125: 17 | DA125: 17 | DG125: 17 | DM125: 17 | DS125: 17 | DY125: 17 | EE125: 17 | EK125: 17 | EQ125: 17 | EW125: 17 | FC125: 17
B126: 18 | C126: 2.216656198 | D126: 2.152093396 | E126: 2.210320552 | F126: 2.030615534 | G126: 1.83166556 | H126: 1.909486137 | I126: 2.126113284 | J126: 1.377921123 | K126: 2.265914923 | O126: 18 | P126: =IF('Vurdering af miljøgevinst'!$A$5="Rute 1",Euro6_13.7_18*(1-'Vurdering af miljøgevinst'!$B$13)+Biodiesel_13.7_18*'Vurdering af miljøgevinst'!$B$13,"IR") -> 2.184966178 | Q126: =IF('Vurdering af miljøgevinst'!$A$5="Rute 1",Euro6_13.7_18*(1-'Vurdering af miljøgevinst'!$B$13)+Ethanol_13.7_18*'Vurdering af miljøgevinst'!$B$13,"IR") -> 1.923098922 | R126: =IF('Vurdering af miljøgevinst'!$A$5="Rute 1",Euro6_13.7_18*(1-'Vurdering af miljøgevinst'!$F$13)+Biodiesel_13.7_18*'Vurdering af miljøgevinst'!$F$13,"IR") -> 2.216656198 | S126: =IF('Vurdering af miljøgevinst'!$A$5="Rute 1",Euro6_13.7_18*(1-'Vurdering af miljøgevinst'!$F$13)+Ethanol_13.7_18*'Vurdering af miljøgevinst'!$F$13,"IR") -> 2.216656198 | U126: 18 | AA126: 18 | AG126: 18 | AM126: 18 | AS126: 18 | AY126: 18 | BE126: 18 | BK126: 18 | BQ126: 18 | BW126: 18 | CC126: 18 | CI126: 18 | CO126: 18 | CU126: 18 | DA126: 18 | DG126: 18 | DM126: 18 | DS126: 18 | DY126: 18 | EE126: 18 | EK126: 18 | EQ126: 18 | EW126: 18 | FC126: 18
B127: 19 | C127: 2.244672563 | D127: 2.17929375 | E127: 2.229960245 | F127: 2.052050052 | G127: 1.852217958 | H127: 1.926064808 | I127: 2.152754656 | J127: 1.395336697 | K127: 2.294553869 | O127: 19 | P127: =IF('Vurdering af miljøgevinst'!$A$5="Rute 1",Euro6_13.7_19*(1-'Vurdering af miljøgevinst'!$B$13)+Biodiesel_13.7_19*'Vurdering af miljøgevinst'!$B$13,"IR") -> 2.212501295 | Q127: =IF('Vurdering af miljøgevinst'!$A$5="Rute 1",Euro6_13.7_19*(1-'Vurdering af miljøgevinst'!$B$13)+Ethanol_13.7_19*'Vurdering af miljøgevinst'!$B$13,"IR") -> 1.94740501 | R127: =IF('Vurdering af miljøgevinst'!$A$5="Rute 1",Euro6_13.7_19*(1-'Vurdering af miljøgevinst'!$F$13)+Biodiesel_13.7_19*'Vurdering af miljøgevinst'!$F$13,"IR") -> 2.244672563 | S127: =IF('Vurdering af miljøgevinst'!$A$5="Rute 1",Euro6_13.7_19*(1-'Vurdering af miljøgevinst'!$F$13)+Ethanol_13.7_19*'Vurdering af miljøgevinst'!$F$13,"IR") -> 2.244672563 | U127: 19 | AA127: 19 | AG127: 19 | AM127: 19 | AS127: 19 | AY127: 19 | BE127: 19 | BK127: 19 | BQ127: 19 | BW127: 19 | CC127: 19 | CI127: 19 | CO127: 19 | CU127: 19 | DA127: 19 | DG127: 19 | DM127: 19 | DS127: 19 | DY127: 19 | EE127: 19 | EK127: 19 | EQ127: 19 | EW127: 19 | FC127: 19
B128: 20 | C128: 2.272688927 | D128: 2.206494104 | E128: 2.249599938 | F128: 2.07348457 | G128: 1.872770357 | H128: 1.94264348 | I128: 2.179390593 | J128: 1.412752271 | K128: 2.323192816 | O128: 20 | P128: =IF('Vurdering af miljøgevinst'!$A$5="Rute 1",Euro6_13.7_20*(1-'Vurdering af miljøgevinst'!$B$13)+Biodiesel_13.7_20*'Vurdering af miljøgevinst'!$B$13,"IR") -> 2.24003451 | Q128: =IF('Vurdering af miljøgevinst'!$A$5="Rute 1",Euro6_13.7_20*(1-'Vurdering af miljøgevinst'!$B$13)+Ethanol_13.7_20*'Vurdering af miljøgevinst'!$B$13,"IR") -> 1.971711097 | R128: =IF('Vurdering af miljøgevinst'!$A$5="Rute 1",Euro6_13.7_20*(1-'Vurdering af miljøgevinst'!$F$13)+Biodiesel_13.7_20*'Vurdering af miljøgevinst'!$F$13,"IR") -> 2.272688927 | S128: =IF('Vurdering af miljøgevinst'!$A$5="Rute 1",Euro6_13.7_20*(1-'Vurdering af miljøgevinst'!$F$13)+Ethanol_13.7_20*'Vurdering af miljøgevinst'!$F$13,"IR") -> 2.272688927 | U128: 20 | AA128: 20 | AG128: 20 | AM128: 20 | AS128: 20 | AY128: 20 | BE128: 20 | BK128: 20 | BQ128: 20 | BW128: 20 | CC128: 20 | CI128: 20 | CO128: 20 | CU128: 20 | DA128: 20 | DG128: 20 | DM128: 20 | DS128: 20 | DY128: 20 | EE128: 20 | EK128: 20 | EQ128: 20 | EW128: 20 | FC128: 20
B129: 21 | C129: 2.300705292 | D129: 2.233694458 | E129: 2.269239632 | F129: 2.094919088 | G129: 1.893322755 | H129: 1.959222151 | I129: 2.206021107 | J129: 1.430167845 | K129: 2.351831762 | O129: 21 | P129: =IF('Vurdering af miljøgevinst'!$A$5="Rute 1",Euro6_13.7_21*(1-'Vurdering af miljøgevinst'!$B$13)+Biodiesel_13.7_21*'Vurdering af miljøgevinst'!$B$13,"IR") -> 2.267565827 | Q129: =IF('Vurdering af miljøgevinst'!$A$5="Rute 1",Euro6_13.7_21*(1-'Vurdering af miljøgevinst'!$B$13)+Ethanol_13.7_21*'Vurdering af miljøgevinst'!$B$13,"IR") -> 1.996017185 | R129: =IF('Vurdering af miljøgevinst'!$A$5="Rute 1",Euro6_13.7_21*(1-'Vurdering af miljøgevinst'!$F$13)+Biodiesel_13.7_21*'Vurdering af miljøgevinst'!$F$13,"IR") -> 2.300705292 | S129: =IF('Vurdering af miljøgevinst'!$A$5="Rute 1",Euro6_13.7_21*(1-'Vurdering af miljøgevinst'!$F$13)+Ethanol_13.7_21*'Vurdering af miljøgevinst'!$F$13,"IR") -> 2.300705292 | U129: 21 | AA129: 21 | AG129: 21 | AM129: 21 | AS129: 21 | AY129: 21 | BE129: 21 | BK129: 21 | BQ129: 21 | BW129: 21 | CC129: 21 | CI129: 21 | CO129: 21 | CU129: 21 | DA129: 21 | DG129: 21 | DM129: 21 | DS129: 21 | DY129: 21 | EE129: 21 | EK129: 21 | EQ129: 21 | EW129: 21 | FC129: 21
B130: 22 | C130: 2.328721656 | D130: 2.260894812 | E130: 2.288879325 | F130: 2.116353606 | G130: 1.913875153 | H130: 1.975800822 | I130: 2.232646209 | J130: 1.447583419 | K130: 2.380470709 | O130: 22 | P130: =IF('Vurdering af miljøgevinst'!$A$5="Rute 1",Euro6_13.7_22*(1-'Vurdering af miljøgevinst'!$B$13)+Biodiesel_13.7_22*'Vurdering af miljøgevinst'!$B$13,"IR") -> 2.29509525 | Q130: =IF('Vurdering af miljøgevinst'!$A$5="Rute 1",Euro6_13.7_22*(1-'Vurdering af miljøgevinst'!$B$13)+Ethanol_13.7_22*'Vurdering af miljøgevinst'!$B$13,"IR") -> 2.020323273 | R130: =IF('Vurdering af miljøgevinst'!$A$5="Rute 1",Euro6_13.7_22*(1-'Vurdering af miljøgevinst'!$F$13)+Biodiesel_13.7_22*'Vurdering af miljøgevinst'!$F$13,"IR") -> 2.328721656 | S130: =IF('Vurdering af miljøgevinst'!$A$5="Rute 1",Euro6_13.7_22*(1-'Vurdering af miljøgevinst'!$F$13)+Ethanol_13.7_22*'Vurdering af miljøgevinst'!$F$13,"IR") -> 2.328721656 | U130: 22 | AA130: 22 | AG130: 22 | AM130: 22 | AS130: 22 | AY130: 22 | BE130: 22 | BK130: 22 | BQ130: 22 | BW130: 22 | CC130: 22 | CI130: 22 | CO130: 22 | CU130: 22 | DA130: 22 | DG130: 22 | DM130: 22 | DS130: 22 | DY130: 22 | EE130: 22 | EK130: 22 | EQ130: 22 | EW130: 22 | FC130: 22
B131: 23 | C131: 2.35673802 | D131: 2.288095165 | E131: 2.308519019 | F131: 2.137788124 | G131: 1.934427551 | H131: 1.992379493 | I131: 2.25926591 | J131: 1.464998993 | K131: 2.409109655 | O131: 23 | P131: =IF('Vurdering af miljøgevinst'!$A$5="Rute 1",Euro6_13.7_23*(1-'Vurdering af miljøgevinst'!$B$13)+Biodiesel_13.7_23*'Vurdering af miljøgevinst'!$B$13,"IR") -> 2.322622782 | Q131: =IF('Vurdering af miljøgevinst'!$A$5="Rute 1",Euro6_13.7_23*(1-'Vurdering af miljøgevinst'!$B$13)+Ethanol_13.7_23*'Vurdering af miljøgevinst'!$B$13,"IR") -> 2.044629361 | R131: =IF('Vurdering af miljøgevinst'!$A$5="Rute 1",Euro6_13.7_23*(1-'Vurdering af miljøgevinst'!$F$13)+Biodiesel_13.7_23*'Vurdering af miljøgevinst'!$F$13,"IR") -> 2.35673802 | S131: =IF('Vurdering af miljøgevinst'!$A$5="Rute 1",Euro6_13.7_23*(1-'Vurdering af miljøgevinst'!$F$13)+Ethanol_13.7_23*'Vurdering af miljøgevinst'!$F$13,"IR") -> 2.35673802 | U131: 23 | AA131: 23 | AG131: 23 | AM131: 23 | AS131: 23 | AY131: 23 | BE131: 23 | BK131: 23 | BQ131: 23 | BW131: 23 | CC131: 23 | CI131: 23 | CO131: 23 | CU131: 23 | DA131: 23 | DG131: 23 | DM131: 23 | DS131: 23 | DY131: 23 | EE131: 23 | EK131: 23 | EQ131: 23 | EW131: 23 | FC131: 23
B132: 24 | C132: 2.384754385 | D132: 2.315295519 | E132: 2.328158712 | F132: 2.159222641 | G132: 1.95497995 | H132: 2.008958165 | I132: 2.285880221 | J132: 1.482414567 | K132: 2.437748602 | O132: 24 | P132: =IF('Vurdering af miljøgevinst'!$A$5="Rute 1",Euro6_13.7_24*(1-'Vurdering af miljøgevinst'!$B$13)+Biodiesel_13.7_24*'Vurdering af miljøgevinst'!$B$13,"IR") -> 2.350148427 | Q132: =IF('Vurdering af miljøgevinst'!$A$5="Rute 1",Euro6_13.7_24*(1-'Vurdering af miljøgevinst'!$B$13)+Ethanol_13.7_24*'Vurdering af miljøgevinst'!$B$13,"IR") -> 2.068935449 | R132: =IF('Vurdering af miljøgevinst'!$A$5="Rute 1",Euro6_13.7_24*(1-'Vurdering af miljøgevinst'!$F$13)+Biodiesel_13.7_24*'Vurdering af miljøgevinst'!$F$13,"IR") -> 2.384754385 | S132: =IF('Vurdering af miljøgevinst'!$A$5="Rute 1",Euro6_13.7_24*(1-'Vurdering af miljøgevinst'!$F$13)+Ethanol_13.7_24*'Vurdering af miljøgevinst'!$F$13,"IR") -> 2.384754385 | U132: 24 | AA132: 24 | AG132: 24 | AM132: 24 | AS132: 24 | AY132: 24 | BE132: 24 | BK132: 24 | BQ132: 24 | BW132: 24 | CC132: 24 | CI132: 24 | CO132: 24 | CU132: 24 | DA132: 24 | DG132: 24 | DM132: 24 | DS132: 24 | DY132: 24 | EE132: 24 | EK132: 24 | EQ132: 24 | EW132: 24 | FC132: 24
B133: 25 | C133: 2.412770749 | D133: 2.342495873 | E133: 2.347798406 | F133: 2.180657159 | G133: 1.975532348 | H133: 2.025536836 | I133: 2.312489153 | J133: 1.499830141 | K133: 2.466387548 | O133: 25 | P133: =IF('Vurdering af miljøgevinst'!$A$5="Rute 1",Euro6_13.7_25*(1-'Vurdering af miljøgevinst'!$B$13)+Biodiesel_13.7_25*'Vurdering af miljøgevinst'!$B$13,"IR") -> 2.377672191 | Q133: =IF('Vurdering af miljøgevinst'!$A$5="Rute 1",Euro6_13.7_25*(1-'Vurdering af miljøgevinst'!$B$13)+Ethanol_13.7_25*'Vurdering af miljøgevinst'!$B$13,"IR") -> 2.093241536 | R133: =IF('Vurdering af miljøgevinst'!$A$5="Rute 1",Euro6_13.7_25*(1-'Vurdering af miljøgevinst'!$F$13)+Biodiesel_13.7_25*'Vurdering af miljøgevinst'!$F$13,"IR") -> 2.412770749 | S133: =IF('Vurdering af miljøgevinst'!$A$5="Rute 1",Euro6_13.7_25*(1-'Vurdering af miljøgevinst'!$F$13)+Ethanol_13.7_25*'Vurdering af miljøgevinst'!$F$13,"IR") -> 2.412770749 | U133: 25 | AA133: 25 | AG133: 25 | AM133: 25 | AS133: 25 | AY133: 25 | BE133: 25 | BK133: 25 | BQ133: 25 | BW133: 25 | CC133: 25 | CI133: 25 | CO133: 25 | CU133: 25 | DA133: 25 | DG133: 25 | DM133: 25 | DS133: 25 | DY133: 25 | EE133: 25 | EK133: 25 | EQ133: 25 | EW133: 25 | FC133: 25
B134: 26 | C134: 2.440787114 | D134: 2.369696227 | E134: 2.367438099 | F134: 2.202091677 | G134: 1.996084746 | H134: 2.042115507 | I134: 2.339092718 | J134: 1.517245716 | K134: 2.495026495 | O134: 26 | P134: =IF('Vurdering af miljøgevinst'!$A$5="Rute 1",Euro6_13.7_26*(1-'Vurdering af miljøgevinst'!$B$13)+Biodiesel_13.7_26*'Vurdering af miljøgevinst'!$B$13,"IR") -> 2.405194075 | Q134: =IF('Vurdering af miljøgevinst'!$A$5="Rute 1",Euro6_13.7_26*(1-'Vurdering af miljøgevinst'!$B$13)+Ethanol_13.7_26*'Vurdering af miljøgevinst'!$B$13,"IR") -> 2.117547624 | R134: =IF('Vurdering af miljøgevinst'!$A$5="Rute 1",Euro6_13.7_26*(1-'Vurdering af miljøgevinst'!$F$13)+Biodiesel_13.7_26*'Vurdering af miljøgevinst'!$F$13,"IR") -> 2.440787114 | S134: =IF('Vurdering af miljøgevinst'!$A$5="Rute 1",Euro6_13.7_26*(1-'Vurdering af miljøgevinst'!$F$13)+Ethanol_13.7_26*'Vurdering af miljøgevinst'!$F$13,"IR") -> 2.440787114 | U134: 26 | AA134: 26 | AG134: 26 | AM134: 26 | AS134: 26 | AY134: 26 | BE134: 26 | BK134: 26 | BQ134: 26 | BW134: 26 | CC134: 26 | CI134: 26 | CO134: 26 | CU134: 26 | DA134: 26 | DG134: 26 | DM134: 26 | DS134: 26 | DY134: 26 | EE134: 26 | EK134: 26 | EQ134: 26 | EW134: 26 | FC134: 26
B135: 27 | C135: 2.468803478 | D135: 2.396896581 | E135: 2.387077792 | F135: 2.223526195 | G135: 2.016637144 | H135: 2.058694178 | I135: 2.365690926 | J135: 1.53466129 | K135: 2.523665441 | O135: 27 | P135: =IF('Vurdering af miljøgevinst'!$A$5="Rute 1",Euro6_13.7_27*(1-'Vurdering af miljøgevinst'!$B$13)+Biodiesel_13.7_27*'Vurdering af miljøgevinst'!$B$13,"IR") -> 2.432714085 | Q135: =IF('Vurdering af miljøgevinst'!$A$5="Rute 1",Euro6_13.7_27*(1-'Vurdering af miljøgevinst'!$B$13)+Ethanol_13.7_27*'Vurdering af miljøgevinst'!$B$13,"IR") -> 2.141853712 | R135: =IF('Vurdering af miljøgevinst'!$A$5="Rute 1",Euro6_13.7_27*(1-'Vurdering af miljøgevinst'!$F$13)+Biodiesel_13.7_27*'Vurdering af miljøgevinst'!$F$13,"IR") -> 2.468803478 | S135: =IF('Vurdering af miljøgevinst'!$A$5="Rute 1",Euro6_13.7_27*(1-'Vurdering af miljøgevinst'!$F$13)+Ethanol_13.7_27*'Vurdering af miljøgevinst'!$F$13,"IR") -> 2.468803478 | U135: 27 | AA135: 27 | AG135: 27 | AM135: 27 | AS135: 27 | AY135: 27 | BE135: 27 | BK135: 27 | BQ135: 27 | BW135: 27 | CC135: 27 | CI135: 27 | CO135: 27 | CU135: 27 | DA135: 27 | DG135: 27 | DM135: 27 | DS135: 27 | DY135: 27 | EE135: 27 | EK135: 27 | EQ135: 27 | EW135: 27 | FC135: 27
B136: 28 | C136: 2.496819842 | D136: 2.424096934 | E136: 2.406717486 | F136: 2.244960713 | G136: 2.037189542 | H136: 2.07527285 | I136: 2.392283789 | J136: 1.552076864 | K136: 2.552304387 | O136: 28 | P136: =IF('Vurdering af miljøgevinst'!$A$5="Rute 1",Euro6_13.7_28*(1-'Vurdering af miljøgevinst'!$B$13)+Biodiesel_13.7_28*'Vurdering af miljøgevinst'!$B$13,"IR") -> 2.460232224 | Q136: =IF('Vurdering af miljøgevinst'!$A$5="Rute 1",Euro6_13.7_28*(1-'Vurdering af miljøgevinst'!$B$13)+Ethanol_13.7_28*'Vurdering af miljøgevinst'!$B$13,"IR") -> 2.1661598 | R136: =IF('Vurdering af miljøgevinst'!$A$5="Rute 1",Euro6_13.7_28*(1-'Vurdering af miljøgevinst'!$F$13)+Biodiesel_13.7_28*'Vurdering af miljøgevinst'!$F$13,"IR") -> 2.496819842 | S136: =IF('Vurdering af miljøgevinst'!$A$5="Rute 1",Euro6_13.7_28*(1-'Vurdering af miljøgevinst'!$F$13)+Ethanol_13.7_28*'Vurdering af miljøgevinst'!$F$13,"IR") -> 2.496819842 | U136: 28 | AA136: 28 | AG136: 28 | AM136: 28 | AS136: 28 | AY136: 28 | BE136: 28 | BK136: 28 | BQ136: 28 | BW136: 28 | CC136: 28 | CI136: 28 | CO136: 28 | CU136: 28 | DA136: 28 | DG136: 28 | DM136: 28 | DS136: 28 | DY136: 28 | EE136: 28 | EK136: 28 | EQ136: 28 | EW136: 28 | FC136: 28
B137: 29 | C137: 2.524836207 | D137: 2.451297288 | E137: 2.426357179 | F137: 2.266395231 | G137: 2.057741941 | H137: 2.091851521 | I137: 2.418871317 | J137: 1.569492438 | K137: 2.580943334 | O137: 29 | P137: =IF('Vurdering af miljøgevinst'!$A$5="Rute 1",Euro6_13.7_29*(1-'Vurdering af miljøgevinst'!$B$13)+Biodiesel_13.7_29*'Vurdering af miljøgevinst'!$B$13,"IR") -> 2.487748495 | Q137: =IF('Vurdering af miljøgevinst'!$A$5="Rute 1",Euro6_13.7_29*(1-'Vurdering af miljøgevinst'!$B$13)+Ethanol_13.7_29*'Vurdering af miljøgevinst'!$B$13,"IR") -> 2.190465888 | R137: =IF('Vurdering af miljøgevinst'!$A$5="Rute 1",Euro6_13.7_29*(1-'Vurdering af miljøgevinst'!$F$13)+Biodiesel_13.7_29*'Vurdering af miljøgevinst'!$F$13,"IR") -> 2.524836207 | S137: =IF('Vurdering af miljøgevinst'!$A$5="Rute 1",Euro6_13.7_29*(1-'Vurdering af miljøgevinst'!$F$13)+Ethanol_13.7_29*'Vurdering af miljøgevinst'!$F$13,"IR") -> 2.524836207 | U137: 29 | AA137: 29 | AG137: 29 | AM137: 29 | AS137: 29 | AY137: 29 | BE137: 29 | BK137: 29 | BQ137: 29 | BW137: 29 | CC137: 29 | CI137: 29 | CO137: 29 | CU137: 29 | DA137: 29 | DG137: 29 | DM137: 29 | DS137: 29 | DY137: 29 | EE137: 29 | EK137: 29 | EQ137: 29 | EW137: 29 | FC137: 29
B138: 30 | C138: 2.552852571 | D138: 2.478497642 | E138: 2.445996873 | F138: 2.287829749 | G138: 2.078294339 | H138: 2.108430192 | I138: 2.445453522 | J138: 1.586908012 | K138: 2.60958228 | O138: 30 | P138: =IF('Vurdering af miljøgevinst'!$A$5="Rute 1",Euro6_13.7_30*(1-'Vurdering af miljøgevinst'!$B$13)+Biodiesel_13.7_30*'Vurdering af miljøgevinst'!$B$13,"IR") -> 2.515262904 | Q138: =IF('Vurdering af miljøgevinst'!$A$5="Rute 1",Euro6_13.7_30*(1-'Vurdering af miljøgevinst'!$B$13)+Ethanol_13.7_30*'Vurdering af miljøgevinst'!$B$13,"IR") -> 2.214771975 | R138: =IF('Vurdering af miljøgevinst'!$A$5="Rute 1",Euro6_13.7_30*(1-'Vurdering af miljøgevinst'!$F$13)+Biodiesel_13.7_30*'Vurdering af miljøgevinst'!$F$13,"IR") -> 2.552852571 | S138: =IF('Vurdering af miljøgevinst'!$A$5="Rute 1",Euro6_13.7_30*(1-'Vurdering af miljøgevinst'!$F$13)+Ethanol_13.7_30*'Vurdering af miljøgevinst'!$F$13,"IR") -> 2.552852571 | U138: 30 | AA138: 30 | AG138: 30 | AM138: 30 | AS138: 30 | AY138: 30 | BE138: 30 | BK138: 30 | BQ138: 30 | BW138: 30 | CC138: 30 | CI138: 30 | CO138: 30 | CU138: 30 | DA138: 30 | DG138: 30 | DM138: 30 | DS138: 30 | DY138: 30 | EE138: 30 | EK138: 30 | EQ138: 30 | EW138: 30 | FC138: 30
B139: 31 | C139: 2.580868936 | D139: 2.505697996 | E139: 2.465636566 | F139: 2.309264267 | G139: 2.098846737 | H139: 2.125008863 | I139: 2.472030414 | J139: 1.604323586 | K139: 2.638221227 | O139: 31 | P139: =IF('Vurdering af miljøgevinst'!$A$5="Rute 1",Euro6_13.7_31*(1-'Vurdering af miljøgevinst'!$B$13)+Biodiesel_13.7_31*'Vurdering af miljøgevinst'!$B$13,"IR") -> 2.542775453 | Q139: =IF('Vurdering af miljøgevinst'!$A$5="Rute 1",Euro6_13.7_31*(1-'Vurdering af miljøgevinst'!$B$13)+Ethanol_13.7_31*'Vurdering af miljøgevinst'!$B$13,"IR") -> 2.239078063 | R139: =IF('Vurdering af miljøgevinst'!$A$5="Rute 1",Euro6_13.7_31*(1-'Vurdering af miljøgevinst'!$F$13)+Biodiesel_13.7_31*'Vurdering af miljøgevinst'!$F$13,"IR") -> 2.580868936 | S139: =IF('Vurdering af miljøgevinst'!$A$5="Rute 1",Euro6_13.7_31*(1-'Vurdering af miljøgevinst'!$F$13)+Ethanol_13.7_31*'Vurdering af miljøgevinst'!$F$13,"IR") -> 2.580868936 | U139: 31 | AA139: 31 | AG139: 31 | AM139: 31 | AS139: 31 | AY139: 31 | BE139: 31 | BK139: 31 | BQ139: 31 | BW139: 31 | CC139: 31 | CI139: 31 | CO139: 31 | CU139: 31 | DA139: 31 | DG139: 31 | DM139: 31 | DS139: 31 | DY139: 31 | EE139: 31 | EK139: 31 | EQ139: 31 | EW139: 31 | FC139: 31
B140: 32 | C140: 2.6088853 | D140: 2.53289835 | E140: 2.48527626 | F140: 2.330698785 | G140: 2.119399135 | H140: 2.141587535 | I140: 2.498602004 | J140: 1.62173916 | K140: 2.666860173 | O140: 32 | P140: =IF('Vurdering af miljøgevinst'!$A$5="Rute 1",Euro6_13.7_32*(1-'Vurdering af miljøgevinst'!$B$13)+Biodiesel_13.7_32*'Vurdering af miljøgevinst'!$B$13,"IR") -> 2.570286146 | Q140: =IF('Vurdering af miljøgevinst'!$A$5="Rute 1",Euro6_13.7_32*(1-'Vurdering af miljøgevinst'!$B$13)+Ethanol_13.7_32*'Vurdering af miljøgevinst'!$B$13,"IR") -> 2.263384151 | R140: =IF('Vurdering af miljøgevinst'!$A$5="Rute 1",Euro6_13.7_32*(1-'Vurdering af miljøgevinst'!$F$13)+Biodiesel_13.7_32*'Vurdering af miljøgevinst'!$F$13,"IR") -> 2.6088853 | S140: =IF('Vurdering af miljøgevinst'!$A$5="Rute 1",Euro6_13.7_32*(1-'Vurdering af miljøgevinst'!$F$13)+Ethanol_13.7_32*'Vurdering af miljøgevinst'!$F$13,"IR") -> 2.6088853 | U140: 32 | AA140: 32 | AG140: 32 | AM140: 32 | AS140: 32 | AY140: 32 | BE140: 32 | BK140: 32 | BQ140: 32 | BW140: 32 | CC140: 32 | CI140: 32 | CO140: 32 | CU140: 32 | DA140: 32 | DG140: 32 | DM140: 32 | DS140: 32 | DY140: 32 | EE140: 32 | EK140: 32 | EQ140: 32 | EW140: 32 | FC140: 32
B141: 33 | C141: 2.636901664 | D141: 2.560098703 | E141: 2.504915953 | F141: 2.352133303 | G141: 2.139951534 | H141: 2.158166206 | I141: 2.525168303 | J141: 1.639154734 | K141: 2.69549912 | O141: 33 | P141: =IF('Vurdering af miljøgevinst'!$A$5="Rute 1",Euro6_13.7_33*(1-'Vurdering af miljøgevinst'!$B$13)+Biodiesel_13.7_33*'Vurdering af miljøgevinst'!$B$13,"IR") -> 2.597794988 | Q141: =IF('Vurdering af miljøgevinst'!$A$5="Rute 1",Euro6_13.7_33*(1-'Vurdering af miljøgevinst'!$B$13)+Ethanol_13.7_33*'Vurdering af miljøgevinst'!$B$13,"IR") -> 2.287690239 | R141: =IF('Vurdering af miljøgevinst'!$A$5="Rute 1",Euro6_13.7_33*(1-'Vurdering af miljøgevinst'!$F$13)+Biodiesel_13.7_33*'Vurdering af miljøgevinst'!$F$13,"IR") -> 2.636901664 | S141: =IF('Vurdering af miljøgevinst'!$A$5="Rute 1",Euro6_13.7_33*(1-'Vurdering af miljøgevinst'!$F$13)+Ethanol_13.7_33*'Vurdering af miljøgevinst'!$F$13,"IR") -> 2.636901664 | U141: 33 | AA141: 33 | AG141: 33 | AM141: 33 | AS141: 33 | AY141: 33 | BE141: 33 | BK141: 33 | BQ141: 33 | BW141: 33 | CC141: 33 | CI141: 33 | CO141: 33 | CU141: 33 | DA141: 33 | DG141: 33 | DM141: 33 | DS141: 33 | DY141: 33 | EE141: 33 | EK141: 33 | EQ141: 33 | EW141: 33 | FC141: 33
B142: 34 | C142: 2.664918029 | D142: 2.587299057 | E142: 2.524555647 | F142: 2.373567821 | G142: 2.160503932 | H142: 2.174744877 | I142: 2.551729323 | J142: 1.656570308 | K142: 2.724138066 | O142: 34 | P142: =IF('Vurdering af miljøgevinst'!$A$5="Rute 1",Euro6_13.7_34*(1-'Vurdering af miljøgevinst'!$B$13)+Biodiesel_13.7_34*'Vurdering af miljøgevinst'!$B$13,"IR") -> 2.625301982 | Q142: =IF('Vurdering af miljøgevinst'!$A$5="Rute 1",Euro6_13.7_34*(1-'Vurdering af miljøgevinst'!$B$13)+Ethanol_13.7_34*'Vurdering af miljøgevinst'!$B$13,"IR") -> 2.311996327 | R142: =IF('Vurdering af miljøgevinst'!$A$5="Rute 1",Euro6_13.7_34*(1-'Vurdering af miljøgevinst'!$F$13)+Biodiesel_13.7_34*'Vurdering af miljøgevinst'!$F$13,"IR") -> 2.664918029 | S142: =IF('Vurdering af miljøgevinst'!$A$5="Rute 1",Euro6_13.7_34*(1-'Vurdering af miljøgevinst'!$F$13)+Ethanol_13.7_34*'Vurdering af miljøgevinst'!$F$13,"IR") -> 2.664918029 | U142: 34 | AA142: 34 | AG142: 34 | AM142: 34 | AS142: 34 | AY142: 34 | BE142: 34 | BK142: 34 | BQ142: 34 | BW142: 34 | CC142: 34 | CI142: 34 | CO142: 34 | CU142: 34 | DA142: 34 | DG142: 34 | DM142: 34 | DS142: 34 | DY142: 34 | EE142: 34 | EK142: 34 | EQ142: 34 | EW142: 34 | FC142: 34
B143: 35 | C143: 2.692934393 | D143: 2.614499411 | E143: 2.54419534 | F143: 2.395002339 | G143: 2.18105633 | H143: 2.191323548 | I143: 2.578285073 | J143: 1.673985883 | K143: 2.752777013 | O143: 35 | P143: =IF('Vurdering af miljøgevinst'!$A$5="Rute 1",Euro6_13.7_35*(1-'Vurdering af miljøgevinst'!$B$13)+Biodiesel_13.7_35*'Vurdering af miljøgevinst'!$B$13,"IR") -> 2.652807131 | Q143: =IF('Vurdering af miljøgevinst'!$A$5="Rute 1",Euro6_13.7_35*(1-'Vurdering af miljøgevinst'!$B$13)+Ethanol_13.7_35*'Vurdering af miljøgevinst'!$B$13,"IR") -> 2.336302415 | R143: =IF('Vurdering af miljøgevinst'!$A$5="Rute 1",Euro6_13.7_35*(1-'Vurdering af miljøgevinst'!$F$13)+Biodiesel_13.7_35*'Vurdering af miljøgevinst'!$F$13,"IR") -> 2.692934393 | S143: =IF('Vurdering af miljøgevinst'!$A$5="Rute 1",Euro6_13.7_35*(1-'Vurdering af miljøgevinst'!$F$13)+Ethanol_13.7_35*'Vurdering af miljøgevinst'!$F$13,"IR") -> 2.692934393 | U143: 35 | AA143: 35 | AG143: 35 | AM143: 35 | AS143: 35 | AY143: 35 | BE143: 35 | BK143: 35 | BQ143: 35 | BW143: 35 | CC143: 35 | CI143: 35 | CO143: 35 | CU143: 35 | DA143: 35 | DG143: 35 | DM143: 35 | DS143: 35 | DY143: 35 | EE143: 35 | EK143: 35 | EQ143: 35 | EW143: 35 | FC143: 35
B144: 36 | C144: 2.720950758 | D144: 2.641699765 | E144: 2.563835033 | F144: 2.416436857 | G144: 2.201608728 | H144: 2.20790222 | I144: 2.604835565 | J144: 1.691401457 | K144: 2.781415959 | O144: 36 | P144: =IF('Vurdering af miljøgevinst'!$A$5="Rute 1",Euro6_13.7_36*(1-'Vurdering af miljøgevinst'!$B$13)+Biodiesel_13.7_36*'Vurdering af miljøgevinst'!$B$13,"IR") -> 2.68031044 | Q144: =IF('Vurdering af miljøgevinst'!$A$5="Rute 1",Euro6_13.7_36*(1-'Vurdering af miljøgevinst'!$B$13)+Ethanol_13.7_36*'Vurdering af miljøgevinst'!$B$13,"IR") -> 2.360608502 | R144: =IF('Vurdering af miljøgevinst'!$A$5="Rute 1",Euro6_13.7_36*(1-'Vurdering af miljøgevinst'!$F$13)+Biodiesel_13.7_36*'Vurdering af miljøgevinst'!$F$13,"IR") -> 2.720950758 | S144: =IF('Vurdering af miljøgevinst'!$A$5="Rute 1",Euro6_13.7_36*(1-'Vurdering af miljøgevinst'!$F$13)+Ethanol_13.7_36*'Vurdering af miljøgevinst'!$F$13,"IR") -> 2.720950758 | U144: 36 | AA144: 36 | AG144: 36 | AM144: 36 | AS144: 36 | AY144: 36 | BE144: 36 | BK144: 36 | BQ144: 36 | BW144: 36 | CC144: 36 | CI144: 36 | CO144: 36 | CU144: 36 | DA144: 36 | DG144: 36 | DM144: 36 | DS144: 36 | DY144: 36 | EE144: 36 | EK144: 36 | EQ144: 36 | EW144: 36 | FC144: 36
B145: 37 | C145: 2.748967122 | D145: 2.668900119 | E145: 2.583474727 | F145: 2.437871375 | G145: 2.222161126 | H145: 2.224480891 | I145: 2.631380809 | J145: 1.708817031 | K145: 2.810054906 | O145: 37 | P145: =IF('Vurdering af miljøgevinst'!$A$5="Rute 1",Euro6_13.7_37*(1-'Vurdering af miljøgevinst'!$B$13)+Biodiesel_13.7_37*'Vurdering af miljøgevinst'!$B$13,"IR") -> 2.707811913 | Q145: =IF('Vurdering af miljøgevinst'!$A$5="Rute 1",Euro6_13.7_37*(1-'Vurdering af miljøgevinst'!$B$13)+Ethanol_13.7_37*'Vurdering af miljøgevinst'!$B$13,"IR") -> 2.38491459 | R145: =IF('Vurdering af miljøgevinst'!$A$5="Rute 1",Euro6_13.7_37*(1-'Vurdering af miljøgevinst'!$F$13)+Biodiesel_13.7_37*'Vurdering af miljøgevinst'!$F$13,"IR") -> 2.748967122 | S145: =IF('Vurdering af miljøgevinst'!$A$5="Rute 1",Euro6_13.7_37*(1-'Vurdering af miljøgevinst'!$F$13)+Ethanol_13.7_37*'Vurdering af miljøgevinst'!$F$13,"IR") -> 2.748967122 | U145: 37 | AA145: 37 | AG145: 37 | AM145: 37 | AS145: 37 | AY145: 37 | BE145: 37 | BK145: 37 | BQ145: 37 | BW145: 37 | CC145: 37 | CI145: 37 | CO145: 37 | CU145: 37 | DA145: 37 | DG145: 37 | DM145: 37 | DS145: 37 | DY145: 37 | EE145: 37 | EK145: 37 | EQ145: 37 | EW145: 37 | FC145: 37
B146: 38 | C146: 2.776983486 | D146: 2.696100472 | E146: 2.60311442 | F146: 2.459305892 | G146: 2.242713525 | H146: 2.241059562 | I146: 2.657920816 | J146: 1.726232605 | K146: 2.838693852 | O146: 38 | P146: =IF('Vurdering af miljøgevinst'!$A$5="Rute 1",Euro6_13.7_38*(1-'Vurdering af miljøgevinst'!$B$13)+Biodiesel_13.7_38*'Vurdering af miljøgevinst'!$B$13,"IR") -> 2.735311552 | Q146: =IF('Vurdering af miljøgevinst'!$A$5="Rute 1",Euro6_13.7_38*(1-'Vurdering af miljøgevinst'!$B$13)+Ethanol_13.7_38*'Vurdering af miljøgevinst'!$B$13,"IR") -> 2.409220678 | R146: =IF('Vurdering af miljøgevinst'!$A$5="Rute 1",Euro6_13.7_38*(1-'Vurdering af miljøgevinst'!$F$13)+Biodiesel_13.7_38*'Vurdering af miljøgevinst'!$F$13,"IR") -> 2.776983486 | S146: =IF('Vurdering af miljøgevinst'!$A$5="Rute 1",Euro6_13.7_38*(1-'Vurdering af miljøgevinst'!$F$13)+Ethanol_13.7_38*'Vurdering af miljøgevinst'!$F$13,"IR") -> 2.776983486 | U146: 38 | AA146: 38 | AG146: 38 | AM146: 38 | AS146: 38 | AY146: 38 | BE146: 38 | BK146: 38 | BQ146: 38 | BW146: 38 | CC146: 38 | CI146: 38 | CO146: 38 | CU146: 38 | DA146: 38 | DG146: 38 | DM146: 38 | DS146: 38 | DY146: 38 | EE146: 38 | EK146: 38 | EQ146: 38 | EW146: 38 | FC146: 38
B147: 39 | C147: 2.804999851 | D147: 2.723300826 | E147: 2.622754114 | F147: 2.48074041 | G147: 2.263265923 | H147: 2.257638233 | I147: 2.684455597 | J147: 1.743648179 | K147: 2.867332799 | O147: 39 | P147: =IF('Vurdering af miljøgevinst'!$A$5="Rute 1",Euro6_13.7_39*(1-'Vurdering af miljøgevinst'!$B$13)+Biodiesel_13.7_39*'Vurdering af miljøgevinst'!$B$13,"IR") -> 2.762809362 | Q147: =IF('Vurdering af miljøgevinst'!$A$5="Rute 1",Euro6_13.7_39*(1-'Vurdering af miljøgevinst'!$B$13)+Ethanol_13.7_39*'Vurdering af miljøgevinst'!$B$13,"IR") -> 2.433526766 | R147: =IF('Vurdering af miljøgevinst'!$A$5="Rute 1",Euro6_13.7_39*(1-'Vurdering af miljøgevinst'!$F$13)+Biodiesel_13.7_39*'Vurdering af miljøgevinst'!$F$13,"IR") -> 2.804999851 | S147: =IF('Vurdering af miljøgevinst'!$A$5="Rute 1",Euro6_13.7_39*(1-'Vurdering af miljøgevinst'!$F$13)+Ethanol_13.7_39*'Vurdering af miljøgevinst'!$F$13,"IR") -> 2.804999851 | U147: 39 | AA147: 39 | AG147: 39 | AM147: 39 | AS147: 39 | AY147: 39 | BE147: 39 | BK147: 39 | BQ147: 39 | BW147: 39 | CC147: 39 | CI147: 39 | CO147: 39 | CU147: 39 | DA147: 39 | DG147: 39 | DM147: 39 | DS147: 39 | DY147: 39 | EE147: 39 | EK147: 39 | EQ147: 39 | EW147: 39 | FC147: 39
B148: 40 | C148: 2.833016215 | D148: 2.75050118 | E148: 2.642393807 | F148: 2.502174928 | G148: 2.283818321 | H148: 2.274216905 | I148: 2.710985163 | J148: 1.761063753 | K148: 2.895971745 | O148: 40 | P148: =IF('Vurdering af miljøgevinst'!$A$5="Rute 1",Euro6_13.7_40*(1-'Vurdering af miljøgevinst'!$B$13)+Biodiesel_13.7_40*'Vurdering af miljøgevinst'!$B$13,"IR") -> 2.790305347 | Q148: =IF('Vurdering af miljøgevinst'!$A$5="Rute 1",Euro6_13.7_40*(1-'Vurdering af miljøgevinst'!$B$13)+Ethanol_13.7_40*'Vurdering af miljøgevinst'!$B$13,"IR") -> 2.457832854 | R148: =IF('Vurdering af miljøgevinst'!$A$5="Rute 1",Euro6_13.7_40*(1-'Vurdering af miljøgevinst'!$F$13)+Biodiesel_13.7_40*'Vurdering af miljøgevinst'!$F$13,"IR") -> 2.833016215 | S148: =IF('Vurdering af miljøgevinst'!$A$5="Rute 1",Euro6_13.7_40*(1-'Vurdering af miljøgevinst'!$F$13)+Ethanol_13.7_40*'Vurdering af miljøgevinst'!$F$13,"IR") -> 2.833016215 | U148: 40 | AA148: 40 | AG148: 40 | AM148: 40 | AS148: 40 | AY148: 40 | BE148: 40 | BK148: 40 | BQ148: 40 | BW148: 40 | CC148: 40 | CI148: 40 | CO148: 40 | CU148: 40 | DA148: 40 | DG148: 40 | DM148: 40 | DS148: 40 | DY148: 40 | EE148: 40 | EK148: 40 | EQ148: 40 | EW148: 40 | FC148: 40
B149: 41 | C149: 2.86103258 | D149: 2.777701534 | E149: 2.662033501 | F149: 2.523609446 | G149: 2.304370719 | H149: 2.290795576 | I149: 2.737509524 | J149: 1.778479327 | K149: 2.924610692 | O149: 41 | P149: =IF('Vurdering af miljøgevinst'!$A$5="Rute 1",Euro6_13.7_41*(1-'Vurdering af miljøgevinst'!$B$13)+Biodiesel_13.7_41*'Vurdering af miljøgevinst'!$B$13,"IR") -> 2.81779951 | Q149: =IF('Vurdering af miljøgevinst'!$A$5="Rute 1",Euro6_13.7_41*(1-'Vurdering af miljøgevinst'!$B$13)+Ethanol_13.7_41*'Vurdering af miljøgevinst'!$B$13,"IR") -> 2.482138941 | R149: =IF('Vurdering af miljøgevinst'!$A$5="Rute 1",Euro6_13.7_41*(1-'Vurdering af miljøgevinst'!$F$13)+Biodiesel_13.7_41*'Vurdering af miljøgevinst'!$F$13,"IR") -> 2.86103258 | S149: =IF('Vurdering af miljøgevinst'!$A$5="Rute 1",Euro6_13.7_41*(1-'Vurdering af miljøgevinst'!$F$13)+Ethanol_13.7_41*'Vurdering af miljøgevinst'!$F$13,"IR") -> 2.86103258 | U149: 41 | AA149: 41 | AG149: 41 | AM149: 41 | AS149: 41 | AY149: 41 | BE149: 41 | BK149: 41 | BQ149: 41 | BW149: 41 | CC149: 41 | CI149: 41 | CO149: 41 | CU149: 41 | DA149: 41 | DG149: 41 | DM149: 41 | DS149: 41 | DY149: 41 | EE149: 41 | EK149: 41 | EQ149: 41 | EW149: 41 | FC149: 41
B150: 42 | C150: 2.889048944 | D150: 2.804901888 | E150: 2.681673194 | F150: 2.545043964 | G150: 2.324923118 | H150: 2.307374247 | I150: 2.76402869 | J150: 1.795894901 | K150: 2.953249638 | O150: 42 | P150: =IF('Vurdering af miljøgevinst'!$A$5="Rute 1",Euro6_13.7_42*(1-'Vurdering af miljøgevinst'!$B$13)+Biodiesel_13.7_42*'Vurdering af miljøgevinst'!$B$13,"IR") -> 2.845291855 | Q150: =IF('Vurdering af miljøgevinst'!$A$5="Rute 1",Euro6_13.7_42*(1-'Vurdering af miljøgevinst'!$B$13)+Ethanol_13.7_42*'Vurdering af miljøgevinst'!$B$13,"IR") -> 2.506445029 | R150: =IF('Vurdering af miljøgevinst'!$A$5="Rute 1",Euro6_13.7_42*(1-'Vurdering af miljøgevinst'!$F$13)+Biodiesel_13.7_42*'Vurdering af miljøgevinst'!$F$13,"IR") -> 2.889048944 | S150: =IF('Vurdering af miljøgevinst'!$A$5="Rute 1",Euro6_13.7_42*(1-'Vurdering af miljøgevinst'!$F$13)+Ethanol_13.7_42*'Vurdering af miljøgevinst'!$F$13,"IR") -> 2.889048944 | U150: 42 | AA150: 42 | AG150: 42 | AM150: 42 | AS150: 42 | AY150: 42 | BE150: 42 | BK150: 42 | BQ150: 42 | BW150: 42 | CC150: 42 | CI150: 42 | CO150: 42 | CU150: 42 | DA150: 42 | DG150: 42 | DM150: 42 | DS150: 42 | DY150: 42 | EE150: 42 | EK150: 42 | EQ150: 42 | EW150: 42 | FC150: 42
B151: 43 | C151: 2.917065309 | D151: 2.832102241 | E151: 2.701312887 | F151: 2.566478482 | G151: 2.345475516 | H151: 2.323952918 | I151: 2.790542673 | J151: 1.813310475 | K151: 2.981888584 | O151: 43 | P151: =IF('Vurdering af miljøgevinst'!$A$5="Rute 1",Euro6_13.7_43*(1-'Vurdering af miljøgevinst'!$B$13)+Biodiesel_13.7_43*'Vurdering af miljøgevinst'!$B$13,"IR") -> 2.872782386 | Q151: =IF('Vurdering af miljøgevinst'!$A$5="Rute 1",Euro6_13.7_43*(1-'Vurdering af miljøgevinst'!$B$13)+Ethanol_13.7_43*'Vurdering af miljøgevinst'!$B$13,"IR") -> 2.530751117 | R151: =IF('Vurdering af miljøgevinst'!$A$5="Rute 1",Euro6_13.7_43*(1-'Vurdering af miljøgevinst'!$F$13)+Biodiesel_13.7_43*'Vurdering af miljøgevinst'!$F$13,"IR") -> 2.917065309 | S151: =IF('Vurdering af miljøgevinst'!$A$5="Rute 1",Euro6_13.7_43*(1-'Vurdering af miljøgevinst'!$F$13)+Ethanol_13.7_43*'Vurdering af miljøgevinst'!$F$13,"IR") -> 2.917065309 | U151: 43 | AA151: 43 | AG151: 43 | AM151: 43 | AS151: 43 | AY151: 43 | BE151: 43 | BK151: 43 | BQ151: 43 | BW151: 43 | CC151: 43 | CI151: 43 | CO151: 43 | CU151: 43 | DA151: 43 | DG151: 43 | DM151: 43 | DS151: 43 | DY151: 43 | EE151: 43 | EK151: 43 | EQ151: 43 | EW151: 43 | FC151: 43
B152: 44 | C152: 2.945081673 | D152: 2.859302595 | E152: 2.720952581 | F152: 2.587913 | G152: 2.366027914 | H152: 2.34053159 | I152: 2.817051483 | J152: 1.83072605 | K152: 3.010527531 | O152: 44 | P152: =IF('Vurdering af miljøgevinst'!$A$5="Rute 1",Euro6_13.7_44*(1-'Vurdering af miljøgevinst'!$B$13)+Biodiesel_13.7_44*'Vurdering af miljøgevinst'!$B$13,"IR") -> 2.900271106 | Q152: =IF('Vurdering af miljøgevinst'!$A$5="Rute 1",Euro6_13.7_44*(1-'Vurdering af miljøgevinst'!$B$13)+Ethanol_13.7_44*'Vurdering af miljøgevinst'!$B$13,"IR") -> 2.555057205 | R152: =IF('Vurdering af miljøgevinst'!$A$5="Rute 1",Euro6_13.7_44*(1-'Vurdering af miljøgevinst'!$F$13)+Biodiesel_13.7_44*'Vurdering af miljøgevinst'!$F$13,"IR") -> 2.945081673 | S152: =IF('Vurdering af miljøgevinst'!$A$5="Rute 1",Euro6_13.7_44*(1-'Vurdering af miljøgevinst'!$F$13)+Ethanol_13.7_44*'Vurdering af miljøgevinst'!$F$13,"IR") -> 2.945081673 | U152: 44 | AA152: 44 | AG152: 44 | AM152: 44 | AS152: 44 | AY152: 44 | BE152: 44 | BK152: 44 | BQ152: 44 | BW152: 44 | CC152: 44 | CI152: 44 | CO152: 44 | CU152: 44 | DA152: 44 | DG152: 44 | DM152: 44 | DS152: 44 | DY152: 44 | EE152: 44 | EK152: 44 | EQ152: 44 | EW152: 44 | FC152: 44
B153: 45 | C153: 2.973098037 | D153: 2.886502949 | E153: 2.740592274 | F153: 2.609347518 | G153: 2.386580312 | H153: 2.357110261 | I153: 2.84355513 | J153: 1.848141624 | K153: 3.039166477 | O153: 45 | P153: =IF('Vurdering af miljøgevinst'!$A$5="Rute 1",Euro6_13.7_45*(1-'Vurdering af miljøgevinst'!$B$13)+Biodiesel_13.7_45*'Vurdering af miljøgevinst'!$B$13,"IR") -> 2.92775802 | Q153: =IF('Vurdering af miljøgevinst'!$A$5="Rute 1",Euro6_13.7_45*(1-'Vurdering af miljøgevinst'!$B$13)+Ethanol_13.7_45*'Vurdering af miljøgevinst'!$B$13,"IR") -> 2.579363293 | R153: =IF('Vurdering af miljøgevinst'!$A$5="Rute 1",Euro6_13.7_45*(1-'Vurdering af miljøgevinst'!$F$13)+Biodiesel_13.7_45*'Vurdering af miljøgevinst'!$F$13,"IR") -> 2.973098037 | S153: =IF('Vurdering af miljøgevinst'!$A$5="Rute 1",Euro6_13.7_45*(1-'Vurdering af miljøgevinst'!$F$13)+Ethanol_13.7_45*'Vurdering af miljøgevinst'!$F$13,"IR") -> 2.973098037 | U153: 45 | AA153: 45 | AG153: 45 | AM153: 45 | AS153: 45 | AY153: 45 | BE153: 45 | BK153: 45 | BQ153: 45 | BW153: 45 | CC153: 45 | CI153: 45 | CO153: 45 | CU153: 45 | DA153: 45 | DG153: 45 | DM153: 45 | DS153: 45 | DY153: 45 | EE153: 45 | EK153: 45 | EQ153: 45 | EW153: 45 | FC153: 45
B154: 46 | C154: 3.001114402 | D154: 2.913703303 | E154: 2.760231968 | F154: 2.630782036 | G154: 2.40713271 | H154: 2.373688932 | I154: 2.870053624 | J154: 1.865557198 | K154: 3.067805424 | O154: 46 | P154: =IF('Vurdering af miljøgevinst'!$A$5="Rute 1",Euro6_13.7_46*(1-'Vurdering af miljøgevinst'!$B$13)+Biodiesel_13.7_46*'Vurdering af miljøgevinst'!$B$13,"IR") -> 2.95524313 | Q154: =IF('Vurdering af miljøgevinst'!$A$5="Rute 1",Euro6_13.7_46*(1-'Vurdering af miljøgevinst'!$B$13)+Ethanol_13.7_46*'Vurdering af miljøgevinst'!$B$13,"IR") -> 2.60366938 | R154: =IF('Vurdering af miljøgevinst'!$A$5="Rute 1",Euro6_13.7_46*(1-'Vurdering af miljøgevinst'!$F$13)+Biodiesel_13.7_46*'Vurdering af miljøgevinst'!$F$13,"IR") -> 3.001114402 | S154: =IF('Vurdering af miljøgevinst'!$A$5="Rute 1",Euro6_13.7_46*(1-'Vurdering af miljøgevinst'!$F$13)+Ethanol_13.7_46*'Vurdering af miljøgevinst'!$F$13,"IR") -> 3.001114402 | U154: 46 | AA154: 46 | AG154: 46 | AM154: 46 | AS154: 46 | AY154: 46 | BE154: 46 | BK154: 46 | BQ154: 46 | BW154: 46 | CC154: 46 | CI154: 46 | CO154: 46 | CU154: 46 | DA154: 46 | DG154: 46 | DM154: 46 | DS154: 46 | DY154: 46 | EE154: 46 | EK154: 46 | EQ154: 46 | EW154: 46 | FC154: 46
B155: 47 | C155: 3.029130766 | D155: 2.940903656 | E155: 2.779871661 | F155: 2.652216554 | G155: 2.427685109 | H155: 2.390267603 | I155: 2.896546978 | J155: 1.882972772 | K155: 3.09644437 | O155: 47 | P155: =IF('Vurdering af miljøgevinst'!$A$5="Rute 1",Euro6_13.7_47*(1-'Vurdering af miljøgevinst'!$B$13)+Biodiesel_13.7_47*'Vurdering af miljøgevinst'!$B$13,"IR") -> 2.98272644 | Q155: =IF('Vurdering af miljøgevinst'!$A$5="Rute 1",Euro6_13.7_47*(1-'Vurdering af miljøgevinst'!$B$13)+Ethanol_13.7_47*'Vurdering af miljøgevinst'!$B$13,"IR") -> 2.627975468 | R155: =IF('Vurdering af miljøgevinst'!$A$5="Rute 1",Euro6_13.7_47*(1-'Vurdering af miljøgevinst'!$F$13)+Biodiesel_13.7_47*'Vurdering af miljøgevinst'!$F$13,"IR") -> 3.029130766 | S155: =IF('Vurdering af miljøgevinst'!$A$5="Rute 1",Euro6_13.7_47*(1-'Vurdering af miljøgevinst'!$F$13)+Ethanol_13.7_47*'Vurdering af miljøgevinst'!$F$13,"IR") -> 3.029130766 | U155: 47 | AA155: 47 | AG155: 47 | AM155: 47 | AS155: 47 | AY155: 47 | BE155: 47 | BK155: 47 | BQ155: 47 | BW155: 47 | CC155: 47 | CI155: 47 | CO155: 47 | CU155: 47 | DA155: 47 | DG155: 47 | DM155: 47 | DS155: 47 | DY155: 47 | EE155: 47 | EK155: 47 | EQ155: 47 | EW155: 47 | FC155: 47
B156: 48 | C156: 3.057147131 | D156: 2.96810401 | E156: 2.799511355 | F156: 2.673651072 | G156: 2.448237507 | H156: 2.406846275 | I156: 2.9230352 | J156: 1.900388346 | K156: 3.125083317 | O156: 48 | P156: =IF('Vurdering af miljøgevinst'!$A$5="Rute 1",Euro6_13.7_48*(1-'Vurdering af miljøgevinst'!$B$13)+Biodiesel_13.7_48*'Vurdering af miljøgevinst'!$B$13,"IR") -> 3.010207955 | Q156: =IF('Vurdering af miljøgevinst'!$A$5="Rute 1",Euro6_13.7_48*(1-'Vurdering af miljøgevinst'!$B$13)+Ethanol_13.7_48*'Vurdering af miljøgevinst'!$B$13,"IR") -> 2.652281556 | R156: =IF('Vurdering af miljøgevinst'!$A$5="Rute 1",Euro6_13.7_48*(1-'Vurdering af miljøgevinst'!$F$13)+Biodiesel_13.7_48*'Vurdering af miljøgevinst'!$F$13,"IR") -> 3.057147131 | S156: =IF('Vurdering af miljøgevinst'!$A$5="Rute 1",Euro6_13.7_48*(1-'Vurdering af miljøgevinst'!$F$13)+Ethanol_13.7_48*'Vurdering af miljøgevinst'!$F$13,"IR") -> 3.057147131 | U156: 48 | AA156: 48 | AG156: 48 | AM156: 48 | AS156: 48 | AY156: 48 | BE156: 48 | BK156: 48 | BQ156: 48 | BW156: 48 | CC156: 48 | CI156: 48 | CO156: 48 | CU156: 48 | DA156: 48 | DG156: 48 | DM156: 48 | DS156: 48 | DY156: 48 | EE156: 48 | EK156: 48 | EQ156: 48 | EW156: 48 | FC156: 48
B157: 49 | C157: 3.085163495 | D157: 2.995304364 | E157: 2.819151048 | F157: 2.69508559 | G157: 2.468789905 | H157: 2.423424946 | I157: 2.949518301 | J157: 1.91780392 | K157: 3.153722263 | O157: 49 | P157: =IF('Vurdering af miljøgevinst'!$A$5="Rute 1",Euro6_13.7_49*(1-'Vurdering af miljøgevinst'!$B$13)+Biodiesel_13.7_49*'Vurdering af miljøgevinst'!$B$13,"IR") -> 3.037687677 | Q157: =IF('Vurdering af miljøgevinst'!$A$5="Rute 1",Euro6_13.7_49*(1-'Vurdering af miljøgevinst'!$B$13)+Ethanol_13.7_49*'Vurdering af miljøgevinst'!$B$13,"IR") -> 2.676587644 | R157: =IF('Vurdering af miljøgevinst'!$A$5="Rute 1",Euro6_13.7_49*(1-'Vurdering af miljøgevinst'!$F$13)+Biodiesel_13.7_49*'Vurdering af miljøgevinst'!$F$13,"IR") -> 3.085163495 | S157: =IF('Vurdering af miljøgevinst'!$A$5="Rute 1",Euro6_13.7_49*(1-'Vurdering af miljøgevinst'!$F$13)+Ethanol_13.7_49*'Vurdering af miljøgevinst'!$F$13,"IR") -> 3.085163495 | U157: 49 | AA157: 49 | AG157: 49 | AM157: 49 | AS157: 49 | AY157: 49 | BE157: 49 | BK157: 49 | BQ157: 49 | BW157: 49 | CC157: 49 | CI157: 49 | CO157: 49 | CU157: 49 | DA157: 49 | DG157: 49 | DM157: 49 | DS157: 49 | DY157: 49 | EE157: 49 | EK157: 49 | EQ157: 49 | EW157: 49 | FC157: 49
B158: 50 | C158: 3.113179859 | D158: 3.022504718 | E158: 2.838790741 | F158: 2.716520108 | G158: 2.489342303 | H158: 2.440003617 | I158: 2.975996292 | J158: 1.935219494 | K158: 3.18236121 | O158: 50 | P158: =IF('Vurdering af miljøgevinst'!$A$5="Rute 1",Euro6_13.7_50*(1-'Vurdering af miljøgevinst'!$B$13)+Biodiesel_13.7_50*'Vurdering af miljøgevinst'!$B$13,"IR") -> 3.065165611 | Q158: =IF('Vurdering af miljøgevinst'!$A$5="Rute 1",Euro6_13.7_50*(1-'Vurdering af miljøgevinst'!$B$13)+Ethanol_13.7_50*'Vurdering af miljøgevinst'!$B$13,"IR") -> 2.700893732 | R158: =IF('Vurdering af miljøgevinst'!$A$5="Rute 1",Euro6_13.7_50*(1-'Vurdering af miljøgevinst'!$F$13)+Biodiesel_13.7_50*'Vurdering af miljøgevinst'!$F$13,"IR") -> 3.113179859 | S158: =IF('Vurdering af miljøgevinst'!$A$5="Rute 1",Euro6_13.7_50*(1-'Vurdering af miljøgevinst'!$F$13)+Ethanol_13.7_50*'Vurdering af miljøgevinst'!$F$13,"IR") -> 3.113179859 | U158: 50 | AA158: 50 | AG158: 50 | AM158: 50 | AS158: 50 | AY158: 50 | BE158: 50 | BK158: 50 | BQ158: 50 | BW158: 50 | CC158: 50 | CI158: 50 | CO158: 50 | CU158: 50 | DA158: 50 | DG158: 50 | DM158: 50 | DS158: 50 | DY158: 50 | EE158: 50 | EK158: 50 | EQ158: 50 | EW158: 50 | FC158: 50
B159: 51 | C159: 3.141196224 | D159: 3.049705072 | E159: 2.858430435 | F159: 2.737954625 | G159: 2.509894701 | H159: 2.456582288 | I159: 3.002469183 | J159: 1.952635068 | K159: 3.211000156 | O159: 51 | P159: =IF('Vurdering af miljøgevinst'!$A$5="Rute 1",Euro6_13.7_51*(1-'Vurdering af miljøgevinst'!$B$13)+Biodiesel_13.7_51*'Vurdering af miljøgevinst'!$B$13,"IR") -> 3.092641759 | Q159: =IF('Vurdering af miljøgevinst'!$A$5="Rute 1",Euro6_13.7_51*(1-'Vurdering af miljøgevinst'!$B$13)+Ethanol_13.7_51*'Vurdering af miljøgevinst'!$B$13,"IR") -> 2.725199819 | R159: =IF('Vurdering af miljøgevinst'!$A$5="Rute 1",Euro6_13.7_51*(1-'Vurdering af miljøgevinst'!$F$13)+Biodiesel_13.7_51*'Vurdering af miljøgevinst'!$F$13,"IR") -> 3.141196224 | S159: =IF('Vurdering af miljøgevinst'!$A$5="Rute 1",Euro6_13.7_51*(1-'Vurdering af miljøgevinst'!$F$13)+Ethanol_13.7_51*'Vurdering af miljøgevinst'!$F$13,"IR") -> 3.141196224 | U159: 51 | AA159: 51 | AG159: 51 | AM159: 51 | AS159: 51 | AY159: 51 | BE159: 51 | BK159: 51 | BQ159: 51 | BW159: 51 | CC159: 51 | CI159: 51 | CO159: 51 | CU159: 51 | DA159: 51 | DG159: 51 | DM159: 51 | DS159: 51 | DY159: 51 | EE159: 51 | EK159: 51 | EQ159: 51 | EW159: 51 | FC159: 51
B160: 52 | C160: 3.169212588 | D160: 3.076905425 | E160: 2.878070128 | F160: 2.759389143 | G160: 2.5304471 | H160: 2.47316096 | I160: 3.028936984 | J160: 1.970050642 | K160: 3.239639103 | O160: 52 | P160: =IF('Vurdering af miljøgevinst'!$A$5="Rute 1",Euro6_13.7_52*(1-'Vurdering af miljøgevinst'!$B$13)+Biodiesel_13.7_52*'Vurdering af miljøgevinst'!$B$13,"IR") -> 3.120116127 | Q160: =IF('Vurdering af miljøgevinst'!$A$5="Rute 1",Euro6_13.7_52*(1-'Vurdering af miljøgevinst'!$B$13)+Ethanol_13.7_52*'Vurdering af miljøgevinst'!$B$13,"IR") -> 2.749505907 | R160: =IF('Vurdering af miljøgevinst'!$A$5="Rute 1",Euro6_13.7_52*(1-'Vurdering af miljøgevinst'!$F$13)+Biodiesel_13.7_52*'Vurdering af miljøgevinst'!$F$13,"IR") -> 3.169212588 | S160: =IF('Vurdering af miljøgevinst'!$A$5="Rute 1",Euro6_13.7_52*(1-'Vurdering af miljøgevinst'!$F$13)+Ethanol_13.7_52*'Vurdering af miljøgevinst'!$F$13,"IR") -> 3.169212588 | U160: 52 | AA160: 52 | AG160: 52 | AM160: 52 | AS160: 52 | AY160: 52 | BE160: 52 | BK160: 52 | BQ160: 52 | BW160: 52 | CC160: 52 | CI160: 52 | CO160: 52 | CU160: 52 | DA160: 52 | DG160: 52 | DM160: 52 | DS160: 52 | DY160: 52 | EE160: 52 | EK160: 52 | EQ160: 52 | EW160: 52 | FC160: 52
B161: 53 | C161: 3.197228953 | D161: 3.104105779 | E161: 2.897709822 | F161: 2.780823661 | G161: 2.550999498 | H161: 2.489739631 | I161: 3.055399706 | J161: 1.987466217 | K161: 3.268278049 | O161: 53 | P161: =IF('Vurdering af miljøgevinst'!$A$5="Rute 1",Euro6_13.7_53*(1-'Vurdering af miljøgevinst'!$B$13)+Biodiesel_13.7_53*'Vurdering af miljøgevinst'!$B$13,"IR") -> 3.147588716 | Q161: =IF('Vurdering af miljøgevinst'!$A$5="Rute 1",Euro6_13.7_53*(1-'Vurdering af miljøgevinst'!$B$13)+Ethanol_13.7_53*'Vurdering af miljøgevinst'!$B$13,"IR") -> 2.773811995 | R161: =IF('Vurdering af miljøgevinst'!$A$5="Rute 1",Euro6_13.7_53*(1-'Vurdering af miljøgevinst'!$F$13)+Biodiesel_13.7_53*'Vurdering af miljøgevinst'!$F$13,"IR") -> 3.197228953 | S161: =IF('Vurdering af miljøgevinst'!$A$5="Rute 1",Euro6_13.7_53*(1-'Vurdering af miljøgevinst'!$F$13)+Ethanol_13.7_53*'Vurdering af miljøgevinst'!$F$13,"IR") -> 3.197228953 | U161: 53 | AA161: 53 | AG161: 53 | AM161: 53 | AS161: 53 | AY161: 53 | BE161: 53 | BK161: 53 | BQ161: 53 | BW161: 53 | CC161: 53 | CI161: 53 | CO161: 53 | CU161: 53 | DA161: 53 | DG161: 53 | DM161: 53 | DS161: 53 | DY161: 53 | EE161: 53 | EK161: 53 | EQ161: 53 | EW161: 53 | FC161: 53
B162: 54 | C162: 3.225245317 | D162: 3.131306133 | E162: 2.917349515 | F162: 2.802258179 | G162: 2.571551896 | H162: 2.506318302 | I162: 3.081857358 | J162: 2.004881791 | K162: 3.296916996 | O162: 54 | P162: =IF('Vurdering af miljøgevinst'!$A$5="Rute 1",Euro6_13.7_54*(1-'Vurdering af miljøgevinst'!$B$13)+Biodiesel_13.7_54*'Vurdering af miljøgevinst'!$B$13,"IR") -> 3.175059531 | Q162: =IF('Vurdering af miljøgevinst'!$A$5="Rute 1",Euro6_13.7_54*(1-'Vurdering af miljøgevinst'!$B$13)+Ethanol_13.7_54*'Vurdering af miljøgevinst'!$B$13,"IR") -> 2.798118083 | R162: =IF('Vurdering af miljøgevinst'!$A$5="Rute 1",Euro6_13.7_54*(1-'Vurdering af miljøgevinst'!$F$13)+Biodiesel_13.7_54*'Vurdering af miljøgevinst'!$F$13,"IR") -> 3.225245317 | S162: =IF('Vurdering af miljøgevinst'!$A$5="Rute 1",Euro6_13.7_54*(1-'Vurdering af miljøgevinst'!$F$13)+Ethanol_13.7_54*'Vurdering af miljøgevinst'!$F$13,"IR") -> 3.225245317 | U162: 54 | AA162: 54 | AG162: 54 | AM162: 54 | AS162: 54 | AY162: 54 | BE162: 54 | BK162: 54 | BQ162: 54 | BW162: 54 | CC162: 54 | CI162: 54 | CO162: 54 | CU162: 54 | DA162: 54 | DG162: 54 | DM162: 54 | DS162: 54 | DY162: 54 | EE162: 54 | EK162: 54 | EQ162: 54 | EW162: 54 | FC162: 54
B163: 55 | C163: 3.253261681 | D163: 3.158506487 | E163: 2.936989209 | F163: 2.823692697 | G163: 2.592104294 | H163: 2.522896973 | I163: 3.108309952 | J163: 2.022297365 | K163: 3.325555942 | O163: 55 | P163: =IF('Vurdering af miljøgevinst'!$A$5="Rute 1",Euro6_13.7_55*(1-'Vurdering af miljøgevinst'!$B$13)+Biodiesel_13.7_55*'Vurdering af miljøgevinst'!$B$13,"IR") -> 3.202528576 | Q163: =IF('Vurdering af miljøgevinst'!$A$5="Rute 1",Euro6_13.7_55*(1-'Vurdering af miljøgevinst'!$B$13)+Ethanol_13.7_55*'Vurdering af miljøgevinst'!$B$13,"IR") -> 2.822424171 | R163: =IF('Vurdering af miljøgevinst'!$A$5="Rute 1",Euro6_13.7_55*(1-'Vurdering af miljøgevinst'!$F$13)+Biodiesel_13.7_55*'Vurdering af miljøgevinst'!$F$13,"IR") -> 3.253261681 | S163: =IF('Vurdering af miljøgevinst'!$A$5="Rute 1",Euro6_13.7_55*(1-'Vurdering af miljøgevinst'!$F$13)+Ethanol_13.7_55*'Vurdering af miljøgevinst'!$F$13,"IR") -> 3.253261681 | U163: 55 | AA163: 55 | AG163: 55 | AM163: 55 | AS163: 55 | AY163: 55 | BE163: 55 | BK163: 55 | BQ163: 55 | BW163: 55 | CC163: 55 | CI163: 55 | CO163: 55 | CU163: 55 | DA163: 55 | DG163: 55 | DM163: 55 | DS163: 55 | DY163: 55 | EE163: 55 | EK163: 55 | EQ163: 55 | EW163: 55 | FC163: 55
B164: 56 | C164: 3.281278046 | D164: 3.185706841 | E164: 2.956628902 | F164: 2.845127215 | G164: 2.612656693 | H164: 2.539475645 | I164: 3.134757497 | J164: 2.039712939 | K164: 3.354194889 | O164: 56 | P164: =IF('Vurdering af miljøgevinst'!$A$5="Rute 1",Euro6_13.7_56*(1-'Vurdering af miljøgevinst'!$B$13)+Biodiesel_13.7_56*'Vurdering af miljøgevinst'!$B$13,"IR") -> 3.229995854 | Q164: =IF('Vurdering af miljøgevinst'!$A$5="Rute 1",Euro6_13.7_56*(1-'Vurdering af miljøgevinst'!$B$13)+Ethanol_13.7_56*'Vurdering af miljøgevinst'!$B$13,"IR") -> 2.846730258 | R164: =IF('Vurdering af miljøgevinst'!$A$5="Rute 1",Euro6_13.7_56*(1-'Vurdering af miljøgevinst'!$F$13)+Biodiesel_13.7_56*'Vurdering af miljøgevinst'!$F$13,"IR") -> 3.281278046 | S164: =IF('Vurdering af miljøgevinst'!$A$5="Rute 1",Euro6_13.7_56*(1-'Vurdering af miljøgevinst'!$F$13)+Ethanol_13.7_56*'Vurdering af miljøgevinst'!$F$13,"IR") -> 3.281278046 | U164: 56 | AA164: 56 | AG164: 56 | AM164: 56 | AS164: 56 | AY164: 56 | BE164: 56 | BK164: 56 | BQ164: 56 | BW164: 56 | CC164: 56 | CI164: 56 | CO164: 56 | CU164: 56 | DA164: 56 | DG164: 56 | DM164: 56 | DS164: 56 | DY164: 56 | EE164: 56 | EK164: 56 | EQ164: 56 | EW164: 56 | FC164: 56
B165: 57 | C165: 3.30929441 | D165: 3.212907194 | E165: 2.976268595 | F165: 2.866561733 | G165: 2.633209091 | H165: 2.556054316 | I165: 3.161200003 | J165: 2.057128513 | K165: 3.382833835 | O165: 57 | P165: =IF('Vurdering af miljøgevinst'!$A$5="Rute 1",Euro6_13.7_57*(1-'Vurdering af miljøgevinst'!$B$13)+Biodiesel_13.7_57*'Vurdering af miljøgevinst'!$B$13,"IR") -> 3.257461368 | Q165: =IF('Vurdering af miljøgevinst'!$A$5="Rute 1",Euro6_13.7_57*(1-'Vurdering af miljøgevinst'!$B$13)+Ethanol_13.7_57*'Vurdering af miljøgevinst'!$B$13,"IR") -> 2.871036346 | R165: =IF('Vurdering af miljøgevinst'!$A$5="Rute 1",Euro6_13.7_57*(1-'Vurdering af miljøgevinst'!$F$13)+Biodiesel_13.7_57*'Vurdering af miljøgevinst'!$F$13,"IR") -> 3.30929441 | S165: =IF('Vurdering af miljøgevinst'!$A$5="Rute 1",Euro6_13.7_57*(1-'Vurdering af miljøgevinst'!$F$13)+Ethanol_13.7_57*'Vurdering af miljøgevinst'!$F$13,"IR") -> 3.30929441 | U165: 57 | AA165: 57 | AG165: 57 | AM165: 57 | AS165: 57 | AY165: 57 | BE165: 57 | BK165: 57 | BQ165: 57 | BW165: 57 | CC165: 57 | CI165: 57 | CO165: 57 | CU165: 57 | DA165: 57 | DG165: 57 | DM165: 57 | DS165: 57 | DY165: 57 | EE165: 57 | EK165: 57 | EQ165: 57 | EW165: 57 | FC165: 57
B166: 58 | C166: 3.337310775 | D166: 3.240107548 | E166: 2.995908289 | F166: 2.887996251 | G166: 2.653761489 | H166: 2.572632987 | I166: 3.187637482 | J166: 2.074544087 | K166: 3.411472781 | O166: 58 | P166: =IF('Vurdering af miljøgevinst'!$A$5="Rute 1",Euro6_13.7_58*(1-'Vurdering af miljøgevinst'!$B$13)+Biodiesel_13.7_58*'Vurdering af miljøgevinst'!$B$13,"IR") -> 3.284925122 | Q166: =IF('Vurdering af miljøgevinst'!$A$5="Rute 1",Euro6_13.7_58*(1-'Vurdering af miljøgevinst'!$B$13)+Ethanol_13.7_58*'Vurdering af miljøgevinst'!$B$13,"IR") -> 2.895342434 | R166: =IF('Vurdering af miljøgevinst'!$A$5="Rute 1",Euro6_13.7_58*(1-'Vurdering af miljøgevinst'!$F$13)+Biodiesel_13.7_58*'Vurdering af miljøgevinst'!$F$13,"IR") -> 3.337310775 | S166: =IF('Vurdering af miljøgevinst'!$A$5="Rute 1",Euro6_13.7_58*(1-'Vurdering af miljøgevinst'!$F$13)+Ethanol_13.7_58*'Vurdering af miljøgevinst'!$F$13,"IR") -> 3.337310775 | U166: 58 | AA166: 58 | AG166: 58 | AM166: 58 | AS166: 58 | AY166: 58 | BE166: 58 | BK166: 58 | BQ166: 58 | BW166: 58 | CC166: 58 | CI166: 58 | CO166: 58 | CU166: 58 | DA166: 58 | DG166: 58 | DM166: 58 | DS166: 58 | DY166: 58 | EE166: 58 | EK166: 58 | EQ166: 58 | EW166: 58 | FC166: 58
B167: 59 | C167: 3.365327139 | D167: 3.267307902 | E167: 3.015547982 | F167: 2.909430769 | G167: 2.674313887 | H167: 2.589211658 | I167: 3.214069942 | J167: 2.091959661 | K167: 3.440111728 | O167: 59 | P167: =IF('Vurdering af miljøgevinst'!$A$5="Rute 1",Euro6_13.7_59*(1-'Vurdering af miljøgevinst'!$B$13)+Biodiesel_13.7_59*'Vurdering af miljøgevinst'!$B$13,"IR") -> 3.31238712 | Q167: =IF('Vurdering af miljøgevinst'!$A$5="Rute 1",Euro6_13.7_59*(1-'Vurdering af miljøgevinst'!$B$13)+Ethanol_13.7_59*'Vurdering af miljøgevinst'!$B$13,"IR") -> 2.919648522 | R167: =IF('Vurdering af miljøgevinst'!$A$5="Rute 1",Euro6_13.7_59*(1-'Vurdering af miljøgevinst'!$F$13)+Biodiesel_13.7_59*'Vurdering af miljøgevinst'!$F$13,"IR") -> 3.365327139 | S167: =IF('Vurdering af miljøgevinst'!$A$5="Rute 1",Euro6_13.7_59*(1-'Vurdering af miljøgevinst'!$F$13)+Ethanol_13.7_59*'Vurdering af miljøgevinst'!$F$13,"IR") -> 3.365327139 | U167: 59 | AA167: 59 | AG167: 59 | AM167: 59 | AS167: 59 | AY167: 59 | BE167: 59 | BK167: 59 | BQ167: 59 | BW167: 59 | CC167: 59 | CI167: 59 | CO167: 59 | CU167: 59 | DA167: 59 | DG167: 59 | DM167: 59 | DS167: 59 | DY167: 59 | EE167: 59 | EK167: 59 | EQ167: 59 | EW167: 59 | FC167: 59
B168: 60 | C168: 3.393343503 | D168: 3.294508256 | E168: 3.035187676 | F168: 2.930865287 | G168: 2.694866285 | H168: 2.60579033 | I168: 3.240497394 | J168: 2.109375235 | K168: 3.468750674 | O168: 60 | P168: =IF('Vurdering af miljøgevinst'!$A$5="Rute 1",Euro6_13.7_60*(1-'Vurdering af miljøgevinst'!$B$13)+Biodiesel_13.7_60*'Vurdering af miljøgevinst'!$B$13,"IR") -> 3.339847365 | Q168: =IF('Vurdering af miljøgevinst'!$A$5="Rute 1",Euro6_13.7_60*(1-'Vurdering af miljøgevinst'!$B$13)+Ethanol_13.7_60*'Vurdering af miljøgevinst'!$B$13,"IR") -> 2.94395461 | R168: =IF('Vurdering af miljøgevinst'!$A$5="Rute 1",Euro6_13.7_60*(1-'Vurdering af miljøgevinst'!$F$13)+Biodiesel_13.7_60*'Vurdering af miljøgevinst'!$F$13,"IR") -> 3.393343503 | S168: =IF('Vurdering af miljøgevinst'!$A$5="Rute 1",Euro6_13.7_60*(1-'Vurdering af miljøgevinst'!$F$13)+Ethanol_13.7_60*'Vurdering af miljøgevinst'!$F$13,"IR") -> 3.393343503 | U168: 60 | AA168: 60 | AG168: 60 | AM168: 60 | AS168: 60 | AY168: 60 | BE168: 60 | BK168: 60 | BQ168: 60 | BW168: 60 | CC168: 60 | CI168: 60 | CO168: 60 | CU168: 60 | DA168: 60 | DG168: 60 | DM168: 60 | DS168: 60 | DY168: 60 | EE168: 60 | EK168: 60 | EQ168: 60 | EW168: 60 | FC168: 60
A174: Busstørrelse | B174: Hastighed (km/t) | C174: Euro 6 | D174: EEV | E174: Euro 5 | F174: Euro 4 | G174: Euro 3 | H174: Euro 2 | I174: Biodiesel | J174: Ethanol | K174: Gas | N174: Busstørrelse | O174: Hastighed i km/t | P174: Biodiesel | Q174: Ethanol | R174: Biodiesel | S174: Ethanol | T174: Busstørrelse | U174: Hastighed i km/t | V174: Biodiesel | W174: Ethanol | X174: Biodiesel | Y174: Ethanol | Z174: Busstørrelse | AA174: Hastighed i km/t | AB174: Biodiesel | AC174: Ethanol | AD174: Biodiesel | AE174: Ethanol | AF174: Busstørrelse | AG174: Hastighed i km/t | AH174: Biodiesel | AI174: Ethanol | AJ174: Biodiesel | AK174: Ethanol | AL174: Busstørrelse | AM174: Hastighed i km/t | AN174: Biodiesel | AO174: Ethanol | AP174: Biodiesel | AQ174: Ethanol | AR174: Busstørrelse | AS174: Hastighed i km/t | AT174: Biodiesel | AU174: Ethanol | AV174: Biodiesel | AW174: Ethanol | AX174: Busstørrelse | AY174: Hastighed i km/t | AZ174: Biodiesel | BA174: Ethanol | BB174: Biodiesel | BC174: Ethanol | BD174: Busstørrelse | BE174: Hastighed i km/t | BF174: Biodiesel | BG174: Ethanol | BH174: Biodiesel | BI174: Ethanol | BJ174: Busstørrelse | BK174: Hastighed i km/t | BL174: Biodiesel | BM174: Ethanol | BN174: Biodiesel | BO174: Ethanol | BP174: Busstørrelse | BQ174: Hastighed i km/t | BR174: Biodiesel | BS174: Ethanol | BT174: Biodiesel | BU174: Ethanol | BV174: Busstørrelse | BW174: Hastighed i km/t | BX174: Biodiesel | BY174: Ethanol | BZ174: Biodiesel | CA174: Ethanol | CB174: Busstørrelse | CC174: Hastighed i km/t | CD174: Biodiesel | CE174: Ethanol | CF174: Biodiesel | CG174: Ethanol | CH174: Busstørrelse | CI174: Hastighed i km/t | CJ174: Biodiesel | CK174: Ethanol | CL174: Biodiesel | CM174: Ethanol | CN174: Busstørrelse | CO174: Hastighed i km/t | CP174: Biodiesel | CQ174: Ethanol | CR174: Biodiesel | CS174: Ethanol | CT174: Busstørrelse | CU174: Hastighed i km/t | CV174: Biodiesel | CW174: Ethanol | CX174: Biodiesel | CY174: Ethanol | CZ174: Busstørrelse | DA174: Hastighed i km/t | DB174: Biodiesel | DC174: Ethanol | DD174: Biodiesel | DE174: Ethanol | DF174: Busstørrelse | DG174: Hastighed i km/t | DH174: Biodiesel | DI174: Ethanol | DJ174: Biodiesel | DK174: Ethanol | DL174: Busstørrelse | DM174: Hastighed i km/t | DN174: Biodiesel | DO174: Ethanol | DP174: Biodiesel | DQ174: Ethanol | DR174: Busstørrelse | DS174: Hastighed i km/t | DT174: Biodiesel | DU174: Ethanol | DV174: Biodiesel | DW174: Ethanol | DX174: Busstørrelse | DY174: Hastighed i km/t | DZ174: Biodiesel | EA174: Ethanol | EB174: Biodiesel | EC174: Ethanol | ED174: Busstørrelse | EE174: Hastighed i km/t | EF174: Biodiesel | EG174: Ethanol | EH174: Biodiesel | EI174: Ethanol | EJ174: Busstørrelse | EK174: Hastighed i km/t | EL174: Biodiesel | EM174: Ethanol | EN174: Biodiesel | EO174: Ethanol | EP174: Busstørrelse | EQ174: Hastighed i km/t | ER174: Biodiesel | ES174: Ethanol | ET174: Biodiesel | EU174: Ethanol | EV174: Busstørrelse | EW174: Hastighed i km/t | EX174: Biodiesel | EY174: Ethanol | EZ174: Biodiesel | FA174: Ethanol | FB174: Busstørrelse | FC174: Hastighed i km/t | FD174: Biodiesel | FE174: Ethanol | FF174: Biodiesel | FG174: Ethanol
A175: 14,6 meter | B175: 10 | C175: 1.857645906 | D175: 1.803539714 | E175: 1.914216189 | F175: 1.733289262 | G175: 1.554385998 | H175: 1.656576569 | I175: 1.783303739 | J175: 1.154752611 | K175: 1.898926672 | N175: 14,6 meter | O175: 10 | P175: =IF('Vurdering af miljøgevinst'!$A$5="Rute 1",Euro6_14.6_10*(1-'Vurdering af miljøgevinst'!$B$13)+Biodiesel_14.6_10*'Vurdering af miljøgevinst'!$B$13,"IR") -> 1.831626147 | Q175: =IF('Vurdering af miljøgevinst'!$A$5="Rute 1",Euro6_14.6_10*(1-'Vurdering af miljøgevinst'!$B$13)+Ethanol_14.6_10*'Vurdering af miljøgevinst'!$B$13,"IR") -> 1.611633252 | R175: =IF('Vurdering af miljøgevinst'!$A$5="Rute 1",Euro6_14.6_10*(1-'Vurdering af miljøgevinst'!$F$13)+Biodiesel_14.6_10*'Vurdering af miljøgevinst'!$F$13,"IR") -> 1.857645906 | S175: =IF('Vurdering af miljøgevinst'!$A$5="Rute 1",Euro6_14.6_10*(1-'Vurdering af miljøgevinst'!$F$13)+Ethanol_14.6_10*'Vurdering af miljøgevinst'!$F$13,"IR") -> 1.857645906 | T175: 14,6 meter | U175: 10 | Z175: 14,6 meter | AA175: 10 | AF175: 14,6 meter | AG175: 10 | AL175: 14,6 meter | AM175: 10 | AR175: 14,6 meter | AS175: 10 | AX175: 14,6 meter | AY175: 10 | BD175: 14,6 meter | BE175: 10 | BJ175: 14,6 meter | BK175: 10 | BP175: 14,6 meter | BQ175: 10 | BV175: 14,6 meter | BW175: 10 | CB175: 14,6 meter | CC175: 10 | CH175: 14,6 meter | CI175: 10 | CN175: 14,6 meter | CO175: 10 | CT175: 14,6 meter | CU175: 10 | CZ175: 14,6 meter | DA175: 10 | DF175: 14,6 meter | DG175: 10 | DL175: 14,6 meter | DM175: 10 | DR175: 14,6 meter | DS175: 10 | DX175: 14,6 meter | DY175: 10 | ED175: 14,6 meter | EE175: 10 | EJ175: 14,6 meter | EK175: 10 | EP175: 14,6 meter | EQ175: 10 | EV175: 14,6 meter | EW175: 10 | FB175: 14,6 meter | FC175: 10
B176: =B175+1 -> 11 | C176: 1.883765767 | D176: 1.828898803 | E176: 1.932526419 | F176: 1.75327282 | G176: 1.57354715 | H176: 1.672032986 | I176: 1.808182599 | J176: 1.170989278 | K176: 1.925626972 | O176: 11 | P176: =IF('Vurdering af miljøgevinst'!$A$5="Rute 1",Euro6_14.6_11*(1-'Vurdering af miljøgevinst'!$B$13)+Biodiesel_14.6_11*'Vurdering af miljøgevinst'!$B$13,"IR") -> 1.857311658 | Q176: =IF('Vurdering af miljøgevinst'!$A$5="Rute 1",Euro6_14.6_11*(1-'Vurdering af miljøgevinst'!$B$13)+Ethanol_14.6_11*'Vurdering af miljøgevinst'!$B$13,"IR") -> 1.634293996 | R176: =IF('Vurdering af miljøgevinst'!$A$5="Rute 1",Euro6_14.6_11*(1-'Vurdering af miljøgevinst'!$F$13)+Biodiesel_14.6_11*'Vurdering af miljøgevinst'!$F$13,"IR") -> 1.883765767 | S176: =IF('Vurdering af miljøgevinst'!$A$5="Rute 1",Euro6_14.6_11*(1-'Vurdering af miljøgevinst'!$F$13)+Ethanol_14.6_11*'Vurdering af miljøgevinst'!$F$13,"IR") -> 1.883765767 | U176: 11 | AA176: 11 | AG176: 11 | AM176: 11 | AS176: 11 | AY176: 11 | BE176: 11 | BK176: 11 | BQ176: 11 | BW176: 11 | CC176: 11 | CI176: 11 | CO176: 11 | CU176: 11 | DA176: 11 | DG176: 11 | DM176: 11 | DS176: 11 | DY176: 11 | EE176: 11 | EK176: 11 | EQ176: 11 | EW176: 11 | FC176: 11
B177: =B176+1 -> 12 | C177: 1.909885629 | D177: 1.854257892 | E177: 1.950836649 | F177: 1.773256378 | G177: 1.592708301 | H177: 1.687489403 | I177: 1.833056308 | J177: 1.187225945 | K177: 1.952327271 | O177: 12 | P177: =IF('Vurdering af miljøgevinst'!$A$5="Rute 1",Euro6_14.6_12*(1-'Vurdering af miljøgevinst'!$B$13)+Biodiesel_14.6_12*'Vurdering af miljøgevinst'!$B$13,"IR") -> 1.882995367 | Q177: =IF('Vurdering af miljøgevinst'!$A$5="Rute 1",Euro6_14.6_12*(1-'Vurdering af miljøgevinst'!$B$13)+Ethanol_14.6_12*'Vurdering af miljøgevinst'!$B$13,"IR") -> 1.656954739 | R177: =IF('Vurdering af miljøgevinst'!$A$5="Rute 1",Euro6_14.6_12*(1-'Vurdering af miljøgevinst'!$F$13)+Biodiesel_14.6_12*'Vurdering af miljøgevinst'!$F$13,"IR") -> 1.909885629 | S177: =IF('Vurdering af miljøgevinst'!$A$5="Rute 1",Euro6_14.6_12*(1-'Vurdering af miljøgevinst'!$F$13)+Ethanol_14.6_12*'Vurdering af miljøgevinst'!$F$13,"IR") -> 1.909885629 | U177: 12 | AA177: 12 | AG177: 12 | AM177: 12 | AS177: 12 | AY177: 12 | BE177: 12 | BK177: 12 | BQ177: 12 | BW177: 12 | CC177: 12 | CI177: 12 | CO177: 12 | CU177: 12 | DA177: 12 | DG177: 12 | DM177: 12 | DS177: 12 | DY177: 12 | EE177: 12 | EK177: 12 | EQ177: 12 | EW177: 12 | FC177: 12
B178: 13 | C178: 1.93600549 | D178: 1.879616981 | E178: 1.969146879 | F178: 1.793239935 | G178: 1.611869452 | H178: 1.702945819 | I178: 1.857924877 | J178: 1.203462612 | K178: 1.979027571 | O178: 13 | P178: =IF('Vurdering af miljøgevinst'!$A$5="Rute 1",Euro6_14.6_13*(1-'Vurdering af miljøgevinst'!$B$13)+Biodiesel_14.6_13*'Vurdering af miljøgevinst'!$B$13,"IR") -> 1.908677276 | Q178: =IF('Vurdering af miljøgevinst'!$A$5="Rute 1",Euro6_14.6_13*(1-'Vurdering af miljøgevinst'!$B$13)+Ethanol_14.6_13*'Vurdering af miljøgevinst'!$B$13,"IR") -> 1.679615483 | R178: =IF('Vurdering af miljøgevinst'!$A$5="Rute 1",Euro6_14.6_13*(1-'Vurdering af miljøgevinst'!$F$13)+Biodiesel_14.6_13*'Vurdering af miljøgevinst'!$F$13,"IR") -> 1.93600549 | S178: =IF('Vurdering af miljøgevinst'!$A$5="Rute 1",Euro6_14.6_13*(1-'Vurdering af miljøgevinst'!$F$13)+Ethanol_14.6_13*'Vurdering af miljøgevinst'!$F$13,"IR") -> 1.93600549 | U178: 13 | AA178: 13 | AG178: 13 | AM178: 13 | AS178: 13 | AY178: 13 | BE178: 13 | BK178: 13 | BQ178: 13 | BW178: 13 | CC178: 13 | CI178: 13 | CO178: 13 | CU178: 13 | DA178: 13 | DG178: 13 | DM178: 13 | DS178: 13 | DY178: 13 | EE178: 13 | EK178: 13 | EQ178: 13 | EW178: 13 | FC178: 13
B179: 14 | C179: 1.962125352 | D179: 1.90497607 | E179: 1.987457109 | F179: 1.813223493 | G179: 1.631030603 | H179: 1.718402236 | I179: 1.882788314 | J179: 1.219699279 | K179: 2.00572787 | O179: 14 | P179: =IF('Vurdering af miljøgevinst'!$A$5="Rute 1",Euro6_14.6_14*(1-'Vurdering af miljøgevinst'!$B$13)+Biodiesel_14.6_14*'Vurdering af miljøgevinst'!$B$13,"IR") -> 1.934357389 | Q179: =IF('Vurdering af miljøgevinst'!$A$5="Rute 1",Euro6_14.6_14*(1-'Vurdering af miljøgevinst'!$B$13)+Ethanol_14.6_14*'Vurdering af miljøgevinst'!$B$13,"IR") -> 1.702276227 | R179: =IF('Vurdering af miljøgevinst'!$A$5="Rute 1",Euro6_14.6_14*(1-'Vurdering af miljøgevinst'!$F$13)+Biodiesel_14.6_14*'Vurdering af miljøgevinst'!$F$13,"IR") -> 1.962125352 | S179: =IF('Vurdering af miljøgevinst'!$A$5="Rute 1",Euro6_14.6_14*(1-'Vurdering af miljøgevinst'!$F$13)+Ethanol_14.6_14*'Vurdering af miljøgevinst'!$F$13,"IR") -> 1.962125352 | U179: 14 | AA179: 14 | AG179: 14 | AM179: 14 | AS179: 14 | AY179: 14 | BE179: 14 | BK179: 14 | BQ179: 14 | BW179: 14 | CC179: 14 | CI179: 14 | CO179: 14 | CU179: 14 | DA179: 14 | DG179: 14 | DM179: 14 | DS179: 14 | DY179: 14 | EE179: 14 | EK179: 14 | EQ179: 14 | EW179: 14 | FC179: 14
B180: 15 | C180: 1.988245214 | D180: 1.930335159 | E180: 2.005767339 | F180: 1.833207051 | G180: 1.650191755 | H180: 1.733858652 | I180: 1.907646633 | J180: 1.235935947 | K180: 2.03242817 | O180: 15 | P180: =IF('Vurdering af miljøgevinst'!$A$5="Rute 1",Euro6_14.6_15*(1-'Vurdering af miljøgevinst'!$B$13)+Biodiesel_14.6_15*'Vurdering af miljøgevinst'!$B$13,"IR") -> 1.96003571 | Q180: =IF('Vurdering af miljøgevinst'!$A$5="Rute 1",Euro6_14.6_15*(1-'Vurdering af miljøgevinst'!$B$13)+Ethanol_14.6_15*'Vurdering af miljøgevinst'!$B$13,"IR") -> 1.72493697 | R180: =IF('Vurdering af miljøgevinst'!$A$5="Rute 1",Euro6_14.6_15*(1-'Vurdering af miljøgevinst'!$F$13)+Biodiesel_14.6_15*'Vurdering af miljøgevinst'!$F$13,"IR") -> 1.988245214 | S180: =IF('Vurdering af miljøgevinst'!$A$5="Rute 1",Euro6_14.6_15*(1-'Vurdering af miljøgevinst'!$F$13)+Ethanol_14.6_15*'Vurdering af miljøgevinst'!$F$13,"IR") -> 1.988245214 | U180: 15 | AA180: 15 | AG180: 15 | AM180: 15 | AS180: 15 | AY180: 15 | BE180: 15 | BK180: 15 | BQ180: 15 | BW180: 15 | CC180: 15 | CI180: 15 | CO180: 15 | CU180: 15 | DA180: 15 | DG180: 15 | DM180: 15 | DS180: 15 | DY180: 15 | EE180: 15 | EK180: 15 | EQ180: 15 | EW180: 15 | FC180: 15
B181: 16 | C181: 2.014365075 | D181: 1.955694248 | E181: 2.024077569 | F181: 1.853190609 | G181: 1.669352906 | H181: 1.749315069 | I181: 1.932499842 | J181: 1.252172614 | K181: 2.059128469 | O181: 16 | P181: =IF('Vurdering af miljøgevinst'!$A$5="Rute 1",Euro6_14.6_16*(1-'Vurdering af miljøgevinst'!$B$13)+Biodiesel_14.6_16*'Vurdering af miljøgevinst'!$B$13,"IR") -> 1.985712244 | Q181: =IF('Vurdering af miljøgevinst'!$A$5="Rute 1",Euro6_14.6_16*(1-'Vurdering af miljøgevinst'!$B$13)+Ethanol_14.6_16*'Vurdering af miljøgevinst'!$B$13,"IR") -> 1.747597714 | R181: =IF('Vurdering af miljøgevinst'!$A$5="Rute 1",Euro6_14.6_16*(1-'Vurdering af miljøgevinst'!$F$13)+Biodiesel_14.6_16*'Vurdering af miljøgevinst'!$F$13,"IR") -> 2.014365075 | S181: =IF('Vurdering af miljøgevinst'!$A$5="Rute 1",Euro6_14.6_16*(1-'Vurdering af miljøgevinst'!$F$13)+Ethanol_14.6_16*'Vurdering af miljøgevinst'!$F$13,"IR") -> 2.014365075 | U181: 16 | AA181: 16 | AG181: 16 | AM181: 16 | AS181: 16 | AY181: 16 | BE181: 16 | BK181: 16 | BQ181: 16 | BW181: 16 | CC181: 16 | CI181: 16 | CO181: 16 | CU181: 16 | DA181: 16 | DG181: 16 | DM181: 16 | DS181: 16 | DY181: 16 | EE181: 16 | EK181: 16 | EQ181: 16 | EW181: 16 | FC181: 16
B182: 17 | C182: 2.040484937 | D182: 1.981053337 | E182: 2.042387799 | F182: 1.873174167 | G182: 1.688514057 | H182: 1.764771485 | I182: 1.957347953 | J182: 1.268409281 | K182: 2.085828768 | O182: 17 | P182: =IF('Vurdering af miljøgevinst'!$A$5="Rute 1",Euro6_14.6_17*(1-'Vurdering af miljøgevinst'!$B$13)+Biodiesel_14.6_17*'Vurdering af miljøgevinst'!$B$13,"IR") -> 2.011386993 | Q182: =IF('Vurdering af miljøgevinst'!$A$5="Rute 1",Euro6_14.6_17*(1-'Vurdering af miljøgevinst'!$B$13)+Ethanol_14.6_17*'Vurdering af miljøgevinst'!$B$13,"IR") -> 1.770258457 | R182: =IF('Vurdering af miljøgevinst'!$A$5="Rute 1",Euro6_14.6_17*(1-'Vurdering af miljøgevinst'!$F$13)+Biodiesel_14.6_17*'Vurdering af miljøgevinst'!$F$13,"IR") -> 2.040484937 | S182: =IF('Vurdering af miljøgevinst'!$A$5="Rute 1",Euro6_14.6_17*(1-'Vurdering af miljøgevinst'!$F$13)+Ethanol_14.6_17*'Vurdering af miljøgevinst'!$F$13,"IR") -> 2.040484937 | U182: 17 | AA182: 17 | AG182: 17 | AM182: 17 | AS182: 17 | AY182: 17 | BE182: 17 | BK182: 17 | BQ182: 17 | BW182: 17 | CC182: 17 | CI182: 17 | CO182: 17 | CU182: 17 | DA182: 17 | DG182: 17 | DM182: 17 | DS182: 17 | DY182: 17 | EE182: 17 | EK182: 17 | EQ182: 17 | EW182: 17 | FC182: 17
B183: 18 | C183: 2.066604798 | D183: 2.006412426 | E183: 2.060698029 | F183: 1.893157725 | G183: 1.707675209 | H183: 1.780227902 | I183: 1.982190977 | J183: 1.284645948 | K183: 2.112529068 | O183: 18 | P183: =IF('Vurdering af miljøgevinst'!$A$5="Rute 1",Euro6_14.6_18*(1-'Vurdering af miljøgevinst'!$B$13)+Biodiesel_14.6_18*'Vurdering af miljøgevinst'!$B$13,"IR") -> 2.037059961 | Q183: =IF('Vurdering af miljøgevinst'!$A$5="Rute 1",Euro6_14.6_18*(1-'Vurdering af miljøgevinst'!$B$13)+Ethanol_14.6_18*'Vurdering af miljøgevinst'!$B$13,"IR") -> 1.792919201 | R183: =IF('Vurdering af miljøgevinst'!$A$5="Rute 1",Euro6_14.6_18*(1-'Vurdering af miljøgevinst'!$F$13)+Biodiesel_14.6_18*'Vurdering af miljøgevinst'!$F$13,"IR") -> 2.066604798 | S183: =IF('Vurdering af miljøgevinst'!$A$5="Rute 1",Euro6_14.6_18*(1-'Vurdering af miljøgevinst'!$F$13)+Ethanol_14.6_18*'Vurdering af miljøgevinst'!$F$13,"IR") -> 2.066604798 | U183: 18 | AA183: 18 | AG183: 18 | AM183: 18 | AS183: 18 | AY183: 18 | BE183: 18 | BK183: 18 | BQ183: 18 | BW183: 18 | CC183: 18 | CI183: 18 | CO183: 18 | CU183: 18 | DA183: 18 | DG183: 18 | DM183: 18 | DS183: 18 | DY183: 18 | EE183: 18 | EK183: 18 | EQ183: 18 | EW183: 18 | FC183: 18
B184: 19 | C184: 2.09272466 | D184: 2.031771515 | E184: 2.079008259 | F184: 1.913141283 | G184: 1.72683636 | H184: 1.795684318 | I184: 2.007028923 | J184: 1.300882615 | K184: 2.139229367 | O184: 19 | P184: =IF('Vurdering af miljøgevinst'!$A$5="Rute 1",Euro6_14.6_19*(1-'Vurdering af miljøgevinst'!$B$13)+Biodiesel_14.6_19*'Vurdering af miljøgevinst'!$B$13,"IR") -> 2.062731152 | Q184: =IF('Vurdering af miljøgevinst'!$A$5="Rute 1",Euro6_14.6_19*(1-'Vurdering af miljøgevinst'!$B$13)+Ethanol_14.6_19*'Vurdering af miljøgevinst'!$B$13,"IR") -> 1.815579944 | R184: =IF('Vurdering af miljøgevinst'!$A$5="Rute 1",Euro6_14.6_19*(1-'Vurdering af miljøgevinst'!$F$13)+Biodiesel_14.6_19*'Vurdering af miljøgevinst'!$F$13,"IR") -> 2.09272466 | S184: =IF('Vurdering af miljøgevinst'!$A$5="Rute 1",Euro6_14.6_19*(1-'Vurdering af miljøgevinst'!$F$13)+Ethanol_14.6_19*'Vurdering af miljøgevinst'!$F$13,"IR") -> 2.09272466 | U184: 19 | AA184: 19 | AG184: 19 | AM184: 19 | AS184: 19 | AY184: 19 | BE184: 19 | BK184: 19 | BQ184: 19 | BW184: 19 | CC184: 19 | CI184: 19 | CO184: 19 | CU184: 19 | DA184: 19 | DG184: 19 | DM184: 19 | DS184: 19 | DY184: 19 | EE184: 19 | EK184: 19 | EQ184: 19 | EW184: 19 | FC184: 19
B185: 20 | C185: 2.118844522 | D185: 2.057130603 | E185: 2.097318488 | F185: 1.933124841 | G185: 1.745997511 | H185: 1.811140735 | I185: 2.031861802 | J185: 1.317119283 | K185: 2.165929667 | O185: 20 | P185: =IF('Vurdering af miljøgevinst'!$A$5="Rute 1",Euro6_14.6_20*(1-'Vurdering af miljøgevinst'!$B$13)+Biodiesel_14.6_20*'Vurdering af miljøgevinst'!$B$13,"IR") -> 2.08840057 | Q185: =IF('Vurdering af miljøgevinst'!$A$5="Rute 1",Euro6_14.6_20*(1-'Vurdering af miljøgevinst'!$B$13)+Ethanol_14.6_20*'Vurdering af miljøgevinst'!$B$13,"IR") -> 1.838240688 | R185: =IF('Vurdering af miljøgevinst'!$A$5="Rute 1",Euro6_14.6_20*(1-'Vurdering af miljøgevinst'!$F$13)+Biodiesel_14.6_20*'Vurdering af miljøgevinst'!$F$13,"IR") -> 2.118844522 | S185: =IF('Vurdering af miljøgevinst'!$A$5="Rute 1",Euro6_14.6_20*(1-'Vurdering af miljøgevinst'!$F$13)+Ethanol_14.6_20*'Vurdering af miljøgevinst'!$F$13,"IR") -> 2.118844522 | U185: 20 | AA185: 20 | AG185: 20 | AM185: 20 | AS185: 20 | AY185: 20 | BE185: 20 | BK185: 20 | BQ185: 20 | BW185: 20 | CC185: 20 | CI185: 20 | CO185: 20 | CU185: 20 | DA185: 20 | DG185: 20 | DM185: 20 | DS185: 20 | DY185: 20 | EE185: 20 | EK185: 20 | EQ185: 20 | EW185: 20 | FC185: 20
B186: 21 | C186: 2.144964383 | D186: 2.082489692 | E186: 2.115628718 | F186: 1.953108399 | G186: 1.765158662 | H186: 1.826597152 | I186: 2.056689625 | J186: 1.33335595 | K186: 2.192629966 | O186: 21 | P186: =IF('Vurdering af miljøgevinst'!$A$5="Rute 1",Euro6_14.6_21*(1-'Vurdering af miljøgevinst'!$B$13)+Biodiesel_14.6_21*'Vurdering af miljøgevinst'!$B$13,"IR") -> 2.114068218 | Q186: =IF('Vurdering af miljøgevinst'!$A$5="Rute 1",Euro6_14.6_21*(1-'Vurdering af miljøgevinst'!$B$13)+Ethanol_14.6_21*'Vurdering af miljøgevinst'!$B$13,"IR") -> 1.860901432 | R186: =IF('Vurdering af miljøgevinst'!$A$5="Rute 1",Euro6_14.6_21*(1-'Vurdering af miljøgevinst'!$F$13)+Biodiesel_14.6_21*'Vurdering af miljøgevinst'!$F$13,"IR") -> 2.144964383 | S186: =IF('Vurdering af miljøgevinst'!$A$5="Rute 1",Euro6_14.6_21*(1-'Vurdering af miljøgevinst'!$F$13)+Ethanol_14.6_21*'Vurdering af miljøgevinst'!$F$13,"IR") -> 2.144964383 | U186: 21 | AA186: 21 | AG186: 21 | AM186: 21 | AS186: 21 | AY186: 21 | BE186: 21 | BK186: 21 | BQ186: 21 | BW186: 21 | CC186: 21 | CI186: 21 | CO186: 21 | CU186: 21 | DA186: 21 | DG186: 21 | DM186: 21 | DS186: 21 | DY186: 21 | EE186: 21 | EK186: 21 | EQ186: 21 | EW186: 21 | FC186: 21
B187: 22 | C187: 2.171084245 | D187: 2.107848781 | E187: 2.133938948 | F187: 1.973091957 | G187: 1.784319814 | H187: 1.842053568 | I187: 2.081512402 | J187: 1.349592617 | K187: 2.219330265 | O187: 22 | P187: =IF('Vurdering af miljøgevinst'!$A$5="Rute 1",Euro6_14.6_22*(1-'Vurdering af miljøgevinst'!$B$13)+Biodiesel_14.6_22*'Vurdering af miljøgevinst'!$B$13,"IR") -> 2.1397341 | Q187: =IF('Vurdering af miljøgevinst'!$A$5="Rute 1",Euro6_14.6_22*(1-'Vurdering af miljøgevinst'!$B$13)+Ethanol_14.6_22*'Vurdering af miljøgevinst'!$B$13,"IR") -> 1.883562175 | R187: =IF('Vurdering af miljøgevinst'!$A$5="Rute 1",Euro6_14.6_22*(1-'Vurdering af miljøgevinst'!$F$13)+Biodiesel_14.6_22*'Vurdering af miljøgevinst'!$F$13,"IR") -> 2.171084245 | S187: =IF('Vurdering af miljøgevinst'!$A$5="Rute 1",Euro6_14.6_22*(1-'Vurdering af miljøgevinst'!$F$13)+Ethanol_14.6_22*'Vurdering af miljøgevinst'!$F$13,"IR") -> 2.171084245 | U187: 22 | AA187: 22 | AG187: 22 | AM187: 22 | AS187: 22 | AY187: 22 | BE187: 22 | BK187: 22 | BQ187: 22 | BW187: 22 | CC187: 22 | CI187: 22 | CO187: 22 | CU187: 22 | DA187: 22 | DG187: 22 | DM187: 22 | DS187: 22 | DY187: 22 | EE187: 22 | EK187: 22 | EQ187: 22 | EW187: 22 | FC187: 22
B188: 23 | C188: 2.197204106 | D188: 2.13320787 | E188: 2.152249178 | F188: 1.993075515 | G188: 1.803480965 | H188: 1.857509985 | I188: 2.106330144 | J188: 1.365829284 | K188: 2.246030565 | O188: 23 | P188: =IF('Vurdering af miljøgevinst'!$A$5="Rute 1",Euro6_14.6_23*(1-'Vurdering af miljøgevinst'!$B$13)+Biodiesel_14.6_23*'Vurdering af miljøgevinst'!$B$13,"IR") -> 2.16539822 | Q188: =IF('Vurdering af miljøgevinst'!$A$5="Rute 1",Euro6_14.6_23*(1-'Vurdering af miljøgevinst'!$B$13)+Ethanol_14.6_23*'Vurdering af miljøgevinst'!$B$13,"IR") -> 1.906222919 | R188: =IF('Vurdering af miljøgevinst'!$A$5="Rute 1",Euro6_14.6_23*(1-'Vurdering af miljøgevinst'!$F$13)+Biodiesel_14.6_23*'Vurdering af miljøgevinst'!$F$13,"IR") -> 2.197204106 | S188: =IF('Vurdering af miljøgevinst'!$A$5="Rute 1",Euro6_14.6_23*(1-'Vurdering af miljøgevinst'!$F$13)+Ethanol_14.6_23*'Vurdering af miljøgevinst'!$F$13,"IR") -> 2.197204106 | U188: 23 | AA188: 23 | AG188: 23 | AM188: 23 | AS188: 23 | AY188: 23 | BE188: 23 | BK188: 23 | BQ188: 23 | BW188: 23 | CC188: 23 | CI188: 23 | CO188: 23 | CU188: 23 | DA188: 23 | DG188: 23 | DM188: 23 | DS188: 23 | DY188: 23 | EE188: 23 | EK188: 23 | EQ188: 23 | EW188: 23 | FC188: 23
B189: 24 | C189: 2.223323968 | D189: 2.158566959 | E189: 2.170559408 | F189: 2.013059073 | G189: 1.822642116 | H189: 1.872966401 | I189: 2.131142861 | J189: 1.382065952 | K189: 2.272730864 | O189: 24 | P189: =IF('Vurdering af miljøgevinst'!$A$5="Rute 1",Euro6_14.6_24*(1-'Vurdering af miljøgevinst'!$B$13)+Biodiesel_14.6_24*'Vurdering af miljøgevinst'!$B$13,"IR") -> 2.191060581 | Q189: =IF('Vurdering af miljøgevinst'!$A$5="Rute 1",Euro6_14.6_24*(1-'Vurdering af miljøgevinst'!$B$13)+Ethanol_14.6_24*'Vurdering af miljøgevinst'!$B$13,"IR") -> 1.928883662 | R189: =IF('Vurdering af miljøgevinst'!$A$5="Rute 1",Euro6_14.6_24*(1-'Vurdering af miljøgevinst'!$F$13)+Biodiesel_14.6_24*'Vurdering af miljøgevinst'!$F$13,"IR") -> 2.223323968 | S189: =IF('Vurdering af miljøgevinst'!$A$5="Rute 1",Euro6_14.6_24*(1-'Vurdering af miljøgevinst'!$F$13)+Ethanol_14.6_24*'Vurdering af miljøgevinst'!$F$13,"IR") -> 2.223323968 | U189: 24 | AA189: 24 | AG189: 24 | AM189: 24 | AS189: 24 | AY189: 24 | BE189: 24 | BK189: 24 | BQ189: 24 | BW189: 24 | CC189: 24 | CI189: 24 | CO189: 24 | CU189: 24 | DA189: 24 | DG189: 24 | DM189: 24 | DS189: 24 | DY189: 24 | EE189: 24 | EK189: 24 | EQ189: 24 | EW189: 24 | FC189: 24
B190: 25 | C190: 2.24944383 | D190: 2.183926048 | E190: 2.188869638 | F190: 2.033042631 | G190: 1.841803268 | H190: 1.888422818 | I190: 2.155950564 | J190: 1.398302619 | K190: 2.299431164 | O190: 25 | P190: =IF('Vurdering af miljøgevinst'!$A$5="Rute 1",Euro6_14.6_25*(1-'Vurdering af miljøgevinst'!$B$13)+Biodiesel_14.6_25*'Vurdering af miljøgevinst'!$B$13,"IR") -> 2.216721187 | Q190: =IF('Vurdering af miljøgevinst'!$A$5="Rute 1",Euro6_14.6_25*(1-'Vurdering af miljøgevinst'!$B$13)+Ethanol_14.6_25*'Vurdering af miljøgevinst'!$B$13,"IR") -> 1.951544406 | R190: =IF('Vurdering af miljøgevinst'!$A$5="Rute 1",Euro6_14.6_25*(1-'Vurdering af miljøgevinst'!$F$13)+Biodiesel_14.6_25*'Vurdering af miljøgevinst'!$F$13,"IR") -> 2.24944383 | S190: =IF('Vurdering af miljøgevinst'!$A$5="Rute 1",Euro6_14.6_25*(1-'Vurdering af miljøgevinst'!$F$13)+Ethanol_14.6_25*'Vurdering af miljøgevinst'!$F$13,"IR") -> 2.24944383 | U190: 25 | AA190: 25 | AG190: 25 | AM190: 25 | AS190: 25 | AY190: 25 | BE190: 25 | BK190: 25 | BQ190: 25 | BW190: 25 | CC190: 25 | CI190: 25 | CO190: 25 | CU190: 25 | DA190: 25 | DG190: 25 | DM190: 25 | DS190: 25 | DY190: 25 | EE190: 25 | EK190: 25 | EQ190: 25 | EW190: 25 | FC190: 25
B191: 26 | C191: 2.275563691 | D191: 2.209285137 | E191: 2.207179868 | F191: 2.053026189 | G191: 1.860964419 | H191: 1.903879234 | I191: 2.180753262 | J191: 1.414539286 | K191: 2.326131463 | O191: 26 | P191: =IF('Vurdering af miljøgevinst'!$A$5="Rute 1",Euro6_14.6_26*(1-'Vurdering af miljøgevinst'!$B$13)+Biodiesel_14.6_26*'Vurdering af miljøgevinst'!$B$13,"IR") -> 2.242380041 | Q191: =IF('Vurdering af miljøgevinst'!$A$5="Rute 1",Euro6_14.6_26*(1-'Vurdering af miljøgevinst'!$B$13)+Ethanol_14.6_26*'Vurdering af miljøgevinst'!$B$13,"IR") -> 1.974205149 | R191: =IF('Vurdering af miljøgevinst'!$A$5="Rute 1",Euro6_14.6_26*(1-'Vurdering af miljøgevinst'!$F$13)+Biodiesel_14.6_26*'Vurdering af miljøgevinst'!$F$13,"IR") -> 2.275563691 | S191: =IF('Vurdering af miljøgevinst'!$A$5="Rute 1",Euro6_14.6_26*(1-'Vurdering af miljøgevinst'!$F$13)+Ethanol_14.6_26*'Vurdering af miljøgevinst'!$F$13,"IR") -> 2.275563691 | U191: 26 | AA191: 26 | AG191: 26 | AM191: 26 | AS191: 26 | AY191: 26 | BE191: 26 | BK191: 26 | BQ191: 26 | BW191: 26 | CC191: 26 | CI191: 26 | CO191: 26 | CU191: 26 | DA191: 26 | DG191: 26 | DM191: 26 | DS191: 26 | DY191: 26 | EE191: 26 | EK191: 26 | EQ191: 26 | EW191: 26 | FC191: 26
B192: 27 | C192: 2.301683553 | D192: 2.234644226 | E192: 2.225490098 | F192: 2.073009747 | G192: 1.88012557 | H192: 1.919335651 | I192: 2.205550966 | J192: 1.430775953 | K192: 2.352831762 | O192: 27 | P192: =IF('Vurdering af miljøgevinst'!$A$5="Rute 1",Euro6_14.6_27*(1-'Vurdering af miljøgevinst'!$B$13)+Biodiesel_14.6_27*'Vurdering af miljøgevinst'!$B$13,"IR") -> 2.268037147 | Q192: =IF('Vurdering af miljøgevinst'!$A$5="Rute 1",Euro6_14.6_27*(1-'Vurdering af miljøgevinst'!$B$13)+Ethanol_14.6_27*'Vurdering af miljøgevinst'!$B$13,"IR") -> 1.996865893 | R192: =IF('Vurdering af miljøgevinst'!$A$5="Rute 1",Euro6_14.6_27*(1-'Vurdering af miljøgevinst'!$F$13)+Biodiesel_14.6_27*'Vurdering af miljøgevinst'!$F$13,"IR") -> 2.301683553 | S192: =IF('Vurdering af miljøgevinst'!$A$5="Rute 1",Euro6_14.6_27*(1-'Vurdering af miljøgevinst'!$F$13)+Ethanol_14.6_27*'Vurdering af miljøgevinst'!$F$13,"IR") -> 2.301683553 | U192: 27 | AA192: 27 | AG192: 27 | AM192: 27 | AS192: 27 | AY192: 27 | BE192: 27 | BK192: 27 | BQ192: 27 | BW192: 27 | CC192: 27 | CI192: 27 | CO192: 27 | CU192: 27 | DA192: 27 | DG192: 27 | DM192: 27 | DS192: 27 | DY192: 27 | EE192: 27 | EK192: 27 | EQ192: 27 | EW192: 27 | FC192: 27
B193: 28 | C193: 2.327803414 | D193: 2.260003315 | E193: 2.243800328 | F193: 2.092993305 | G193: 1.899286721 | H193: 1.934792067 | I193: 2.230343687 | J193: 1.44701262 | K193: 2.379532062 | O193: 28 | P193: =IF('Vurdering af miljøgevinst'!$A$5="Rute 1",Euro6_14.6_28*(1-'Vurdering af miljøgevinst'!$B$13)+Biodiesel_14.6_28*'Vurdering af miljøgevinst'!$B$13,"IR") -> 2.29369251 | Q193: =IF('Vurdering af miljøgevinst'!$A$5="Rute 1",Euro6_14.6_28*(1-'Vurdering af miljøgevinst'!$B$13)+Ethanol_14.6_28*'Vurdering af miljøgevinst'!$B$13,"IR") -> 2.019526637 | R193: =IF('Vurdering af miljøgevinst'!$A$5="Rute 1",Euro6_14.6_28*(1-'Vurdering af miljøgevinst'!$F$13)+Biodiesel_14.6_28*'Vurdering af miljøgevinst'!$F$13,"IR") -> 2.327803414 | S193: =IF('Vurdering af miljøgevinst'!$A$5="Rute 1",Euro6_14.6_28*(1-'Vurdering af miljøgevinst'!$F$13)+Ethanol_14.6_28*'Vurdering af miljøgevinst'!$F$13,"IR") -> 2.327803414 | U193: 28 | AA193: 28 | AG193: 28 | AM193: 28 | AS193: 28 | AY193: 28 | BE193: 28 | BK193: 28 | BQ193: 28 | BW193: 28 | CC193: 28 | CI193: 28 | CO193: 28 | CU193: 28 | DA193: 28 | DG193: 28 | DM193: 28 | DS193: 28 | DY193: 28 | EE193: 28 | EK193: 28 | EQ193: 28 | EW193: 28 | FC193: 28
B194: 29 | C194: 2.353923276 | D194: 2.285362404 | E194: 2.262110558 | F194: 2.112976863 | G194: 1.918447873 | H194: 1.950248484 | I194: 2.255131434 | J194: 1.463249288 | K194: 2.406232361 | O194: 29 | P194: =IF('Vurdering af miljøgevinst'!$A$5="Rute 1",Euro6_14.6_29*(1-'Vurdering af miljøgevinst'!$B$13)+Biodiesel_14.6_29*'Vurdering af miljøgevinst'!$B$13,"IR") -> 2.319346131 | Q194: =IF('Vurdering af miljøgevinst'!$A$5="Rute 1",Euro6_14.6_29*(1-'Vurdering af miljøgevinst'!$B$13)+Ethanol_14.6_29*'Vurdering af miljøgevinst'!$B$13,"IR") -> 2.04218738 | R194: =IF('Vurdering af miljøgevinst'!$A$5="Rute 1",Euro6_14.6_29*(1-'Vurdering af miljøgevinst'!$F$13)+Biodiesel_14.6_29*'Vurdering af miljøgevinst'!$F$13,"IR") -> 2.353923276 | S194: =IF('Vurdering af miljøgevinst'!$A$5="Rute 1",Euro6_14.6_29*(1-'Vurdering af miljøgevinst'!$F$13)+Ethanol_14.6_29*'Vurdering af miljøgevinst'!$F$13,"IR") -> 2.353923276 | U194: 29 | AA194: 29 | AG194: 29 | AM194: 29 | AS194: 29 | AY194: 29 | BE194: 29 | BK194: 29 | BQ194: 29 | BW194: 29 | CC194: 29 | CI194: 29 | CO194: 29 | CU194: 29 | DA194: 29 | DG194: 29 | DM194: 29 | DS194: 29 | DY194: 29 | EE194: 29 | EK194: 29 | EQ194: 29 | EW194: 29 | FC194: 29
B195: 30 | C195: 2.380043138 | D195: 2.310721493 | E195: 2.280420788 | F195: 2.132960421 | G195: 1.937609024 | H195: 1.965704901 | I195: 2.279914218 | J195: 1.479485955 | K195: 2.432932661 | O195: 30 | P195: =IF('Vurdering af miljøgevinst'!$A$5="Rute 1",Euro6_14.6_30*(1-'Vurdering af miljøgevinst'!$B$13)+Biodiesel_14.6_30*'Vurdering af miljøgevinst'!$B$13,"IR") -> 2.344998016 | Q195: =IF('Vurdering af miljøgevinst'!$A$5="Rute 1",Euro6_14.6_30*(1-'Vurdering af miljøgevinst'!$B$13)+Ethanol_14.6_30*'Vurdering af miljøgevinst'!$B$13,"IR") -> 2.064848124 | R195: =IF('Vurdering af miljøgevinst'!$A$5="Rute 1",Euro6_14.6_30*(1-'Vurdering af miljøgevinst'!$F$13)+Biodiesel_14.6_30*'Vurdering af miljøgevinst'!$F$13,"IR") -> 2.380043138 | S195: =IF('Vurdering af miljøgevinst'!$A$5="Rute 1",Euro6_14.6_30*(1-'Vurdering af miljøgevinst'!$F$13)+Ethanol_14.6_30*'Vurdering af miljøgevinst'!$F$13,"IR") -> 2.380043138 | U195: 30 | AA195: 30 | AG195: 30 | AM195: 30 | AS195: 30 | AY195: 30 | BE195: 30 | BK195: 30 | BQ195: 30 | BW195: 30 | CC195: 30 | CI195: 30 | CO195: 30 | CU195: 30 | DA195: 30 | DG195: 30 | DM195: 30 | DS195: 30 | DY195: 30 | EE195: 30 | EK195: 30 | EQ195: 30 | EW195: 30 | FC195: 30
B196: 31 | C196: 2.406162999 | D196: 2.336080582 | E196: 2.298731018 | F196: 2.152943979 | G196: 1.956770175 | H196: 1.981161317 | I196: 2.304692049 | J196: 1.495722622 | K196: 2.45963296 | O196: 31 | P196: =IF('Vurdering af miljøgevinst'!$A$5="Rute 1",Euro6_14.6_31*(1-'Vurdering af miljøgevinst'!$B$13)+Biodiesel_14.6_31*'Vurdering af miljøgevinst'!$B$13,"IR") -> 2.370648166 | Q196: =IF('Vurdering af miljøgevinst'!$A$5="Rute 1",Euro6_14.6_31*(1-'Vurdering af miljøgevinst'!$B$13)+Ethanol_14.6_31*'Vurdering af miljøgevinst'!$B$13,"IR") -> 2.087508867 | R196: =IF('Vurdering af miljøgevinst'!$A$5="Rute 1",Euro6_14.6_31*(1-'Vurdering af miljøgevinst'!$F$13)+Biodiesel_14.6_31*'Vurdering af miljøgevinst'!$F$13,"IR") -> 2.406162999 | S196: =IF('Vurdering af miljøgevinst'!$A$5="Rute 1",Euro6_14.6_31*(1-'Vurdering af miljøgevinst'!$F$13)+Ethanol_14.6_31*'Vurdering af miljøgevinst'!$F$13,"IR") -> 2.406162999 | U196: 31 | AA196: 31 | AG196: 31 | AM196: 31 | AS196: 31 | AY196: 31 | BE196: 31 | BK196: 31 | BQ196: 31 | BW196: 31 | CC196: 31 | CI196: 31 | CO196: 31 | CU196: 31 | DA196: 31 | DG196: 31 | DM196: 31 | DS196: 31 | DY196: 31 | EE196: 31 | EK196: 31 | EQ196: 31 | EW196: 31 | FC196: 31
B197: 32 | C197: 2.432282861 | D197: 2.361439671 | E197: 2.317041248 | F197: 2.172927537 | G197: 1.975931327 | H197: 1.996617734 | I197: 2.329464937 | J197: 1.511959289 | K197: 2.48633326 | O197: 32 | P197: =IF('Vurdering af miljøgevinst'!$A$5="Rute 1",Euro6_14.6_32*(1-'Vurdering af miljøgevinst'!$B$13)+Biodiesel_14.6_32*'Vurdering af miljøgevinst'!$B$13,"IR") -> 2.396296587 | Q197: =IF('Vurdering af miljøgevinst'!$A$5="Rute 1",Euro6_14.6_32*(1-'Vurdering af miljøgevinst'!$B$13)+Ethanol_14.6_32*'Vurdering af miljøgevinst'!$B$13,"IR") -> 2.110169611 | R197: =IF('Vurdering af miljøgevinst'!$A$5="Rute 1",Euro6_14.6_32*(1-'Vurdering af miljøgevinst'!$F$13)+Biodiesel_14.6_32*'Vurdering af miljøgevinst'!$F$13,"IR") -> 2.432282861 | S197: =IF('Vurdering af miljøgevinst'!$A$5="Rute 1",Euro6_14.6_32*(1-'Vurdering af miljøgevinst'!$F$13)+Ethanol_14.6_32*'Vurdering af miljøgevinst'!$F$13,"IR") -> 2.432282861 | U197: 32 | AA197: 32 | AG197: 32 | AM197: 32 | AS197: 32 | AY197: 32 | BE197: 32 | BK197: 32 | BQ197: 32 | BW197: 32 | CC197: 32 | CI197: 32 | CO197: 32 | CU197: 32 | DA197: 32 | DG197: 32 | DM197: 32 | DS197: 32 | DY197: 32 | EE197: 32 | EK197: 32 | EQ197: 32 | EW197: 32 | FC197: 32
B198: 33 | C198: 2.458402722 | D198: 2.38679876 | E198: 2.335351478 | F198: 2.192911094 | G198: 1.995092478 | H198: 2.01207415 | I198: 2.354232892 | J198: 1.528195956 | K198: 2.513033559 | O198: 33 | P198: =IF('Vurdering af miljøgevinst'!$A$5="Rute 1",Euro6_14.6_33*(1-'Vurdering af miljøgevinst'!$B$13)+Biodiesel_14.6_33*'Vurdering af miljøgevinst'!$B$13,"IR") -> 2.421943282 | Q198: =IF('Vurdering af miljøgevinst'!$A$5="Rute 1",Euro6_14.6_33*(1-'Vurdering af miljøgevinst'!$B$13)+Ethanol_14.6_33*'Vurdering af miljøgevinst'!$B$13,"IR") -> 2.132830354 | R198: =IF('Vurdering af miljøgevinst'!$A$5="Rute 1",Euro6_14.6_33*(1-'Vurdering af miljøgevinst'!$F$13)+Biodiesel_14.6_33*'Vurdering af miljøgevinst'!$F$13,"IR") -> 2.458402722 | S198: =IF('Vurdering af miljøgevinst'!$A$5="Rute 1",Euro6_14.6_33*(1-'Vurdering af miljøgevinst'!$F$13)+Ethanol_14.6_33*'Vurdering af miljøgevinst'!$F$13,"IR") -> 2.458402722 | U198: 33 | AA198: 33 | AG198: 33 | AM198: 33 | AS198: 33 | AY198: 33 | BE198: 33 | BK198: 33 | BQ198: 33 | BW198: 33 | CC198: 33 | CI198: 33 | CO198: 33 | CU198: 33 | DA198: 33 | DG198: 33 | DM198: 33 | DS198: 33 | DY198: 33 | EE198: 33 | EK198: 33 | EQ198: 33 | EW198: 33 | FC198: 33
B199: 34 | C199: 2.484522584 | D199: 2.412157849 | E199: 2.353661708 | F199: 2.212894652 | G199: 2.014253629 | H199: 2.027530567 | I199: 2.378995925 | J199: 1.544432624 | K199: 2.539733858 | O199: 34 | P199: =IF('Vurdering af miljøgevinst'!$A$5="Rute 1",Euro6_14.6_34*(1-'Vurdering af miljøgevinst'!$B$13)+Biodiesel_14.6_34*'Vurdering af miljøgevinst'!$B$13,"IR") -> 2.447588253 | Q199: =IF('Vurdering af miljøgevinst'!$A$5="Rute 1",Euro6_14.6_34*(1-'Vurdering af miljøgevinst'!$B$13)+Ethanol_14.6_34*'Vurdering af miljøgevinst'!$B$13,"IR") -> 2.155491098 | R199: =IF('Vurdering af miljøgevinst'!$A$5="Rute 1",Euro6_14.6_34*(1-'Vurdering af miljøgevinst'!$F$13)+Biodiesel_14.6_34*'Vurdering af miljøgevinst'!$F$13,"IR") -> 2.484522584 | S199: =IF('Vurdering af miljøgevinst'!$A$5="Rute 1",Euro6_14.6_34*(1-'Vurdering af miljøgevinst'!$F$13)+Ethanol_14.6_34*'Vurdering af miljøgevinst'!$F$13,"IR") -> 2.484522584 | U199: 34 | AA199: 34 | AG199: 34 | AM199: 34 | AS199: 34 | AY199: 34 | BE199: 34 | BK199: 34 | BQ199: 34 | BW199: 34 | CC199: 34 | CI199: 34 | CO199: 34 | CU199: 34 | DA199: 34 | DG199: 34 | DM199: 34 | DS199: 34 | DY199: 34 | EE199: 34 | EK199: 34 | EQ199: 34 | EW199: 34 | FC199: 34
B200: 35 | C200: 2.510642446 | D200: 2.437516937 | E200: 2.371971938 | F200: 2.23287821 | G200: 2.033414781 | H200: 2.042986983 | I200: 2.403754045 | J200: 1.560669291 | K200: 2.566434158 | O200: 35 | P200: =IF('Vurdering af miljøgevinst'!$A$5="Rute 1",Euro6_14.6_35*(1-'Vurdering af miljøgevinst'!$B$13)+Biodiesel_14.6_35*'Vurdering af miljøgevinst'!$B$13,"IR") -> 2.473231505 | Q200: =IF('Vurdering af miljøgevinst'!$A$5="Rute 1",Euro6_14.6_35*(1-'Vurdering af miljøgevinst'!$B$13)+Ethanol_14.6_35*'Vurdering af miljøgevinst'!$B$13,"IR") -> 2.178151841 | R200: =IF('Vurdering af miljøgevinst'!$A$5="Rute 1",Euro6_14.6_35*(1-'Vurdering af miljøgevinst'!$F$13)+Biodiesel_14.6_35*'Vurdering af miljøgevinst'!$F$13,"IR") -> 2.510642446 | S200: =IF('Vurdering af miljøgevinst'!$A$5="Rute 1",Euro6_14.6_35*(1-'Vurdering af miljøgevinst'!$F$13)+Ethanol_14.6_35*'Vurdering af miljøgevinst'!$F$13,"IR") -> 2.510642446 | U200: 35 | AA200: 35 | AG200: 35 | AM200: 35 | AS200: 35 | AY200: 35 | BE200: 35 | BK200: 35 | BQ200: 35 | BW200: 35 | CC200: 35 | CI200: 35 | CO200: 35 | CU200: 35 | DA200: 35 | DG200: 35 | DM200: 35 | DS200: 35 | DY200: 35 | EE200: 35 | EK200: 35 | EQ200: 35 | EW200: 35 | FC200: 35
B201: 36 | C201: 2.536762307 | D201: 2.462876026 | E201: 2.390282167 | F201: 2.252861768 | G201: 2.052575932 | H201: 2.0584434 | I201: 2.428507263 | J201: 1.576905958 | K201: 2.593134457 | O201: 36 | P201: =IF('Vurdering af miljøgevinst'!$A$5="Rute 1",Euro6_14.6_36*(1-'Vurdering af miljøgevinst'!$B$13)+Biodiesel_14.6_36*'Vurdering af miljøgevinst'!$B$13,"IR") -> 2.498873042 | Q201: =IF('Vurdering af miljøgevinst'!$A$5="Rute 1",Euro6_14.6_36*(1-'Vurdering af miljøgevinst'!$B$13)+Ethanol_14.6_36*'Vurdering af miljøgevinst'!$B$13,"IR") -> 2.200812585 | R201: =IF('Vurdering af miljøgevinst'!$A$5="Rute 1",Euro6_14.6_36*(1-'Vurdering af miljøgevinst'!$F$13)+Biodiesel_14.6_36*'Vurdering af miljøgevinst'!$F$13,"IR") -> 2.536762307 | S201: =IF('Vurdering af miljøgevinst'!$A$5="Rute 1",Euro6_14.6_36*(1-'Vurdering af miljøgevinst'!$F$13)+Ethanol_14.6_36*'Vurdering af miljøgevinst'!$F$13,"IR") -> 2.536762307 | U201: 36 | AA201: 36 | AG201: 36 | AM201: 36 | AS201: 36 | AY201: 36 | BE201: 36 | BK201: 36 | BQ201: 36 | BW201: 36 | CC201: 36 | CI201: 36 | CO201: 36 | CU201: 36 | DA201: 36 | DG201: 36 | DM201: 36 | DS201: 36 | DY201: 36 | EE201: 36 | EK201: 36 | EQ201: 36 | EW201: 36 | FC201: 36
B202: 37 | C202: 2.562882169 | D202: 2.488235115 | E202: 2.408592397 | F202: 2.272845326 | G202: 2.071737083 | H202: 2.073899816 | I202: 2.453255588 | J202: 1.593142625 | K202: 2.619834757 | O202: 37 | P202: =IF('Vurdering af miljøgevinst'!$A$5="Rute 1",Euro6_14.6_37*(1-'Vurdering af miljøgevinst'!$B$13)+Biodiesel_14.6_37*'Vurdering af miljøgevinst'!$B$13,"IR") -> 2.524512866 | Q202: =IF('Vurdering af miljøgevinst'!$A$5="Rute 1",Euro6_14.6_37*(1-'Vurdering af miljøgevinst'!$B$13)+Ethanol_14.6_37*'Vurdering af miljøgevinst'!$B$13,"IR") -> 2.223473329 | R202: =IF('Vurdering af miljøgevinst'!$A$5="Rute 1",Euro6_14.6_37*(1-'Vurdering af miljøgevinst'!$F$13)+Biodiesel_14.6_37*'Vurdering af miljøgevinst'!$F$13,"IR") -> 2.562882169 | S202: =IF('Vurdering af miljøgevinst'!$A$5="Rute 1",Euro6_14.6_37*(1-'Vurdering af miljøgevinst'!$F$13)+Ethanol_14.6_37*'Vurdering af miljøgevinst'!$F$13,"IR") -> 2.562882169 | U202: 37 | AA202: 37 | AG202: 37 | AM202: 37 | AS202: 37 | AY202: 37 | BE202: 37 | BK202: 37 | BQ202: 37 | BW202: 37 | CC202: 37 | CI202: 37 | CO202: 37 | CU202: 37 | DA202: 37 | DG202: 37 | DM202: 37 | DS202: 37 | DY202: 37 | EE202: 37 | EK202: 37 | EQ202: 37 | EW202: 37 | FC202: 37
B203: 38 | C203: 2.58900203 | D203: 2.513594204 | E203: 2.426902627 | F203: 2.292828884 | G203: 2.090898234 | H203: 2.089356233 | I203: 2.477999032 | J203: 1.609379293 | K203: 2.646535056 | O203: 38 | P203: =IF('Vurdering af miljøgevinst'!$A$5="Rute 1",Euro6_14.6_38*(1-'Vurdering af miljøgevinst'!$B$13)+Biodiesel_14.6_38*'Vurdering af miljøgevinst'!$B$13,"IR") -> 2.550150981 | Q203: =IF('Vurdering af miljøgevinst'!$A$5="Rute 1",Euro6_14.6_38*(1-'Vurdering af miljøgevinst'!$B$13)+Ethanol_14.6_38*'Vurdering af miljøgevinst'!$B$13,"IR") -> 2.246134072 | R203: =IF('Vurdering af miljøgevinst'!$A$5="Rute 1",Euro6_14.6_38*(1-'Vurdering af miljøgevinst'!$F$13)+Biodiesel_14.6_38*'Vurdering af miljøgevinst'!$F$13,"IR") -> 2.58900203 | S203: =IF('Vurdering af miljøgevinst'!$A$5="Rute 1",Euro6_14.6_38*(1-'Vurdering af miljøgevinst'!$F$13)+Ethanol_14.6_38*'Vurdering af miljøgevinst'!$F$13,"IR") -> 2.58900203 | U203: 38 | AA203: 38 | AG203: 38 | AM203: 38 | AS203: 38 | AY203: 38 | BE203: 38 | BK203: 38 | BQ203: 38 | BW203: 38 | CC203: 38 | CI203: 38 | CO203: 38 | CU203: 38 | DA203: 38 | DG203: 38 | DM203: 38 | DS203: 38 | DY203: 38 | EE203: 38 | EK203: 38 | EQ203: 38 | EW203: 38 | FC203: 38
B204: 39 | C204: 2.615121892 | D204: 2.538953293 | E204: 2.445212857 | F204: 2.312812442 | G204: 2.110059386 | H204: 2.10481265 | I204: 2.502737602 | J204: 1.62561596 | K204: 2.673235355 | O204: 39 | P204: =IF('Vurdering af miljøgevinst'!$A$5="Rute 1",Euro6_14.6_39*(1-'Vurdering af miljøgevinst'!$B$13)+Biodiesel_14.6_39*'Vurdering af miljøgevinst'!$B$13,"IR") -> 2.575787391 | Q204: =IF('Vurdering af miljøgevinst'!$A$5="Rute 1",Euro6_14.6_39*(1-'Vurdering af miljøgevinst'!$B$13)+Ethanol_14.6_39*'Vurdering af miljøgevinst'!$B$13,"IR") -> 2.268794816 | R204: =IF('Vurdering af miljøgevinst'!$A$5="Rute 1",Euro6_14.6_39*(1-'Vurdering af miljøgevinst'!$F$13)+Biodiesel_14.6_39*'Vurdering af miljøgevinst'!$F$13,"IR") -> 2.615121892 | S204: =IF('Vurdering af miljøgevinst'!$A$5="Rute 1",Euro6_14.6_39*(1-'Vurdering af miljøgevinst'!$F$13)+Ethanol_14.6_39*'Vurdering af miljøgevinst'!$F$13,"IR") -> 2.615121892 | U204: 39 | AA204: 39 | AG204: 39 | AM204: 39 | AS204: 39 | AY204: 39 | BE204: 39 | BK204: 39 | BQ204: 39 | BW204: 39 | CC204: 39 | CI204: 39 | CO204: 39 | CU204: 39 | DA204: 39 | DG204: 39 | DM204: 39 | DS204: 39 | DY204: 39 | EE204: 39 | EK204: 39 | EQ204: 39 | EW204: 39 | FC204: 39
B205: 40 | C205: 2.641241754 | D205: 2.564312382 | E205: 2.463523087 | F205: 2.332796 | G205: 2.129220537 | H205: 2.120269066 | I205: 2.52747131 | J205: 1.641852627 | K205: 2.699935655 | O205: 40 | P205: =IF('Vurdering af miljøgevinst'!$A$5="Rute 1",Euro6_14.6_40*(1-'Vurdering af miljøgevinst'!$B$13)+Biodiesel_14.6_40*'Vurdering af miljøgevinst'!$B$13,"IR") -> 2.601422098 | Q205: =IF('Vurdering af miljøgevinst'!$A$5="Rute 1",Euro6_14.6_40*(1-'Vurdering af miljøgevinst'!$B$13)+Ethanol_14.6_40*'Vurdering af miljøgevinst'!$B$13,"IR") -> 2.291455559 | R205: =IF('Vurdering af miljøgevinst'!$A$5="Rute 1",Euro6_14.6_40*(1-'Vurdering af miljøgevinst'!$F$13)+Biodiesel_14.6_40*'Vurdering af miljøgevinst'!$F$13,"IR") -> 2.641241754 | S205: =IF('Vurdering af miljøgevinst'!$A$5="Rute 1",Euro6_14.6_40*(1-'Vurdering af miljøgevinst'!$F$13)+Ethanol_14.6_40*'Vurdering af miljøgevinst'!$F$13,"IR") -> 2.641241754 | U205: 40 | AA205: 40 | AG205: 40 | AM205: 40 | AS205: 40 | AY205: 40 | BE205: 40 | BK205: 40 | BQ205: 40 | BW205: 40 | CC205: 40 | CI205: 40 | CO205: 40 | CU205: 40 | DA205: 40 | DG205: 40 | DM205: 40 | DS205: 40 | DY205: 40 | EE205: 40 | EK205: 40 | EQ205: 40 | EW205: 40 | FC205: 40
B206: 41 | C206: 2.667361615 | D206: 2.589671471 | E206: 2.481833317 | F206: 2.352779558 | G206: 2.148381688 | H206: 2.135725483 | I206: 2.552200166 | J206: 1.658089294 | K206: 2.726635954 | O206: 41 | P206: =IF('Vurdering af miljøgevinst'!$A$5="Rute 1",Euro6_14.6_41*(1-'Vurdering af miljøgevinst'!$B$13)+Biodiesel_14.6_41*'Vurdering af miljøgevinst'!$B$13,"IR") -> 2.627055108 | Q206: =IF('Vurdering af miljøgevinst'!$A$5="Rute 1",Euro6_14.6_41*(1-'Vurdering af miljøgevinst'!$B$13)+Ethanol_14.6_41*'Vurdering af miljøgevinst'!$B$13,"IR") -> 2.314116303 | R206: =IF('Vurdering af miljøgevinst'!$A$5="Rute 1",Euro6_14.6_41*(1-'Vurdering af miljøgevinst'!$F$13)+Biodiesel_14.6_41*'Vurdering af miljøgevinst'!$F$13,"IR") -> 2.667361615 | S206: =IF('Vurdering af miljøgevinst'!$A$5="Rute 1",Euro6_14.6_41*(1-'Vurdering af miljøgevinst'!$F$13)+Ethanol_14.6_41*'Vurdering af miljøgevinst'!$F$13,"IR") -> 2.667361615 | U206: 41 | AA206: 41 | AG206: 41 | AM206: 41 | AS206: 41 | AY206: 41 | BE206: 41 | BK206: 41 | BQ206: 41 | BW206: 41 | CC206: 41 | CI206: 41 | CO206: 41 | CU206: 41 | DA206: 41 | DG206: 41 | DM206: 41 | DS206: 41 | DY206: 41 | EE206: 41 | EK206: 41 | EQ206: 41 | EW206: 41 | FC206: 41
B207: 42 | C207: 2.693481477 | D207: 2.61503056 | E207: 2.500143547 | F207: 2.372763116 | G207: 2.16754284 | H207: 2.151181899 | I207: 2.576924179 | J207: 1.674325961 | K207: 2.753336254 | O207: 42 | P207: =IF('Vurdering af miljøgevinst'!$A$5="Rute 1",Euro6_14.6_42*(1-'Vurdering af miljøgevinst'!$B$13)+Biodiesel_14.6_42*'Vurdering af miljøgevinst'!$B$13,"IR") -> 2.652686423 | Q207: =IF('Vurdering af miljøgevinst'!$A$5="Rute 1",Euro6_14.6_42*(1-'Vurdering af miljøgevinst'!$B$13)+Ethanol_14.6_42*'Vurdering af miljøgevinst'!$B$13,"IR") -> 2.336777046 | R207: =IF('Vurdering af miljøgevinst'!$A$5="Rute 1",Euro6_14.6_42*(1-'Vurdering af miljøgevinst'!$F$13)+Biodiesel_14.6_42*'Vurdering af miljøgevinst'!$F$13,"IR") -> 2.693481477 | S207: =IF('Vurdering af miljøgevinst'!$A$5="Rute 1",Euro6_14.6_42*(1-'Vurdering af miljøgevinst'!$F$13)+Ethanol_14.6_42*'Vurdering af miljøgevinst'!$F$13,"IR") -> 2.693481477 | U207: 42 | AA207: 42 | AG207: 42 | AM207: 42 | AS207: 42 | AY207: 42 | BE207: 42 | BK207: 42 | BQ207: 42 | BW207: 42 | CC207: 42 | CI207: 42 | CO207: 42 | CU207: 42 | DA207: 42 | DG207: 42 | DM207: 42 | DS207: 42 | DY207: 42 | EE207: 42 | EK207: 42 | EQ207: 42 | EW207: 42 | FC207: 42
B208: 43 | C208: 2.719601338 | D208: 2.640389649 | E208: 2.518453777 | F208: 2.392746674 | G208: 2.186703991 | H208: 2.166638316 | I208: 2.601643359 | J208: 1.690562629 | K208: 2.780036553 | O208: 43 | P208: =IF('Vurdering af miljøgevinst'!$A$5="Rute 1",Euro6_14.6_43*(1-'Vurdering af miljøgevinst'!$B$13)+Biodiesel_14.6_43*'Vurdering af miljøgevinst'!$B$13,"IR") -> 2.678316046 | Q208: =IF('Vurdering af miljøgevinst'!$A$5="Rute 1",Euro6_14.6_43*(1-'Vurdering af miljøgevinst'!$B$13)+Ethanol_14.6_43*'Vurdering af miljøgevinst'!$B$13,"IR") -> 2.35943779 | R208: =IF('Vurdering af miljøgevinst'!$A$5="Rute 1",Euro6_14.6_43*(1-'Vurdering af miljøgevinst'!$F$13)+Biodiesel_14.6_43*'Vurdering af miljøgevinst'!$F$13,"IR") -> 2.719601338 | S208: =IF('Vurdering af miljøgevinst'!$A$5="Rute 1",Euro6_14.6_43*(1-'Vurdering af miljøgevinst'!$F$13)+Ethanol_14.6_43*'Vurdering af miljøgevinst'!$F$13,"IR") -> 2.719601338 | U208: 43 | AA208: 43 | AG208: 43 | AM208: 43 | AS208: 43 | AY208: 43 | BE208: 43 | BK208: 43 | BQ208: 43 | BW208: 43 | CC208: 43 | CI208: 43 | CO208: 43 | CU208: 43 | DA208: 43 | DG208: 43 | DM208: 43 | DS208: 43 | DY208: 43 | EE208: 43 | EK208: 43 | EQ208: 43 | EW208: 43 | FC208: 43
B209: 44 | C209: 2.7457212 | D209: 2.665748738 | E209: 2.536764007 | F209: 2.412730232 | G209: 2.205865142 | H209: 2.182094732 | I209: 2.626357716 | J209: 1.706799296 | K209: 2.806736852 | O209: 44 | P209: =IF('Vurdering af miljøgevinst'!$A$5="Rute 1",Euro6_14.6_44*(1-'Vurdering af miljøgevinst'!$B$13)+Biodiesel_14.6_44*'Vurdering af miljøgevinst'!$B$13,"IR") -> 2.703943981 | Q209: =IF('Vurdering af miljøgevinst'!$A$5="Rute 1",Euro6_14.6_44*(1-'Vurdering af miljøgevinst'!$B$13)+Ethanol_14.6_44*'Vurdering af miljøgevinst'!$B$13,"IR") -> 2.382098534 | R209: =IF('Vurdering af miljøgevinst'!$A$5="Rute 1",Euro6_14.6_44*(1-'Vurdering af miljøgevinst'!$F$13)+Biodiesel_14.6_44*'Vurdering af miljøgevinst'!$F$13,"IR") -> 2.7457212 | S209: =IF('Vurdering af miljøgevinst'!$A$5="Rute 1",Euro6_14.6_44*(1-'Vurdering af miljøgevinst'!$F$13)+Ethanol_14.6_44*'Vurdering af miljøgevinst'!$F$13,"IR") -> 2.7457212 | U209: 44 | AA209: 44 | AG209: 44 | AM209: 44 | AS209: 44 | AY209: 44 | BE209: 44 | BK209: 44 | BQ209: 44 | BW209: 44 | CC209: 44 | CI209: 44 | CO209: 44 | CU209: 44 | DA209: 44 | DG209: 44 | DM209: 44 | DS209: 44 | DY209: 44 | EE209: 44 | EK209: 44 | EQ209: 44 | EW209: 44 | FC209: 44
B210: 45 | C210: 2.771841062 | D210: 2.691107827 | E210: 2.555074237 | F210: 2.43271379 | G210: 2.225026293 | H210: 2.197551149 | I210: 2.65106726 | J210: 1.723035963 | K210: 2.833437152 | O210: 45 | P210: =IF('Vurdering af miljøgevinst'!$A$5="Rute 1",Euro6_14.6_45*(1-'Vurdering af miljøgevinst'!$B$13)+Biodiesel_14.6_45*'Vurdering af miljøgevinst'!$B$13,"IR") -> 2.729570231 | Q210: =IF('Vurdering af miljøgevinst'!$A$5="Rute 1",Euro6_14.6_45*(1-'Vurdering af miljøgevinst'!$B$13)+Ethanol_14.6_45*'Vurdering af miljøgevinst'!$B$13,"IR") -> 2.404759277 | R210: =IF('Vurdering af miljøgevinst'!$A$5="Rute 1",Euro6_14.6_45*(1-'Vurdering af miljøgevinst'!$F$13)+Biodiesel_14.6_45*'Vurdering af miljøgevinst'!$F$13,"IR") -> 2.771841062 | S210: =IF('Vurdering af miljøgevinst'!$A$5="Rute 1",Euro6_14.6_45*(1-'Vurdering af miljøgevinst'!$F$13)+Ethanol_14.6_45*'Vurdering af miljøgevinst'!$F$13,"IR") -> 2.771841062 | U210: 45 | AA210: 45 | AG210: 45 | AM210: 45 | AS210: 45 | AY210: 45 | BE210: 45 | BK210: 45 | BQ210: 45 | BW210: 45 | CC210: 45 | CI210: 45 | CO210: 45 | CU210: 45 | DA210: 45 | DG210: 45 | DM210: 45 | DS210: 45 | DY210: 45 | EE210: 45 | EK210: 45 | EQ210: 45 | EW210: 45 | FC210: 45
B211: 46 | C211: 2.797960923 | D211: 2.716466916 | E211: 2.573384467 | F211: 2.452697348 | G211: 2.244187445 | H211: 2.213007565 | I211: 2.675772001 | J211: 1.73927263 | K211: 2.860137451 | O211: 46 | P211: =IF('Vurdering af miljøgevinst'!$A$5="Rute 1",Euro6_14.6_46*(1-'Vurdering af miljøgevinst'!$B$13)+Biodiesel_14.6_46*'Vurdering af miljøgevinst'!$B$13,"IR") -> 2.755194801 | Q211: =IF('Vurdering af miljøgevinst'!$A$5="Rute 1",Euro6_14.6_46*(1-'Vurdering af miljøgevinst'!$B$13)+Ethanol_14.6_46*'Vurdering af miljøgevinst'!$B$13,"IR") -> 2.427420021 | R211: =IF('Vurdering af miljøgevinst'!$A$5="Rute 1",Euro6_14.6_46*(1-'Vurdering af miljøgevinst'!$F$13)+Biodiesel_14.6_46*'Vurdering af miljøgevinst'!$F$13,"IR") -> 2.797960923 | S211: =IF('Vurdering af miljøgevinst'!$A$5="Rute 1",Euro6_14.6_46*(1-'Vurdering af miljøgevinst'!$F$13)+Ethanol_14.6_46*'Vurdering af miljøgevinst'!$F$13,"IR") -> 2.797960923 | U211: 46 | AA211: 46 | AG211: 46 | AM211: 46 | AS211: 46 | AY211: 46 | BE211: 46 | BK211: 46 | BQ211: 46 | BW211: 46 | CC211: 46 | CI211: 46 | CO211: 46 | CU211: 46 | DA211: 46 | DG211: 46 | DM211: 46 | DS211: 46 | DY211: 46 | EE211: 46 | EK211: 46 | EQ211: 46 | EW211: 46 | FC211: 46
B212: 47 | C212: 2.824080785 | D212: 2.741826005 | E212: 2.591694697 | F212: 2.472680906 | G212: 2.263348596 | H212: 2.228463982 | I212: 2.700471948 | J212: 1.755509297 | K212: 2.886837751 | O212: 47 | P212: =IF('Vurdering af miljøgevinst'!$A$5="Rute 1",Euro6_14.6_47*(1-'Vurdering af miljøgevinst'!$B$13)+Biodiesel_14.6_47*'Vurdering af miljøgevinst'!$B$13,"IR") -> 2.780817692 | Q212: =IF('Vurdering af miljøgevinst'!$A$5="Rute 1",Euro6_14.6_47*(1-'Vurdering af miljøgevinst'!$B$13)+Ethanol_14.6_47*'Vurdering af miljøgevinst'!$B$13,"IR") -> 2.450080764 | R212: =IF('Vurdering af miljøgevinst'!$A$5="Rute 1",Euro6_14.6_47*(1-'Vurdering af miljøgevinst'!$F$13)+Biodiesel_14.6_47*'Vurdering af miljøgevinst'!$F$13,"IR") -> 2.824080785 | S212: =IF('Vurdering af miljøgevinst'!$A$5="Rute 1",Euro6_14.6_47*(1-'Vurdering af miljøgevinst'!$F$13)+Ethanol_14.6_47*'Vurdering af miljøgevinst'!$F$13,"IR") -> 2.824080785 | U212: 47 | AA212: 47 | AG212: 47 | AM212: 47 | AS212: 47 | AY212: 47 | BE212: 47 | BK212: 47 | BQ212: 47 | BW212: 47 | CC212: 47 | CI212: 47 | CO212: 47 | CU212: 47 | DA212: 47 | DG212: 47 | DM212: 47 | DS212: 47 | DY212: 47 | EE212: 47 | EK212: 47 | EQ212: 47 | EW212: 47 | FC212: 47
B213: 48 | C213: 2.850200646 | D213: 2.767185094 | E213: 2.610004927 | F213: 2.492664464 | G213: 2.282509747 | H213: 2.243920399 | I213: 2.725167112 | J213: 1.771745965 | K213: 2.91353805 | O213: 48 | P213: =IF('Vurdering af miljøgevinst'!$A$5="Rute 1",Euro6_14.6_48*(1-'Vurdering af miljøgevinst'!$B$13)+Biodiesel_14.6_48*'Vurdering af miljøgevinst'!$B$13,"IR") -> 2.806438909 | Q213: =IF('Vurdering af miljøgevinst'!$A$5="Rute 1",Euro6_14.6_48*(1-'Vurdering af miljøgevinst'!$B$13)+Ethanol_14.6_48*'Vurdering af miljøgevinst'!$B$13,"IR") -> 2.472741508 | R213: =IF('Vurdering af miljøgevinst'!$A$5="Rute 1",Euro6_14.6_48*(1-'Vurdering af miljøgevinst'!$F$13)+Biodiesel_14.6_48*'Vurdering af miljøgevinst'!$F$13,"IR") -> 2.850200646 | S213: =IF('Vurdering af miljøgevinst'!$A$5="Rute 1",Euro6_14.6_48*(1-'Vurdering af miljøgevinst'!$F$13)+Ethanol_14.6_48*'Vurdering af miljøgevinst'!$F$13,"IR") -> 2.850200646 | U213: 48 | AA213: 48 | AG213: 48 | AM213: 48 | AS213: 48 | AY213: 48 | BE213: 48 | BK213: 48 | BQ213: 48 | BW213: 48 | CC213: 48 | CI213: 48 | CO213: 48 | CU213: 48 | DA213: 48 | DG213: 48 | DM213: 48 | DS213: 48 | DY213: 48 | EE213: 48 | EK213: 48 | EQ213: 48 | EW213: 48 | FC213: 48
B214: 49 | C214: 2.876320508 | D214: 2.792544183 | E214: 2.628315157 | F214: 2.512648022 | G214: 2.301670899 | H214: 2.259376815 | I214: 2.749857501 | J214: 1.787982632 | K214: 2.94023835 | O214: 49 | P214: =IF('Vurdering af miljøgevinst'!$A$5="Rute 1",Euro6_14.6_49*(1-'Vurdering af miljøgevinst'!$B$13)+Biodiesel_14.6_49*'Vurdering af miljøgevinst'!$B$13,"IR") -> 2.832058456 | Q214: =IF('Vurdering af miljøgevinst'!$A$5="Rute 1",Euro6_14.6_49*(1-'Vurdering af miljøgevinst'!$B$13)+Ethanol_14.6_49*'Vurdering af miljøgevinst'!$B$13,"IR") -> 2.495402251 | R214: =IF('Vurdering af miljøgevinst'!$A$5="Rute 1",Euro6_14.6_49*(1-'Vurdering af miljøgevinst'!$F$13)+Biodiesel_14.6_49*'Vurdering af miljøgevinst'!$F$13,"IR") -> 2.876320508 | S214: =IF('Vurdering af miljøgevinst'!$A$5="Rute 1",Euro6_14.6_49*(1-'Vurdering af miljøgevinst'!$F$13)+Ethanol_14.6_49*'Vurdering af miljøgevinst'!$F$13,"IR") -> 2.876320508 | U214: 49 | AA214: 49 | AG214: 49 | AM214: 49 | AS214: 49 | AY214: 49 | BE214: 49 | BK214: 49 | BQ214: 49 | BW214: 49 | CC214: 49 | CI214: 49 | CO214: 49 | CU214: 49 | DA214: 49 | DG214: 49 | DM214: 49 | DS214: 49 | DY214: 49 | EE214: 49 | EK214: 49 | EQ214: 49 | EW214: 49 | FC214: 49
B215: =B214+1 -> 50 | C215: 2.90244037 | D215: 2.817903271 | E215: 2.646625387 | F215: 2.53263158 | G215: 2.32083205 | H215: 2.274833232 | I215: 2.774543126 | J215: 1.804219299 | K215: 2.966938649 | O215: 50 | P215: =IF('Vurdering af miljøgevinst'!$A$5="Rute 1",Euro6_14.6_50*(1-'Vurdering af miljøgevinst'!$B$13)+Biodiesel_14.6_50*'Vurdering af miljøgevinst'!$B$13,"IR") -> 2.857676334 | Q215: =IF('Vurdering af miljøgevinst'!$A$5="Rute 1",Euro6_14.6_50*(1-'Vurdering af miljøgevinst'!$B$13)+Ethanol_14.6_50*'Vurdering af miljøgevinst'!$B$13,"IR") -> 2.518062995 | R215: =IF('Vurdering af miljøgevinst'!$A$5="Rute 1",Euro6_14.6_50*(1-'Vurdering af miljøgevinst'!$F$13)+Biodiesel_14.6_50*'Vurdering af miljøgevinst'!$F$13,"IR") -> 2.90244037 | S215: =IF('Vurdering af miljøgevinst'!$A$5="Rute 1",Euro6_14.6_50*(1-'Vurdering af miljøgevinst'!$F$13)+Ethanol_14.6_50*'Vurdering af miljøgevinst'!$F$13,"IR") -> 2.90244037 | U215: 50 | AA215: 50 | AG215: 50 | AM215: 50 | AS215: 50 | AY215: 50 | BE215: 50 | BK215: 50 | BQ215: 50 | BW215: 50 | CC215: 50 | CI215: 50 | CO215: 50 | CU215: 50 | DA215: 50 | DG215: 50 | DM215: 50 | DS215: 50 | DY215: 50 | EE215: 50 | EK215: 50 | EQ215: 50 | EW215: 50 | FC215: 50
B216: =B215+1 -> 51 | C216: 2.928560231 | D216: 2.84326236 | E216: 2.664935617 | F216: 2.552615138 | G216: 2.339993201 | H216: 2.290289648 | I216: 2.799223995 | J216: 1.820455966 | K216: 2.993638948 | O216: 51 | P216: =IF('Vurdering af miljøgevinst'!$A$5="Rute 1",Euro6_14.6_51*(1-'Vurdering af miljøgevinst'!$B$13)+Biodiesel_14.6_51*'Vurdering af miljøgevinst'!$B$13,"IR") -> 2.883292549 | Q216: =IF('Vurdering af miljøgevinst'!$A$5="Rute 1",Euro6_14.6_51*(1-'Vurdering af miljøgevinst'!$B$13)+Ethanol_14.6_51*'Vurdering af miljøgevinst'!$B$13,"IR") -> 2.540723739 | R216: =IF('Vurdering af miljøgevinst'!$A$5="Rute 1",Euro6_14.6_51*(1-'Vurdering af miljøgevinst'!$F$13)+Biodiesel_14.6_51*'Vurdering af miljøgevinst'!$F$13,"IR") -> 2.928560231 | S216: =IF('Vurdering af miljøgevinst'!$A$5="Rute 1",Euro6_14.6_51*(1-'Vurdering af miljøgevinst'!$F$13)+Ethanol_14.6_51*'Vurdering af miljøgevinst'!$F$13,"IR") -> 2.928560231 | U216: 51 | AA216: 51 | AG216: 51 | AM216: 51 | AS216: 51 | AY216: 51 | BE216: 51 | BK216: 51 | BQ216: 51 | BW216: 51 | CC216: 51 | CI216: 51 | CO216: 51 | CU216: 51 | DA216: 51 | DG216: 51 | DM216: 51 | DS216: 51 | DY216: 51 | EE216: 51 | EK216: 51 | EQ216: 51 | EW216: 51 | FC216: 51
... 112 more rows

Sheet Diverse (hidden)
B1: Energiindhold ved blandingsforhold | F1: Euro 6 | H1: Emissioner ved blandingsforhold | L1: EEV | N1: Emissioner ved blandingsforhold | R1: Euro 5 | T1: Emissioner ved blandingsforhold | X1: Euro 4 | Z1: Emissioner ved blandingsforhold | AD1: Euro 3 | AF1: Emissioner ved blandingsforhold | AJ1: Euro 2 | AL1: Emissioner ved blandingsforhold
B2: Tiltag | D2: Reference | H2: Tiltag | J2: Reference | N2: Tiltag | P2: Reference | T2: Tiltag | V2: Reference | Z2: Tiltag | AB2: Reference | AF2: Tiltag | AH2: Reference | AL2: Tiltag | AN2: Reference
B3: Biodiesel | C3: Ethanol | D3: Biodiesel | E3: Ethanol | H3: Biodiesel | I3: Ethanol | J3: Biodiesel | K3: Ethanol | N3: Biodiesel | O3: Ethanol | P3: Biodiesel | Q3: Ethanol | T3: Biodiesel | U3: Ethanol | V3: Biodiesel | W3: Ethanol | Z3: Biodiesel | AA3: Ethanol | AB3: Biodiesel | AC3: Ethanol | AF3: Biodiesel | AG3: Ethanol | AH3: Biodiesel | AI3: Ethanol | AL3: Biodiesel | AM3: Ethanol | AN3: Biodiesel | AO3: Ethanol
A4: Rute 1 | B4: =IF('Vurdering af miljøgevinst'!A5="Rute 1",Brændstoftyper!$B$14*(1-'Vurdering af miljøgevinst'!B13)+Brændstoftyper!$C$14*'Vurdering af miljøgevinst'!B13,"IR") -> 33.93445 | C4: =IF('Vurdering af miljøgevinst'!A5="Rute 1",Brændstoftyper!$B$14*(1-'Vurdering af miljøgevinst'!B13)+Brændstoftyper!$F$14*'Vurdering af miljøgevinst'!B13,"IR") -> 30.565 | D4: =IF('Vurdering af miljøgevinst'!A5="Rute 1",Brændstoftyper!$B$14*(1-'Vurdering af miljøgevinst'!F13)+Brændstoftyper!$C$14*'Vurdering af miljøgevinst'!F13,"IR") -> 35.5 | E4: =IF('Vurdering af miljøgevinst'!A5="Rute 1",Brændstoftyper!$B$14*(1-'Vurdering af miljøgevinst'!F13)+Brændstoftyper!$F$14*'Vurdering af miljøgevinst'!F13,"IR") -> 35.5 | F4: Rute 1 | G4: Kuldioxid (CO2) (gram/liter) | H4: =IF('Vurdering af miljøgevinst'!$A$5="Rute 1",Brændstoftyper!B23*(1-'Vurdering af miljøgevinst'!$B$13)+Brændstoftyper!C23*'Vurdering af miljøgevinst'!$B$13,"IR") -> 1707.55 | I4: =IF('Vurdering af miljøgevinst'!$A$5="Rute 1",Brændstoftyper!B23*(1-'Vurdering af miljøgevinst'!$B$13)+Brændstoftyper!F23*'Vurdering af miljøgevinst'!$B$13,"IR") -> 1707.55 | J4: =IF('Vurdering af miljøgevinst'!$A$5="Rute 1",Brændstoftyper!B23*(1-'Vurdering af miljøgevinst'!$F$13)+Brændstoftyper!C23*'Vurdering af miljøgevinst'!$F$13,"IR") -> 2627 | K4: =IF('Vurdering af miljøgevinst'!$A$5="Rute 1",Brændstoftyper!B23*(1-'Vurdering af miljøgevinst'!$F$13)+Brændstoftyper!F23*'Vurdering af miljøgevinst'!$F$13,"IR") -> 2627 | L4: Rute 1 | M4: Kuldioxid (CO2) (gram/liter) | N4: =IF('Vurdering af miljøgevinst'!$A$5="Rute 1",Brændstoftyper!B32*(1-'Vurdering af miljøgevinst'!$B$13)+Brændstoftyper!C32*'Vurdering af miljøgevinst'!$B$13,"IR") -> 1707.55 | O4: =IF('Vurdering af miljøgevinst'!$A$5="Rute 1",Brændstoftyper!B32*(1-'Vurdering af miljøgevinst'!$B$13)+Brændstoftyper!F32*'Vurdering af miljøgevinst'!$B$13,"IR") -> 1707.55 | P4: =IF('Vurdering af miljøgevinst'!$A$5="Rute 1",Brændstoftyper!B32*(1-'Vurdering af miljøgevinst'!$F$13)+Brændstoftyper!C32*'Vurdering af miljøgevinst'!$F$13,"IR") -> 2627 | Q4: =IF('Vurdering af miljøgevinst'!$A$5="Rute 1",Brændstoftyper!B32*(1-'Vurdering af miljøgevinst'!$F$13)+Brændstoftyper!F32*'Vurdering af miljøgevinst'!$F$13,"IR") -> 2627 | R4: Rute 1 | S4: Kuldioxid (CO2) (gram/liter) | T4: =IF('Vurdering af miljøgevinst'!$A$5="Rute 1",Brændstoftyper!$B41*(1-'Vurdering af miljøgevinst'!$B$13)+Brændstoftyper!$C41*'Vurdering af miljøgevinst'!$B$13,"IR") -> 1707.55 | U4: =IF('Vurdering af miljøgevinst'!$A$5="Rute 1",Brændstoftyper!$B41*(1-'Vurdering af miljøgevinst'!$B$13)+Brændstoftyper!$F41*'Vurdering af miljøgevinst'!$B$13,"IR") -> 1707.55 | V4: =IF('Vurdering af miljøgevinst'!$A$5="Rute 1",Brændstoftyper!$B41*(1-'Vurdering af miljøgevinst'!$F$13)+Brændstoftyper!$C41*'Vurdering af miljøgevinst'!$F$13,"IR") -> 2627 | W4: =IF('Vurdering af miljøgevinst'!$A$5="Rute 1",Brændstoftyper!$B41*(1-'Vurdering af miljøgevinst'!$F$13)+Brændstoftyper!$F41*'Vurdering af miljøgevinst'!$F$13,"IR") -> 2627 | X4: Rute 1 | Y4: Kuldioxid (CO2) (gram/liter) | Z4: =IF('Vurdering af miljøgevinst'!$A$5="Rute 1",Brændstoftyper!$B50*(1-'Vurdering af miljøgevinst'!$B$13)+Brændstoftyper!$C50*'Vurdering af miljøgevinst'!$B$13,"IR") -> 1707.55 | AA4: =IF('Vurdering af miljøgevinst'!$A$5="Rute 1",Brændstoftyper!$B50*(1-'Vurdering af miljøgevinst'!$B$13)+Brændstoftyper!$F50*'Vurdering af miljøgevinst'!$B$13,"IR") -> 1707.55 | AB4: =IF('Vurdering af miljøgevinst'!$A$5="Rute 1",Brændstoftyper!$B50*(1-'Vurdering af miljøgevinst'!$F$13)+Brændstoftyper!$C50*'Vurdering af miljøgevinst'!$F$13,"IR") -> 2627 | AC4: =IF('Vurdering af miljøgevinst'!$A$5="Rute 1",Brændstoftyper!$B50*(1-'Vurdering af miljøgevinst'!$F$13)+Brændstoftyper!$F50*'Vurdering af miljøgevinst'!$F$13,"IR") -> 2627 | AD4: Rute 1 | AE4: Kuldioxid (CO2) (gram/liter) | AF4: =IF('Vurdering af miljøgevinst'!$A$5="Rute 1",Brændstoftyper!$B59*(1-'Vurdering af miljøgevinst'!$B$13)+Brændstoftyper!$C59*'Vurdering af miljøgevinst'!$B$13,"IR") -> 1707.55 | AG4: =IF('Vurdering af miljøgevinst'!$A$5="Rute 1",Brændstoftyper!$B59*(1-'Vurdering af miljøgevinst'!$B$13)+Brændstoftyper!$F59*'Vurdering af miljøgevinst'!$B$13,"IR") -> 1707.55 | AH4: =IF('Vurdering af miljøgevinst'!$A$5="Rute 1",Brændstoftyper!$B59*(1-'Vurdering af miljøgevinst'!$F$13)+Brændstoftyper!$C59*'Vurdering af miljøgevinst'!$F$13,"IR") -> 2627 | AI4: =IF('Vurdering af miljøgevinst'!$A$5="Rute 1",Brændstoftyper!$B59*(1-'Vurdering af miljøgevinst'!$F$13)+Brændstoftyper!$F59*'Vurdering af miljøgevinst'!$F$13,"IR") -> 2627 | AJ4: Rute 1 | AK4: Kuldioxid (CO2) (gram/liter) | AL4: =IF('Vurdering af miljøgevinst'!$A$5="Rute 1",Brændstoftyper!$B68*(1-'Vurdering af miljøgevinst'!$B$13)+Brændstoftyper!$C68*'Vurdering af miljøgevinst'!$B$13,"IR") -> 1707.55 | AM4: =IF('Vurdering af miljøgevinst'!$A$5="Rute 1",Brændstoftyper!$B68*(1-'Vurdering af miljøgevinst'!$B$13)+Brændstoftyper!$F68*'Vurdering af miljøgevinst'!$B$13,"IR") -> 1707.55 | AN4: =IF('Vurdering af miljøgevinst'!$A$5="Rute 1",Brændstoftyper!$B68*(1-'Vurdering af miljøgevinst'!$F$13)+Brændstoftyper!$C68*'Vurdering af miljøgevinst'!$F$13,"IR") -> 2627 | AO4: =IF('Vurdering af miljøgevinst'!$A$5="Rute 1",Brændstoftyper!$B68*(1-'Vurdering af miljøgevinst'!$F$13)+Brændstoftyper!$F68*'Vurdering af miljøgevinst'!$F$13,"IR") -> 2627
G5: Svovldioxid (SO2) (gram/liter) | H5: =IF('Vurdering af miljøgevinst'!$A$5="Rute 1",Brændstoftyper!B24*(1-'Vurdering af miljøgevinst'!$B$13)+Brændstoftyper!C24*'Vurdering af miljøgevinst'!$B$13,"IR") -> 0.01267774225 | I5: =IF('Vurdering af miljøgevinst'!$A$5="Rute 1",Brændstoftyper!B24*(1-'Vurdering af miljøgevinst'!$B$13)+Brændstoftyper!F24*'Vurdering af miljøgevinst'!$B$13,"IR") -> 0.0144586 | J5: =IF('Vurdering af miljøgevinst'!$A$5="Rute 1",Brændstoftyper!B24*(1-'Vurdering af miljøgevinst'!$F$13)+Brændstoftyper!C24*'Vurdering af miljøgevinst'!$F$13,"IR") -> 0.01775 | K5: =IF('Vurdering af miljøgevinst'!$A$5="Rute 1",Brændstoftyper!B24*(1-'Vurdering af miljøgevinst'!$F$13)+Brændstoftyper!F24*'Vurdering af miljøgevinst'!$F$13,"IR") -> 0.01775 | M5: Svovldioxid (SO2) (gram/liter) | N5: =IF('Vurdering af miljøgevinst'!$A$5="Rute 1",Brændstoftyper!B33*(1-'Vurdering af miljøgevinst'!$B$13)+Brændstoftyper!C33*'Vurdering af miljøgevinst'!$B$13,"IR") -> 0.01267774225 | O5: =IF('Vurdering af miljøgevinst'!$A$5="Rute 1",Brændstoftyper!B33*(1-'Vurdering af miljøgevinst'!$B$13)+Brændstoftyper!F33*'Vurdering af miljøgevinst'!$B$13,"IR") -> 0.0144586 | P5: =IF('Vurdering af miljøgevinst'!$A$5="Rute 1",Brændstoftyper!B33*(1-'Vurdering af miljøgevinst'!$F$13)+Brændstoftyper!C33*'Vurdering af miljøgevinst'!$F$13,"IR") -> 0.01775 | Q5: =IF('Vurdering af miljøgevinst'!$A$5="Rute 1",Brændstoftyper!B33*(1-'Vurdering af miljøgevinst'!$F$13)+Brændstoftyper!F33*'Vurdering af miljøgevinst'!$F$13,"IR") -> 0.01775 | S5: Svovldioxid (SO2) (gram/liter) | T5: =IF('Vurdering af miljøgevinst'!$A$5="Rute 1",Brændstoftyper!$B42*(1-'Vurdering af miljøgevinst'!$B$13)+Brændstoftyper!$C42*'Vurdering af miljøgevinst'!$B$13,"IR") -> 0.01267774225 | U5: =IF('Vurdering af miljøgevinst'!$A$5="Rute 1",Brændstoftyper!$B42*(1-'Vurdering af miljøgevinst'!$B$13)+Brændstoftyper!$F42*'Vurdering af miljøgevinst'!$B$13,"IR") -> 0.0144586 | V5: =IF('Vurdering af miljøgevinst'!$A$5="Rute 1",Brændstoftyper!$B42*(1-'Vurdering af miljøgevinst'!$F$13)+Brændstoftyper!$C42*'Vurdering af miljøgevinst'!$F$13,"IR") -> 0.01775 | W5: =IF('Vurdering af miljøgevinst'!$A$5="Rute 1",Brændstoftyper!$B42*(1-'Vurdering af miljøgevinst'!$F$13)+Brændstoftyper!$F42*'Vurdering af miljøgevinst'!$F$13,"IR") -> 0.01775 | Y5: Svovldioxid (SO2) (gram/liter) | Z5: =IF('Vurdering af miljøgevinst'!$A$5="Rute 1",Brændstoftyper!$B51*(1-'Vurdering af miljøgevinst'!$B$13)+Brændstoftyper!$C51*'Vurdering af miljøgevinst'!$B$13,"IR") -> 0.01267774225 | AA5: =IF('Vurdering af miljøgevinst'!$A$5="Rute 1",Brændstoftyper!$B51*(1-'Vurdering af miljøgevinst'!$B$13)+Brændstoftyper!$F51*'Vurdering af miljøgevinst'!$B$13,"IR") -> 0.0144586 | AB5: =IF('Vurdering af miljøgevinst'!$A$5="Rute 1",Brændstoftyper!$B51*(1-'Vurdering af miljøgevinst'!$F$13)+Brændstoftyper!$C51*'Vurdering af miljøgevinst'!$F$13,"IR") -> 0.01775 | AC5: =IF('Vurdering af miljøgevinst'!$A$5="Rute 1",Brændstoftyper!$B51*(1-'Vurdering af miljøgevinst'!$F$13)+Brændstoftyper!$F51*'Vurdering af miljøgevinst'!$F$13,"IR") -> 0.01775 | AE5: Svovldioxid (SO2) (gram/liter) | AF5: =IF('Vurdering af miljøgevinst'!$A$5="Rute 1",Brændstoftyper!$B60*(1-'Vurdering af miljøgevinst'!$B$13)+Brændstoftyper!$C60*'Vurdering af miljøgevinst'!$B$13,"IR") -> 0.01267774225 | AG5: =IF('Vurdering af miljøgevinst'!$A$5="Rute 1",Brændstoftyper!$B60*(1-'Vurdering af miljøgevinst'!$B$13)+Brændstoftyper!$F60*'Vurdering af miljøgevinst'!$B$13,"IR") -> 0.0144586 | AH5: =IF('Vurdering af miljøgevinst'!$A$5="Rute 1",Brændstoftyper!$B60*(1-'Vurdering af miljøgevinst'!$F$13)+Brændstoftyper!$C60*'Vurdering af miljøgevinst'!$F$13,"IR") -> 0.01775 | AI5: =IF('Vurdering af miljøgevinst'!$A$5="Rute 1",Brændstoftyper!$B60*(1-'Vurdering af miljøgevinst'!$F$13)+Brændstoftyper!$F60*'Vurdering af miljøgevinst'!$F$13,"IR") -> 0.01775 | AK5: Svovldioxid (SO2) (gram/liter) | AL5: =IF('Vurdering af miljøgevinst'!$A$5="Rute 1",Brændstoftyper!$B69*(1-'Vurdering af miljøgevinst'!$B$13)+Brændstoftyper!$C69*'Vurdering af miljøgevinst'!$B$13,"IR") -> 0.01267774225 | AM5: =IF('Vurdering af miljøgevinst'!$A$5="Rute 1",Brændstoftyper!$B69*(1-'Vurdering af miljøgevinst'!$B$13)+Brændstoftyper!$F69*'Vurdering af miljøgevinst'!$B$13,"IR") -> 0.0144586 | AN5: =IF('Vurdering af miljøgevinst'!$A$5="Rute 1",Brændstoftyper!$B69*(1-'Vurdering af miljøgevinst'!$F$13)+Brændstoftyper!$C69*'Vurdering af miljøgevinst'!$F$13,"IR") -> 0.01775 | AO5: =IF('Vurdering af miljøgevinst'!$A$5="Rute 1",Brændstoftyper!$B69*(1-'Vurdering af miljøgevinst'!$F$13)+Brændstoftyper!$F69*'Vurdering af miljøgevinst'!$F$13,"IR") -> 0.01775
G6: Kvælstofilter (NOx) (gram/liter) | H6: =IF('Vurdering af miljøgevinst'!$A$5="Rute 1",Brændstoftyper!B25*(1-'Vurdering af miljøgevinst'!$B$13)+Brændstoftyper!C25*'Vurdering af miljøgevinst'!$B$13,"IR") -> 0.7918038333 | I6: =IF('Vurdering af miljøgevinst'!$A$5="Rute 1",Brændstoftyper!B25*(1-'Vurdering af miljøgevinst'!$B$13)+Brændstoftyper!F25*'Vurdering af miljøgevinst'!$B$13,"IR") -> 0.6664207667 | J6: =IF('Vurdering af miljøgevinst'!$A$5="Rute 1",Brændstoftyper!B25*(1-'Vurdering af miljøgevinst'!$F$13)+Brændstoftyper!C25*'Vurdering af miljøgevinst'!$F$13,"IR") -> 0.8283333333 | K6: =IF('Vurdering af miljøgevinst'!$A$5="Rute 1",Brændstoftyper!B25*(1-'Vurdering af miljøgevinst'!$F$13)+Brændstoftyper!F25*'Vurdering af miljøgevinst'!$F$13,"IR") -> 0.8283333333 | M6: Kvælstofilter (NOx) (gram/liter) | N6: =IF('Vurdering af miljøgevinst'!$A$5="Rute 1",Brændstoftyper!B34*(1-'Vurdering af miljøgevinst'!$B$13)+Brændstoftyper!C34*'Vurdering af miljøgevinst'!$B$13,"IR") -> 3.959019167 | O6: =IF('Vurdering af miljøgevinst'!$A$5="Rute 1",Brændstoftyper!B34*(1-'Vurdering af miljøgevinst'!$B$13)+Brændstoftyper!F34*'Vurdering af miljøgevinst'!$B$13,"IR") -> 2.820087433 | P6: =IF('Vurdering af miljøgevinst'!$A$5="Rute 1",Brændstoftyper!B34*(1-'Vurdering af miljøgevinst'!$F$13)+Brændstoftyper!C34*'Vurdering af miljøgevinst'!$F$13,"IR") -> 4.141666667 | Q6: =IF('Vurdering af miljøgevinst'!$A$5="Rute 1",Brændstoftyper!B34*(1-'Vurdering af miljøgevinst'!$F$13)+Brændstoftyper!F34*'Vurdering af miljøgevinst'!$F$13,"IR") -> 4.141666667 | S6: Kvælstofilter (NOx) (gram/liter) | T6: =IF('Vurdering af miljøgevinst'!$A$5="Rute 1",Brændstoftyper!$B43*(1-'Vurdering af miljøgevinst'!$B$13)+Brændstoftyper!$C43*'Vurdering af miljøgevinst'!$B$13,"IR") -> 3.959019167 | U6: =IF('Vurdering af miljøgevinst'!$A$5="Rute 1",Brændstoftyper!$B43*(1-'Vurdering af miljøgevinst'!$B$13)+Brændstoftyper!$F43*'Vurdering af miljøgevinst'!$B$13,"IR") -> 2.820087433 | V6: =IF('Vurdering af miljøgevinst'!$A$5="Rute 1",Brændstoftyper!$B43*(1-'Vurdering af miljøgevinst'!$F$13)+Brændstoftyper!$C43*'Vurdering af miljøgevinst'!$F$13,"IR") -> 4.141666667 | W6: =IF('Vurdering af miljøgevinst'!$A$5="Rute 1",Brændstoftyper!$B43*(1-'Vurdering af miljøgevinst'!$F$13)+Brændstoftyper!$F43*'Vurdering af miljøgevinst'!$F$13,"IR") -> 4.141666667 | Y6: Kvælstofilter (NOx) (gram/liter) | Z6: =IF('Vurdering af miljøgevinst'!$A$5="Rute 1",Brændstoftyper!$B52*(1-'Vurdering af miljøgevinst'!$B$13)+Brændstoftyper!$C52*'Vurdering af miljøgevinst'!$B$13,"IR") -> 6.928283542 | AA6: =IF('Vurdering af miljøgevinst'!$A$5="Rute 1",Brændstoftyper!$B52*(1-'Vurdering af miljøgevinst'!$B$13)+Brændstoftyper!$F52*'Vurdering af miljøgevinst'!$B$13,"IR") -> 4.839149933 | AB6: =IF('Vurdering af miljøgevinst'!$A$5="Rute 1",Brændstoftyper!$B52*(1-'Vurdering af miljøgevinst'!$F$13)+Brændstoftyper!$C52*'Vurdering af miljøgevinst'!$F$13,"IR") -> 7.247916667 | AC6: =IF('Vurdering af miljøgevinst'!$A$5="Rute 1",Brændstoftyper!$B52*(1-'Vurdering af miljøgevinst'!$F$13)+Brændstoftyper!$F52*'Vurdering af miljøgevinst'!$F$13,"IR") -> 7.247916667 | AE6: Kvælstofilter (NOx) (gram/liter) | AF6: =IF('Vurdering af miljøgevinst'!$A$5="Rute 1",Brændstoftyper!$B61*(1-'Vurdering af miljøgevinst'!$B$13)+Brændstoftyper!$C61*'Vurdering af miljøgevinst'!$B$13,"IR") -> 9.897547917 | AG6: =IF('Vurdering af miljøgevinst'!$A$5="Rute 1",Brændstoftyper!$B61*(1-'Vurdering af miljøgevinst'!$B$13)+Brændstoftyper!$F61*'Vurdering af miljøgevinst'!$B$13,"IR") -> 6.858212433 | AH6: =IF('Vurdering af miljøgevinst'!$A$5="Rute 1",Brændstoftyper!$B61*(1-'Vurdering af miljøgevinst'!$F$13)+Brændstoftyper!$C61*'Vurdering af miljøgevinst'!$F$13,"IR") -> 10.35416667 | AI6: =IF('Vurdering af miljøgevinst'!$A$5="Rute 1",Brændstoftyper!$B61*(1-'Vurdering af miljøgevinst'!$F$13)+Brændstoftyper!$F61*'Vurdering af miljøgevinst'!$F$13,"IR") -> 10.35416667 | AK6: Kvælstofilter (NOx) (gram/liter) | AL6: =IF('Vurdering af miljøgevinst'!$A$5="Rute 1",Brændstoftyper!$B70*(1-'Vurdering af miljøgevinst'!$B$13)+Brændstoftyper!$C70*'Vurdering af miljøgevinst'!$B$13,"IR") -> 13.85656708 | AM6: =IF('Vurdering af miljøgevinst'!$A$5="Rute 1",Brændstoftyper!$B70*(1-'Vurdering af miljøgevinst'!$B$13)+Brændstoftyper!$F70*'Vurdering af miljøgevinst'!$B$13,"IR") -> 9.550295767 | AN6: =IF('Vurdering af miljøgevinst'!$A$5="Rute 1",Brændstoftyper!$B70*(1-'Vurdering af miljøgevinst'!$F$13)+Brændstoftyper!$C70*'Vurdering af miljøgevinst'!$F$13,"IR") -> 14.49583333 | AO6: =IF('Vurdering af miljøgevinst'!$A$5="Rute 1",Brændstoftyper!$B70*(1-'Vurdering af miljøgevinst'!$F$13)+Brændstoftyper!$F70*'Vurdering af miljøgevinst'!$F$13,"IR") -> 14.49583333
G7: Kulilte (CO) (gram/liter) | H7: =IF('Vurdering af miljøgevinst'!$A$5="Rute 1",Brændstoftyper!B26*(1-'Vurdering af miljøgevinst'!$B$13)+Brændstoftyper!C26*'Vurdering af miljøgevinst'!$B$13,"IR") -> 2.969264375 | I7: =IF('Vurdering af miljøgevinst'!$A$5="Rute 1",Brændstoftyper!B26*(1-'Vurdering af miljøgevinst'!$B$13)+Brændstoftyper!F26*'Vurdering af miljøgevinst'!$B$13,"IR") -> 2.0190625 | J7: =IF('Vurdering af miljøgevinst'!$A$5="Rute 1",Brændstoftyper!B26*(1-'Vurdering af miljøgevinst'!$F$13)+Brændstoftyper!C26*'Vurdering af miljøgevinst'!$F$13,"IR") -> 3.10625 | K7: =IF('Vurdering af miljøgevinst'!$A$5="Rute 1",Brændstoftyper!B26*(1-'Vurdering af miljøgevinst'!$F$13)+Brændstoftyper!F26*'Vurdering af miljøgevinst'!$F$13,"IR") -> 3.10625 | M7: Kulilte (CO) (gram/liter) | N7: =IF('Vurdering af miljøgevinst'!$A$5="Rute 1",Brændstoftyper!B35*(1-'Vurdering af miljøgevinst'!$B$13)+Brændstoftyper!C35*'Vurdering af miljøgevinst'!$B$13,"IR") -> 2.969264375 | O7: =IF('Vurdering af miljøgevinst'!$A$5="Rute 1",Brændstoftyper!B35*(1-'Vurdering af miljøgevinst'!$B$13)+Brændstoftyper!F35*'Vurdering af miljøgevinst'!$B$13,"IR") -> 2.0190625 | P7: =IF('Vurdering af miljøgevinst'!$A$5="Rute 1",Brændstoftyper!B35*(1-'Vurdering af miljøgevinst'!$F$13)+Brændstoftyper!C35*'Vurdering af miljøgevinst'!$F$13,"IR") -> 3.10625 | Q7: =IF('Vurdering af miljøgevinst'!$A$5="Rute 1",Brændstoftyper!B35*(1-'Vurdering af miljøgevinst'!$F$13)+Brændstoftyper!F35*'Vurdering af miljøgevinst'!$F$13,"IR") -> 3.10625 | S7: Kulilte (CO) (gram/liter) | T7: =IF('Vurdering af miljøgevinst'!$A$5="Rute 1",Brændstoftyper!$B44*(1-'Vurdering af miljøgevinst'!$B$13)+Brændstoftyper!$C44*'Vurdering af miljøgevinst'!$B$13,"IR") -> 2.969264375 | U7: =IF('Vurdering af miljøgevinst'!$A$5="Rute 1",Brændstoftyper!$B44*(1-'Vurdering af miljøgevinst'!$B$13)+Brændstoftyper!$F44*'Vurdering af miljøgevinst'!$B$13,"IR") -> 2.0190625 | V7: =IF('Vurdering af miljøgevinst'!$A$5="Rute 1",Brændstoftyper!$B44*(1-'Vurdering af miljøgevinst'!$F$13)+Brændstoftyper!$C44*'Vurdering af miljøgevinst'!$F$13,"IR") -> 3.10625 | W7: =IF('Vurdering af miljøgevinst'!$A$5="Rute 1",Brændstoftyper!$B44*(1-'Vurdering af miljøgevinst'!$F$13)+Brændstoftyper!$F44*'Vurdering af miljøgevinst'!$F$13,"IR") -> 3.10625 | Y7: Kulilte (CO) (gram/liter) | Z7: =IF('Vurdering af miljøgevinst'!$A$5="Rute 1",Brændstoftyper!$B53*(1-'Vurdering af miljøgevinst'!$B$13)+Brændstoftyper!$C53*'Vurdering af miljøgevinst'!$B$13,"IR") -> 2.969264375 | AA7: =IF('Vurdering af miljøgevinst'!$A$5="Rute 1",Brændstoftyper!$B53*(1-'Vurdering af miljøgevinst'!$B$13)+Brændstoftyper!$F53*'Vurdering af miljøgevinst'!$B$13,"IR") -> 2.0190625 | AB7: =IF('Vurdering af miljøgevinst'!$A$5="Rute 1",Brændstoftyper!$B53*(1-'Vurdering af miljøgevinst'!$F$13)+Brændstoftyper!$C53*'Vurdering af miljøgevinst'!$F$13,"IR") -> 3.10625 | AC7: =IF('Vurdering af miljøgevinst'!$A$5="Rute 1",Brændstoftyper!$B53*(1-'Vurdering af miljøgevinst'!$F$13)+Brændstoftyper!$F53*'Vurdering af miljøgevinst'!$F$13,"IR") -> 3.10625 | AE7: Kulilte (CO) (gram/liter) | AF7: =IF('Vurdering af miljøgevinst'!$A$5="Rute 1",Brændstoftyper!$B62*(1-'Vurdering af miljøgevinst'!$B$13)+Brændstoftyper!$C62*'Vurdering af miljøgevinst'!$B$13,"IR") -> 4.156970125 | AG7: =IF('Vurdering af miljøgevinst'!$A$5="Rute 1",Brændstoftyper!$B62*(1-'Vurdering af miljøgevinst'!$B$13)+Brændstoftyper!$F62*'Vurdering af miljøgevinst'!$B$13,"IR") -> 2.8266875 | AH7: =IF('Vurdering af miljøgevinst'!$A$5="Rute 1",Brændstoftyper!$B62*(1-'Vurdering af miljøgevinst'!$F$13)+Brændstoftyper!$C62*'Vurdering af miljøgevinst'!$F$13,"IR") -> 4.34875 | AI7: =IF('Vurdering af miljøgevinst'!$A$5="Rute 1",Brændstoftyper!$B62*(1-'Vurdering af miljøgevinst'!$F$13)+Brændstoftyper!$F62*'Vurdering af miljøgevinst'!$F$13,"IR") -> 4.34875 | AK7: Kulilte (CO) (gram/liter) | AL7: =IF('Vurdering af miljøgevinst'!$A$5="Rute 1",Brændstoftyper!$B71*(1-'Vurdering af miljøgevinst'!$B$13)+Brændstoftyper!$C71*'Vurdering af miljøgevinst'!$B$13,"IR") -> 7.918038333 | AM7: =IF('Vurdering af miljøgevinst'!$A$5="Rute 1",Brændstoftyper!$B71*(1-'Vurdering af miljøgevinst'!$B$13)+Brændstoftyper!$F71*'Vurdering af miljøgevinst'!$B$13,"IR") -> 5.384166667 | AN7: =IF('Vurdering af miljøgevinst'!$A$5="Rute 1",Brændstoftyper!$B71*(1-'Vurdering af miljøgevinst'!$F$13)+Brændstoftyper!$C71*'Vurdering af miljøgevinst'!$F$13,"IR") -> 8.283333333 | AO7: =IF('Vurdering af miljøgevinst'!$A$5="Rute 1",Brændstoftyper!$B71*(1-'Vurdering af miljøgevinst'!$F$13)+Brændstoftyper!$F71*'Vurdering af miljøgevinst'!$F$13,"IR") -> 8.283333333
G8: Kulbrinte (HC) (gram/liter) | H8: =IF('Vurdering af miljøgevinst'!$A$5="Rute 1",Brændstoftyper!B27*(1-'Vurdering af miljøgevinst'!$B$13)+Brændstoftyper!C27*'Vurdering af miljøgevinst'!$B$13,"IR") -> 0.2573362458 | I8: =IF('Vurdering af miljøgevinst'!$A$5="Rute 1",Brændstoftyper!B27*(1-'Vurdering af miljøgevinst'!$B$13)+Brændstoftyper!F27*'Vurdering af miljøgevinst'!$B$13,"IR") -> 0.1749854167 | J8: =IF('Vurdering af miljøgevinst'!$A$5="Rute 1",Brændstoftyper!B27*(1-'Vurdering af miljøgevinst'!$F$13)+Brændstoftyper!C27*'Vurdering af miljøgevinst'!$F$13,"IR") -> 0.2692083333 | K8: =IF('Vurdering af miljøgevinst'!$A$5="Rute 1",Brændstoftyper!B27*(1-'Vurdering af miljøgevinst'!$F$13)+Brændstoftyper!F27*'Vurdering af miljøgevinst'!$F$13,"IR") -> 0.2692083333 | M8: Kulbrinte (HC) (gram/liter) | N8: =IF('Vurdering af miljøgevinst'!$A$5="Rute 1",Brændstoftyper!B36*(1-'Vurdering af miljøgevinst'!$B$13)+Brændstoftyper!C36*'Vurdering af miljøgevinst'!$B$13,"IR") -> 0.4948773958 | O8: =IF('Vurdering af miljøgevinst'!$A$5="Rute 1",Brændstoftyper!B36*(1-'Vurdering af miljøgevinst'!$B$13)+Brændstoftyper!F36*'Vurdering af miljøgevinst'!$B$13,"IR") -> 0.3365104167 | P8: =IF('Vurdering af miljøgevinst'!$A$5="Rute 1",Brændstoftyper!B36*(1-'Vurdering af miljøgevinst'!$F$13)+Brændstoftyper!C36*'Vurdering af miljøgevinst'!$F$13,"IR") -> 0.5177083333 | Q8: =IF('Vurdering af miljøgevinst'!$A$5="Rute 1",Brændstoftyper!B36*(1-'Vurdering af miljøgevinst'!$F$13)+Brændstoftyper!F36*'Vurdering af miljøgevinst'!$F$13,"IR") -> 0.5177083333 | S8: Kulbrinte (HC) (gram/liter) | T8: =IF('Vurdering af miljøgevinst'!$A$5="Rute 1",Brændstoftyper!$B45*(1-'Vurdering af miljøgevinst'!$B$13)+Brændstoftyper!$C45*'Vurdering af miljøgevinst'!$B$13,"IR") -> 0.9105744083 | U8: =IF('Vurdering af miljøgevinst'!$A$5="Rute 1",Brændstoftyper!$B45*(1-'Vurdering af miljøgevinst'!$B$13)+Brændstoftyper!$F45*'Vurdering af miljøgevinst'!$B$13,"IR") -> 0.6191791667 | V8: =IF('Vurdering af miljøgevinst'!$A$5="Rute 1",Brændstoftyper!$B45*(1-'Vurdering af miljøgevinst'!$F$13)+Brændstoftyper!$C45*'Vurdering af miljøgevinst'!$F$13,"IR") -> 0.9525833333 | W8: =IF('Vurdering af miljøgevinst'!$A$5="Rute 1",Brændstoftyper!$B45*(1-'Vurdering af miljøgevinst'!$F$13)+Brændstoftyper!$F45*'Vurdering af miljøgevinst'!$F$13,"IR") -> 0.9525833333 | Y8: Kulbrinte (HC) (gram/liter) | Z8: =IF('Vurdering af miljøgevinst'!$A$5="Rute 1",Brændstoftyper!$B54*(1-'Vurdering af miljøgevinst'!$B$13)+Brændstoftyper!$C54*'Vurdering af miljøgevinst'!$B$13,"IR") -> 0.9105744083 | AA8: =IF('Vurdering af miljøgevinst'!$A$5="Rute 1",Brændstoftyper!$B54*(1-'Vurdering af miljøgevinst'!$B$13)+Brændstoftyper!$F54*'Vurdering af miljøgevinst'!$B$13,"IR") -> 0.6191791667 | AB8: =IF('Vurdering af miljøgevinst'!$A$5="Rute 1",Brændstoftyper!$B54*(1-'Vurdering af miljøgevinst'!$F$13)+Brændstoftyper!$C54*'Vurdering af miljøgevinst'!$F$13,"IR") -> 0.9525833333 | AC8: =IF('Vurdering af miljøgevinst'!$A$5="Rute 1",Brændstoftyper!$B54*(1-'Vurdering af miljøgevinst'!$F$13)+Brændstoftyper!$F54*'Vurdering af miljøgevinst'!$F$13,"IR") -> 0.9525833333 | AE8: Kulbrinte (HC) (gram/liter) | AF8: =IF('Vurdering af miljøgevinst'!$A$5="Rute 1",Brændstoftyper!$B63*(1-'Vurdering af miljøgevinst'!$B$13)+Brændstoftyper!$C63*'Vurdering af miljøgevinst'!$B$13,"IR") -> 1.306476325 | AG8: =IF('Vurdering af miljøgevinst'!$A$5="Rute 1",Brændstoftyper!$B63*(1-'Vurdering af miljøgevinst'!$B$13)+Brændstoftyper!$F63*'Vurdering af miljøgevinst'!$B$13,"IR") -> 0.8883875 | AH8: =IF('Vurdering af miljøgevinst'!$A$5="Rute 1",Brændstoftyper!$B63*(1-'Vurdering af miljøgevinst'!$F$13)+Brændstoftyper!$C63*'Vurdering af miljøgevinst'!$F$13,"IR") -> 1.36675 | AI8: =IF('Vurdering af miljøgevinst'!$A$5="Rute 1",Brændstoftyper!$B63*(1-'Vurdering af miljøgevinst'!$F$13)+Brændstoftyper!$F63*'Vurdering af miljøgevinst'!$F$13,"IR") -> 1.36675 | AK8: Kulbrinte (HC) (gram/liter) | AL8: =IF('Vurdering af miljøgevinst'!$A$5="Rute 1",Brændstoftyper!$B72*(1-'Vurdering af miljøgevinst'!$B$13)+Brændstoftyper!$C72*'Vurdering af miljøgevinst'!$B$13,"IR") -> 2.177460542 | AM8: =IF('Vurdering af miljøgevinst'!$A$5="Rute 1",Brændstoftyper!$B72*(1-'Vurdering af miljøgevinst'!$B$13)+Brændstoftyper!$F72*'Vurdering af miljøgevinst'!$B$13,"IR") -> 1.480645833 | AN8: =IF('Vurdering af miljøgevinst'!$A$5="Rute 1",Brændstoftyper!$B72*(1-'Vurdering af miljøgevinst'!$F$13)+Brændstoftyper!$C72*'Vurdering af miljøgevinst'!$F$13,"IR") -> 2.277916667 | AO8: =IF('Vurdering af miljøgevinst'!$A$5="Rute 1",Brændstoftyper!$B72*(1-'Vurdering af miljøgevinst'!$F$13)+Brændstoftyper!$F72*'Vurdering af miljøgevinst'!$F$13,"IR") -> 2.277916667
G9: Partikler (PM) (gram/liter) | H9: =IF('Vurdering af miljøgevinst'!$A$5="Rute 1",Brændstoftyper!B28*(1-'Vurdering af miljøgevinst'!$B$13)+Brændstoftyper!C28*'Vurdering af miljøgevinst'!$B$13,"IR") -> 0.01979509583 | I9: =IF('Vurdering af miljøgevinst'!$A$5="Rute 1",Brændstoftyper!B28*(1-'Vurdering af miljøgevinst'!$B$13)+Brændstoftyper!F28*'Vurdering af miljøgevinst'!$B$13,"IR") -> 0.01346041667 | J9: =IF('Vurdering af miljøgevinst'!$A$5="Rute 1",Brændstoftyper!B28*(1-'Vurdering af miljøgevinst'!$F$13)+Brændstoftyper!C28*'Vurdering af miljøgevinst'!$F$13,"IR") -> 0.02070833333 | K9: =IF('Vurdering af miljøgevinst'!$A$5="Rute 1",Brændstoftyper!B28*(1-'Vurdering af miljøgevinst'!$F$13)+Brændstoftyper!F28*'Vurdering af miljøgevinst'!$F$13,"IR") -> 0.02070833333 | M9: Partikler (PM) (gram/liter) | N9: =IF('Vurdering af miljøgevinst'!$A$5="Rute 1",Brændstoftyper!B37*(1-'Vurdering af miljøgevinst'!$B$13)+Brændstoftyper!C37*'Vurdering af miljøgevinst'!$B$13,"IR") -> 0.03959019167 | O9: =IF('Vurdering af miljøgevinst'!$A$5="Rute 1",Brændstoftyper!B37*(1-'Vurdering af miljøgevinst'!$B$13)+Brændstoftyper!F37*'Vurdering af miljøgevinst'!$B$13,"IR") -> 0.02692083333 | P9: =IF('Vurdering af miljøgevinst'!$A$5="Rute 1",Brændstoftyper!B37*(1-'Vurdering af miljøgevinst'!$F$13)+Brændstoftyper!C37*'Vurdering af miljøgevinst'!$F$13,"IR") -> 0.04141666667 | Q9: =IF('Vurdering af miljøgevinst'!$A$5="Rute 1",Brændstoftyper!B37*(1-'Vurdering af miljøgevinst'!$F$13)+Brændstoftyper!F37*'Vurdering af miljøgevinst'!$F$13,"IR") -> 0.04141666667 | S9: Partikler (PM) (gram/liter) | T9: =IF('Vurdering af miljøgevinst'!$A$5="Rute 1",Brændstoftyper!$B46*(1-'Vurdering af miljøgevinst'!$B$13)+Brændstoftyper!$C46*'Vurdering af miljøgevinst'!$B$13,"IR") -> 0.03959019167 | U9: =IF('Vurdering af miljøgevinst'!$A$5="Rute 1",Brændstoftyper!$B46*(1-'Vurdering af miljøgevinst'!$B$13)+Brændstoftyper!$F46*'Vurdering af miljøgevinst'!$B$13,"IR") -> 0.02692083333 | V9: =IF('Vurdering af miljøgevinst'!$A$5="Rute 1",Brændstoftyper!$B46*(1-'Vurdering af miljøgevinst'!$F$13)+Brændstoftyper!$C46*'Vurdering af miljøgevinst'!$F$13,"IR") -> 0.04141666667 | W9: =IF('Vurdering af miljøgevinst'!$A$5="Rute 1",Brændstoftyper!$B46*(1-'Vurdering af miljøgevinst'!$F$13)+Brændstoftyper!$F46*'Vurdering af miljøgevinst'!$F$13,"IR") -> 0.04141666667 | Y9: Partikler (PM) (gram/liter) | Z9: =IF('Vurdering af miljøgevinst'!$A$5="Rute 1",Brændstoftyper!$B55*(1-'Vurdering af miljøgevinst'!$B$13)+Brændstoftyper!$C55*'Vurdering af miljøgevinst'!$B$13,"IR") -> 0.03959019167 | AA9: =IF('Vurdering af miljøgevinst'!$A$5="Rute 1",Brændstoftyper!$B55*(1-'Vurdering af miljøgevinst'!$B$13)+Brændstoftyper!$F55*'Vurdering af miljøgevinst'!$B$13,"IR") -> 0.02692083333 | AB9: =IF('Vurdering af miljøgevinst'!$A$5="Rute 1",Brændstoftyper!$B55*(1-'Vurdering af miljøgevinst'!$F$13)+Brændstoftyper!$C55*'Vurdering af miljøgevinst'!$F$13,"IR") -> 0.04141666667 | AC9: =IF('Vurdering af miljøgevinst'!$A$5="Rute 1",Brændstoftyper!$B55*(1-'Vurdering af miljøgevinst'!$F$13)+Brændstoftyper!$F55*'Vurdering af miljøgevinst'!$F$13,"IR") -> 0.04141666667 | AE9: Partikler (PM) (gram/liter) | AF9: =IF('Vurdering af miljøgevinst'!$A$5="Rute 1",Brændstoftyper!$B64*(1-'Vurdering af miljøgevinst'!$B$13)+Brændstoftyper!$C64*'Vurdering af miljøgevinst'!$B$13,"IR") -> 0.1979509583 | AG9: =IF('Vurdering af miljøgevinst'!$A$5="Rute 1",Brændstoftyper!$B64*(1-'Vurdering af miljøgevinst'!$B$13)+Brændstoftyper!$F64*'Vurdering af miljøgevinst'!$B$13,"IR") -> 0.1346041667 | AH9: =IF('Vurdering af miljøgevinst'!$A$5="Rute 1",Brændstoftyper!$B64*(1-'Vurdering af miljøgevinst'!$F$13)+Brændstoftyper!$C64*'Vurdering af miljøgevinst'!$F$13,"IR") -> 0.2070833333 | AI9: =IF('Vurdering af miljøgevinst'!$A$5="Rute 1",Brændstoftyper!$B64*(1-'Vurdering af miljøgevinst'!$F$13)+Brændstoftyper!$F64*'Vurdering af miljøgevinst'!$F$13,"IR") -> 0.2070833333 | AK9: Partikler (PM) (gram/liter) | AL9: =IF('Vurdering af miljøgevinst'!$A$5="Rute 1",Brændstoftyper!$B73*(1-'Vurdering af miljøgevinst'!$B$13)+Brændstoftyper!$C73*'Vurdering af miljøgevinst'!$B$13,"IR") -> 0.2969264375 | AM9: =IF('Vurdering af miljøgevinst'!$A$5="Rute 1",Brændstoftyper!$B73*(1-'Vurdering af miljøgevinst'!$B$13)+Brændstoftyper!$F73*'Vurdering af miljøgevinst'!$B$13,"IR") -> 0.20190625 | AN9: =IF('Vurdering af miljøgevinst'!$A$5="Rute 1",Brændstoftyper!$B73*(1-'Vurdering af miljøgevinst'!$F$13)+Brændstoftyper!$C73*'Vurdering af miljøgevinst'!$F$13,"IR") -> 0.310625 | AO9: =IF('Vurdering af miljøgevinst'!$A$5="Rute 1",Brændstoftyper!$B73*(1-'Vurdering af miljøgevinst'!$F$13)+Brændstoftyper!$F73*'Vurdering af miljøgevinst'!$F$13,"IR") -> 0.310625
A11: Rute 2 | F11: Rute 2 | G11: Kuldioxid (CO2) (gram/liter) | L11: Rute 2 | M11: Kuldioxid (CO2) (gram/liter) | R11: Rute 2 | S11: Kuldioxid (CO2) (gram/liter) | X11: Rute 2 | Y11: Kuldioxid (CO2) (gram/liter) | AD11: Rute 2 | AE11: Kuldioxid (CO2) (gram/liter) | AJ11: Rute 2 | AK11: Kuldioxid (CO2) (gram/liter)
G12: Svovldioxid (SO2) (gram/liter) | M12: Svovldioxid (SO2) (gram/liter) | S12: Svovldioxid (SO2) (gram/liter) | Y12: Svovldioxid (SO2) (gram/liter) | AE12: Svovldioxid (SO2) (gram/liter) | AK12: Svovldioxid (SO2) (gram/liter)
G13: Kvælstofilter (NOx) (gram/liter) | M13: Kvælstofilter (NOx) (gram/liter) | S13: Kvælstofilter (NOx) (gram/liter) | Y13: Kvælstofilter (NOx) (gram/liter) | AE13: Kvælstofilter (NOx) (gram/liter) | AK13: Kvælstofilter (NOx) (gram/liter)
